Workbook

Sheet 2005旧市
A1: 販売農家
A2: 12 年齢別基幹的農業従事者数（自営農業に主として従事した世帯員のうち仕事が主の世帯員数）
C4: 2005 シートに ＠ （市町村合併等のため） があり確認のため
AG7: 単位：人
A8: 新旧市区町村 | E8: 男女計 | F8: 男 | T8: 女
F9: 計 | G9: 15～19歳 | H9: 20 ～ 24 | I9: 25 ～ 29 | J9: 30 ～ 34 | K9: 35 ～ 39 | L9: 40 ～ 44 | M9: 45 ～ 49 | N9: 50 ～ 54 | O9: 55 ～ 59 | P9: 60 ～ 64 | Q9: 65 ～ 69 | R9: 70 ～ 74 | S9: 75歳以上 | T9: 計 | U9: 15～19歳 | V9: 20 ～ 24 | W9: 25 ～ 29 | X9: 30 ～ 34 | Y9: 35 ～ 39 | Z9: 40 ～ 44 | AA9: 45 ～ 49 | AB9: 50 ～ 54 | AC9: 55 ～ 59 | AD9: 60 ～ 64 | AE9: 65 ～ 69 | AF9: 70 ～ 74 | AG9: 75歳以上
A13: 県計 | D13: 000-00 | E13: 77,893 | F13: 40,026 | G13: 28 | H13: 238 | I13: 517 | J13: 638 | K13: 741 | L13: 1,209 | M13: 1,907 | N13: 2,893 | O13: 3,344 | P13: 4,230 | Q13: 5,960 | R13: 7,348 | S13: 10,973 | T13: 37,867 | U13: 3 | V13: 49 | W13: 124 | X13: 222 | Y13: 440 | Z13: 1,134 | AA13: 2,080 | AB13: 3,066 | AC13: 3,771 | AD13: 4,974 | AE13: 6,374 | AF13: 6,962 | AG13: 8,668
B14: 静岡市 | D14: 201-00 | E14: 9,150 | F14: 4,837 | G14: 2 | H14: 28 | I14: 61 | J14: 67 | K14: 94 | L14: 163 | M14: 266 | N14: 469 | O14: 461 | P14: 576 | Q14: 724 | R14: 815 | S14: 1,111 | T14: 4,313 | U14: - | V14: 3 | W14: 12 | X14: 24 | Y14: 51 | Z14: 119 | AA14: 259 | AB14: 402 | AC14: 485 | AD14: 633 | AE14: 765 | AF14: 758 | AG14: 802
C15: 静岡市 | D15: 201-01 | E15: 3,026 | F15: 1,580 | G15: 1 | H15: 8 | I15: 21 | J15: 26 | K15: 35 | L15: 57 | M15: 98 | N15: 125 | O15: 141 | P15: 187 | Q15: 241 | R15: 286 | S15: 354 | T15: 1,446 | U15: - | V15: 2 | W15: 7 | X15: 8 | Y15: 17 | Z15: 30 | AA15: 84 | AB15: 113 | AC15: 165 | AD15: 227 | AE15: 266 | AF15: 257 | AG15: 270
C16: 美和村 | D16: 201-02 | E16: 683 | F16: 355 | G16: - | H16: 2 | I16: 5 | J16: 6 | K16: 7 | L16: 10 | M16: 20 | N16: 34 | O16: 30 | P16: 45 | Q16: 52 | R16: 62 | S16: 82 | T16: 328 | U16: - | V16: - | W16: - | X16: 2 | Y16: 2 | Z16: 11 | AA16: 19 | AB16: 36 | AC16: 37 | AD16: 48 | AE16: 58 | AF16: 59 | AG16: 56
C17: 服織村 | D17: 201-03 | E17: 320 | F17: 168 | G17: - | H17: 3 | I17: 1 | J17: 6 | K17: 4 | L17: 10 | M17: 7 | N17: 16 | O17: 21 | P17: 19 | Q17: 21 | R17: 24 | S17: 36 | T17: 152 | U17: - | V17: - | W17: - | X17: 1 | Y17: 4 | Z17: 7 | AA17: 9 | AB17: 21 | AC17: 17 | AD17: 16 | AE17: 30 | AF17: 19 | AG17: 28
C18: 中藁科村 | D18: 201-04 | E18: 371 | F18: 197 | G18: 1 | H18: 1 | I18: 1 | J18: 1 | K18: 1 | L18: 6 | M18: 9 | N18: 27 | O18: 15 | P18: 33 | Q18: 30 | R18: 26 | S18: 46 | T18: 174 | U18: - | V18: - | W18: - | X18: - | Y18: 1 | Z18: 5 | AA18: 17 | AB18: 12 | AC18: 30 | AD18: 24 | AE18: 21 | AF18: 25 | AG18: 39
C19: 南藁科村 | D19: 201-05 | E19: 208 | F19: 111 | G19: - | H19: - | I19: 1 | J19: - | K19: 3 | L19: 4 | M19: 4 | N19: 13 | O19: 13 | P19: 10 | Q19: 24 | R19: 23 | S19: 16 | T19: 97 | U19: - | V19: - | W19: - | X19: - | Y19: 1 | Z19: 2 | AA19: 7 | AB19: 12 | AC19: 13 | AD19: 15 | AE19: 21 | AF19: 14 | AG19: 12
C20: 有度村２－２ | D20: 201-06 | E20: 21 | F20: 13 | G20: - | H20: - | I20: - | J20: - | K20: - | L20: - | M20: 1 | N20: 1 | O20: 2 | P20: 1 | Q20: 2 | R20: 3 | S20: 3 | T20: 8 | U20: - | V20: - | W20: - | X20: - | Y20: - | Z20: - | AA20: - | AB20: - | AC20: 1 | AD20: 1 | AE20: 3 | AF20: 2 | AG20: 1
C21: 大河内村 | D21: 201-07 | E21: 252 | F21: 132 | G21: - | H21: 2 | I21: - | J21: - | K21: 1 | L21: 6 | M21: 8 | N21: 12 | O21: 12 | P21: 13 | Q21: 21 | R21: 18 | S21: 39 | T21: 120 | U21: - | V21: - | W21: - | X21: 2 | Y21: - | Z21: 5 | AA21: 10 | AB21: 11 | AC21: 5 | AD21: 14 | AE21: 24 | AF21: 21 | AG21: 28
C22: 梅ケ島村 | D22: 201-08 | E22: 98 | F22: 46 | G22: - | H22: - | I22: 1 | J22: - | K22: 1 | L22: 2 | M22: 1 | N22: 6 | O22: 6 | P22: 3 | Q22: 7 | R22: 6 | S22: 13 | T22: 52 | U22: - | V22: - | W22: - | X22: - | Y22: - | Z22: - | AA22: 4 | AB22: 7 | AC22: 3 | AD22: 2 | AE22: 16 | AF22: 8 | AG22: 12
C23: 玉川村 | D23: 201-09 | E23: 179 | F23: 93 | G23: - | H23: - | I23: 1 | J23: - | K23: 1 | L23: 2 | M23: 4 | N23: 15 | O23: 3 | P23: 10 | Q23: 13 | R23: 19 | S23: 25 | T23: 86 | U23: - | V23: - | W23: - | X23: 1 | Y23: - | Z23: 2 | AA23: 9 | AB23: 6 | AC23: 5 | AD23: 14 | AE23: 21 | AF23: 16 | AG23: 12
C24: 井川村 | D24: 201-10 | E24: 40 | F24: 21 | G24: - | H24: - | I24: 1 | J24: - | K24: - | L24: - | M24: 1 | N24: - | O24: 1 | P24: - | Q24: 6 | R24: 5 | S24: 7 | T24: 19 | U24: - | V24: - | W24: - | X24: - | Y24: - | Z24: - | AA24: 1 | AB24: - | AC24: 1 | AD24: 1 | AE24: 6 | AF24: 5 | AG24: 5
C25: 清沢村 | D25: 201-11 | E25: 218 | F25: 126 | G25: - | H25: - | I25: 2 | J25: - | K25: 2 | L25: 3 | M25: 5 | N25: 13 | O25: 12 | P25: 15 | Q25: 16 | R25: 20 | S25: 38 | T25: 92 | U25: - | V25: - | W25: - | X25: - | Y25: - | Z25: 3 | AA25: 2 | AB25: 13 | AC25: 10 | AD25: 11 | AE25: 18 | AF25: 18 | AG25: 17
C26: 大川村 | D26: 201-12 | E26: 181 | F26: 101 | G26: - | H26: - | I26: 1 | J26: 2 | K26: - | L26: 4 | M26: 3 | N26: 9 | O26: 11 | P26: 13 | Q26: 15 | R26: 23 | S26: 20 | T26: 80 | U26: - | V26: - | W26: - | X26: - | Y26: 1 | Z26: 3 | AA26: 5 | AB26: 6 | AC26: 10 | AD26: 13 | AE26: 13 | AF26: 14 | AG26: 15
C27: 清水市 | D27: 201-13 | E27: 663 | F27: 335 | G27: - | H27: - | I27: 7 | J27: 3 | K27: 10 | L27: 15 | M27: 16 | N27: 39 | O27: 28 | P27: 43 | Q27: 45 | R27: 60 | S27: 69 | T27: 328 | U27: - | V27: - | W27: 2 | X27: 2 | Y27: 9 | Z27: 9 | AA27: 15 | AB27: 33 | AC27: 36 | AD27: 40 | AE27: 56 | AF27: 46 | AG27: 80
C28: 飯田村 | D28: 201-14 | E28: 158 | F28: 92 | G28: - | H28: 1 | I28: - | J28: 1 | K28: 3 | L28: 5 | M28: 5 | N28: 14 | O28: 12 | P28: 10 | Q28: 8 | R28: 12 | S28: 21 | T28: 66 | U28: - | V28: - | W28: - | X28: 1 | Y28: 1 | Z28: 2 | AA28: 3 | AB28: 8 | AC28: 7 | AD28: 7 | AE28: 10 | AF28: 16 | AG28: 11
C29: 高部村 | D29: 201-15 | E29: 309 | F29: 166 | G29: - | H29: 1 | I29: - | J29: 4 | K29: 2 | L29: 7 | M29: 16 | N29: 20 | O29: 19 | P29: 20 | Q29: 27 | R29: 13 | S29: 37 | T29: 143 | U29: - | V29: - | W29: 1 | X29: 1 | Y29: 2 | Z29: 4 | AA29: 10 | AB29: 19 | AC29: 16 | AD29: 20 | AE29: 20 | AF29: 24 | AG29: 26
C30: 有度村２－１ | D30: 201-16 | E30: 272 | F30: 144 | G30: - | H30: 1 | I30: 3 | J30: 1 | K30: 8 | L30: 5 | M30: 6 | N30: 18 | O30: 10 | P30: 12 | Q30: 21 | R30: 22 | S30: 37 | T30: 128 | U30: - | V30: - | W30: - | X30: 2 | Y30: 1 | Z30: 3 | AA30: 9 | AB30: 10 | AC30: 10 | AD30: 19 | AE30: 16 | AF30: 31 | AG30: 27
C31: 興津町 | D31: 201-17 | E31: 291 | F31: 157 | G31: - | H31: 3 | I31: 3 | J31: - | K31: 1 | L31: 3 | M31: 5 | N31: 8 | O31: 17 | P31: 19 | Q31: 29 | R31: 29 | S31: 40 | T31: 134 | U31: - | V31: - | W31: - | X31: - | Y31: - | Z31: 3 | AA31: 4 | AB31: 13 | AC31: 10 | AD31: 26 | AE31: 23 | AF31: 28 | AG31: 27
C32: 小島村 | D32: 201-18 | E32: 370 | F32: 197 | G32: - | H32: - | I32: 3 | J32: 1 | K32: 2 | L32: 2 | M32: 9 | N32: 16 | O32: 19 | P32: 30 | Q32: 37 | R32: 29 | S32: 49 | T32: 173 | U32: - | V32: 1 | W32: 2 | X32: 1 | Y32: 1 | Z32: 3 | AA32: 9 | AB32: 14 | AC32: 19 | AD32: 30 | AE32: 29 | AF32: 33 | AG32: 31
C33: 両河内村 | D33: 201-19 | E33: 451 | F33: 252 | G33: - | H33: 3 | I33: 6 | J33: 10 | K33: 5 | L33: 6 | M33: 19 | N33: 23 | O33: 24 | P33: 35 | Q33: 31 | R33: 44 | S33: 46 | T33: 199 | U33: - | V33: - | W33: - | X33: 1 | Y33: 1 | Z33: 14 | AA33: 11 | AB33: 21 | AC33: 35 | AD33: 33 | AE33: 28 | AF33: 30 | AG33: 25
C34: 庵原村 | D34: 201-20 | E34: 927 | F34: 489 | G34: - | H34: 3 | I34: 4 | J34: 5 | K34: 7 | L34: 15 | M34: 29 | N34: 54 | O34: 58 | P34: 54 | Q34: 67 | R34: 77 | S34: 116 | T34: 438 | U34: - | V34: - | W34: - | X34: 2 | Y34: 10 | Z34: 12 | AA34: 30 | AB34: 43 | AC34: 49 | AD34: 63 | AE34: 74 | AF34: 81 | AG34: 74
C35: 袖師町 | D35: 201-21 | E35: 112 | F35: 62 | G35: - | H35: - | I35: - | J35: 1 | K35: 1 | L35: 1 | M35: - | N35: 6 | O35: 7 | P35: 4 | Q35: 11 | R35: 14 | S35: 17 | T35: 50 | U35: - | V35: - | W35: - | X35: - | Y35: - | Z35: 1 | AA35: 1 | AB35: 4 | AC35: 6 | AD35: 9 | AE35: 12 | AF35: 11 | AG35: 6
B36: 浜松市 | D36: 202-00 | E36: 7,798 | F36: 3,811 | G36: 2 | H36: 15 | I36: 44 | J36: 64 | K36: 75 | L36: 130 | M36: 173 | N36: 268 | O36: 256 | P36: 340 | Q36: 567 | R36: 709 | S36: 1,168 | T36: 3,987 | U36: 2 | V36: 9 | W36: 11 | X36: 22 | Y36: 46 | Z36: 129 | AA36: 222 | AB36: 298 | AC36: 367 | AD36: 471 | AE36: 628 | AF36: 764 | AG36: 1,018
C37: 浜松市 | D37: 202-01 | E37: 532 | F37: 268 | G37: 1 | H37: 2 | I37: 3 | J37: 5 | K37: 3 | L37: 3 | M37: 5 | N37: 13 | O37: 17 | P37: 34 | Q37: 45 | R37: 50 | S37: 87 | T37: 264 | U37: - | V37: 1 | W37: 1 | X37: 1 | Y37: 2 | Z37: 1 | AA37: 11 | AB37: 13 | AC37: 25 | AD37: 34 | AE37: 54 | AF37: 48 | AG37: 73
C38: 芳川村 | D38: 202-02 | E38: 226 | F38: 114 | G38: - | H38: - | I38: - | J38: - | K38: 1 | L38: 2 | M38: 5 | N38: 3 | O38: 7 | P38: 12 | Q38: 16 | R38: 23 | S38: 45 | T38: 112 | U38: - | V38: - | W38: - | X38: 1 | Y38: - | Z38: 2 | AA38: 4 | AB38: 8 | AC38: 13 | AD38: 11 | AE38: 17 | AF38: 26 | AG38: 30
C39: 飯田村 | D39: 202-03 | E39: 156 | F39: 74 | G39: - | H39: - | I39: - | J39: - | K39: 4 | L39: 4 | M39: - | N39: 2 | O39: 2 | P39: 10 | Q39: 14 | R39: 14 | S39: 24 | T39: 82 | U39: - | V39: - | W39: - | X39: - | Y39: - | Z39: 2 | AA39: 2 | AB39: 4 | AC39: 7 | AD39: 9 | AE39: 12 | AF39: 24 | AG39: 22
C40: 和田村 | D40: 202-04 | E40: 31 | F40: 16 | G40: - | H40: - | I40: - | J40: - | K40: 1 | L40: - | M40: - | N40: - | O40: 1 | P40: - | Q40: 1 | R40: 6 | S40: 7 | T40: 15 | U40: - | V40: - | W40: - | X40: - | Y40: - | Z40: - | AA40: - | AB40: - | AC40: 3 | AD40: - | AE40: 3 | AF40: 1 | AG40: 8
C41: 長上村 | D41: 202-05 | E41: 208 | F41: 113 | G41: - | H41: - | I41: 1 | J41: 1 | K41: 2 | L41: 2 | M41: - | N41: 5 | O41: 5 | P41: 11 | Q41: 18 | R41: 26 | S41: 42 | T41: 95 | U41: - | V41: - | W41: - | X41: - | Y41: - | Z41: 2 | AA41: 2 | AB41: 4 | AC41: 2 | AD41: 15 | AE41: 19 | AF41: 19 | AG41: 32
C42: 積志村 | D42: 202-06 | E42: 260 | F42: 137 | G42: - | H42: - | I42: 1 | J42: 2 | K42: 2 | L42: 4 | M42: 5 | N42: 3 | O42: 8 | P42: 10 | Q42: 30 | R42: 35 | S42: 37 | T42: 123 | U42: - | V42: - | W42: 1 | X42: 1 | Y42: - | Z42: 5 | AA42: 9 | AB42: 6 | AC42: 13 | AD42: 14 | AE42: 21 | AF42: 21 | AG42: 32
C43: 笠井町 | D43: 202-07 | E43: 54 | F43: 29 | G43: - | H43: - | I43: - | J43: 2 | K43: - | L43: - | M43: 1 | N43: 1 | O43: 1 | P43: 3 | Q43: 6 | R43: 10 | S43: 5 | T43: 25 | U43: - | V43: - | W43: - | X43: - | Y43: - | Z43: - | AA43: 1 | AB43: 2 | AC43: 2 | AD43: 4 | AE43: 8 | AF43: 2 | AG43: 6
C44: 豊西村 | D44: 202-08 | E44: 273 | F44: 140 | G44: - | H44: - | I44: 4 | J44: 9 | K44: 7 | L44: 7 | M44: 7 | N44: 15 | O44: 8 | P44: 15 | Q44: 16 | R44: 21 | S44: 31 | T44: 133 | U44: 1 | V44: - | W44: 1 | X44: 4 | Y44: 5 | Z44: 7 | AA44: 5 | AB44: 13 | AC44: 13 | AD44: 15 | AE44: 23 | AF44: 18 | AG44: 28
C45: 中ノ町村 | D45: 202-09 | E45: 100 | F45: 43 | G45: - | H45: - | I45: - | J45: - | K45: - | L45: 2 | M45: 1 | N45: - | O45: 3 | P45: 6 | Q45: 13 | R45: 4 | S45: 14 | T45: 57 | U45: - | V45: - | W45: - | X45: - | Y45: - | Z45: 2 | AA45: - | AB45: 5 | AC45: 9 | AD45: 9 | AE45: 9 | AF45: 11 | AG45: 12
C46: 三方原村 | D46: 202-10 | E46: 707 | F46: 359 | G46: 1 | H46: 1 | I46: 6 | J46: 8 | K46: 10 | L46: 15 | M46: 24 | N46: 28 | O46: 28 | P46: 22 | Q46: 40 | R46: 69 | S46: 107 | T46: 348 | U46: 1 | V46: - | W46: - | X46: - | Y46: 6 | Z46: 16 | AA46: 20 | AB46: 31 | AC46: 30 | AD46: 29 | AE46: 46 | AF46: 75 | AG46: 94
C47: 神久呂村 | D47: 202-11 | E47: 588 | F47: 284 | G47: - | H47: 3 | I47: 7 | J47: 7 | K47: 7 | L47: 15 | M47: 28 | N47: 22 | O47: 20 | P47: 24 | Q47: 35 | R47: 48 | S47: 68 | T47: 304 | U47: - | V47: 2 | W47: 2 | X47: 2 | Y47: 11 | Z47: 14 | AA47: 27 | AB47: 26 | AC47: 24 | AD47: 33 | AE47: 40 | AF47: 57 | AG47: 66
C48: 入野村 | D48: 202-12 | E48: 134 | F48: 67 | G48: - | H48: - | I48: - | J48: - | K48: - | L48: 2 | M48: 7 | N48: 4 | O48: 4 | P48: 5 | Q48: 8 | R48: 18 | S48: 19 | T48: 67 | U48: - | V48: - | W48: - | X48: - | Y48: - | Z48: 1 | AA48: 4 | AB48: 3 | AC48: 4 | AD48: 7 | AE48: 10 | AF48: 14 | AG48: 24
C49: 吉野村 | D49: 202-13 | E49: 101 | F49: 53 | G49: - | H49: - | I49: 1 | J49: 3 | K49: 2 | L49: 1 | M49: 4 | N49: 4 | O49: 5 | P49: 4 | Q49: 8 | R49: 10 | S49: 11 | T49: 48 | U49: - | V49: - | W49: 1 | X49: - | Y49: - | Z49: 1 | AA49: 3 | AB49: 4 | AC49: 9 | AD49: 3 | AE49: 10 | AF49: 9 | AG49: 8
C50: 都田村 | D50: 202-14 | E50: 865 | F50: 433 | G50: - | H50: 1 | I50: 6 | J50: 1 | K50: 9 | L50: 14 | M50: 20 | N50: 42 | O50: 31 | P50: 35 | Q50: 68 | R50: 73 | S50: 133 | T50: 432 | U50: - | V50: 3 | W50: - | X50: 3 | Y50: 6 | Z50: 15 | AA50: 27 | AB50: 39 | AC50: 29 | AD50: 58 | AE50: 68 | AF50: 88 | AG50: 96
C51: 河輪村 | D51: 202-15 | E51: 114 | F51: 47 | G51: - | H51: - | I51: - | J51: - | K51: 2 | L51: - | M51: - | N51: 3 | O51: 3 | P51: 5 | Q51: 8 | R51: 4 | S51: 22 | T51: 67 | U51: - | V51: - | W51: - | X51: 1 | Y51: - | Z51: - | AA51: 4 | AB51: 6 | AC51: 9 | AD51: 6 | AE51: 10 | AF51: 13 | AG51: 18
C52: 五島村 | D52: 202-16 | E52: 355 | F52: 149 | G52: - | H52: - | I52: 1 | J52: - | K52: 1 | L52: 7 | M52: 4 | N52: 12 | O52: 10 | P52: 11 | Q52: 30 | R52: 25 | S52: 48 | T52: 206 | U52: - | V52: - | W52: 1 | X52: - | Y52: 1 | Z52: 6 | AA52: 10 | AB52: 14 | AC52: 23 | AD52: 24 | AE52: 34 | AF52: 37 | AG52: 56
C53: 新津村 | D53: 202-17 | E53: 429 | F53: 202 | G53: - | H53: 1 | I53: - | J53: 1 | K53: 2 | L53: 3 | M53: 9 | N53: 10 | O53: 7 | P53: 16 | Q53: 38 | R53: 45 | S53: 70 | T53: 227 | U53: - | V53: - | W53: - | X53: - | Y53: - | Z53: 6 | AA53: 5 | AB53: 14 | AC53: 14 | AD53: 34 | AE53: 35 | AF53: 46 | AG53: 73
C54: 和地村 | D54: 202-18 | E54: 494 | F54: 241 | G54: - | H54: 1 | I54: 1 | J54: 7 | K54: 2 | L54: 9 | M54: 11 | N54: 20 | O54: 27 | P54: 21 | Q54: 35 | R54: 53 | S54: 54 | T54: 253 | U54: - | V54: - | W54: - | X54: 3 | Y54: 5 | Z54: 9 | AA54: 19 | AB54: 25 | AC54: 26 | AD54: 38 | AE54: 34 | AF54: 43 | AG54: 51
C55: 伊佐見村 | D55: 202-19 | E55: 761 | F55: 382 | G55: - | H55: 2 | I55: 4 | J55: 10 | K55: 7 | L55: 18 | M55: 15 | N55: 34 | O55: 28 | P55: 36 | Q55: 45 | R55: 58 | S55: 125 | T55: 379 | U55: - | V55: - | W55: 2 | X55: 2 | Y55: 4 | Z55: 14 | AA55: 28 | AB55: 33 | AC55: 37 | AD55: 36 | AE55: 60 | AF55: 65 | AG55: 98
C56: 篠原村 | D56: 202-20 | E56: 504 | F56: 229 | G56: - | H56: 1 | I56: - | J56: - | K56: 2 | L56: 3 | M56: 7 | N56: 10 | O56: 5 | P56: 19 | Q56: 43 | R56: 46 | S56: 93 | T56: 275 | U56: - | V56: - | W56: - | X56: 1 | Y56: - | Z56: 3 | AA56: 13 | AB56: 13 | AC56: 25 | AD56: 36 | AE56: 41 | AF56: 59 | AG56: 84
C57: 北庄内村 | D57: 202-21 | E57: 659 | F57: 316 | G57: - | H57: 3 | I57: 8 | J57: 6 | K57: 10 | L57: 17 | M57: 16 | N57: 33 | O57: 26 | P57: 32 | Q57: 35 | R57: 52 | S57: 78 | T57: 343 | U57: - | V57: 3 | W57: 1 | X57: 3 | Y57: 5 | Z57: 21 | AA57: 21 | AB57: 23 | AC57: 38 | AD57: 45 | AE57: 53 | AF57: 61 | AG57: 69
C58: 南庄内村 | D58: 202-22 | E58: 116 | F58: 54 | G58: - | H58: - | I58: 1 | J58: 2 | K58: - | L58: 2 | M58: 1 | N58: 3 | O58: 6 | P58: 8 | Q58: 3 | R58: 9 | S58: 19 | T58: 62 | U58: - | V58: - | W58: - | X58: - | Y58: - | Z58: 1 | AA58: 4 | AB58: 4 | AC58: 8 | AD58: 4 | AE58: 12 | AF58: 14 | AG58: 15
C59: 村櫛村 | D59: 202-23 | E59: 74 | F59: 32 | G59: - | H59: - | I59: - | J59: - | K59: 1 | L59: - | M59: 3 | N59: 1 | O59: 2 | P59: - | Q59: 6 | R59: 5 | S59: 14 | T59: 42 | U59: - | V59: - | W59: 1 | X59: - | Y59: 1 | Z59: 1 | AA59: 3 | AB59: 4 | AC59: 1 | AD59: 3 | AE59: 6 | AF59: 10 | AG59: 12
C60: 可美村 | D60: 202-24 | E60: 57 | F60: 29 | G60: - | H60: - | I60: - | J60: - | K60: - | L60: - | M60: - | N60: - | O60: 2 | P60: 1 | Q60: 6 | R60: 5 | S60: 15 | T60: 28 | U60: - | V60: - | W60: - | X60: - | Y60: - | Z60: - | AA60: - | AB60: 4 | AC60: 3 | AD60: 4 | AE60: 3 | AF60: 3 | AG60: 11
B61: 沼津市 | D61: 203-00 | E61: 2,257 | F61: 1,182 | G61: 2 | H61: 9 | I61: 21 | J61: 29 | K61: 24 | L61: 51 | M61: 78 | N61: 104 | O61: 113 | P61: 145 | Q61: 144 | R61: 199 | S61: 263 | T61: 1,075 | U61: - | V61: - | W61: 4 | X61: 6 | Y61: 16 | Z61: 42 | AA61: 69 | AB61: 101 | AC61: 111 | AD61: 132 | AE61: 178 | AF61: 188 | AG61: 228
C62: 沼津市 | D62: 203-01 | E62: 522 | F62: 290 | G62: - | H62: 3 | I62: 8 | J62: 7 | K62: 7 | L62: 8 | M62: 17 | N62: 25 | O62: 31 | P62: 34 | Q62: 30 | R62: 50 | S62: 70 | T62: 232 | U62: - | V62: - | W62: - | X62: 1 | Y62: 2 | Z62: 4 | AA62: 19 | AB62: 21 | AC62: 25 | AD62: 21 | AE62: 38 | AF62: 44 | AG62: 57
C63: 愛鷹村 | D63: 203-02 | E63: 427 | F63: 218 | G63: 1 | H63: 3 | I63: 5 | J63: 7 | K63: 4 | L63: 10 | M63: 12 | N63: 19 | O63: 22 | P63: 28 | Q63: 34 | R63: 30 | S63: 43 | T63: 209 | U63: - | V63: - | W63: 2 | X63: 2 | Y63: 3 | Z63: 7 | AA63: 12 | AB63: 22 | AC63: 23 | AD63: 32 | AE63: 28 | AF63: 34 | AG63: 44
C64: 大平村 | D64: 203-03 | E64: 105 | F64: 61 | G64: - | H64: - | I64: 1 | J64: - | K64: 1 | L64: - | M64: 1 | N64: 2 | O64: 1 | P64: 9 | Q64: 13 | R64: 17 | S64: 16 | T64: 44 | U64: - | V64: - | W64: - | X64: - | Y64: - | Z64: 1 | AA64: - | AB64: 1 | AC64: 3 | AD64: 4 | AE64: 10 | AF64: 9 | AG64: 16
C65: 内浦村 | D65: 203-04 | E65: 105 | F65: 57 | G65: - | H65: - | I65: - | J65: 1 | K65: - | L65: 3 | M65: 5 | N65: 4 | O65: 7 | P65: 4 | Q65: 6 | R65: 13 | S65: 14 | T65: 48 | U65: - | V65: - | W65: - | X65: - | Y65: 1 | Z65: - | AA65: 4 | AB65: 2 | AC65: 4 | AD65: 4 | AE65: 15 | AF65: 9 | AG65: 9
C66: 西浦村 | D66: 203-05 | E66: 650 | F66: 322 | G66: - | H66: - | I66: 1 | J66: 7 | K66: 6 | L66: 20 | M66: 22 | N66: 28 | O66: 35 | P66: 44 | Q66: 34 | R66: 54 | S66: 71 | T66: 328 | U66: - | V66: - | W66: - | X66: 1 | Y66: 6 | Z66: 21 | AA66: 21 | AB66: 32 | AC66: 38 | AD66: 43 | AE66: 62 | AF66: 47 | AG66: 57
C67: 原町 | D67: 203-06 | E67: 47 | F67: 24 | G67: - | H67: - | I67: - | J67: - | K67: - | L67: - | M67: - | N67: 2 | O67: - | P67: - | Q67: 6 | R67: 8 | S67: 8 | T67: 23 | U67: - | V67: - | W67: - | X67: - | Y67: - | Z67: - | AA67: 1 | AB67: - | AC67: 1 | AD67: 4 | AE67: 8 | AF67: 4 | AG67: 5
C68: 浮島村２－１ | D68: 203-07 | E68: 401 | F68: 210 | G68: 1 | H68: 3 | I68: 6 | J68: 7 | K68: 6 | L68: 10 | M68: 21 | N68: 24 | O68: 17 | P68: 26 | Q68: 21 | R68: 27 | S68: 41 | T68: 191 | U68: - | V68: - | W68: 2 | X68: 2 | Y68: 4 | Z68: 9 | AA68: 12 | AB68: 23 | AC68: 17 | AD68: 24 | AE68: 17 | AF68: 41 | AG68: 40
B69: 熱海市 | D69: 205-00 | E69: 126 | F69: 69 | G69: - | H69: 1 | I69: - | J69: - | K69: 2 | L69: - | M69: - | N69: 2 | O69: 5 | P69: 14 | Q69: 8 | R69: 13 | S69: 24 | T69: 57 | U69: - | V69: - | W69: 2 | X69: - | Y69: 1 | Z69: - | AA69: 1 | AB69: 5 | AC69: 6 | AD69: 8 | AE69: 10 | AF69: 6 | AG69: 18
C70: 熱海市 | D70: 205-01 | E70: x | F70: x | G70: x | H70: x | I70: x | J70: x | K70: x | L70: x | M70: x | N70: x | O70: x | P70: x | Q70: x | R70: x | S70: x | T70: x | U70: x | V70: x | W70: x | X70: x | Y70: x | Z70: x | AA70: x | AB70: x | AC70: x | AD70: x | AE70: x | AF70: x | AG70: x
C71: 網代町 | D71: 205-02 | E71: x | F71: x | G71: x | H71: x | I71: x | J71: x | K71: x | L71: x | M71: x | N71: x | O71: x | P71: x | Q71: x | R71: x | S71: x | T71: x | U71: x | V71: x | W71: x | X71: x | Y71: x | Z71: x | AA71: x | AB71: x | AC71: x | AD71: x | AE71: x | AF71: x | AG71: x
B72: 三島市 | D72: 206-00 | E72: 1,208 | F72: 638 | G72: - | H72: 7 | I72: 11 | J72: 16 | K72: 19 | L72: 26 | M72: 41 | N72: 59 | O72: 75 | P72: 65 | Q72: 76 | R72: 103 | S72: 140 | T72: 570 | U72: - | V72: 2 | W72: 2 | X72: 6 | Y72: 10 | Z72: 22 | AA72: 45 | AB72: 62 | AC72: 51 | AD72: 70 | AE72: 71 | AF72: 107 | AG72: 122
C73: 三島市 | D73: 206-01 | E73: 851 | F73: 448 | G73: - | H73: 6 | I73: 11 | J73: 11 | K73: 15 | L73: 19 | M73: 31 | N73: 48 | O73: 57 | P73: 42 | Q73: 58 | R73: 67 | S73: 83 | T73: 403 | U73: - | V73: 2 | W73: 2 | X73: 4 | Y73: 6 | Z73: 18 | AA73: 36 | AB73: 47 | AC73: 41 | AD73: 54 | AE73: 50 | AF73: 63 | AG73: 80
C74: 中郷村 | D74: 206-02 | E74: 357 | F74: 190 | G74: - | H74: 1 | I74: - | J74: 5 | K74: 4 | L74: 7 | M74: 10 | N74: 11 | O74: 18 | P74: 23 | Q74: 18 | R74: 36 | S74: 57 | T74: 167 | U74: - | V74: - | W74: - | X74: 2 | Y74: 4 | Z74: 4 | AA74: 9 | AB74: 15 | AC74: 10 | AD74: 16 | AE74: 21 | AF74: 44 | AG74: 42
B75: 富士宮市 | D75: 207-00 | E75: 1,626 | F75: 860 | G75: 1 | H75: 13 | I75: 15 | J75: 12 | K75: 8 | L75: 28 | M75: 52 | N75: 56 | O75: 84 | P75: 69 | Q75: 111 | R75: 156 | S75: 255 | T75: 766 | U75: - | V75: 2 | W75: 8 | X75: 9 | Y75: 14 | Z75: 33 | AA75: 52 | AB75: 72 | AC75: 54 | AD75: 78 | AE75: 113 | AF75: 141 | AG75: 190
C76: 富士宮市 | D76: 207-01 | E76: 373 | F76: 200 | G76: 1 | H76: 2 | I76: 4 | J76: 1 | K76: 3 | L76: 5 | M76: 9 | N76: 12 | O76: 26 | P76: 18 | Q76: 30 | R76: 35 | S76: 54 | T76: 173 | U76: - | V76: 1 | W76: 4 | X76: 2 | Y76: 3 | Z76: 4 | AA76: 8 | AB76: 19 | AC76: 11 | AD76: 18 | AE76: 27 | AF76: 34 | AG76: 42
C77: 富士根村 | D77: 207-02 | E77: 455 | F77: 229 | G77: - | H77: 5 | I77: 2 | J77: 6 | K77: 4 | L77: 10 | M77: 15 | N77: 14 | O77: 26 | P77: 21 | Q77: 28 | R77: 34 | S77: 64 | T77: 226 | U77: - | V77: - | W77: 3 | X77: 2 | Y77: 4 | Z77: 10 | AA77: 17 | AB77: 25 | AC77: 20 | AD77: 28 | AE77: 32 | AF77: 33 | AG77: 52
C78: 北山村 | D78: 207-03 | E78: 211 | F78: 108 | G78: - | H78: - | I78: 1 | J78: - | K78: - | L78: 3 | M78: 4 | N78: 5 | O78: 6 | P78: 5 | Q78: 16 | R78: 26 | S78: 42 | T78: 103 | U78: - | V78: - | W78: - | X78: - | Y78: 1 | Z78: 2 | AA78: 3 | AB78: 5 | AC78: 9 | AD78: 8 | AE78: 15 | AF78: 27 | AG78: 33
C79: 上井出村 | D79: 207-04 | E79: 274 | F79: 150 | G79: - | H79: 6 | I79: 6 | J79: 4 | K79: 1 | L79: 9 | M79: 20 | N79: 22 | O79: 12 | P79: 7 | Q79: 9 | R79: 16 | S79: 38 | T79: 124 | U79: - | V79: 1 | W79: 1 | X79: 3 | Y79: 4 | Z79: 12 | AA79: 19 | AB79: 19 | AC79: 7 | AD79: 6 | AE79: 11 | AF79: 17 | AG79: 24
C80: 白糸村 | D80: 207-05 | E80: 68 | F80: 40 | G80: - | H80: - | I80: - | J80: - | K80: - | L80: - | M80: - | N80: 1 | O80: 5 | P80: 9 | Q80: 4 | R80: 13 | S80: 8 | T80: 28 | U80: - | V80: - | W80: - | X80: - | Y80: - | Z80: 1 | AA80: 1 | AB80: 1 | AC80: 1 | AD80: 3 | AE80: 5 | AF80: 9 | AG80: 7
C81: 上野村 | D81: 207-06 | E81: 245 | F81: 133 | G81: - | H81: - | I81: 2 | J81: 1 | K81: - | L81: 1 | M81: 4 | N81: 2 | O81: 9 | P81: 9 | Q81: 24 | R81: 32 | S81: 49 | T81: 112 | U81: - | V81: - | W81: - | X81: 2 | Y81: 2 | Z81: 4 | AA81: 4 | AB81: 3 | AC81: 6 | AD81: 15 | AE81: 23 | AF81: 21 | AG81: 32
B82: 伊東市 | D82: 208-00 | E82: 546 | F82: 302 | G82: - | H82: 1 | I82: 2 | J82: 5 | K82: 4 | L82: 9 | M82: 18 | N82: 23 | O82: 26 | P82: 23 | Q82: 38 | R82: 51 | S82: 102 | T82: 244 | U82: - | V82: - | W82: - | X82: 2 | Y82: 2 | Z82: 6 | AA82: 14 | AB82: 19 | AC82: 25 | AD82: 37 | AE82: 23 | AF82: 42 | AG82: 74
C83: 伊東市 | D83: 208-01 | E83: 347 | F83: 183 | G83: - | H83: 1 | I83: 2 | J83: 5 | K83: 3 | L83: 6 | M83: 14 | N83: 14 | O83: 18 | P83: 17 | Q83: 20 | R83: 28 | S83: 55 | T83: 164 | U83: - | V83: - | W83: - | X83: 2 | Y83: 2 | Z83: 4 | AA83: 12 | AB83: 13 | AC83: 19 | AD83: 25 | AE83: 13 | AF83: 26 | AG83: 48
C84: 宇佐美村 | D84: 208-02 | E84: 112 | F84: 62 | G84: - | H84: - | I84: - | J84: - | K84: 1 | L84: - | M84: 3 | N84: 3 | O84: 5 | P84: 3 | Q84: 8 | R84: 15 | S84: 24 | T84: 50 | U84: - | V84: - | W84: - | X84: - | Y84: - | Z84: 1 | AA84: 2 | AB84: 1 | AC84: 4 | AD84: 9 | AE84: 7 | AF84: 10 | AG84: 16
C85: 対島村 | D85: 208-03 | E85: 87 | F85: 57 | G85: - | H85: - | I85: - | J85: - | K85: - | L85: 3 | M85: 1 | N85: 6 | O85: 3 | P85: 3 | Q85: 10 | R85: 8 | S85: 23 | T85: 30 | U85: - | V85: - | W85: - | X85: - | Y85: - | Z85: 1 | AA85: - | AB85: 5 | AC85: 2 | AD85: 3 | AE85: 3 | AF85: 6 | AG85: 10
B86: 島田市 | D86: 209-00 | E86: 2,338 | F86: 1,148 | G86: 2 | H86: 1 | I86: 19 | J86: 18 | K86: 24 | L86: 35 | M86: 60 | N86: 103 | O86: 104 | P86: 112 | Q86: 194 | R86: 191 | S86: 285 | T86: 1,190 | U86: - | V86: 2 | W86: 1 | X86: 11 | Y86: 10 | Z86: 52 | AA86: 81 | AB86: 121 | AC86: 110 | AD86: 177 | AE86: 187 | AF86: 192 | AG86: 246
C87: 島田市 | D87: 209-01 | E87: 124 | F87: 67 | G87: - | H87: - | I87: 1 | J87: 1 | K87: - | L87: - | M87: 4 | N87: 3 | O87: 4 | P87: 4 | Q87: 18 | R87: 9 | S87: 23 | T87: 57 | U87: - | V87: - | W87: - | X87: - | Y87: - | Z87: 1 | AA87: 2 | AB87: 4 | AC87: 5 | AD87: 8 | AE87: 11 | AF87: 8 | AG87: 18
C88: 六合村 | D88: 209-02 | E88: 287 | F88: 137 | G88: - | H88: - | I88: 1 | J88: 1 | K88: 2 | L88: 3 | M88: 1 | N88: 8 | O88: 13 | P88: 13 | Q88: 21 | R88: 33 | S88: 41 | T88: 150 | U88: - | V88: - | W88: - | X88: - | Y88: 1 | Z88: 5 | AA88: 2 | AB88: 14 | AC88: 10 | AD88: 23 | AE88: 32 | AF88: 26 | AG88: 37
C89: 大津村 | D89: 209-03 | E89: 274 | F89: 132 | G89: - | H89: 1 | I89: - | J89: - | K89: - | L89: - | M89: 4 | N89: 3 | O89: 8 | P89: 17 | Q89: 32 | R89: 28 | S89: 39 | T89: 142 | U89: - | V89: - | W89: - | X89: - | Y89: - | Z89: - | AA89: 4 | AB89: 6 | AC89: 20 | AD89: 23 | AE89: 20 | AF89: 34 | AG89: 35
C90: 大長村 | D90: 209-04 | E90: 265 | F90: 128 | G90: 1 | H90: - | I90: - | J90: 3 | K90: 1 | L90: 4 | M90: 3 | N90: 8 | O90: 9 | P90: 9 | Q90: 25 | R90: 27 | S90: 38 | T90: 137 | U90: - | V90: - | W90: - | X90: - | Y90: 1 | Z90: 5 | AA90: 5 | AB90: 12 | AC90: 11 | AD90: 19 | AE90: 31 | AF90: 21 | AG90: 32
C91: 伊久身村２－１ | D91: 209-05 | E91: 169 | F91: 94 | G91: - | H91: - | I91: - | J91: 1 | K91: 1 | L91: 6 | M91: 7 | N91: 7 | O91: 7 | P91: 6 | Q91: 20 | R91: 19 | S91: 20 | T91: 75 | U91: - | V91: - | W91: - | X91: 1 | Y91: 1 | Z91: 4 | AA91: 3 | AB91: 6 | AC91: 9 | AD91: 16 | AE91: 12 | AF91: 12 | AG91: 11
C92: 笹間村２－１ | D92: 209-06 | E92: 17 | F92: 11 | G92: - | H92: - | I92: - | J92: - | K92: - | L92: - | M92: - | N92: 2 | O92: 1 | P92: 2 | Q92: 2 | R92: - | S92: 4 | T92: 6 | U92: - | V92: - | W92: - | X92: - | Y92: - | Z92: - | AA92: 1 | AB92: - | AC92: - | AD92: 1 | AE92: 1 | AF92: 2 | AG92: 1
C93: 初倉村２－１ | D93: 209-07 | E93: 1,202 | F93: 579 | G93: 1 | H93: - | I93: 17 | J93: 12 | K93: 20 | L93: 22 | M93: 41 | N93: 72 | O93: 62 | P93: 61 | Q93: 76 | R93: 75 | S93: 120 | T93: 623 | U93: - | V93: 2 | W93: 1 | X93: 10 | Y93: 7 | Z93: 37 | AA93: 64 | AB93: 79 | AC93: 55 | AD93: 87 | AE93: 80 | AF93: 89 | AG93: 112
B94: 富士市 | D94: 210-00 | E94: 2,355 | F94: 1,233 | G94: - | H94: 10 | I94: 14 | J94: 29 | K94: 29 | L94: 56 | M94: 73 | N94: 98 | O94: 102 | P94: 152 | Q94: 177 | R94: 211 | S94: 282 | T94: 1,122 | U94: - | V94: 3 | W94: 4 | X94: 19 | Y94: 22 | Z94: 42 | AA94: 70 | AB94: 85 | AC94: 123 | AD94: 138 | AE94: 179 | AF94: 202 | AG94: 235
C95: 吉原市 | D95: 210-01 | E95: 427 | F95: 225 | G95: - | H95: 3 | I95: 5 | J95: 9 | K95: 7 | L95: 16 | M95: 20 | N95: 27 | O95: 22 | P95: 22 | Q95: 25 | R95: 35 | S95: 34 | T95: 202 | U95: - | V95: - | W95: 2 | X95: 5 | Y95: 7 | Z95: 15 | AA95: 15 | AB95: 17 | AC95: 31 | AD95: 17 | AE95: 31 | AF95: 32 | AG95: 30
C96: 元吉原村 | D96: 210-02 | E96: 74 | F96: 39 | G96: - | H96: - | I96: - | J96: - | K96: 1 | L96: - | M96: 5 | N96: - | O96: 2 | P96: 8 | Q96: 7 | R96: 4 | S96: 12 | T96: 35 | U96: - | V96: - | W96: - | X96: - | Y96: 1 | Z96: 1 | AA96: 3 | AB96: 1 | AC96: 2 | AD96: 6 | AE96: 7 | AF96: 4 | AG96: 10
C97: 原田村 | D97: 210-03 | E97: 38 | F97: 20 | G97: - | H97: - | I97: - | J97: 1 | K97: - | L97: 1 | M97: - | N97: 2 | O97: 2 | P97: 3 | Q97: 4 | R97: 3 | S97: 4 | T97: 18 | U97: - | V97: 1 | W97: - | X97: - | Y97: - | Z97: - | AA97: - | AB97: 3 | AC97: 4 | AD97: 1 | AE97: 4 | AF97: 2 | AG97: 3
C98: 吉永村 | D98: 210-04 | E98: 142 | F98: 74 | G98: - | H98: 1 | I98: 1 | J98: 1 | K98: 1 | L98: 3 | M98: 2 | N98: 7 | O98: 7 | P98: 7 | Q98: 10 | R98: 12 | S98: 22 | T98: 68 | U98: - | V98: 1 | W98: - | X98: 2 | Y98: 2 | Z98: - | AA98: 4 | AB98: 6 | AC98: 6 | AD98: 8 | AE98: 9 | AF98: 9 | AG98: 21
C99: 須津村 | D99: 210-05 | E99: 260 | F99: 137 | G99: - | H99: 2 | I99: 2 | J99: 1 | K99: 3 | L99: 4 | M99: 6 | N99: 15 | O99: 11 | P99: 21 | Q99: 17 | R99: 21 | S99: 34 | T99: 123 | U99: - | V99: - | W99: 1 | X99: 1 | Y99: 1 | Z99: 4 | AA99: 7 | AB99: 9 | AC99: 14 | AD99: 16 | AE99: 19 | AF99: 22 | AG99: 29
C100: 大淵村 | D100: 210-06 | E100: 484 | F100: 257 | G100: - | H100: 2 | I100: 2 | J100: 10 | K100: 7 | L100: 15 | M100: 21 | N100: 13 | O100: 26 | P100: 31 | Q100: 40 | R100: 43 | S100: 47 | T100: 227 | U100: - | V100: 1 | W100: - | X100: 2 | Y100: 6 | Z100: 7 | AA100: 22 | AB100: 19 | AC100: 27 | AD100: 33 | AE100: 36 | AF100: 28 | AG100: 46
C101: 浮島村２－２ | D101: 210-07 | E101: 164 | F101: 79 | G101: - | H101: 1 | I101: 1 | J101: 1 | K101: 1 | L101: 5 | M101: 3 | N101: 4 | O101: 9 | P101: 8 | Q101: 17 | R101: 13 | S101: 16 | T101: 85 | U101: - | V101: - | W101: - | X101: 1 | Y101: 1 | Z101: 2 | AA101: 4 | AB101: 7 | AC101: 11 | AD101: 9 | AE101: 17 | AF101: 18 | AG101: 15
C102: 富士町 | D102: 210-08 | E102: 244 | F102: 130 | G102: - | H102: - | I102: 1 | J102: - | K102: 3 | L102: 5 | M102: 8 | N102: 9 | O102: 7 | P102: 13 | Q102: 15 | R102: 33 | S102: 36 | T102: 114 | U102: - | V102: - | W102: - | X102: 2 | Y102: 1 | Z102: 7 | AA102: 6 | AB102: 7 | AC102: 7 | AD102: 9 | AE102: 21 | AF102: 29 | AG102: 25
C103: 岩松村 | D103: 210-09 | E103: 237 | F103: 121 | G103: - | H103: - | I103: - | J103: 3 | K103: 1 | L103: 6 | M103: 2 | N103: 8 | O103: 9 | P103: 16 | Q103: 20 | R103: 26 | S103: 30 | T103: 116 | U103: - | V103: - | W103: - | X103: 2 | Y103: 1 | Z103: 5 | AA103: 4 | AB103: 9 | AC103: 9 | AD103: 17 | AE103: 18 | AF103: 28 | AG103: 23
C104: 田子浦村 | D104: 210-10 | E104: 98 | F104: 54 | G104: - | H104: - | I104: - | J104: 1 | K104: 1 | L104: 1 | M104: 1 | N104: 3 | O104: 2 | P104: 12 | Q104: 9 | R104: 8 | S104: 16 | T104: 44 | U104: - | V104: - | W104: - | X104: 1 | Y104: 1 | Z104: - | AA104: 1 | AB104: 1 | AC104: 4 | AD104: 9 | AE104: 6 | AF104: 10 | AG104: 11
C105: 鷹岡町 | D105: 210-11 | E105: 187 | F105: 97 | G105: - | H105: 1 | I105: 2 | J105: 2 | K105: 4 | L105: - | M105: 5 | N105: 10 | O105: 5 | P105: 11 | Q105: 13 | R105: 13 | S105: 31 | T105: 90 | U105: - | V105: - | W105: 1 | X105: 3 | Y105: 1 | Z105: 1 | AA105: 4 | AB105: 6 | AC105: 8 | AD105: 13 | AE105: 11 | AF105: 20 | AG105: 22
B106: 磐田市 | D106: 211-00 | E106: 1,895 | F106: 974 | G106: 2 | H106: 3 | I106: 16 | J106: 16 | K106: 14 | L106: 21 | M106: 41 | N106: 76 | O106: 85 | P106: 104 | Q106: 152 | R106: 174 | S106: 270 | T106: 921 | U106: 1 | V106: 1 | W106: 2 | X106: 4 | Y106: 9 | Z106: 31 | AA106: 56 | AB106: 70 | AC106: 111 | AD106: 116 | AE106: 154 | AF106: 160 | AG106: 206
C107: 磐田市 | D107: 211-01 | E107: 350 | F107: 180 | G107: - | H107: - | I107: 3 | J107: 2 | K107: 3 | L107: 6 | M107: 5 | N107: 8 | O107: 19 | P107: 17 | Q107: 30 | R107: 28 | S107: 59 | T107: 170 | U107: - | V107: 1 | W107: - | X107: 2 | Y107: - | Z107: 9 | AA107: 4 | AB107: 9 | AC107: 21 | AD107: 21 | AE107: 31 | AF107: 27 | AG107: 45
C108: 大藤村 | D108: 211-02 | E108: 377 | F108: 191 | G108: 2 | H108: 1 | I108: 5 | J108: 6 | K108: 5 | L108: 2 | M108: 9 | N108: 23 | O108: 27 | P108: 24 | Q108: 21 | R108: 26 | S108: 40 | T108: 186 | U108: 1 | V108: - | W108: 2 | X108: 1 | Y108: 4 | Z108: 3 | AA108: 21 | AB108: 21 | AC108: 24 | AD108: 28 | AE108: 26 | AF108: 25 | AG108: 30
C109: 岩田村 | D109: 211-03 | E109: 204 | F109: 105 | G109: - | H109: 1 | I109: - | J109: 1 | K109: 1 | L109: 2 | M109: 8 | N109: 5 | O109: 6 | P109: 8 | Q109: 23 | R109: 15 | S109: 35 | T109: 99 | U109: - | V109: - | W109: - | X109: - | Y109: - | Z109: 5 | AA109: 9 | AB109: 5 | AC109: 12 | AD109: 12 | AE109: 16 | AF109: 17 | AG109: 23
C110: 長野村 | D110: 211-04 | E110: 261 | F110: 130 | G110: - | H110: - | I110: 2 | J110: - | K110: 3 | L110: 4 | M110: 4 | N110: 6 | O110: 6 | P110: 15 | Q110: 22 | R110: 35 | S110: 33 | T110: 131 | U110: - | V110: - | W110: - | X110: 1 | Y110: 1 | Z110: 4 | AA110: 4 | AB110: 10 | AC110: 11 | AD110: 23 | AE110: 24 | AF110: 27 | AG110: 26
C111: 向笠村 | D111: 211-05 | E111: 282 | F111: 147 | G111: - | H111: 1 | I111: 4 | J111: 3 | K111: 1 | L111: 3 | M111: 9 | N111: 21 | O111: 14 | P111: 10 | Q111: 22 | R111: 21 | S111: 38 | T111: 135 | U111: - | V111: - | W111: - | X111: - | Y111: 3 | Z111: 6 | AA111: 12 | AB111: 13 | AC111: 17 | AD111: 11 | AE111: 18 | AF111: 23 | AG111: 32
C112: 御厨村 | D112: 211-06 | E112: 142 | F112: 78 | G112: - | H112: - | I112: 1 | J112: 2 | K112: - | L112: 2 | M112: 3 | N112: 3 | O112: 6 | P112: 9 | Q112: 13 | R112: 15 | S112: 24 | T112: 64 | U112: - | V112: - | W112: - | X112: - | Y112: - | Z112: 1 | AA112: 2 | AB112: 4 | AC112: 8 | AD112: 7 | AE112: 12 | AF112: 14 | AG112: 16
C113: 南御厨村２－１ | D113: 211-07 | E113: 81 | F113: 41 | G113: - | H113: - | I113: - | J113: - | K113: - | L113: 1 | M113: - | N113: 3 | O113: 2 | P113: 6 | Q113: 6 | R113: 10 | S113: 13 | T113: 40 | U113: - | V113: - | W113: - | X113: - | Y113: - | Z113: - | AA113: - | AB113: 4 | AC113: 4 | AD113: 2 | AE113: 8 | AF113: 12 | AG113: 10
C114: 田原村２－１ | D114: 211-08 | E114: 85 | F114: 46 | G114: - | H114: - | I114: 1 | J114: 1 | K114: 1 | L114: 1 | M114: - | N114: 1 | O114: 3 | P114: 7 | Q114: 10 | R114: 12 | S114: 9 | T114: 39 | U114: - | V114: - | W114: - | X114: - | Y114: 1 | Z114: 1 | AA114: - | AB114: 3 | AC114: 5 | AD114: 5 | AE114: 10 | AF114: 6 | AG114: 8
C115: 於保村２－２ | D115: 211-09 | E115: 97 | F115: 48 | G115: - | H115: - | I115: - | J115: 1 | K115: - | L115: - | M115: 2 | N115: 4 | O115: 1 | P115: 8 | Q115: 4 | R115: 11 | S115: 17 | T115: 49 | U115: - | V115: - | W115: - | X115: - | Y115: - | Z115: - | AA115: 4 | AB115: 1 | AC115: 8 | AD115: 6 | AE115: 8 | AF115: 9 | AG115: 13
C116: 三川村２－２ | D116: 211-10 | E116: 16 | F116: 8 | G116: - | H116: - | I116: - | J116: - | K116: - | L116: - | M116: 1 | N116: 2 | O116: 1 | P116: - | Q116: 1 | R116: 1 | S116: 2 | T116: 8 | U116: - | V116: - | W116: - | X116: - | Y116: - | Z116: 2 | AA116: - | AB116: - | AC116: 1 | AD116: 1 | AE116: 1 | AF116: - | AG116: 3
B117: 焼津市 | D117: 212-00 | E117: 1,047 | F117: 555 | G117: 1 | H117: 1 | I117: 3 | J117: 1 | K117: 5 | L117: 9 | M117: 14 | N117: 14 | O117: 26 | P117: 71 | Q117: 103 | R117: 120 | S117: 187 | T117: 492 | U117: - | V117: - | W117: - | X117: 2 | Y117: 3 | Z117: 9 | AA117: 6 | AB117: 17 | AC117: 50 | AD117: 80 | AE117: 104 | AF117: 108 | AG117: 113
C118: 焼津町 | D118: 212-01 | E118: 40 | F118: 21 | G118: - | H118: - | I118: - | J118: - | K118: - | L118: 1 | M118: - | N118: 1 | O118: 2 | P118: 4 | Q118: 2 | R118: 3 | S118: 8 | T118: 19 | U118: - | V118: - | W118: - | X118: - | Y118: - | Z118: - | AA118: - | AB118: - | AC118: 3 | AD118: 2 | AE118: 2 | AF118: 5 | AG118: 7
C119: 豊田村 | D119: 212-02 | E119: 148 | F119: 78 | G119: - | H119: 1 | I119: 1 | J119: - | K119: 1 | L119: 2 | M119: 2 | N119: 2 | O119: 7 | P119: 7 | Q119: 16 | R119: 17 | S119: 22 | T119: 70 | U119: - | V119: - | W119: - | X119: - | Y119: 1 | Z119: - | AA119: 1 | AB119: 5 | AC119: 12 | AD119: 9 | AE119: 12 | AF119: 16 | AG119: 14
C120: 大富村 | D120: 212-03 | E120: 381 | F120: 192 | G120: - | H120: - | I120: - | J120: 1 | K120: 1 | L120: 4 | M120: 4 | N120: 5 | O120: 3 | P120: 27 | Q120: 43 | R120: 39 | S120: 65 | T120: 189 | U120: - | V120: - | W120: - | X120: 1 | Y120: 1 | Z120: 4 | AA120: 2 | AB120: 6 | AC120: 15 | AD120: 32 | AE120: 51 | AF120: 35 | AG120: 42
C121: 和田村 | D121: 212-04 | E121: 208 | F121: 109 | G121: 1 | H121: - | I121: - | J121: - | K121: 1 | L121: - | M121: 1 | N121: 3 | O121: 2 | P121: 17 | Q121: 14 | R121: 24 | S121: 46 | T121: 99 | U121: - | V121: - | W121: - | X121: 1 | Y121: 1 | Z121: 1 | AA121: - | AB121: 2 | AC121: 9 | AD121: 16 | AE121: 18 | AF121: 26 | AG121: 25
C122: 小川村 | D122: 212-05 | E122: 81 | F122: 46 | G122: - | H122: - | I122: 1 | J122: - | K122: 1 | L122: - | M122: 1 | N122: - | O122: 6 | P122: 3 | Q122: 8 | R122: 11 | S122: 15 | T122: 35 | U122: - | V122: - | W122: - | X122: - | Y122: - | Z122: - | AA122: - | AB122: 1 | AC122: 3 | AD122: 6 | AE122: 6 | AF122: 9 | AG122: 10
C123: 東益津村 | D123: 212-06 | E123: 157 | F123: 89 | G123: - | H123: - | I123: - | J123: - | K123: 1 | L123: 1 | M123: 5 | N123: 3 | O123: 6 | P123: 11 | Q123: 14 | R123: 21 | S123: 27 | T123: 68 | U123: - | V123: - | W123: - | X123: - | Y123: - | Z123: 4 | AA123: 3 | AB123: 3 | AC123: 6 | AD123: 12 | AE123: 13 | AF123: 14 | AG123: 13
C124: 広幡村２－２ | D124: 212-07 | E124: 12 | F124: 8 | G124: - | H124: - | I124: 1 | J124: - | K124: - | L124: - | M124: - | N124: - | O124: - | P124: 1 | Q124: 3 | R124: 2 | S124: 1 | T124: 4 | U124: - | V124: - | W124: - | X124: - | Y124: - | Z124: - | AA124: - | AB124: - | AC124: 1 | AD124: 1 | AE124: 1 | AF124: 1 | AG124: -
C125: 西益津村２－２ | D125: 212-08 | E125: 20 | F125: 12 | G125: - | H125: - | I125: - | J125: - | K125: - | L125: 1 | M125: 1 | N125: - | O125: - | P125: 1 | Q125: 3 | R125: 3 | S125: 3 | T125: 8 | U125: - | V125: - | W125: - | X125: - | Y125: - | Z125: - | AA125: - | AB125: - | AC125: 1 | AD125: 2 | AE125: 1 | AF125: 2 | AG125: 2
B126: 掛川市 | D126: 213-00 | E126: 3,347 | F126: 1,758 | G126: 2 | H126: 13 | I126: 35 | J126: 27 | K126: 35 | L126: 46 | M126: 79 | N126: 120 | O126: 124 | P126: 161 | Q126: 270 | R126: 367 | S126: 479 | T126: 1,589 | U126: - | V126: 2 | W126: 4 | X126: 6 | Y126: 17 | Z126: 42 | AA126: 91 | AB126: 107 | AC126: 124 | AD126: 197 | AE126: 295 | AF126: 297 | AG126: 407
C127: 掛川町 | D127: 213-01 | E127: 80 | F127: 43 | G127: - | H127: 1 | I127: 1 | J127: 1 | K127: - | L127: 1 | M127: - | N127: 2 | O127: 1 | P127: 5 | Q127: 6 | R127: 13 | S127: 12 | T127: 37 | U127: - | V127: - | W127: - | X127: - | Y127: - | Z127: - | AA127: - | AB127: 1 | AC127: 6 | AD127: 5 | AE127: 9 | AF127: 6 | AG127: 10
C128: 粟本村 | D128: 213-02 | E128: 148 | F128: 80 | G128: - | H128: - | I128: - | J128: 3 | K128: 1 | L128: 2 | M128: 3 | N128: 3 | O128: 4 | P128: 10 | Q128: 9 | R128: 15 | S128: 30 | T128: 68 | U128: - | V128: - | W128: - | X128: - | Y128: - | Z128: - | AA128: 2 | AB128: 1 | AC128: 5 | AD128: 12 | AE128: 9 | AF128: 11 | AG128: 28
C129: 東山口村 | D129: 213-03 | E129: 224 | F129: 115 | G129: - | H129: 1 | I129: 3 | J129: - | K129: - | L129: 1 | M129: 3 | N129: 10 | O129: 6 | P129: 15 | Q129: 18 | R129: 29 | S129: 29 | T129: 109 | U129: - | V129: - | W129: - | X129: - | Y129: - | Z129: 4 | AA129: 5 | AB129: 6 | AC129: 7 | AD129: 22 | AE129: 18 | AF129: 20 | AG129: 27
C130: 西南郷村 | D130: 213-04 | E130: 49 | F130: 25 | G130: - | H130: - | I130: - | J130: - | K130: 1 | L130: 1 | M130: 1 | N130: - | O130: - | P130: 3 | Q130: 6 | R130: 5 | S130: 8 | T130: 24 | U130: - | V130: - | W130: - | X130: - | Y130: - | Z130: - | AA130: 1 | AB130: - | AC130: - | AD130: 6 | AE130: 6 | AF130: 6 | AG130: 5
C131: 原田村 | D131: 213-05 | E131: 243 | F131: 132 | G131: - | H131: - | I131: 2 | J131: 3 | K131: 1 | L131: 1 | M131: 4 | N131: 5 | O131: 15 | P131: 12 | Q131: 17 | R131: 31 | S131: 41 | T131: 111 | U131: - | V131: - | W131: 1 | X131: - | Y131: 1 | Z131: 1 | AA131: 6 | AB131: 6 | AC131: 14 | AD131: 18 | AE131: 20 | AF131: 19 | AG131: 25
C132: 原泉村２－１ | D132: 213-06 | E132: 91 | F132: 43 | G132: - | H132: - | I132: - | J132: - | K132: - | L132: 1 | M132: 3 | N132: 1 | O132: 3 | P132: - | Q132: 14 | R132: 10 | S132: 11 | T132: 48 | U132: - | V132: - | W132: - | X132: - | Y132: - | Z132: 1 | AA132: 1 | AB132: 2 | AC132: 1 | AD132: 7 | AE132: 12 | AF132: 10 | AG132: 14
C133: 原谷村 | D133: 213-07 | E133: 211 | F133: 118 | G133: - | H133: - | I133: 3 | J133: - | K133: 1 | L133: 4 | M133: 4 | N133: 4 | O133: 5 | P133: 12 | Q133: 17 | R133: 25 | S133: 43 | T133: 93 | U133: - | V133: - | W133: - | X133: - | Y133: 1 | Z133: 2 | AA133: 1 | AB133: 4 | AC133: 5 | AD133: 9 | AE133: 21 | AF133: 20 | AG133: 30
C134: 東山村 | D134: 213-08 | E134: 269 | F134: 145 | G134: - | H134: 4 | I134: 7 | J134: 7 | K134: 9 | L134: 7 | M134: 14 | N134: 20 | O134: 15 | P134: 9 | Q134: 17 | R134: 12 | S134: 24 | T134: 124 | U134: - | V134: - | W134: 1 | X134: 4 | Y134: 3 | Z134: 4 | AA134: 13 | AB134: 18 | AC134: 14 | AD134: 13 | AE134: 16 | AF134: 13 | AG134: 25
C135: 日坂村２－１ | D135: 213-09 | E135: 267 | F135: 140 | G135: 2 | H135: 2 | I135: 11 | J135: 2 | K135: 4 | L135: 7 | M135: 9 | N135: 21 | O135: 15 | P135: 7 | Q135: 19 | R135: 16 | S135: 25 | T135: 127 | U135: - | V135: - | W135: 1 | X135: 1 | Y135: 2 | Z135: 7 | AA135: 18 | AB135: 16 | AC135: 11 | AD135: 11 | AE135: 18 | AF135: 18 | AG135: 24
C136: 和田岡村 | D136: 213-10 | E136: 283 | F136: 144 | G136: - | H136: 1 | I136: 2 | J136: 6 | K136: 4 | L136: 3 | M136: 7 | N136: 15 | O136: 10 | P136: 14 | Q136: 17 | R136: 38 | S136: 27 | T136: 139 | U136: - | V136: - | W136: 1 | X136: 1 | Y136: 3 | Z136: 5 | AA136: 13 | AB136: 11 | AC136: 9 | AD136: 17 | AE136: 25 | AF136: 29 | AG136: 25
C137: 西山口村 | D137: 213-11 | E137: 99 | F137: 56 | G137: - | H137: - | I137: - | J137: 1 | K137: 1 | L137: 1 | M137: 2 | N137: 1 | O137: - | P137: 8 | Q137: 8 | R137: 17 | S137: 17 | T137: 43 | U137: - | V137: - | W137: - | X137: - | Y137: 1 | Z137: 1 | AA137: - | AB137: - | AC137: 2 | AD137: 5 | AE137: 9 | AF137: 14 | AG137: 11
C138: 上内田村 | D138: 213-12 | E138: 384 | F138: 191 | G138: - | H138: 3 | I138: 2 | J138: 1 | K138: 5 | L138: 12 | M138: 19 | N138: 17 | O138: 19 | P138: 19 | Q138: 32 | R138: 26 | S138: 36 | T138: 193 | U138: - | V138: 1 | W138: - | X138: - | Y138: 5 | Z138: 8 | AA138: 17 | AB138: 15 | AC138: 17 | AD138: 27 | AE138: 32 | AF138: 30 | AG138: 41
C139: 桜木村 | D139: 213-13 | E139: 339 | F139: 173 | G139: - | H139: - | I139: 1 | J139: 1 | K139: 2 | L139: 2 | M139: 1 | N139: 7 | O139: 8 | P139: 13 | Q139: 29 | R139: 46 | S139: 63 | T139: 166 | U139: - | V139: - | W139: - | X139: - | Y139: - | Z139: 2 | AA139: 5 | AB139: 8 | AC139: 11 | AD139: 16 | AE139: 29 | AF139: 40 | AG139: 55
C140: 曽我村 | D140: 213-14 | E140: 177 | F140: 97 | G140: - | H140: 1 | I140: 2 | J140: - | K140: 2 | L140: 1 | M140: 2 | N140: - | O140: 6 | P140: 8 | Q140: 20 | R140: 27 | S140: 28 | T140: 80 | U140: - | V140: - | W140: - | X140: - | Y140: - | Z140: 1 | AA140: 1 | AB140: 4 | AC140: 5 | AD140: 4 | AE140: 26 | AF140: 21 | AG140: 18
C141: 西郷村 | D141: 213-15 | E141: 305 | F141: 162 | G141: - | H141: - | I141: 1 | J141: - | K141: 3 | L141: 2 | M141: 6 | N141: 9 | O141: 13 | P141: 17 | Q141: 22 | R141: 37 | S141: 52 | T141: 143 | U141: - | V141: 1 | W141: - | X141: - | Y141: 1 | Z141: 4 | AA141: 7 | AB141: 14 | AC141: 9 | AD141: 15 | AE141: 24 | AF141: 26 | AG141: 42
C142: 倉真村 | D142: 213-16 | E142: 178 | F142: 94 | G142: - | H142: - | I142: - | J142: 2 | K142: 1 | L142: - | M142: 1 | N142: 5 | O142: 4 | P142: 9 | Q142: 19 | R142: 20 | S142: 33 | T142: 84 | U142: - | V142: - | W142: - | X142: - | Y142: - | Z142: 2 | AA142: 1 | AB142: 1 | AC142: 8 | AD142: 10 | AE142: 21 | AF142: 14 | AG142: 27
B143: 藤枝市 | D143: 214-00 | E143: 2,473 | F143: 1,351 | G143: 1 | H143: 11 | I143: 9 | J143: 13 | K143: 18 | L143: 24 | M143: 36 | N143: 100 | O143: 96 | P143: 134 | Q143: 245 | R143: 293 | S143: 371 | T143: 1,122 | U143: - | V143: 1 | W143: 2 | X143: 6 | Y143: 4 | Z143: 22 | AA143: 51 | AB143: 84 | AC143: 99 | AD143: 187 | AE143: 222 | AF143: 237 | AG143: 207
C144: 藤枝町 | D144: 214-01 | E144: 55 | F144: 29 | G144: - | H144: - | I144: - | J144: 1 | K144: 2 | L144: - | M144: - | N144: 2 | O144: 5 | P144: 3 | Q144: 3 | R144: 7 | S144: 6 | T144: 26 | U144: - | V144: - | W144: - | X144: 1 | Y144: - | Z144: 1 | AA144: 2 | AB144: 3 | AC144: - | AD144: 5 | AE144: 4 | AF144: 4 | AG144: 6
C145: 青島町 | D145: 214-02 | E145: 228 | F145: 119 | G145: - | H145: 2 | I145: - | J145: 1 | K145: 1 | L145: 4 | M145: - | N145: 10 | O145: 4 | P145: 6 | Q145: 27 | R145: 29 | S145: 35 | T145: 109 | U145: - | V145: - | W145: - | X145: - | Y145: - | Z145: 3 | AA145: 4 | AB145: 9 | AC145: 8 | AD145: 12 | AE145: 25 | AF145: 21 | AG145: 27
C146: 葉梨村 | D146: 214-03 | E146: 451 | F146: 247 | G146: - | H146: 1 | I146: 1 | J146: 1 | K146: 1 | L146: 2 | M146: 11 | N146: 18 | O146: 15 | P146: 28 | Q146: 42 | R146: 57 | S146: 70 | T146: 204 | U146: - | V146: 1 | W146: - | X146: - | Y146: - | Z146: 3 | AA146: 11 | AB146: 11 | AC146: 19 | AD146: 39 | AE146: 45 | AF146: 44 | AG146: 31
C147: 稲葉村 | D147: 214-04 | E147: 352 | F147: 185 | G147: - | H147: 4 | I147: - | J147: - | K147: 4 | L147: 6 | M147: 3 | N147: 20 | O147: 11 | P147: 14 | Q147: 31 | R147: 39 | S147: 53 | T147: 167 | U147: - | V147: - | W147: - | X147: 2 | Y147: 1 | Z147: 3 | AA147: 14 | AB147: 11 | AC147: 10 | AD147: 24 | AE147: 45 | AF147: 33 | AG147: 24
C148: 瀬戸谷村 | D148: 214-05 | E148: 572 | F148: 324 | G148: 1 | H148: 1 | I148: 3 | J148: 6 | K148: 7 | L148: 7 | M148: 16 | N148: 33 | O148: 36 | P148: 40 | Q148: 59 | R148: 59 | S148: 56 | T148: 248 | U148: - | V148: - | W148: 2 | X148: 2 | Y148: 1 | Z148: 7 | AA148: 16 | AB148: 28 | AC148: 31 | AD148: 50 | AE148: 43 | AF148: 42 | AG148: 26
C149: 大洲村 | D149: 214-06 | E149: 239 | F149: 127 | G149: - | H149: - | I149: 1 | J149: 2 | K149: 1 | L149: 1 | M149: 3 | N149: 3 | O149: 5 | P149: 13 | Q149: 23 | R149: 35 | S149: 40 | T149: 112 | U149: - | V149: - | W149: - | X149: - | Y149: 1 | Z149: 4 | AA149: 2 | AB149: 2 | AC149: 7 | AD149: 22 | AE149: 18 | AF149: 31 | AG149: 25
C150: 高洲村 | D150: 214-07 | E150: 260 | F150: 147 | G150: - | H150: - | I150: 1 | J150: 2 | K150: 1 | L150: - | M150: 2 | N150: 3 | O150: 9 | P150: 15 | Q150: 23 | R150: 34 | S150: 57 | T150: 113 | U150: - | V150: - | W150: - | X150: - | Y150: - | Z150: - | AA150: - | AB150: 7 | AC150: 8 | AD150: 18 | AE150: 17 | AF150: 32 | AG150: 31
C151: 西益津村２－１ | D151: 214-08 | E151: 174 | F151: 92 | G151: - | H151: 3 | I151: 3 | J151: - | K151: - | L151: 4 | M151: 1 | N151: 7 | O151: 7 | P151: 9 | Q151: 16 | R151: 16 | S151: 26 | T151: 82 | U151: - | V151: - | W151: - | X151: 1 | Y151: 1 | Z151: 1 | AA151: 2 | AB151: 11 | AC151: 9 | AD151: 7 | AE151: 11 | AF151: 15 | AG151: 24
C152: 広幡村２－１ | D152: 214-09 | E152: 142 | F152: 81 | G152: - | H152: - | I152: - | J152: - | K152: 1 | L152: - | M152: - | N152: 4 | O152: 4 | P152: 6 | Q152: 21 | R152: 17 | S152: 28 | T152: 61 | U152: - | V152: - | W152: - | X152: - | Y152: - | Z152: - | AA152: - | AB152: 2 | AC152: 7 | AD152: 10 | AE152: 14 | AF152: 15 | AG152: 13
B153: 御殿場市 | D153: 215-00 | E153: 1,644 | F153: 846 | G153: - | H153: 3 | I153: 3 | J153: 9 | K153: 12 | L153: 15 | M153: 17 | N153: 21 | O153: 54 | P153: 112 | Q153: 128 | R153: 168 | S153: 304 | T153: 798 | U153: - | V153: - | W153: 4 | X153: 2 | Y153: 5 | Z153: 18 | AA153: 19 | AB153: 38 | AC153: 53 | AD153: 118 | AE153: 122 | AF153: 181 | AG153: 238
C154: 御殿場町 | D154: 215-01 | E154: 349 | F154: 175 | G154: - | H154: - | I154: - | J154: 1 | K154: 2 | L154: 4 | M154: 5 | N154: 1 | O154: 14 | P154: 23 | Q154: 21 | R154: 29 | S154: 75 | T154: 174 | U154: - | V154: - | W154: - | X154: - | Y154: 2 | Z154: 4 | AA154: 3 | AB154: 7 | AC154: 15 | AD154: 27 | AE154: 25 | AF154: 44 | AG154: 47
C155: 富士岡村 | D155: 215-02 | E155: 340 | F155: 176 | G155: - | H155: - | I155: 2 | J155: 2 | K155: 3 | L155: 2 | M155: - | N155: 5 | O155: 10 | P155: 25 | Q155: 29 | R155: 33 | S155: 65 | T155: 164 | U155: - | V155: - | W155: 1 | X155: - | Y155: 1 | Z155: 1 | AA155: 1 | AB155: 9 | AC155: 14 | AD155: 24 | AE155: 19 | AF155: 33 | AG155: 61
C156: 原里村 | D156: 215-03 | E156: 306 | F156: 159 | G156: - | H156: 2 | I156: - | J156: 2 | K156: 3 | L156: 7 | M156: 4 | N156: 8 | O156: 13 | P156: 14 | Q156: 21 | R156: 35 | S156: 50 | T156: 147 | U156: - | V156: - | W156: 2 | X156: 1 | Y156: 1 | Z156: 4 | AA156: 7 | AB156: 5 | AC156: 8 | AD156: 19 | AE156: 27 | AF156: 34 | AG156: 39
C157: 玉穂村 | D157: 215-04 | E157: 212 | F157: 106 | G157: - | H157: - | I157: 1 | J157: - | K157: 2 | L157: 1 | M157: 1 | N157: 2 | O157: 5 | P157: 11 | Q157: 19 | R157: 24 | S157: 40 | T157: 106 | U157: - | V157: - | W157: - | X157: 1 | Y157: - | Z157: 1 | AA157: 3 | AB157: 7 | AC157: 2 | AD157: 17 | AE157: 13 | AF157: 26 | AG157: 36
C158: 印野村 | D158: 215-05 | E158: 59 | F158: 33 | G158: - | H158: - | I158: - | J158: - | K158: 1 | L158: - | M158: - | N158: 1 | O158: 2 | P158: 1 | Q158: 7 | R158: 7 | S158: 14 | T158: 26 | U158: - | V158: - | W158: - | X158: - | Y158: - | Z158: - | AA158: - | AB158: 3 | AC158: 2 | AD158: 4 | AE158: 4 | AF158: 4 | AG158: 9
C159: 高根村 | D159: 215-06 | E159: 307 | F159: 157 | G159: - | H159: 1 | I159: - | J159: 2 | K159: 1 | L159: 1 | M159: 6 | N159: 4 | O159: 8 | P159: 25 | Q159: 28 | R159: 29 | S159: 52 | T159: 150 | U159: - | V159: - | W159: 1 | X159: - | Y159: 1 | Z159: 8 | AA159: 5 | AB159: 7 | AC159: 9 | AD159: 18 | AE159: 27 | AF159: 34 | AG159: 40
C160: 北郷村２－２ | D160: 215-07 | E160: 71 | F160: 40 | G160: - | H160: - | I160: - | J160: 2 | K160: - | L160: - | M160: 1 | N160: - | O160: 2 | P160: 13 | Q160: 3 | R160: 11 | S160: 8 | T160: 31 | U160: - | V160: - | W160: - | X160: - | Y160: - | Z160: - | AA160: - | AB160: - | AC160: 3 | AD160: 9 | AE160: 7 | AF160: 6 | AG160: 6
B161: 袋井市 | D161: 216-00 | E161: 1,898 | F161: 1,032 | G161: 2 | H161: 7 | I161: 23 | J161: 29 | K161: 26 | L161: 27 | M161: 60 | N161: 73 | O161: 96 | P161: 108 | Q161: 132 | R161: 172 | S161: 277 | T161: 866 | U161: - | V161: 2 | W161: 5 | X161: 6 | Y161: 6 | Z161: 31 | AA161: 59 | AB161: 75 | AC161: 88 | AD161: 115 | AE161: 150 | AF161: 149 | AG161: 180
C162: 袋井町 | D162: 216-01 | E162: 504 | F162: 276 | G162: - | H162: 2 | I162: 4 | J162: 10 | K162: 6 | L162: 9 | M162: 9 | N162: 19 | O162: 24 | P162: 33 | Q162: 36 | R162: 52 | S162: 72 | T162: 228 | U162: - | V162: - | W162: - | X162: 2 | Y162: 3 | Z162: 3 | AA162: 10 | AB162: 14 | AC162: 31 | AD162: 26 | AE162: 51 | AF162: 36 | AG162: 52
C163: 久努村 | D163: 216-02 | E163: 208 | F163: 114 | G163: - | H163: - | I163: 2 | J163: 1 | K163: 3 | L163: 3 | M163: 3 | N163: 5 | O163: 7 | P163: 17 | Q163: 16 | R163: 21 | S163: 36 | T163: 94 | U163: - | V163: - | W163: - | X163: - | Y163: 1 | Z163: 1 | AA163: 3 | AB163: 3 | AC163: 9 | AD163: 23 | AE163: 16 | AF163: 22 | AG163: 16
C164: 今井村 | D164: 216-03 | E164: 192 | F164: 107 | G164: - | H164: 1 | I164: 3 | J164: 1 | K164: 1 | L164: 3 | M164: 9 | N164: 6 | O164: 12 | P164: 9 | Q164: 10 | R164: 21 | S164: 31 | T164: 85 | U164: - | V164: - | W164: - | X164: - | Y164: - | Z164: 7 | AA164: 9 | AB164: 8 | AC164: 8 | AD164: 4 | AE164: 13 | AF164: 19 | AG164: 17
C165: 笠原村２－１ | D165: 216-04 | E165: 320 | F165: 164 | G165: 2 | H165: 1 | I165: 2 | J165: 6 | K165: 3 | L165: 1 | M165: 13 | N165: 15 | O165: 19 | P165: 23 | Q165: 19 | R165: 20 | S165: 40 | T165: 156 | U165: - | V165: - | W165: - | X165: 1 | Y165: - | Z165: 3 | AA165: 12 | AB165: 21 | AC165: 22 | AD165: 22 | AE165: 14 | AF165: 23 | AG165: 38
C166: 田原村２－２ | D166: 216-05 | E166: 56 | F166: 29 | G166: - | H166: - | I166: - | J166: - | K166: - | L166: 1 | M166: 4 | N166: 1 | O166: 2 | P166: 3 | Q166: 3 | R166: 5 | S166: 10 | T166: 27 | U166: - | V166: - | W166: - | X166: - | Y166: - | Z166: - | AA166: 2 | AB166: 1 | AC166: 2 | AD166: 2 | AE166: 8 | AF166: 6 | AG166: 6
C167: 三川村２－１ | D167: 216-06 | E167: 386 | F167: 210 | G167: - | H167: 2 | I167: 9 | J167: 9 | K167: 10 | L167: 8 | M167: 14 | N167: 17 | O167: 23 | P167: 14 | Q167: 28 | R167: 30 | S167: 46 | T167: 176 | U167: - | V167: 2 | W167: 3 | X167: 3 | Y167: 1 | Z167: 11 | AA167: 17 | AB167: 19 | AC167: 9 | AD167: 27 | AE167: 28 | AF167: 28 | AG167: 28
C168: 山梨町 | D168: 216-07 | E168: 101 | F168: 56 | G168: - | H168: 1 | I168: 1 | J168: 1 | K168: - | L168: 1 | M168: 6 | N168: 7 | O168: 5 | P168: 4 | Q168: 8 | R168: 5 | S168: 17 | T168: 45 | U168: - | V168: - | W168: - | X168: - | Y168: - | Z168: 3 | AA168: 6 | AB168: 5 | AC168: 2 | AD168: 5 | AE168: 6 | AF168: 9 | AG168: 9
C169: 宇刈村 | D169: 216-08 | E169: 131 | F169: 76 | G169: - | H169: - | I169: 2 | J169: 1 | K169: 3 | L169: 1 | M169: 2 | N169: 3 | O169: 4 | P169: 5 | Q169: 12 | R169: 18 | S169: 25 | T169: 55 | U169: - | V169: - | W169: 2 | X169: - | Y169: 1 | Z169: 3 | AA169: - | AB169: 4 | AC169: 5 | AD169: 6 | AE169: 14 | AF169: 6 | AG169: 14
B170: 天竜市 | D170: 217-00 | E170: 366 | F170: 178 | G170: - | H170: 1 | I170: - | J170: 1 | K170: 1 | L170: 1 | M170: 9 | N170: 9 | O170: 5 | P170: 20 | Q170: 34 | R170: 44 | S170: 53 | T170: 188 | U170: - | V170: - | W170: - | X170: - | Y170: - | Z170: 5 | AA170: 10 | AB170: 13 | AC170: 18 | AD170: 27 | AE170: 38 | AF170: 37 | AG170: 40
C171: 二俣町 | D171: 217-01 | E171: x | F171: x | G171: x | H171: x | I171: x | J171: x | K171: x | L171: x | M171: x | N171: x | O171: x | P171: x | Q171: x | R171: x | S171: x | T171: x | U171: x | V171: x | W171: x | X171: x | Y171: x | Z171: x | AA171: x | AB171: x | AC171: x | AD171: x | AE171: x | AF171: x | AG171: x
C172: 光明村 | D172: 217-02 | E172: 96 | F172: 48 | G172: - | H172: - | I172: - | J172: 1 | K172: - | L172: - | M172: 4 | N172: 1 | O172: 1 | P172: 5 | Q172: 7 | R172: 9 | S172: 20 | T172: 48 | U172: - | V172: - | W172: - | X172: - | Y172: - | Z172: 4 | AA172: 2 | AB172: 1 | AC172: 5 | AD172: 7 | AE172: 8 | AF172: 11 | AG172: 10
C173: 上阿多古村 | D173: 217-03 | E173: 98 | F173: 46 | G173: - | H173: - | I173: - | J173: - | K173: - | L173: - | M173: 3 | N173: 5 | O173: 1 | P173: 7 | Q173: 10 | R173: 11 | S173: 9 | T173: 52 | U173: - | V173: - | W173: - | X173: - | Y173: - | Z173: - | AA173: 3 | AB173: 3 | AC173: 3 | AD173: 9 | AE173: 12 | AF173: 11 | AG173: 11
C174: 下阿多古村 | D174: 217-04 | E174: x | F174: x | G174: x | H174: x | I174: x | J174: x | K174: x | L174: x | M174: x | N174: x | O174: x | P174: x | Q174: x | R174: x | S174: x | T174: x | U174: x | V174: x | W174: x | X174: x | Y174: x | Z174: x | AA174: x | AB174: x | AC174: x | AD174: x | AE174: x | AF174: x | AG174: x
C175: 熊村 | D175: 217-05 | E175: 102 | F175: 47 | G175: - | H175: 1 | I175: - | J175: - | K175: - | L175: 1 | M175: 2 | N175: 1 | O175: 2 | P175: 7 | Q175: 9 | R175: 12 | S175: 12 | T175: 55 | U175: - | V175: - | W175: - | X175: - | Y175: - | Z175: 1 | AA175: 4 | AB175: 6 | AC175: 7 | AD175: 5 | AE175: 12 | AF175: 8 | AG175: 12
C176: 竜川村 | D176: 217-06 | E176: 35 | F176: 18 | G176: - | H176: - | I176: - | J176: - | K176: 1 | L176: - | M176: - | N176: 1 | O176: 1 | P176: - | Q176: 2 | R176: 7 | S176: 6 | T176: 17 | U176: - | V176: - | W176: - | X176: - | Y176: - | Z176: - | AA176: 1 | AB176: 3 | AC176: - | AD176: 3 | AE176: 3 | AF176: 3 | AG176: 4
B177: 浜北市 | D177: 218-00 | E177: 1,707 | F177: 888 | G177: 1 | H177: 9 | I177: 15 | J177: 17 | K177: 23 | L177: 27 | M177: 44 | N177: 72 | O177: 71 | P177: 76 | Q177: 120 | R177: 178 | S177: 235 | T177: 819 | U177: - | V177: 1 | W177: 2 | X177: 4 | Y177: 14 | Z177: 28 | AA177: 49 | AB177: 80 | AC177: 71 | AD177: 106 | AE177: 150 | AF177: 142 | AG177: 172
C178: 小野口村 | D178: 218-01 | E178: 240 | F178: 124 | G178: - | H178: 1 | I178: 2 | J178: 3 | K178: 6 | L178: 3 | M178: 8 | N178: 7 | O178: 7 | P178: 9 | Q178: 12 | R178: 26 | S178: 40 | T178: 116 | U178: - | V178: - | W178: 1 | X178: - | Y178: 3 | Z178: 3 | AA178: 6 | AB178: 7 | AC178: 11 | AD178: 13 | AE178: 23 | AF178: 23 | AG178: 26
C179: 北浜村 | D179: 218-02 | E179: 300 | F179: 160 | G179: - | H179: 1 | I179: 3 | J179: 3 | K179: 2 | L179: 4 | M179: 10 | N179: 13 | O179: 18 | P179: 10 | Q179: 27 | R179: 29 | S179: 40 | T179: 140 | U179: - | V179: - | W179: - | X179: 1 | Y179: 2 | Z179: 4 | AA179: 5 | AB179: 17 | AC179: 14 | AD179: 18 | AE179: 30 | AF179: 23 | AG179: 26
C180: 竜池村 | D180: 218-03 | E180: 102 | F180: 50 | G180: - | H180: - | I180: - | J180: - | K180: 1 | L180: - | M180: 2 | N180: 1 | O180: 3 | P180: 7 | Q180: 10 | R180: 8 | S180: 18 | T180: 52 | U180: - | V180: - | W180: - | X180: - | Y180: 2 | Z180: - | AA180: - | AB180: 4 | AC180: 5 | AD180: 8 | AE180: 5 | AF180: 14 | AG180: 14
C181: 中瀬村 | D181: 218-04 | E181: 244 | F181: 127 | G181: 1 | H181: 1 | I181: 3 | J181: 1 | K181: 2 | L181: 6 | M181: 3 | N181: 11 | O181: 6 | P181: 13 | Q181: 11 | R181: 35 | S181: 34 | T181: 117 | U181: - | V181: 1 | W181: - | X181: 1 | Y181: 1 | Z181: 1 | AA181: 6 | AB181: 8 | AC181: 11 | AD181: 16 | AE181: 29 | AF181: 22 | AG181: 21
C182: 赤佐村 | D182: 218-05 | E182: 152 | F182: 85 | G182: - | H182: 1 | I182: 1 | J182: - | K182: 1 | L182: 1 | M182: 2 | N182: 4 | O182: 4 | P182: 7 | Q182: 12 | R182: 20 | S182: 32 | T182: 67 | U182: - | V182: - | W182: - | X182: - | Y182: - | Z182: 1 | AA182: 2 | AB182: 6 | AC182: - | AD182: 10 | AE182: 10 | AF182: 19 | AG182: 19
C183: 麁玉村 | D183: 218-06 | E183: 669 | F183: 342 | G183: - | H183: 5 | I183: 6 | J183: 10 | K183: 11 | L183: 13 | M183: 19 | N183: 36 | O183: 33 | P183: 30 | Q183: 48 | R183: 60 | S183: 71 | T183: 327 | U183: - | V183: - | W183: 1 | X183: 2 | Y183: 6 | Z183: 19 | AA183: 30 | AB183: 38 | AC183: 30 | AD183: 41 | AE183: 53 | AF183: 41 | AG183: 66
B184: 下田市 | D184: 219-00 | E184: 184 | F184: 105 | G184: - | H184: - | I184: 1 | J184: 1 | K184: 3 | L184: 2 | M184: 4 | N184: 6 | O184: 4 | P184: 15 | Q184: 15 | R184: 25 | S184: 29 | T184: 79 | U184: - | V184: - | W184: - | X184: 1 | Y184: 1 | Z184: 2 | AA184: 1 | AB184: 2 | AC184: 3 | AD184: 16 | AE184: 15 | AF184: 19 | AG184: 19
C185: 下田町 | D185: 219-01 | E185: - | F185: - | G185: - | H185: - | I185: - | J185: - | K185: - | L185: - | M185: - | N185: - | O185: - | P185: - | Q185: - | R185: - | S185: - | T185: - | U185: - | V185: - | W185: - | X185: - | Y185: - | Z185: - | AA185: - | AB185: - | AC185: - | AD185: - | AE185: - | AF185: - | AG185: -
C186: 稲梓村 | D186: 219-02 | E186: 81 | F186: 48 | G186: - | H186: - | I186: 1 | J186: - | K186: 1 | L186: 1 | M186: 3 | N186: 4 | O186: 3 | P186: 5 | Q186: 7 | R186: 11 | S186: 12 | T186: 33 | U186: - | V186: - | W186: - | X186: 1 | Y186: - | Z186: 1 | AA186: 1 | AB186: - | AC186: 1 | AD186: 6 | AE186: 9 | AF186: 8 | AG186: 6
C187: 稲生沢村 | D187: 219-03 | E187: 9 | F187: 6 | G187: - | H187: - | I187: - | J187: - | K187: - | L187: - | M187: - | N187: 1 | O187: - | P187: 2 | Q187: - | R187: 1 | S187: 2 | T187: 3 | U187: - | V187: - | W187: - | X187: - | Y187: - | Z187: - | AA187: - | AB187: - | AC187: - | AD187: 1 | AE187: - | AF187: - | AG187: 2
C188: 白浜村 | D188: 219-04 | E188: 21 | F188: 12 | G188: - | H188: - | I188: - | J188: - | K188: 1 | L188: - | M188: - | N188: 1 | O188: - | P188: 2 | Q188: 4 | R188: 1 | S188: 3 | T188: 9 | U188: - | V188: - | W188: - | X188: - | Y188: - | Z188: - | AA188: - | AB188: - | AC188: - | AD188: 4 | AE188: 1 | AF188: 4 | AG188: -
C189: 浜崎村 | D189: 219-05 | E189: 6 | F189: 2 | G189: - | H189: - | I189: - | J189: - | K189: - | L189: - | M189: - | N189: - | O189: - | P189: 1 | Q189: - | R189: - | S189: 1 | T189: 4 | U189: - | V189: - | W189: - | X189: - | Y189: - | Z189: - | AA189: - | AB189: - | AC189: - | AD189: 1 | AE189: - | AF189: - | AG189: 3
C190: 朝日村 | D190: 219-06 | E190: 67 | F190: 37 | G190: - | H190: - | I190: - | J190: 1 | K190: 1 | L190: 1 | M190: 1 | N190: - | O190: 1 | P190: 5 | Q190: 4 | R190: 12 | S190: 11 | T190: 30 | U190: - | V190: - | W190: - | X190: - | Y190: 1 | Z190: 1 | AA190: - | AB190: 2 | AC190: 2 | AD190: 4 | AE190: 5 | AF190: 7 | AG190: 8
B191: 裾野市 | D191: 220-00 | E191: 642 | F191: 317 | G191: - | H191: - | I191: - | J191: - | K191: - | L191: 4 | M191: 8 | N191: 19 | O191: 18 | P191: 28 | Q191: 53 | R191: 63 | S191: 124 | T191: 325 | U191: - | V191: - | W191: - | X191: - | Y191: 1 | Z191: 7 | AA191: 11 | AB191: 16 | AC191: 26 | AD191: 30 | AE191: 48 | AF191: 76 | AG191: 110
C192: 小泉村 | D192: 220-01 | E192: 82 | F192: 41 | G192: - | H192: - | I192: - | J192: - | K192: - | L192: - | M192: 2 | N192: 4 | O192: 2 | P192: 6 | Q192: 4 | R192: 10 | S192: 13 | T192: 41 | U192: - | V192: - | W192: - | X192: - | Y192: - | Z192: - | AA192: 4 | AB192: 4 | AC192: 3 | AD192: 2 | AE192: 6 | AF192: 13 | AG192: 9
C193: 泉村 | D193: 220-02 | E193: 163 | F193: 75 | G193: - | H193: - | I193: - | J193: - | K193: - | L193: - | M193: 2 | N193: 4 | O193: 5 | P193: 4 | Q193: 15 | R193: 16 | S193: 29 | T193: 88 | U193: - | V193: - | W193: - | X193: - | Y193: - | Z193: 3 | AA193: 3 | AB193: 4 | AC193: 8 | AD193: 11 | AE193: 17 | AF193: 18 | AG193: 24
C194: 富岡村 | D194: 220-03 | E194: 218 | F194: 108 | G194: - | H194: - | I194: - | J194: - | K194: - | L194: 4 | M194: 3 | N194: 6 | O194: 8 | P194: 7 | Q194: 19 | R194: 20 | S194: 41 | T194: 110 | U194: - | V194: - | W194: - | X194: - | Y194: 1 | Z194: 3 | AA194: 4 | AB194: 6 | AC194: 9 | AD194: 9 | AE194: 17 | AF194: 27 | AG194: 34
C195: 深良村 | D195: 220-04 | E195: 110 | F195: 55 | G195: - | H195: - | I195: - | J195: - | K195: - | L195: - | M195: - | N195: 2 | O195: 1 | P195: 8 | Q195: 10 | R195: 12 | S195: 22 | T195: 55 | U195: - | V195: - | W195: - | X195: - | Y195: - | Z195: 1 | AA195: - | AB195: 2 | AC195: 4 | AD195: 7 | AE195: 6 | AF195: 11 | AG195: 24
C196: 須山村 | D196: 220-05 | E196: 69 | F196: 38 | G196: - | H196: - | I196: - | J196: - | K196: - | L196: - | M196: 1 | N196: 3 | O196: 2 | P196: 3 | Q196: 5 | R196: 5 | S196: 19 | T196: 31 | U196: - | V196: - | W196: - | X196: - | Y196: - | Z196: - | AA196: - | AB196: - | AC196: 2 | AD196: 1 | AE196: 2 | AF196: 7 | AG196: 19
B197: 湖西市 | D197: 221-00 | E197: 1,255 | F197: 639 | G197: - | H197: 3 | I197: 7 | J197: 19 | K197: 14 | L197: 29 | M197: 29 | N197: 62 | O197: 44 | P197: 63 | Q197: 78 | R197: 125 | S197: 166 | T197: 616 | U197: - | V197: 3 | W197: 2 | X197: 7 | Y197: 14 | Z197: 24 | AA197: 49 | AB197: 45 | AC197: 53 | AD197: 80 | AE197: 102 | AF197: 128 | AG197: 109
C198: 鷲津町 | D198: 221-01 | E198: 188 | F198: 101 | G198: - | H198: - | I198: 1 | J198: 2 | K198: 1 | L198: 5 | M198: - | N198: 16 | O198: 10 | P198: 11 | Q198: 18 | R198: 13 | S198: 24 | T198: 87 | U198: - | V198: - | W198: - | X198: - | Y198: 1 | Z198: 3 | AA198: 11 | AB198: 4 | AC198: 8 | AD198: 15 | AE198: 10 | AF198: 21 | AG198: 14
C199: 白須賀町 | D199: 221-02 | E199: 385 | F199: 196 | G199: - | H199: 1 | I199: 4 | J199: 7 | K199: 5 | L199: 12 | M199: 17 | N199: 17 | O199: 14 | P199: 22 | Q199: 13 | R199: 43 | S199: 41 | T199: 189 | U199: - | V199: 2 | W199: - | X199: 4 | Y199: 7 | Z199: 10 | AA199: 16 | AB199: 19 | AC199: 15 | AD199: 17 | AE199: 32 | AF199: 41 | AG199: 26
C200: 新所村 | D200: 221-03 | E200: 213 | F200: 109 | G200: - | H200: - | I200: 2 | J200: 1 | K200: - | L200: 3 | M200: 2 | N200: 10 | O200: 7 | P200: 8 | Q200: 16 | R200: 22 | S200: 38 | T200: 104 | U200: - | V200: 1 | W200: 2 | X200: - | Y200: 1 | Z200: 3 | AA200: 3 | AB200: 8 | AC200: 6 | AD200: 16 | AE200: 20 | AF200: 23 | AG200: 21
C201: 入出村 | D201: 221-04 | E201: 101 | F201: 49 | G201: - | H201: - | I201: - | J201: 2 | K201: 1 | L201: - | M201: 3 | N201: 3 | O201: 3 | P201: 5 | Q201: 8 | R201: 8 | S201: 16 | T201: 52 | U201: - | V201: - | W201: - | X201: - | Y201: 1 | Z201: 1 | AA201: 4 | AB201: 3 | AC201: 5 | AD201: 8 | AE201: 6 | AF201: 8 | AG201: 16
C202: 知波田村 | D202: 221-05 | E202: 368 | F202: 184 | G202: - | H202: 2 | I202: - | J202: 7 | K202: 7 | L202: 9 | M202: 7 | N202: 16 | O202: 10 | P202: 17 | Q202: 23 | R202: 39 | S202: 47 | T202: 184 | U202: - | V202: - | W202: - | X202: 3 | Y202: 4 | Z202: 7 | AA202: 15 | AB202: 11 | AC202: 19 | AD202: 24 | AE202: 34 | AF202: 35 | AG202: 32
B203: 伊豆市 | D203: 222-00 | E203: 1,369 | F203: 709 | G203: - | H203: 2 | I203: 8 | J203: 11 | K203: 14 | L203: 15 | M203: 25 | N203: 32 | O203: 48 | P203: 72 | Q203: 121 | R203: 140 | S203: 221 | T203: 660 | U203: - | V203: - | W203: - | X203: 4 | Y203: 6 | Z203: 9 | AA203: 18 | AB203: 38 | AC203: 50 | AD203: 75 | AE203: 120 | AF203: 116 | AG203: 224
C204: 修善寺町 | D204: 222-01 | E204: 132 | F204: 67 | G204: - | H204: - | I204: - | J204: - | K204: 1 | L204: - | M204: 3 | N204: 5 | O204: 6 | P204: 7 | Q204: 12 | R204: 9 | S204: 24 | T204: 65 | U204: - | V204: - | W204: - | X204: - | Y204: - | Z204: 1 | AA204: 2 | AB204: 3 | AC204: 5 | AD204: 6 | AE204: 11 | AF204: 10 | AG204: 27
C205: 下狩野村 | D205: 222-02 | E205: 146 | F205: 76 | G205: - | H205: - | I205: - | J205: - | K205: - | L205: - | M205: - | N205: 1 | O205: 2 | P205: 11 | Q205: 17 | R205: 17 | S205: 28 | T205: 70 | U205: - | V205: - | W205: - | X205: - | Y205: - | Z205: - | AA205: - | AB205: 2 | AC205: 3 | AD205: 8 | AE205: 16 | AF205: 18 | AG205: 23
C206: 北狩野村２－１ | D206: 222-03 | E206: 147 | F206: 77 | G206: - | H206: - | I206: - | J206: 1 | K206: 1 | L206: 3 | M206: 5 | N206: 3 | O206: 2 | P206: 5 | Q206: 13 | R206: 17 | S206: 27 | T206: 70 | U206: - | V206: - | W206: - | X206: - | Y206: 3 | Z206: 3 | AA206: 3 | AB206: 6 | AC206: 3 | AD206: 7 | AE206: 11 | AF206: 12 | AG206: 22
... 203 more rows

Sheet 2005
A1: key | B1: pref | C1: city | D1: kcity | E1: rcom | F1: pref_name | G1: city_name | H1: kcity_name | I1: rcom_name | J1: 男女_計 | K1: 男女_15～19歳 | L1: 男女_20～24 | M1: 男女_25～29 | N1: 男女_30～34 | O1: 男女_35～39 | P1: 男女_40～44 | Q1: 男女_45～49 | R1: 男女_50～54 | S1: 男女_55～59 | T1: 男女_60～64 | U1: 男女_65～69 | V1: 男女_70～74 | W1: 男女_75～79 | X1: 男女_80～84 | Y1: 男女_85歳以上 | Z1: 男_計 | AA1: 男_15～19歳 | AB1: 男_20～24 | AC1: 男_25～29 | AD1: 男_30～34 | AE1: 男_35～39 | AF1: 男_40～44 | AG1: 男_45～49 | AH1: 男_50～54 | AI1: 男_55～59 | AJ1: 男_60～64 | AK1: 男_65～69 | AL1: 男_70～74 | AM1: 男_75～79 | AN1: 男_80～84 | AO1: 男_85歳以上 | AP1: 女_計 | AQ1: 女_15～19歳 | AR1: 女_20～24 | AS1: 女_25～29 | AT1: 女_30～34 | AU1: 女_35～39 | AV1: 女_40～44 | AW1: 女_45～49 | AX1: 女_50～54 | AY1: 女_55～59 | AZ1: 女_60～64 | BA1: 女_65～69 | BB1: 女_70～74 | BC1: 女_75～79 | BD1: 女_80～84 | BE1: 女_85歳以上
A2: 2200000000 | B2: 22 | C2: 000 | D2: 00 | E2: 000 | F2: 静岡県 | J2: 77893 | K2: 31 | L2: 287 | M2: 641 | N2: 860 | O2: 1181 | P2: 2343 | Q2: 3987 | R2: 5959 | S2: 7115 | T2: 9204 | U2: 12334 | V2: 14310 | W2: 19641 | X2: … | Y2: … | Z2: 40026 | AA2: 28 | AB2: 238 | AC2: 517 | AD2: 638 | AE2: 741 | AF2: 1209 | AG2: 1907 | AH2: 2893 | AI2: 3344 | AJ2: 4230 | AK2: 5960 | AL2: 7348 | AM2: 10973 | AN2: … | AO2: … | AP2: 37867 | AQ2: 3 | AR2: 49 | AS2: 124 | AT2: 222 | AU2: 440 | AV2: 1134 | AW2: 2080 | AX2: 3066 | AY2: 3771 | AZ2: 4974 | BA2: 6374 | BB2: 6962 | BC2: 8668 | BD2: … | BE2: …
A3: 2210100000 | B3: 22 | C3: 101 | D3: 00 | E3: 000 | F3: 静岡県 | G3: 葵区 | J3: @ | K3: @ | L3: @ | M3: @ | N3: @ | O3: @ | P3: @ | Q3: @ | R3: @ | S3: @ | T3: @ | U3: @ | V3: @ | W3: @ | X3: @ | Y3: @ | Z3: @ | AA3: @ | AB3: @ | AC3: @ | AD3: @ | AE3: @ | AF3: @ | AG3: @ | AH3: @ | AI3: @ | AJ3: @ | AK3: @ | AL3: @ | AM3: @ | AN3: @ | AO3: @ | AP3: @ | AQ3: @ | AR3: @ | AS3: @ | AT3: @ | AU3: @ | AV3: @ | AW3: @ | AX3: @ | AY3: @ | AZ3: @ | BA3: @ | BB3: @ | BC3: @ | BD3: @ | BE3: @
A4: 2210101000 | B4: 22 | C4: 101 | D4: 01 | E4: 000 | F4: 静岡県 | G4: 葵区 | H4: 静岡市２－１ | J4: @ | K4: @ | L4: @ | M4: @ | N4: @ | O4: @ | P4: @ | Q4: @ | R4: @ | S4: @ | T4: @ | U4: @ | V4: @ | W4: @ | X4: @ | Y4: @ | Z4: @ | AA4: @ | AB4: @ | AC4: @ | AD4: @ | AE4: @ | AF4: @ | AG4: @ | AH4: @ | AI4: @ | AJ4: @ | AK4: @ | AL4: @ | AM4: @ | AN4: @ | AO4: @ | AP4: @ | AQ4: @ | AR4: @ | AS4: @ | AT4: @ | AU4: @ | AV4: @ | AW4: @ | AX4: @ | AY4: @ | AZ4: @ | BA4: @ | BB4: @ | BC4: @ | BD4: @ | BE4: @
A5: 2210101001 | B5: 22 | C5: 101 | D5: 01 | E5: 001 | F5: 静岡県 | G5: 葵区 | H5: 静岡市２－１ | I5: 田中 | J5: 6 | K5: - | L5: - | M5: - | N5: - | O5: - | P5: - | Q5: - | R5: - | S5: - | T5: - | U5: 2 | V5: 4 | W5: - | X5: … | Y5: … | Z5: 3 | AA5: - | AB5: - | AC5: - | AD5: - | AE5: - | AF5: - | AG5: - | AH5: - | AI5: - | AJ5: - | AK5: - | AL5: 3 | AM5: - | AN5: … | AO5: … | AP5: 3 | AQ5: - | AR5: - | AS5: - | AT5: - | AU5: - | AV5: - | AW5: - | AX5: - | AY5: - | AZ5: - | BA5: 2 | BB5: 1 | BC5: - | BD5: … | BE5: …
A6: 2210101002 | B6: 22 | C6: 101 | D6: 01 | E6: 002 | F6: 静岡県 | G6: 葵区 | H6: 静岡市２－１ | I6: 柳新田 | J6: 43 | K6: - | L6: - | M6: 1 | N6: 1 | O6: - | P6: - | Q6: - | R6: 1 | S6: 4 | T6: 9 | U6: 9 | V6: 5 | W6: 13 | X6: … | Y6: … | Z6: 22 | AA6: - | AB6: - | AC6: 1 | AD6: 1 | AE6: - | AF6: - | AG6: - | AH6: - | AI6: 2 | AJ6: 3 | AK6: 6 | AL6: 2 | AM6: 7 | AN6: … | AO6: … | AP6: 21 | AQ6: - | AR6: - | AS6: - | AT6: - | AU6: - | AV6: - | AW6: - | AX6: 1 | AY6: 2 | AZ6: 6 | BA6: 3 | BB6: 3 | BC6: 6 | BD6: … | BE6: …
A7: 2210101003 | B7: 22 | C7: 101 | D7: 01 | E7: 003 | F7: 静岡県 | G7: 葵区 | H7: 静岡市２－１ | I7: 大岩下 | J7: - | K7: - | L7: - | M7: - | N7: - | O7: - | P7: - | Q7: - | R7: - | S7: - | T7: - | U7: - | V7: - | W7: - | X7: … | Y7: … | Z7: - | AA7: - | AB7: - | AC7: - | AD7: - | AE7: - | AF7: - | AG7: - | AH7: - | AI7: - | AJ7: - | AK7: - | AL7: - | AM7: - | AN7: … | AO7: … | AP7: - | AQ7: - | AR7: - | AS7: - | AT7: - | AU7: - | AV7: - | AW7: - | AX7: - | AY7: - | AZ7: - | BA7: - | BB7: - | BC7: - | BD7: … | BE7: …
A8: 2210101004 | B8: 22 | C8: 101 | D8: 01 | E8: 004 | F8: 静岡県 | G8: 葵区 | H8: 静岡市２－１ | I8: 本通・田町・安西・柳町 | J8: x | K8: x | L8: x | M8: x | N8: x | O8: x | P8: x | Q8: x | R8: x | S8: x | T8: x | U8: x | V8: x | W8: x | X8: … | Y8: … | Z8: x | AA8: x | AB8: x | AC8: x | AD8: x | AE8: x | AF8: x | AG8: x | AH8: x | AI8: x | AJ8: x | AK8: x | AL8: x | AM8: x | AN8: … | AO8: … | AP8: x | AQ8: x | AR8: x | AS8: x | AT8: x | AU8: x | AV8: x | AW8: x | AX8: x | AY8: x | AZ8: x | BA8: x | BB8: x | BC8: x | BD8: … | BE8: …
A9: 2210101005 | B9: 22 | C9: 101 | D9: 01 | E9: 005 | F9: 静岡県 | G9: 葵区 | H9: 静岡市２－１ | I9: 水道・井宮 | J9: x | K9: x | L9: x | M9: x | N9: x | O9: x | P9: x | Q9: x | R9: x | S9: x | T9: x | U9: x | V9: x | W9: x | X9: … | Y9: … | Z9: x | AA9: x | AB9: x | AC9: x | AD9: x | AE9: x | AF9: x | AG9: x | AH9: x | AI9: x | AJ9: x | AK9: x | AL9: x | AM9: x | AN9: … | AO9: … | AP9: x | AQ9: x | AR9: x | AS9: x | AT9: x | AU9: x | AV9: x | AW9: x | AX9: x | AY9: x | AZ9: x | BA9: x | BB9: x | BC9: x | BD9: … | BE9: …
A10: 2210101006 | B10: 22 | C10: 101 | D10: 01 | E10: 006 | F10: 静岡県 | G10: 葵区 | H10: 静岡市２－１ | I10: 安東の東 | J10: x | K10: x | L10: x | M10: x | N10: x | O10: x | P10: x | Q10: x | R10: x | S10: x | T10: x | U10: x | V10: x | W10: x | X10: … | Y10: … | Z10: x | AA10: x | AB10: x | AC10: x | AD10: x | AE10: x | AF10: x | AG10: x | AH10: x | AI10: x | AJ10: x | AK10: x | AL10: x | AM10: x | AN10: … | AO10: … | AP10: x | AQ10: x | AR10: x | AS10: x | AT10: x | AU10: x | AV10: x | AW10: x | AX10: x | AY10: x | AZ10: x | BA10: x | BB10: x | BC10: x | BD10: … | BE10: …
A11: 2210101007 | B11: 22 | C11: 101 | D11: 01 | E11: 007 | F11: 静岡県 | G11: 葵区 | H11: 静岡市２－１ | I11: 安東の西 | J11: x | K11: x | L11: x | M11: x | N11: x | O11: x | P11: x | Q11: x | R11: x | S11: x | T11: x | U11: x | V11: x | W11: x | X11: … | Y11: … | Z11: x | AA11: x | AB11: x | AC11: x | AD11: x | AE11: x | AF11: x | AG11: x | AH11: x | AI11: x | AJ11: x | AK11: x | AL11: x | AM11: x | AN11: … | AO11: … | AP11: x | AQ11: x | AR11: x | AS11: x | AT11: x | AU11: x | AV11: x | AW11: x | AX11: x | AY11: x | AZ11: x | BA11: x | BB11: x | BC11: x | BD11: … | BE11: …
A12: 2210101008 | B12: 22 | C12: 101 | D12: 01 | E12: 008 | F12: 静岡県 | G12: 葵区 | H12: 静岡市２－１ | I12: 大岩上 | J12: 15 | K12: - | L12: - | M12: - | N12: - | O12: - | P12: 1 | Q12: 2 | R12: 1 | S12: 1 | T12: 1 | U12: 1 | V12: 3 | W12: 5 | X12: … | Y12: … | Z12: 8 | AA12: - | AB12: - | AC12: - | AD12: - | AE12: - | AF12: - | AG12: 2 | AH12: - | AI12: 1 | AJ12: 1 | AK12: - | AL12: 1 | AM12: 3 | AN12: … | AO12: … | AP12: 7 | AQ12: - | AR12: - | AS12: - | AT12: - | AU12: - | AV12: 1 | AW12: - | AX12: 1 | AY12: - | AZ12: - | BA12: 1 | BB12: 2 | BC12: 2 | BD12: … | BE12: …
A13: 2210101009 | B13: 22 | C13: 101 | D13: 01 | E13: 009 | F13: 静岡県 | G13: 葵区 | H13: 静岡市２－１ | I13: 長沼南 | J13: 4 | K13: - | L13: - | M13: - | N13: - | O13: - | P13: - | Q13: 1 | R13: - | S13: - | T13: - | U13: 1 | V13: 1 | W13: 1 | X13: … | Y13: … | Z13: 3 | AA13: - | AB13: - | AC13: - | AD13: - | AE13: - | AF13: - | AG13: - | AH13: - | AI13: - | AJ13: - | AK13: 1 | AL13: 1 | AM13: 1 | AN13: … | AO13: … | AP13: 1 | AQ13: - | AR13: - | AS13: - | AT13: - | AU13: - | AV13: - | AW13: 1 | AX13: - | AY13: - | AZ13: - | BA13: - | BB13: - | BC13: - | BD13: … | BE13: …
A14: 2210101010 | B14: 22 | C14: 101 | D14: 01 | E14: 010 | F14: 静岡県 | G14: 葵区 | H14: 静岡市２－１ | I14: 長沼北 | J14: - | K14: - | L14: - | M14: - | N14: - | O14: - | P14: - | Q14: - | R14: - | S14: - | T14: - | U14: - | V14: - | W14: - | X14: … | Y14: … | Z14: - | AA14: - | AB14: - | AC14: - | AD14: - | AE14: - | AF14: - | AG14: - | AH14: - | AI14: - | AJ14: - | AK14: - | AL14: - | AM14: - | AN14: … | AO14: … | AP14: - | AQ14: - | AR14: - | AS14: - | AT14: - | AU14: - | AV14: - | AW14: - | AX14: - | AY14: - | AZ14: - | BA14: - | BB14: - | BC14: - | BD14: … | BE14: …
A15: 2210101011 | B15: 22 | C15: 101 | D15: 01 | E15: 011 | F15: 静岡県 | G15: 葵区 | H15: 静岡市２－１ | I15: 古庄 | J15: 8 | K15: - | L15: - | M15: - | N15: - | O15: - | P15: - | Q15: - | R15: - | S15: - | T15: 3 | U15: 3 | V15: 2 | W15: - | X15: … | Y15: … | Z15: 4 | AA15: - | AB15: - | AC15: - | AD15: - | AE15: - | AF15: - | AG15: - | AH15: - | AI15: - | AJ15: 1 | AK15: 2 | AL15: 1 | AM15: - | AN15: … | AO15: … | AP15: 4 | AQ15: - | AR15: - | AS15: - | AT15: - | AU15: - | AV15: - | AW15: - | AX15: - | AY15: - | AZ15: 2 | BA15: 1 | BB15: 1 | BC15: - | BD15: … | BE15: …
A16: 2210101012 | B16: 22 | C16: 101 | D16: 01 | E16: 012 | F16: 静岡県 | G16: 葵区 | H16: 静岡市２－１ | I16: 柚木 | J16: - | K16: - | L16: - | M16: - | N16: - | O16: - | P16: - | Q16: - | R16: - | S16: - | T16: - | U16: - | V16: - | W16: - | X16: … | Y16: … | Z16: - | AA16: - | AB16: - | AC16: - | AD16: - | AE16: - | AF16: - | AG16: - | AH16: - | AI16: - | AJ16: - | AK16: - | AL16: - | AM16: - | AN16: … | AO16: … | AP16: - | AQ16: - | AR16: - | AS16: - | AT16: - | AU16: - | AV16: - | AW16: - | AX16: - | AY16: - | AZ16: - | BA16: - | BB16: - | BC16: - | BD16: … | BE16: …
A17: 2210101013 | B17: 22 | C17: 101 | D17: 01 | E17: 013 | F17: 静岡県 | G17: 葵区 | H17: 静岡市２－１ | I17: 瓦場 | J17: - | K17: - | L17: - | M17: - | N17: - | O17: - | P17: - | Q17: - | R17: - | S17: - | T17: - | U17: - | V17: - | W17: - | X17: … | Y17: … | Z17: - | AA17: - | AB17: - | AC17: - | AD17: - | AE17: - | AF17: - | AG17: - | AH17: - | AI17: - | AJ17: - | AK17: - | AL17: - | AM17: - | AN17: … | AO17: … | AP17: - | AQ17: - | AR17: - | AS17: - | AT17: - | AU17: - | AV17: - | AW17: - | AX17: - | AY17: - | AZ17: - | BA17: - | BB17: - | BC17: - | BD17: … | BE17: …
A18: 2210101014 | B18: 22 | C18: 101 | D18: 01 | E18: 014 | F18: 静岡県 | G18: 葵区 | H18: 静岡市２－１ | I18: 川辺２－１ | J18: @ | K18: @ | L18: @ | M18: @ | N18: @ | O18: @ | P18: @ | Q18: @ | R18: @ | S18: @ | T18: @ | U18: @ | V18: @ | W18: @ | X18: @ | Y18: @ | Z18: @ | AA18: @ | AB18: @ | AC18: @ | AD18: @ | AE18: @ | AF18: @ | AG18: @ | AH18: @ | AI18: @ | AJ18: @ | AK18: @ | AL18: @ | AM18: @ | AN18: @ | AO18: @ | AP18: @ | AQ18: @ | AR18: @ | AS18: @ | AT18: @ | AU18: @ | AV18: @ | AW18: @ | AX18: @ | AY18: @ | AZ18: @ | BA18: @ | BB18: @ | BC18: @ | BD18: @ | BE18: @
A19: 2210101015 | B19: 22 | C19: 101 | D19: 01 | E19: 015 | F19: 静岡県 | G19: 葵区 | H19: 静岡市２－１ | I19: 南安倍２－１ | J19: @ | K19: @ | L19: @ | M19: @ | N19: @ | O19: @ | P19: @ | Q19: @ | R19: @ | S19: @ | T19: @ | U19: @ | V19: @ | W19: @ | X19: @ | Y19: @ | Z19: @ | AA19: @ | AB19: @ | AC19: @ | AD19: @ | AE19: @ | AF19: @ | AG19: @ | AH19: @ | AI19: @ | AJ19: @ | AK19: @ | AL19: @ | AM19: @ | AN19: @ | AO19: @ | AP19: @ | AQ19: @ | AR19: @ | AS19: @ | AT19: @ | AU19: @ | AV19: @ | AW19: @ | AX19: @ | AY19: @ | AZ19: @ | BA19: @ | BB19: @ | BC19: @ | BD19: @ | BE19: @
A20: 2210101016 | B20: 22 | C20: 101 | D20: 01 | E20: 016 | F20: 静岡県 | G20: 葵区 | H20: 静岡市２－１ | I20: 籠上 | J20: 9 | K20: - | L20: - | M20: - | N20: - | O20: - | P20: 1 | Q20: - | R20: - | S20: - | T20: 3 | U20: 1 | V20: 3 | W20: 1 | X20: … | Y20: … | Z20: 6 | AA20: - | AB20: - | AC20: - | AD20: - | AE20: - | AF20: 1 | AG20: - | AH20: - | AI20: - | AJ20: 1 | AK20: 1 | AL20: 2 | AM20: 1 | AN20: … | AO20: … | AP20: 3 | AQ20: - | AR20: - | AS20: - | AT20: - | AU20: - | AV20: - | AW20: - | AX20: - | AY20: - | AZ20: 2 | BA20: - | BB20: 1 | BC20: - | BD20: … | BE20: …
A21: 2210101017 | B21: 22 | C21: 101 | D21: 01 | E21: 017 | F21: 静岡県 | G21: 葵区 | H21: 静岡市２－１ | I21: 松富下 | J21: 45 | K21: - | L21: - | M21: - | N21: - | O21: - | P21: - | Q21: - | R21: 7 | S21: 6 | T21: 5 | U21: 11 | V21: 9 | W21: 7 | X21: … | Y21: … | Z21: 24 | AA21: - | AB21: - | AC21: - | AD21: - | AE21: - | AF21: - | AG21: - | AH21: 2 | AI21: 3 | AJ21: 2 | AK21: 6 | AL21: 5 | AM21: 6 | AN21: … | AO21: … | AP21: 21 | AQ21: - | AR21: - | AS21: - | AT21: - | AU21: - | AV21: - | AW21: - | AX21: 5 | AY21: 3 | AZ21: 3 | BA21: 5 | BB21: 4 | BC21: 1 | BD21: … | BE21: …
A22: 2210101018 | B22: 22 | C22: 101 | D22: 01 | E22: 018 | F22: 静岡県 | G22: 葵区 | H22: 静岡市２－１ | I22: 松富上１区 | J22: x | K22: x | L22: x | M22: x | N22: x | O22: x | P22: x | Q22: x | R22: x | S22: x | T22: x | U22: x | V22: x | W22: x | X22: … | Y22: … | Z22: x | AA22: x | AB22: x | AC22: x | AD22: x | AE22: x | AF22: x | AG22: x | AH22: x | AI22: x | AJ22: x | AK22: x | AL22: x | AM22: x | AN22: … | AO22: … | AP22: x | AQ22: x | AR22: x | AS22: x | AT22: x | AU22: x | AV22: x | AW22: x | AX22: x | AY22: x | AZ22: x | BA22: x | BB22: x | BC22: x | BD22: … | BE22: …
A23: 2210101019 | B23: 22 | C23: 101 | D23: 01 | E23: 019 | F23: 静岡県 | G23: 葵区 | H23: 静岡市２－１ | I23: 松富上 | J23: 6 | K23: - | L23: - | M23: - | N23: - | O23: - | P23: - | Q23: - | R23: - | S23: - | T23: - | U23: 1 | V23: 2 | W23: 3 | X23: … | Y23: … | Z23: 3 | AA23: - | AB23: - | AC23: - | AD23: - | AE23: - | AF23: - | AG23: - | AH23: - | AI23: - | AJ23: - | AK23: - | AL23: 1 | AM23: 2 | AN23: … | AO23: … | AP23: 3 | AQ23: - | AR23: - | AS23: - | AT23: - | AU23: - | AV23: - | AW23: - | AX23: - | AY23: - | AZ23: - | BA23: 1 | BB23: 1 | BC23: 1 | BD23: … | BE23: …
A24: 2210101020 | B24: 22 | C24: 101 | D24: 01 | E24: 020 | F24: 静岡県 | G24: 葵区 | H24: 静岡市２－１ | I24: 下伝馬町新田 | J24: 8 | K24: - | L24: - | M24: - | N24: - | O24: - | P24: - | Q24: 2 | R24: - | S24: 2 | T24: 1 | U24: 1 | V24: - | W24: 2 | X24: … | Y24: … | Z24: 6 | AA24: - | AB24: - | AC24: - | AD24: - | AE24: - | AF24: - | AG24: 2 | AH24: - | AI24: 1 | AJ24: 1 | AK24: - | AL24: - | AM24: 2 | AN24: … | AO24: … | AP24: 2 | AQ24: - | AR24: - | AS24: - | AT24: - | AU24: - | AV24: - | AW24: - | AX24: - | AY24: 1 | AZ24: - | BA24: 1 | BB24: - | BC24: - | BD24: … | BE24: …
A25: 2210101021 | B25: 22 | C25: 101 | D25: 01 | E25: 021 | F25: 静岡県 | G25: 葵区 | H25: 静岡市２－１ | I25: 上伝馬町新田 | J25: 13 | K25: - | L25: - | M25: - | N25: - | O25: - | P25: - | Q25: 1 | R25: 4 | S25: - | T25: 2 | U25: 2 | V25: - | W25: 4 | X25: … | Y25: … | Z25: 7 | AA25: - | AB25: - | AC25: - | AD25: - | AE25: - | AF25: - | AG25: - | AH25: 3 | AI25: - | AJ25: - | AK25: 2 | AL25: - | AM25: 2 | AN25: … | AO25: … | AP25: 6 | AQ25: - | AR25: - | AS25: - | AT25: - | AU25: - | AV25: - | AW25: 1 | AX25: 1 | AY25: - | AZ25: 2 | BA25: - | BB25: - | BC25: 2 | BD25: … | BE25: …
A26: 2210101022 | B26: 22 | C26: 101 | D26: 01 | E26: 022 | F26: 静岡県 | G26: 葵区 | H26: 静岡市２－１ | I26: 与一右衛門新田 | J26: 33 | K26: - | L26: - | M26: 1 | N26: 1 | O26: 1 | P26: - | Q26: - | R26: 5 | S26: 2 | T26: 2 | U26: 5 | V26: 8 | W26: 8 | X26: … | Y26: … | Z26: 15 | AA26: - | AB26: - | AC26: - | AD26: 1 | AE26: 1 | AF26: - | AG26: - | AH26: 2 | AI26: 1 | AJ26: - | AK26: 2 | AL26: 3 | AM26: 5 | AN26: … | AO26: … | AP26: 18 | AQ26: - | AR26: - | AS26: 1 | AT26: - | AU26: - | AV26: - | AW26: - | AX26: 3 | AY26: 1 | AZ26: 2 | BA26: 3 | BB26: 5 | BC26: 3 | BD26: … | BE26: …
A27: 2210101023 | B27: 22 | C27: 101 | D27: 01 | E27: 023 | F27: 静岡県 | G27: 葵区 | H27: 静岡市２－１ | I27: 福田ヶ谷 | J27: 58 | K27: - | L27: - | M27: - | N27: 1 | O27: - | P27: 3 | Q27: 5 | R27: 5 | S27: 9 | T27: 7 | U27: 12 | V27: 8 | W27: 8 | X27: … | Y27: … | Z27: 27 | AA27: - | AB27: - | AC27: - | AD27: 1 | AE27: - | AF27: 1 | AG27: 2 | AH27: 2 | AI27: 4 | AJ27: 3 | AK27: 6 | AL27: 4 | AM27: 4 | AN27: … | AO27: … | AP27: 31 | AQ27: - | AR27: - | AS27: - | AT27: - | AU27: - | AV27: 2 | AW27: 3 | AX27: 3 | AY27: 5 | AZ27: 4 | BA27: 6 | BB27: 4 | BC27: 4 | BD27: … | BE27: …
A28: 2210101024 | B28: 22 | C28: 101 | D28: 01 | E28: 024 | F28: 静岡県 | G28: 葵区 | H28: 静岡市２－１ | I28: 下 | J28: 109 | K28: - | L28: 2 | M28: 2 | N28: 1 | O28: - | P28: 4 | Q28: 9 | R28: 11 | S28: 9 | T28: 11 | U28: 21 | V28: 19 | W28: 20 | X28: … | Y28: … | Z28: 55 | AA28: - | AB28: 1 | AC28: 2 | AD28: 1 | AE28: - | AF28: 3 | AG28: 4 | AH28: 3 | AI28: 5 | AJ28: 4 | AK28: 11 | AL28: 10 | AM28: 11 | AN28: … | AO28: … | AP28: 54 | AQ28: - | AR28: 1 | AS28: - | AT28: - | AU28: - | AV28: 1 | AW28: 5 | AX28: 8 | AY28: 4 | AZ28: 7 | BA28: 10 | BB28: 9 | BC28: 9 | BD28: … | BE28: …
A29: 2210101025 | B29: 22 | C29: 101 | D29: 01 | E29: 025 | F29: 静岡県 | G29: 葵区 | H29: 静岡市２－１ | I29: 門屋 | J29: 31 | K29: - | L29: - | M29: - | N29: - | O29: - | P29: - | Q29: 3 | R29: - | S29: 5 | T29: 3 | U29: 7 | V29: 6 | W29: 7 | X29: … | Y29: … | Z29: 15 | AA29: - | AB29: - | AC29: - | AD29: - | AE29: - | AF29: - | AG29: 2 | AH29: - | AI29: 2 | AJ29: - | AK29: 3 | AL29: 4 | AM29: 4 | AN29: … | AO29: … | AP29: 16 | AQ29: - | AR29: - | AS29: - | AT29: - | AU29: - | AV29: - | AW29: 1 | AX29: - | AY29: 3 | AZ29: 3 | BA29: 4 | BB29: 2 | BC29: 3 | BD29: … | BE29: …
A30: 2210101026 | B30: 22 | C30: 101 | D30: 01 | E30: 026 | F30: 静岡県 | G30: 葵区 | H30: 静岡市２－１ | I30: 牛妻 | J30: 79 | K30: - | L30: - | M30: - | N30: 2 | O30: 2 | P30: 1 | Q30: 8 | R30: 2 | S30: 6 | T30: 16 | U30: 18 | V30: 15 | W30: 9 | X30: … | Y30: … | Z30: 39 | AA30: - | AB30: - | AC30: - | AD30: 1 | AE30: 1 | AF30: 1 | AG30: 5 | AH30: 2 | AI30: 3 | AJ30: 5 | AK30: 9 | AL30: 7 | AM30: 5 | AN30: … | AO30: … | AP30: 40 | AQ30: - | AR30: - | AS30: - | AT30: 1 | AU30: 1 | AV30: - | AW30: 3 | AX30: - | AY30: 3 | AZ30: 11 | BA30: 9 | BB30: 8 | BC30: 4 | BD30: … | BE30: …
A31: 2210101027 | B31: 22 | C31: 101 | D31: 01 | E31: 027 | F31: 静岡県 | G31: 葵区 | H31: 静岡市２－１ | I31: 郷島 | J31: 29 | K31: - | L31: - | M31: - | N31: - | O31: 1 | P31: 2 | Q31: 2 | R31: 1 | S31: 3 | T31: 4 | U31: 4 | V31: 6 | W31: 6 | X31: … | Y31: … | Z31: 17 | AA31: - | AB31: - | AC31: - | AD31: - | AE31: - | AF31: 1 | AG31: 2 | AH31: - | AI31: 2 | AJ31: 1 | AK31: 3 | AL31: 4 | AM31: 4 | AN31: … | AO31: … | AP31: 12 | AQ31: - | AR31: - | AS31: - | AT31: - | AU31: 1 | AV31: 1 | AW31: - | AX31: 1 | AY31: 1 | AZ31: 3 | BA31: 1 | BB31: 2 | BC31: 2 | BD31: … | BE31: …
A32: 2210101028 | B32: 22 | C32: 101 | D32: 01 | E32: 028 | F32: 静岡県 | G32: 葵区 | H32: 静岡市２－１ | I32: 野田平 | J32: 20 | K32: - | L32: - | M32: - | N32: - | O32: 1 | P32: - | Q32: 3 | R32: 2 | S32: 4 | T32: 2 | U32: 1 | V32: 2 | W32: 5 | X32: … | Y32: … | Z32: 10 | AA32: - | AB32: - | AC32: - | AD32: - | AE32: - | AF32: - | AG32: 1 | AH32: 1 | AI32: 2 | AJ32: 1 | AK32: 1 | AL32: 1 | AM32: 3 | AN32: … | AO32: … | AP32: 10 | AQ32: - | AR32: - | AS32: - | AT32: - | AU32: 1 | AV32: - | AW32: 2 | AX32: 1 | AY32: 2 | AZ32: 1 | BA32: - | BB32: 1 | BC32: 2 | BD32: … | BE32: …
A33: 2210101029 | B33: 22 | C33: 101 | D33: 01 | E33: 029 | F33: 静岡県 | G33: 葵区 | H33: 静岡市２－１ | I33: 俵沢 | J33: 15 | K33: - | L33: - | M33: - | N33: - | O33: - | P33: - | Q33: 3 | R33: 2 | S33: 1 | T33: 2 | U33: 2 | V33: 2 | W33: 3 | X33: … | Y33: … | Z33: 8 | AA33: - | AB33: - | AC33: - | AD33: - | AE33: - | AF33: - | AG33: 2 | AH33: 2 | AI33: - | AJ33: - | AK33: 2 | AL33: - | AM33: 2 | AN33: … | AO33: … | AP33: 7 | AQ33: - | AR33: - | AS33: - | AT33: - | AU33: - | AV33: - | AW33: 1 | AX33: - | AY33: 1 | AZ33: 2 | BA33: - | BB33: 2 | BC33: 1 | BD33: … | BE33: …
A34: 2210101030 | B34: 22 | C34: 101 | D34: 01 | E34: 030 | F34: 静岡県 | G34: 葵区 | H34: 静岡市２－１ | I34: 俵峰 | J34: 69 | K34: - | L34: - | M34: 1 | N34: 2 | O34: 2 | P34: 3 | Q34: 5 | R34: 9 | S34: 15 | T34: 6 | U34: 4 | V34: 6 | W34: 16 | X34: … | Y34: … | Z34: 34 | AA34: - | AB34: - | AC34: - | AD34: 1 | AE34: 1 | AF34: 2 | AG34: 3 | AH34: 4 | AI34: 7 | AJ34: 3 | AK34: - | AL34: 5 | AM34: 8 | AN34: … | AO34: … | AP34: 35 | AQ34: - | AR34: - | AS34: 1 | AT34: 1 | AU34: 1 | AV34: 1 | AW34: 2 | AX34: 5 | AY34: 8 | AZ34: 3 | BA34: 4 | BB34: 1 | BC34: 8 | BD34: … | BE34: …
A35: 2210101031 | B35: 22 | C35: 101 | D35: 01 | E35: 031 | F35: 静岡県 | G35: 葵区 | H35: 静岡市２－１ | I35: 油島 | J35: x | K35: x | L35: x | M35: x | N35: x | O35: x | P35: x | Q35: x | R35: x | S35: x | T35: x | U35: x | V35: x | W35: x | X35: … | Y35: … | Z35: x | AA35: x | AB35: x | AC35: x | AD35: x | AE35: x | AF35: x | AG35: x | AH35: x | AI35: x | AJ35: x | AK35: x | AL35: x | AM35: x | AN35: … | AO35: … | AP35: x | AQ35: x | AR35: x | AS35: x | AT35: x | AU35: x | AV35: x | AW35: x | AX35: x | AY35: x | AZ35: x | BA35: x | BB35: x | BC35: x | BD35: … | BE35: …
A36: 2210101032 | B36: 22 | C36: 101 | D36: 01 | E36: 032 | F36: 静岡県 | G36: 葵区 | H36: 静岡市２－１ | I36: 上足洗 | J36: 34 | K36: - | L36: - | M36: - | N36: 1 | O36: - | P36: - | Q36: 2 | R36: - | S36: 3 | T36: 4 | U36: 4 | V36: 7 | W36: 13 | X36: … | Y36: … | Z36: 18 | AA36: - | AB36: - | AC36: - | AD36: 1 | AE36: - | AF36: - | AG36: 1 | AH36: - | AI36: 2 | AJ36: 2 | AK36: 2 | AL36: 2 | AM36: 8 | AN36: … | AO36: … | AP36: 16 | AQ36: - | AR36: - | AS36: - | AT36: - | AU36: - | AV36: - | AW36: 1 | AX36: - | AY36: 1 | AZ36: 2 | BA36: 2 | BB36: 5 | BC36: 5 | BD36: … | BE36: …
A37: 2210101033 | B37: 22 | C37: 101 | D37: 01 | E37: 033 | F37: 静岡県 | G37: 葵区 | H37: 静岡市２－１ | I37: 沓谷 | J37: 16 | K37: - | L37: - | M37: - | N37: - | O37: - | P37: - | Q37: 1 | R37: - | S37: 2 | T37: 1 | U37: 3 | V37: 6 | W37: 3 | X37: … | Y37: … | Z37: 5 | AA37: - | AB37: - | AC37: - | AD37: - | AE37: - | AF37: - | AG37: 1 | AH37: - | AI37: - | AJ37: 1 | AK37: - | AL37: 2 | AM37: 1 | AN37: … | AO37: … | AP37: 11 | AQ37: - | AR37: - | AS37: - | AT37: - | AU37: - | AV37: - | AW37: - | AX37: - | AY37: 2 | AZ37: - | BA37: 3 | BB37: 4 | BC37: 2 | BD37: … | BE37: …
A38: 2210101034 | B38: 22 | C38: 101 | D38: 01 | E38: 034 | F38: 静岡県 | G38: 葵区 | H38: 静岡市２－１ | I38: 千代田 | J38: 32 | K38: - | L38: - | M38: - | N38: - | O38: - | P38: 1 | Q38: 1 | R38: 1 | S38: 2 | T38: 5 | U38: 7 | V38: 8 | W38: 7 | X38: … | Y38: … | Z38: 15 | AA38: - | AB38: - | AC38: - | AD38: - | AE38: - | AF38: - | AG38: 1 | AH38: - | AI38: 1 | AJ38: 1 | AK38: 5 | AL38: 2 | AM38: 5 | AN38: … | AO38: … | AP38: 17 | AQ38: - | AR38: - | AS38: - | AT38: - | AU38: - | AV38: 1 | AW38: - | AX38: 1 | AY38: 1 | AZ38: 4 | BA38: 2 | BB38: 6 | BC38: 2 | BD38: … | BE38: …
A39: 2210101035 | B39: 22 | C39: 101 | D39: 01 | E39: 035 | F39: 静岡県 | G39: 葵区 | H39: 静岡市２－１ | I39: 上土 | J39: 33 | K39: - | L39: - | M39: - | N39: - | O39: - | P39: - | Q39: - | R39: 1 | S39: 2 | T39: 9 | U39: 6 | V39: 11 | W39: 4 | X39: … | Y39: … | Z39: 18 | AA39: - | AB39: - | AC39: - | AD39: - | AE39: - | AF39: - | AG39: - | AH39: 1 | AI39: 1 | AJ39: 4 | AK39: 5 | AL39: 4 | AM39: 3 | AN39: … | AO39: … | AP39: 15 | AQ39: - | AR39: - | AS39: - | AT39: - | AU39: - | AV39: - | AW39: - | AX39: - | AY39: 1 | AZ39: 5 | BA39: 1 | BB39: 7 | BC39: 1 | BD39: … | BE39: …
A40: 2210101036 | B40: 22 | C40: 101 | D40: 01 | E40: 036 | F40: 静岡県 | G40: 葵区 | H40: 静岡市２－１ | I40: 川合本田 | J40: 11 | K40: - | L40: 1 | M40: - | N40: - | O40: - | P40: - | Q40: 2 | R40: 2 | S40: - | T40: 1 | U40: 1 | V40: 2 | W40: 2 | X40: … | Y40: … | Z40: 6 | AA40: - | AB40: 1 | AC40: - | AD40: - | AE40: - | AF40: - | AG40: 1 | AH40: 1 | AI40: - | AJ40: - | AK40: - | AL40: 1 | AM40: 2 | AN40: … | AO40: … | AP40: 5 | AQ40: - | AR40: - | AS40: - | AT40: - | AU40: - | AV40: - | AW40: 1 | AX40: 1 | AY40: - | AZ40: 1 | BA40: 1 | BB40: 1 | BC40: - | BD40: … | BE40: …
A41: 2210101037 | B41: 22 | C41: 101 | D41: 01 | E41: 037 | F41: 静岡県 | G41: 葵区 | H41: 静岡市２－１ | I41: 川合本村 | J41: 17 | K41: - | L41: - | M41: - | N41: - | O41: - | P41: 1 | Q41: 1 | R41: - | S41: 2 | T41: 1 | U41: 1 | V41: 3 | W41: 8 | X41: … | Y41: … | Z41: 8 | AA41: - | AB41: - | AC41: - | AD41: - | AE41: - | AF41: 1 | AG41: - | AH41: - | AI41: 1 | AJ41: - | AK41: 1 | AL41: 2 | AM41: 3 | AN41: … | AO41: … | AP41: 9 | AQ41: - | AR41: - | AS41: - | AT41: - | AU41: - | AV41: - | AW41: 1 | AX41: - | AY41: 1 | AZ41: 1 | BA41: - | BB41: 1 | BC41: 5 | BD41: … | BE41: …
A42: 2210101038 | B42: 22 | C42: 101 | D42: 01 | E42: 038 | F42: 静岡県 | G42: 葵区 | H42: 静岡市２－１ | I42: 南沼上 | J42: 32 | K42: - | L42: - | M42: - | N42: - | O42: - | P42: - | Q42: 4 | R42: 2 | S42: 2 | T42: 1 | U42: 6 | V42: 6 | W42: 11 | X42: … | Y42: … | Z42: 16 | AA42: - | AB42: - | AC42: - | AD42: - | AE42: - | AF42: - | AG42: 1 | AH42: 2 | AI42: - | AJ42: - | AK42: 3 | AL42: 3 | AM42: 7 | AN42: … | AO42: … | AP42: 16 | AQ42: - | AR42: - | AS42: - | AT42: - | AU42: - | AV42: - | AW42: 3 | AX42: - | AY42: 2 | AZ42: 1 | BA42: 3 | BB42: 3 | BC42: 4 | BD42: … | BE42: …
A43: 2210101039 | B43: 22 | C43: 101 | D43: 01 | E43: 039 | F43: 静岡県 | G43: 葵区 | H43: 静岡市２－１ | I43: 北沼上 | J43: 42 | K43: - | L43: - | M43: 2 | N43: - | O43: - | P43: - | Q43: 2 | R43: 1 | S43: - | T43: 12 | U43: 8 | V43: 9 | W43: 8 | X43: … | Y43: … | Z43: 23 | AA43: - | AB43: - | AC43: 2 | AD43: - | AE43: - | AF43: - | AG43: 1 | AH43: 1 | AI43: - | AJ43: 7 | AK43: 4 | AL43: 3 | AM43: 5 | AN43: … | AO43: … | AP43: 19 | AQ43: - | AR43: - | AS43: - | AT43: - | AU43: - | AV43: - | AW43: 1 | AX43: - | AY43: - | AZ43: 5 | BA43: 4 | BB43: 6 | BC43: 3 | BD43: … | BE43: …
A44: 2210101040 | B44: 22 | C44: 101 | D44: 01 | E44: 040 | F44: 静岡県 | G44: 葵区 | H44: 静岡市２－１ | I44: 則沢 | J44: 37 | K44: - | L44: - | M44: - | N44: - | O44: - | P44: - | Q44: 3 | R44: 5 | S44: 5 | T44: 3 | U44: 7 | V44: 6 | W44: 8 | X44: … | Y44: … | Z44: 18 | AA44: - | AB44: - | AC44: - | AD44: - | AE44: - | AF44: - | AG44: 2 | AH44: 2 | AI44: 3 | AJ44: - | AK44: 4 | AL44: 2 | AM44: 5 | AN44: … | AO44: … | AP44: 19 | AQ44: - | AR44: - | AS44: - | AT44: - | AU44: - | AV44: - | AW44: 1 | AX44: 3 | AY44: 2 | AZ44: 3 | BA44: 3 | BB44: 4 | BC44: 3 | BD44: … | BE44: …
A45: 2210101041 | B45: 22 | C45: 101 | D45: 01 | E45: 041 | F45: 静岡県 | G45: 葵区 | H45: 静岡市２－１ | I45: 銭座 | J45: - | K45: - | L45: - | M45: - | N45: - | O45: - | P45: - | Q45: - | R45: - | S45: - | T45: - | U45: - | V45: - | W45: - | X45: … | Y45: … | Z45: - | AA45: - | AB45: - | AC45: - | AD45: - | AE45: - | AF45: - | AG45: - | AH45: - | AI45: - | AJ45: - | AK45: - | AL45: - | AM45: - | AN45: … | AO45: … | AP45: - | AQ45: - | AR45: - | AS45: - | AT45: - | AU45: - | AV45: - | AW45: - | AX45: - | AY45: - | AZ45: - | BA45: - | BB45: - | BC45: - | BD45: … | BE45: …
A46: 2210101042 | B46: 22 | C46: 101 | D46: 01 | E46: 042 | F46: 静岡県 | G46: 葵区 | H46: 静岡市２－１ | I46: 池ヶ谷 | J46: 26 | K46: - | L46: - | M46: - | N46: - | O46: - | P46: - | Q46: 1 | R46: 2 | S46: 4 | T46: 3 | U46: 1 | V46: 12 | W46: 3 | X46: … | Y46: … | Z46: 10 | AA46: - | AB46: - | AC46: - | AD46: - | AE46: - | AF46: - | AG46: - | AH46: - | AI46: 4 | AJ46: 1 | AK46: - | AL46: 4 | AM46: 1 | AN46: … | AO46: … | AP46: 16 | AQ46: - | AR46: - | AS46: - | AT46: - | AU46: - | AV46: - | AW46: 1 | AX46: 2 | AY46: - | AZ46: 2 | BA46: 1 | BB46: 8 | BC46: 2 | BD46: … | BE46: …
A47: 2210101043 | B47: 22 | C47: 101 | D47: 01 | E47: 043 | F47: 静岡県 | G47: 葵区 | H47: 静岡市２－１ | I47: 南口 | J47: 28 | K47: - | L47: - | M47: 1 | N47: - | O47: - | P47: 1 | Q47: - | R47: - | S47: 2 | T47: 1 | U47: 11 | V47: 9 | W47: 3 | X47: … | Y47: … | Z47: 14 | AA47: - | AB47: - | AC47: 1 | AD47: - | AE47: - | AF47: - | AG47: - | AH47: - | AI47: 1 | AJ47: - | AK47: 4 | AL47: 7 | AM47: 1 | AN47: … | AO47: … | AP47: 14 | AQ47: - | AR47: - | AS47: - | AT47: - | AU47: - | AV47: 1 | AW47: - | AX47: - | AY47: 1 | AZ47: 1 | BA47: 7 | BB47: 2 | BC47: 2 | BD47: … | BE47: …
A48: 2210101044 | B48: 22 | C48: 101 | D48: 01 | E48: 044 | F48: 静岡県 | G48: 葵区 | H48: 静岡市２－１ | I48: 南中 | J48: 42 | K48: - | L48: - | M48: - | N48: - | O48: 2 | P48: - | Q48: 3 | R48: 4 | S48: 2 | T48: 9 | U48: 6 | V48: 4 | W48: 12 | X48: … | Y48: … | Z48: 21 | AA48: - | AB48: - | AC48: - | AD48: - | AE48: 2 | AF48: - | AG48: 2 | AH48: 1 | AI48: 1 | AJ48: 5 | AK48: 3 | AL48: 2 | AM48: 5 | AN48: … | AO48: … | AP48: 21 | AQ48: - | AR48: - | AS48: - | AT48: - | AU48: - | AV48: - | AW48: 1 | AX48: 3 | AY48: 1 | AZ48: 4 | BA48: 3 | BB48: 2 | BC48: 7 | BD48: … | BE48: …
A49: 2210101045 | B49: 22 | C49: 101 | D49: 01 | E49: 045 | F49: 静岡県 | G49: 葵区 | H49: 静岡市２－１ | I49: 南奥 | J49: 25 | K49: - | L49: - | M49: - | N49: 1 | O49: - | P49: - | Q49: 3 | R49: 5 | S49: 3 | T49: 2 | U49: 1 | V49: 6 | W49: 4 | X49: … | Y49: … | Z49: 16 | AA49: - | AB49: - | AC49: - | AD49: 1 | AE49: - | AF49: - | AG49: 2 | AH49: 3 | AI49: 2 | AJ49: 2 | AK49: - | AL49: 2 | AM49: 4 | AN49: … | AO49: … | AP49: 9 | AQ49: - | AR49: - | AS49: - | AT49: - | AU49: - | AV49: - | AW49: 1 | AX49: 2 | AY49: 1 | AZ49: - | BA49: 1 | BB49: 4 | BC49: - | BD49: … | BE49: …
A50: 2210101046 | B50: 22 | C50: 101 | D50: 01 | E50: 046 | F50: 静岡県 | G50: 葵区 | H50: 静岡市２－１ | I50: 有永 | J50: 55 | K50: - | L50: 1 | M50: - | N50: - | O50: - | P50: 1 | Q50: 3 | R50: 9 | S50: 4 | T50: 5 | U50: 4 | V50: 13 | W50: 15 | X50: … | Y50: … | Z50: 29 | AA50: - | AB50: 1 | AC50: - | AD50: - | AE50: - | AF50: - | AG50: 3 | AH50: 6 | AI50: - | AJ50: 3 | AK50: 1 | AL50: 6 | AM50: 9 | AN50: … | AO50: … | AP50: 26 | AQ50: - | AR50: - | AS50: - | AT50: - | AU50: - | AV50: 1 | AW50: - | AX50: 3 | AY50: 4 | AZ50: 2 | BA50: 3 | BB50: 7 | BC50: 6 | BD50: … | BE50: …
A51: 2210101047 | B51: 22 | C51: 101 | D51: 01 | E51: 047 | F51: 静岡県 | G51: 葵区 | H51: 静岡市２－１ | I51: 羽高 | J51: 18 | K51: - | L51: - | M51: - | N51: - | O51: - | P51: - | Q51: 6 | R51: 2 | S51: - | T51: 1 | U51: 1 | V51: 3 | W51: 5 | X51: … | Y51: … | Z51: 10 | AA51: - | AB51: - | AC51: - | AD51: - | AE51: - | AF51: - | AG51: 3 | AH51: 2 | AI51: - | AJ51: - | AK51: 1 | AL51: 1 | AM51: 3 | AN51: … | AO51: … | AP51: 8 | AQ51: - | AR51: - | AS51: - | AT51: - | AU51: - | AV51: - | AW51: 3 | AX51: - | AY51: - | AZ51: 1 | BA51: - | BB51: 2 | BC51: 2 | BD51: … | BE51: …
A52: 2210101048 | B52: 22 | C52: 101 | D52: 01 | E52: 048 | F52: 静岡県 | G52: 葵区 | H52: 静岡市２－１ | I52: 北一 | J52: 32 | K52: - | L52: - | M52: - | N52: - | O52: - | P52: 1 | Q52: 2 | R52: 5 | S52: 3 | T52: - | U52: 6 | V52: 6 | W52: 9 | X52: … | Y52: … | Z52: 18 | AA52: - | AB52: - | AC52: - | AD52: - | AE52: - | AF52: 1 | AG52: 1 | AH52: 3 | AI52: 1 | AJ52: - | AK52: 4 | AL52: 3 | AM52: 5 | AN52: … | AO52: … | AP52: 14 | AQ52: - | AR52: - | AS52: - | AT52: - | AU52: - | AV52: - | AW52: 1 | AX52: 2 | AY52: 2 | AZ52: - | BA52: 2 | BB52: 3 | BC52: 4 | BD52: … | BE52: …
A53: 2210101049 | B53: 22 | C53: 101 | D53: 01 | E53: 049 | F53: 静岡県 | G53: 葵区 | H53: 静岡市２－１ | I53: 北二 | J53: 35 | K53: - | L53: - | M53: - | N53: 1 | O53: - | P53: - | Q53: 1 | R53: 3 | S53: 3 | T53: 5 | U53: 10 | V53: 7 | W53: 5 | X53: … | Y53: … | Z53: 21 | AA53: - | AB53: - | AC53: - | AD53: 1 | AE53: - | AF53: - | AG53: - | AH53: 2 | AI53: 1 | AJ53: 4 | AK53: 3 | AL53: 6 | AM53: 4 | AN53: … | AO53: … | AP53: 14 | AQ53: - | AR53: - | AS53: - | AT53: - | AU53: - | AV53: - | AW53: 1 | AX53: 1 | AY53: 2 | AZ53: 1 | BA53: 7 | BB53: 1 | BC53: 1 | BD53: … | BE53: …
A54: 2210101050 | B54: 22 | C54: 101 | D54: 01 | E54: 050 | F54: 静岡県 | G54: 葵区 | H54: 静岡市２－１ | I54: 東 | J54: 38 | K54: - | L54: - | M54: 1 | N54: - | O54: - | P54: 3 | Q54: 4 | R54: 2 | S54: 3 | T54: 2 | U54: 11 | V54: 7 | W54: 5 | X54: … | Y54: … | Z54: 21 | AA54: - | AB54: - | AC54: 1 | AD54: - | AE54: - | AF54: 2 | AG54: 3 | AH54: - | AI54: 2 | AJ54: - | AK54: 4 | AL54: 6 | AM54: 3 | AN54: … | AO54: … | AP54: 17 | AQ54: - | AR54: - | AS54: - | AT54: - | AU54: - | AV54: 1 | AW54: 1 | AX54: 2 | AY54: 1 | AZ54: 2 | BA54: 7 | BB54: 1 | BC54: 2 | BD54: … | BE54: …
A55: 2210101051 | B55: 22 | C55: 101 | D55: 01 | E55: 051 | F55: 静岡県 | G55: 葵区 | H55: 静岡市２－１ | I55: 瀬名川 | J55: 31 | K55: - | L55: - | M55: - | N55: - | O55: 1 | P55: 2 | Q55: 4 | R55: 3 | S55: - | T55: 4 | U55: 2 | V55: 5 | W55: 10 | X55: … | Y55: … | Z55: 17 | AA55: - | AB55: - | AC55: - | AD55: - | AE55: 1 | AF55: 1 | AG55: 2 | AH55: 2 | AI55: - | AJ55: 2 | AK55: 1 | AL55: 3 | AM55: 5 | AN55: … | AO55: … | AP55: 14 | AQ55: - | AR55: - | AS55: - | AT55: - | AU55: - | AV55: 1 | AW55: 2 | AX55: 1 | AY55: - | AZ55: 2 | BA55: 1 | BB55: 2 | BC55: 5 | BD55: … | BE55: …
A56: 2210101052 | B56: 22 | C56: 101 | D56: 01 | E56: 052 | F56: 静岡県 | G56: 葵区 | H56: 静岡市２－１ | I56: 瀬名 | J56: 86 | K56: - | L56: - | M56: - | N56: 1 | O56: 1 | P56: 5 | Q56: 9 | R56: 8 | S56: 7 | T56: 16 | U56: 11 | V56: 13 | W56: 15 | X56: … | Y56: … | Z56: 51 | AA56: - | AB56: - | AC56: - | AD56: - | AE56: 1 | AF56: 3 | AG56: 7 | AH56: 7 | AI56: 4 | AJ56: 6 | AK56: 6 | AL56: 9 | AM56: 8 | AN56: … | AO56: … | AP56: 35 | AQ56: - | AR56: - | AS56: - | AT56: 1 | AU56: - | AV56: 2 | AW56: 2 | AX56: 1 | AY56: 3 | AZ56: 10 | BA56: 5 | BB56: 4 | BC56: 7 | BD56: … | BE56: …
A57: 2210101053 | B57: 22 | C57: 101 | D57: 01 | E57: 053 | F57: 静岡県 | G57: 葵区 | H57: 静岡市２－１ | I57: 長尾 | J57: 11 | K57: - | L57: 1 | M57: - | N57: - | O57: - | P57: - | Q57: 2 | R57: 1 | S57: 3 | T57: - | U57: - | V57: 2 | W57: 2 | X57: … | Y57: … | Z57: 7 | AA57: - | AB57: 1 | AC57: - | AD57: - | AE57: - | AF57: - | AG57: 1 | AH57: 1 | AI57: 3 | AJ57: - | AK57: - | AL57: - | AM57: 1 | AN57: … | AO57: … | AP57: 4 | AQ57: - | AR57: - | AS57: - | AT57: - | AU57: - | AV57: - | AW57: 1 | AX57: - | AY57: - | AZ57: - | BA57: - | BB57: 2 | BC57: 1 | BD57: … | BE57: …
A58: 2210101054 | B58: 22 | C58: 101 | D58: 01 | E58: 054 | F58: 静岡県 | G58: 葵区 | H58: 静岡市２－１ | I58: 平山 | J58: 87 | K58: 1 | L58: 1 | M58: - | N58: 1 | O58: 1 | P58: 1 | Q58: 4 | R58: 15 | S58: 13 | T58: 12 | U58: 16 | V58: 6 | W58: 16 | X58: … | Y58: … | Z58: 48 | AA58: 1 | AB58: 1 | AC58: - | AD58: 1 | AE58: 1 | AF58: 1 | AG58: 2 | AH58: 10 | AI58: 5 | AJ58: 5 | AK58: 8 | AL58: 4 | AM58: 9 | AN58: … | AO58: … | AP58: 39 | AQ58: - | AR58: - | AS58: - | AT58: - | AU58: - | AV58: - | AW58: 2 | AX58: 5 | AY58: 8 | AZ58: 7 | BA58: 8 | BB58: 2 | BC58: 7 | BD58: … | BE58: …
A59: 2210101055 | B59: 22 | C59: 101 | D59: 01 | E59: 055 | F59: 静岡県 | G59: 葵区 | H59: 静岡市２－１ | I59: 安倍川河川敷２－１ | J59: @ | K59: @ | L59: @ | M59: @ | N59: @ | O59: @ | P59: @ | Q59: @ | R59: @ | S59: @ | T59: @ | U59: @ | V59: @ | W59: @ | X59: @ | Y59: @ | Z59: @ | AA59: @ | AB59: @ | AC59: @ | AD59: @ | AE59: @ | AF59: @ | AG59: @ | AH59: @ | AI59: @ | AJ59: @ | AK59: @ | AL59: @ | AM59: @ | AN59: @ | AO59: @ | AP59: @ | AQ59: @ | AR59: @ | AS59: @ | AT59: @ | AU59: @ | AV59: @ | AW59: @ | AX59: @ | AY59: @ | AZ59: @ | BA59: @ | BB59: @ | BC59: @ | BD59: @ | BE59: @
A60: 2210102000 | B60: 22 | C60: 101 | D60: 02 | E60: 000 | F60: 静岡県 | G60: 葵区 | H60: 美和村 | J60: 683 | K60: - | L60: 2 | M60: 5 | N60: 8 | O60: 9 | P60: 21 | Q60: 39 | R60: 70 | S60: 67 | T60: 93 | U60: 110 | V60: 121 | W60: 138 | X60: … | Y60: … | Z60: 355 | AA60: - | AB60: 2 | AC60: 5 | AD60: 6 | AE60: 7 | AF60: 10 | AG60: 20 | AH60: 34 | AI60: 30 | AJ60: 45 | AK60: 52 | AL60: 62 | AM60: 82 | AN60: … | AO60: … | AP60: 328 | AQ60: - | AR60: - | AS60: - | AT60: 2 | AU60: 2 | AV60: 11 | AW60: 19 | AX60: 36 | AY60: 37 | AZ60: 48 | BA60: 58 | BB60: 59 | BC60: 56 | BD60: … | BE60: …
A61: 2210102001 | B61: 22 | C61: 101 | D61: 02 | E61: 001 | F61: 静岡県 | G61: 葵区 | H61: 美和村 | I61: 西ヶ谷 | J61: 36 | K61: - | L61: - | M61: 2 | N61: - | O61: - | P61: 1 | Q61: 1 | R61: 5 | S61: 3 | T61: 5 | U61: 6 | V61: 9 | W61: 4 | X61: … | Y61: … | Z61: 20 | AA61: - | AB61: - | AC61: 2 | AD61: - | AE61: - | AF61: 1 | AG61: 1 | AH61: 3 | AI61: 2 | AJ61: 1 | AK61: 4 | AL61: 3 | AM61: 3 | AN61: … | AO61: … | AP61: 16 | AQ61: - | AR61: - | AS61: - | AT61: - | AU61: - | AV61: - | AW61: - | AX61: 2 | AY61: 1 | AZ61: 4 | BA61: 2 | BB61: 6 | BC61: 1 | BD61: … | BE61: …
A62: 2210102002 | B62: 22 | C62: 101 | D62: 02 | E62: 002 | F62: 静岡県 | G62: 葵区 | H62: 美和村 | I62: 内牧下 | J62: 23 | K62: - | L62: - | M62: - | N62: - | O62: - | P62: - | Q62: 2 | R62: 2 | S62: 4 | T62: 3 | U62: 7 | V62: 1 | W62: 4 | X62: … | Y62: … | Z62: 12 | AA62: - | AB62: - | AC62: - | AD62: - | AE62: - | AF62: - | AG62: - | AH62: 1 | AI62: 1 | AJ62: 2 | AK62: 4 | AL62: 1 | AM62: 3 | AN62: … | AO62: … | AP62: 11 | AQ62: - | AR62: - | AS62: - | AT62: - | AU62: - | AV62: - | AW62: 2 | AX62: 1 | AY62: 3 | AZ62: 1 | BA62: 3 | BB62: - | BC62: 1 | BD62: … | BE62: …
A63: 2210102003 | B63: 22 | C63: 101 | D63: 02 | E63: 003 | F63: 静岡県 | G63: 葵区 | H63: 美和村 | I63: 内牧東 | J63: 11 | K63: - | L63: - | M63: - | N63: - | O63: 1 | P63: - | Q63: - | R63: 2 | S63: 2 | T63: 1 | U63: 3 | V63: - | W63: 2 | X63: … | Y63: … | Z63: 5 | AA63: - | AB63: - | AC63: - | AD63: - | AE63: 1 | AF63: - | AG63: - | AH63: 1 | AI63: 1 | AJ63: - | AK63: 1 | AL63: - | AM63: 1 | AN63: … | AO63: … | AP63: 6 | AQ63: - | AR63: - | AS63: - | AT63: - | AU63: - | AV63: - | AW63: - | AX63: 1 | AY63: 1 | AZ63: 1 | BA63: 2 | BB63: - | BC63: 1 | BD63: … | BE63: …
A64: 2210102004 | B64: 22 | C64: 101 | D64: 02 | E64: 004 | F64: 静岡県 | G64: 葵区 | H64: 美和村 | I64: 内牧清地 | J64: 43 | K64: - | L64: 1 | M64: - | N64: 1 | O64: - | P64: 3 | Q64: 4 | R64: 3 | S64: 4 | T64: 8 | U64: 12 | V64: 5 | W64: 2 | X64: … | Y64: … | Z64: 24 | AA64: - | AB64: 1 | AC64: - | AD64: 1 | AE64: - | AF64: 1 | AG64: 3 | AH64: 3 | AI64: 1 | AJ64: 3 | AK64: 7 | AL64: 3 | AM64: 1 | AN64: … | AO64: … | AP64: 19 | AQ64: - | AR64: - | AS64: - | AT64: - | AU64: - | AV64: 2 | AW64: 1 | AX64: - | AY64: 3 | AZ64: 5 | BA64: 5 | BB64: 2 | BC64: 1 | BD64: … | BE64: …
A65: 2210102005 | B65: 22 | C65: 101 | D65: 02 | E65: 005 | F65: 静岡県 | G65: 葵区 | H65: 美和村 | I65: 内牧中 | J65: 48 | K65: - | L65: - | M65: - | N65: - | O65: 1 | P65: 4 | Q65: 3 | R65: 7 | S65: 2 | T65: 5 | U65: 1 | V65: 14 | W65: 11 | X65: … | Y65: … | Z65: 25 | AA65: - | AB65: - | AC65: - | AD65: - | AE65: 1 | AF65: 2 | AG65: 1 | AH65: 5 | AI65: - | AJ65: 3 | AK65: - | AL65: 6 | AM65: 7 | AN65: … | AO65: … | AP65: 23 | AQ65: - | AR65: - | AS65: - | AT65: - | AU65: - | AV65: 2 | AW65: 2 | AX65: 2 | AY65: 2 | AZ65: 2 | BA65: 1 | BB65: 8 | BC65: 4 | BD65: … | BE65: …
A66: 2210102006 | B66: 22 | C66: 101 | D66: 02 | E66: 006 | F66: 静岡県 | G66: 葵区 | H66: 美和村 | I66: 内牧上 | J66: 42 | K66: - | L66: - | M66: - | N66: - | O66: 1 | P66: 3 | Q66: 2 | R66: 3 | S66: 2 | T66: 12 | U66: 10 | V66: 3 | W66: 6 | X66: … | Y66: … | Z66: 23 | AA66: - | AB66: - | AC66: - | AD66: - | AE66: 1 | AF66: 2 | AG66: 2 | AH66: 2 | AI66: 1 | AJ66: 4 | AK66: 7 | AL66: 2 | AM66: 2 | AN66: … | AO66: … | AP66: 19 | AQ66: - | AR66: - | AS66: - | AT66: - | AU66: - | AV66: 1 | AW66: - | AX66: 1 | AY66: 1 | AZ66: 8 | BA66: 3 | BB66: 1 | BC66: 4 | BD66: … | BE66: …
A67: 2210102007 | B67: 22 | C67: 101 | D67: 02 | E67: 007 | F67: 静岡県 | G67: 葵区 | H67: 美和村 | I67: 下与左衛門新田 | J67: @ | K67: @ | L67: @ | M67: @ | N67: @ | O67: @ | P67: @ | Q67: @ | R67: @ | S67: @ | T67: @ | U67: @ | V67: @ | W67: @ | X67: @ | Y67: @ | Z67: @ | AA67: @ | AB67: @ | AC67: @ | AD67: @ | AE67: @ | AF67: @ | AG67: @ | AH67: @ | AI67: @ | AJ67: @ | AK67: @ | AL67: @ | AM67: @ | AN67: @ | AO67: @ | AP67: @ | AQ67: @ | AR67: @ | AS67: @ | AT67: @ | AU67: @ | AV67: @ | AW67: @ | AX67: @ | AY67: @ | AZ67: @ | BA67: @ | BB67: @ | BC67: @ | BD67: @ | BE67: @
A68: 2210102008 | B68: 22 | C68: 101 | D68: 02 | E68: 008 | F68: 静岡県 | G68: 葵区 | H68: 美和村 | I68: 安倍口新田 | J68: @ | K68: @ | L68: @ | M68: @ | N68: @ | O68: @ | P68: @ | Q68: @ | R68: @ | S68: @ | T68: @ | U68: @ | V68: @ | W68: @ | X68: @ | Y68: @ | Z68: @ | AA68: @ | AB68: @ | AC68: @ | AD68: @ | AE68: @ | AF68: @ | AG68: @ | AH68: @ | AI68: @ | AJ68: @ | AK68: @ | AL68: @ | AM68: @ | AN68: @ | AO68: @ | AP68: @ | AQ68: @ | AR68: @ | AS68: @ | AT68: @ | AU68: @ | AV68: @ | AW68: @ | AX68: @ | AY68: @ | AZ68: @ | BA68: @ | BB68: @ | BC68: @ | BD68: @ | BE68: @
A69: 2210102009 | B69: 22 | C69: 101 | D69: 02 | E69: 009 | F69: 静岡県 | G69: 葵区 | H69: 美和村 | I69: 中ノ郷 | J69: 29 | K69: - | L69: - | M69: - | N69: - | O69: - | P69: 1 | Q69: - | R69: 4 | S69: 4 | T69: 5 | U69: 3 | V69: 2 | W69: 10 | X69: … | Y69: … | Z69: 12 | AA69: - | AB69: - | AC69: - | AD69: - | AE69: - | AF69: - | AG69: - | AH69: - | AI69: 2 | AJ69: 3 | AK69: - | AL69: 2 | AM69: 5 | AN69: … | AO69: … | AP69: 17 | AQ69: - | AR69: - | AS69: - | AT69: - | AU69: - | AV69: 1 | AW69: - | AX69: 4 | AY69: 2 | AZ69: 2 | BA69: 3 | BB69: - | BC69: 5 | BD69: … | BE69: …
A70: 2210102010 | B70: 22 | C70: 101 | D70: 02 | E70: 010 | F70: 静岡県 | G70: 葵区 | H70: 美和村 | I70: 上与左衛門新田 | J70: @ | K70: @ | L70: @ | M70: @ | N70: @ | O70: @ | P70: @ | Q70: @ | R70: @ | S70: @ | T70: @ | U70: @ | V70: @ | W70: @ | X70: @ | Y70: @ | Z70: @ | AA70: @ | AB70: @ | AC70: @ | AD70: @ | AE70: @ | AF70: @ | AG70: @ | AH70: @ | AI70: @ | AJ70: @ | AK70: @ | AL70: @ | AM70: @ | AN70: @ | AO70: @ | AP70: @ | AQ70: @ | AR70: @ | AS70: @ | AT70: @ | AU70: @ | AV70: @ | AW70: @ | AX70: @ | AY70: @ | AZ70: @ | BA70: @ | BB70: @ | BC70: @ | BD70: @ | BE70: @
A71: 2210102011 | B71: 22 | C71: 101 | D71: 02 | E71: 011 | F71: 静岡県 | G71: 葵区 | H71: 美和村 | I71: 小塚ヶ谷 | J71: 28 | K71: - | L71: - | M71: - | N71: 1 | O71: - | P71: 1 | Q71: 1 | R71: 3 | S71: 4 | T71: 5 | U71: 3 | V71: 7 | W71: 3 | X71: … | Y71: … | Z71: 14 | AA71: - | AB71: - | AC71: - | AD71: 1 | AE71: - | AF71: - | AG71: 1 | AH71: 1 | AI71: 2 | AJ71: 2 | AK71: 2 | AL71: 4 | AM71: 1 | AN71: … | AO71: … | AP71: 14 | AQ71: - | AR71: - | AS71: - | AT71: - | AU71: - | AV71: 1 | AW71: - | AX71: 2 | AY71: 2 | AZ71: 3 | BA71: 1 | BB71: 3 | BC71: 2 | BD71: … | BE71: …
A72: 2210102012 | B72: 22 | C72: 101 | D72: 02 | E72: 012 | F72: 静岡県 | G72: 葵区 | H72: 美和村 | I72: 遠藤新田 | J72: @ | K72: @ | L72: @ | M72: @ | N72: @ | O72: @ | P72: @ | Q72: @ | R72: @ | S72: @ | T72: @ | U72: @ | V72: @ | W72: @ | X72: @ | Y72: @ | Z72: @ | AA72: @ | AB72: @ | AC72: @ | AD72: @ | AE72: @ | AF72: @ | AG72: @ | AH72: @ | AI72: @ | AJ72: @ | AK72: @ | AL72: @ | AM72: @ | AN72: @ | AO72: @ | AP72: @ | AQ72: @ | AR72: @ | AS72: @ | AT72: @ | AU72: @ | AV72: @ | AW72: @ | AX72: @ | AY72: @ | AZ72: @ | BA72: @ | BB72: @ | BC72: @ | BD72: @ | BE72: @
A73: 2210102013 | B73: 22 | C73: 101 | D73: 02 | E73: 013 | F73: 静岡県 | G73: 葵区 | H73: 美和村 | I73: 原田・諸川 | J73: 27 | K73: - | L73: - | M73: - | N73: - | O73: - | P73: 1 | Q73: 2 | R73: 1 | S73: 3 | T73: 7 | U73: 6 | V73: 3 | W73: 4 | X73: … | Y73: … | Z73: 15 | AA73: - | AB73: - | AC73: - | AD73: - | AE73: - | AF73: 1 | AG73: 1 | AH73: - | AI73: 1 | AJ73: 4 | AK73: 3 | AL73: 1 | AM73: 4 | AN73: … | AO73: … | AP73: 12 | AQ73: - | AR73: - | AS73: - | AT73: - | AU73: - | AV73: - | AW73: 1 | AX73: 1 | AY73: 2 | AZ73: 3 | BA73: 3 | BB73: 2 | BC73: - | BD73: … | BE73: …
A74: 2210102014 | B74: 22 | C74: 101 | D74: 02 | E74: 014 | F74: 静岡県 | G74: 葵区 | H74: 美和村 | I74: 八十岡 | J74: 28 | K74: - | L74: - | M74: - | N74: - | O74: - | P74: 2 | Q74: - | R74: 2 | S74: 2 | T74: 3 | U74: 10 | V74: 4 | W74: 5 | X74: … | Y74: … | Z74: 14 | AA74: - | AB74: - | AC74: - | AD74: - | AE74: - | AF74: 1 | AG74: - | AH74: - | AI74: 1 | AJ74: 2 | AK74: 3 | AL74: 4 | AM74: 3 | AN74: … | AO74: … | AP74: 14 | AQ74: - | AR74: - | AS74: - | AT74: - | AU74: - | AV74: 1 | AW74: - | AX74: 2 | AY74: 1 | AZ74: 1 | BA74: 7 | BB74: - | BC74: 2 | BD74: … | BE74: …
A75: 2210102015 | B75: 22 | C75: 101 | D75: 02 | E75: 015 | F75: 静岡県 | G75: 葵区 | H75: 美和村 | I75: 神明原 | J75: 21 | K75: - | L75: - | M75: - | N75: - | O75: - | P75: - | Q75: 1 | R75: 3 | S75: 5 | T75: 1 | U75: 1 | V75: 3 | W75: 7 | X75: … | Y75: … | Z75: 10 | AA75: - | AB75: - | AC75: - | AD75: - | AE75: - | AF75: - | AG75: 1 | AH75: 1 | AI75: 2 | AJ75: 1 | AK75: - | AL75: 2 | AM75: 3 | AN75: … | AO75: … | AP75: 11 | AQ75: - | AR75: - | AS75: - | AT75: - | AU75: - | AV75: - | AW75: - | AX75: 2 | AY75: 3 | AZ75: - | BA75: 1 | BB75: 1 | BC75: 4 | BD75: … | BE75: …
A76: 2210102016 | B76: 22 | C76: 101 | D76: 02 | E76: 016 | F76: 静岡県 | G76: 葵区 | H76: 美和村 | I76: 舟沢 | J76: 12 | K76: - | L76: - | M76: 1 | N76: - | O76: - | P76: - | Q76: - | R76: - | S76: - | T76: 1 | U76: 4 | V76: 3 | W76: 3 | X76: … | Y76: … | Z76: 7 | AA76: - | AB76: - | AC76: 1 | AD76: - | AE76: - | AF76: - | AG76: - | AH76: - | AI76: - | AJ76: - | AK76: 2 | AL76: 2 | AM76: 2 | AN76: … | AO76: … | AP76: 5 | AQ76: - | AR76: - | AS76: - | AT76: - | AU76: - | AV76: - | AW76: - | AX76: - | AY76: - | AZ76: 1 | BA76: 2 | BB76: 1 | BC76: 1 | BD76: … | BE76: …
A77: 2210102017 | B77: 22 | C77: 101 | D77: 02 | E77: 017 | F77: 静岡県 | G77: 葵区 | H77: 美和村 | I77: 敷地 | J77: 8 | K77: - | L77: - | M77: - | N77: - | O77: - | P77: - | Q77: - | R77: - | S77: - | T77: 1 | U77: 3 | V77: 4 | W77: - | X77: … | Y77: … | Z77: 5 | AA77: - | AB77: - | AC77: - | AD77: - | AE77: - | AF77: - | AG77: - | AH77: - | AI77: - | AJ77: 1 | AK77: 2 | AL77: 2 | AM77: - | AN77: … | AO77: … | AP77: 3 | AQ77: - | AR77: - | AS77: - | AT77: - | AU77: - | AV77: - | AW77: - | AX77: - | AY77: - | AZ77: - | BA77: 1 | BB77: 2 | BC77: - | BD77: … | BE77: …
A78: 2210102018 | B78: 22 | C78: 101 | D78: 02 | E78: 018 | F78: 静岡県 | G78: 葵区 | H78: 美和村 | I78: 栗島 | J78: 8 | K78: - | L78: - | M78: - | N78: - | O78: - | P78: 1 | Q78: 2 | R78: 1 | S78: - | T78: - | U78: 1 | V78: 1 | W78: 2 | X78: … | Y78: … | Z78: 5 | AA78: - | AB78: - | AC78: - | AD78: - | AE78: - | AF78: - | AG78: 1 | AH78: 1 | AI78: - | AJ78: - | AK78: 1 | AL78: - | AM78: 2 | AN78: … | AO78: … | AP78: 3 | AQ78: - | AR78: - | AS78: - | AT78: - | AU78: - | AV78: 1 | AW78: 1 | AX78: - | AY78: - | AZ78: - | BA78: - | BB78: 1 | BC78: - | BD78: … | BE78: …
A79: 2210102019 | B79: 22 | C79: 101 | D79: 02 | E79: 019 | F79: 静岡県 | G79: 葵区 | H79: 美和村 | I79: 相沢 | J79: 23 | K79: - | L79: 1 | M79: 1 | N79: 1 | O79: - | P79: - | Q79: - | R79: 7 | S79: 2 | T79: 1 | U79: 1 | V79: 3 | W79: 6 | X79: … | Y79: … | Z79: 13 | AA79: - | AB79: 1 | AC79: 1 | AD79: 1 | AE79: - | AF79: - | AG79: - | AH79: 4 | AI79: 1 | AJ79: 1 | AK79: - | AL79: - | AM79: 4 | AN79: … | AO79: … | AP79: 10 | AQ79: - | AR79: - | AS79: - | AT79: - | AU79: - | AV79: - | AW79: - | AX79: 3 | AY79: 1 | AZ79: - | BA79: 1 | BB79: 3 | BC79: 2 | BD79: … | BE79: …
A80: 2210102020 | B80: 22 | C80: 101 | D80: 02 | E80: 020 | F80: 静岡県 | G80: 葵区 | H80: 美和村 | I80: 谷沢 | J80: 26 | K80: - | L80: - | M80: - | N80: 1 | O80: 1 | P80: 1 | Q80: 1 | R80: 4 | S80: 3 | T80: 3 | U80: 3 | V80: 5 | W80: 4 | X80: … | Y80: … | Z80: 15 | AA80: - | AB80: - | AC80: - | AD80: 1 | AE80: 1 | AF80: - | AG80: 1 | AH80: 3 | AI80: 2 | AJ80: 1 | AK80: 1 | AL80: 2 | AM80: 3 | AN80: … | AO80: … | AP80: 11 | AQ80: - | AR80: - | AS80: - | AT80: - | AU80: - | AV80: 1 | AW80: - | AX80: 1 | AY80: 1 | AZ80: 2 | BA80: 2 | BB80: 3 | BC80: 1 | BD80: … | BE80: …
A81: 2210102021 | B81: 22 | C81: 101 | D81: 02 | E81: 021 | F81: 静岡県 | G81: 葵区 | H81: 美和村 | I81: 口長島 | J81: 30 | K81: - | L81: - | M81: - | N81: 1 | O81: 3 | P81: 1 | Q81: 5 | R81: 1 | S81: 6 | T81: 6 | U81: 2 | V81: 2 | W81: 3 | X81: … | Y81: … | Z81: 13 | AA81: - | AB81: - | AC81: - | AD81: - | AE81: 2 | AF81: - | AG81: 2 | AH81: 1 | AI81: - | AJ81: 4 | AK81: 1 | AL81: 1 | AM81: 2 | AN81: … | AO81: … | AP81: 17 | AQ81: - | AR81: - | AS81: - | AT81: 1 | AU81: 1 | AV81: 1 | AW81: 3 | AX81: - | AY81: 6 | AZ81: 2 | BA81: 1 | BB81: 1 | BC81: 1 | BD81: … | BE81: …
A82: 2210102022 | B82: 22 | C82: 101 | D82: 02 | E82: 022 | F82: 静岡県 | G82: 葵区 | H82: 美和村 | I82: 奥長島 | J82: 26 | K82: - | L82: - | M82: - | N82: - | O82: 1 | P82: - | Q82: 1 | R82: 2 | S82: 3 | T82: 2 | U82: 6 | V82: 8 | W82: 3 | X82: … | Y82: … | Z82: 12 | AA82: - | AB82: - | AC82: - | AD82: - | AE82: - | AF82: - | AG82: - | AH82: 1 | AI82: 1 | AJ82: 1 | AK82: 2 | AL82: 6 | AM82: 1 | AN82: … | AO82: … | AP82: 14 | AQ82: - | AR82: - | AS82: - | AT82: - | AU82: 1 | AV82: - | AW82: 1 | AX82: 1 | AY82: 2 | AZ82: 1 | BA82: 4 | BB82: 2 | BC82: 2 | BD82: … | BE82: …
A83: 2210102023 | B83: 22 | C83: 101 | D83: 02 | E83: 023 | F83: 静岡県 | G83: 葵区 | H83: 美和村 | I83: 油山下 | J83: 29 | K83: - | L83: - | M83: - | N83: 1 | O83: - | P83: - | Q83: 5 | R83: 2 | S83: 2 | T83: 4 | U83: 6 | V83: 5 | W83: 4 | X83: … | Y83: … | Z83: 14 | AA83: - | AB83: - | AC83: - | AD83: 1 | AE83: - | AF83: - | AG83: 3 | AH83: 1 | AI83: 1 | AJ83: - | AK83: 3 | AL83: 3 | AM83: 2 | AN83: … | AO83: … | AP83: 15 | AQ83: - | AR83: - | AS83: - | AT83: - | AU83: - | AV83: - | AW83: 2 | AX83: 1 | AY83: 1 | AZ83: 4 | BA83: 3 | BB83: 2 | BC83: 2 | BD83: … | BE83: …
A84: 2210102024 | B84: 22 | C84: 101 | D84: 02 | E84: 024 | F84: 静岡県 | G84: 葵区 | H84: 美和村 | I84: 油山橋本 | J84: @ | K84: @ | L84: @ | M84: @ | N84: @ | O84: @ | P84: @ | Q84: @ | R84: @ | S84: @ | T84: @ | U84: @ | V84: @ | W84: @ | X84: @ | Y84: @ | Z84: @ | AA84: @ | AB84: @ | AC84: @ | AD84: @ | AE84: @ | AF84: @ | AG84: @ | AH84: @ | AI84: @ | AJ84: @ | AK84: @ | AL84: @ | AM84: @ | AN84: @ | AO84: @ | AP84: @ | AQ84: @ | AR84: @ | AS84: @ | AT84: @ | AU84: @ | AV84: @ | AW84: @ | AX84: @ | AY84: @ | AZ84: @ | BA84: @ | BB84: @ | BC84: @ | BD84: @ | BE84: @
A85: 2210102025 | B85: 22 | C85: 101 | D85: 02 | E85: 025 | F85: 静岡県 | G85: 葵区 | H85: 美和村 | I85: 油山上 | J85: 29 | K85: - | L85: - | M85: - | N85: - | O85: - | P85: - | Q85: 1 | R85: 4 | S85: 4 | T85: 4 | U85: 2 | V85: 6 | W85: 8 | X85: … | Y85: … | Z85: 13 | AA85: - | AB85: - | AC85: - | AD85: - | AE85: - | AF85: - | AG85: - | AH85: - | AI85: 3 | AJ85: 2 | AK85: - | AL85: 3 | AM85: 5 | AN85: … | AO85: … | AP85: 16 | AQ85: - | AR85: - | AS85: - | AT85: - | AU85: - | AV85: - | AW85: 1 | AX85: 4 | AY85: 1 | AZ85: 2 | BA85: 2 | BB85: 3 | BC85: 3 | BD85: … | BE85: …
A86: 2210102026 | B86: 22 | C86: 101 | D86: 02 | E86: 026 | F86: 静岡県 | G86: 葵区 | H86: 美和村 | I86: 松野第一 | J86: 30 | K86: - | L86: - | M86: 1 | N86: - | O86: - | P86: - | Q86: 2 | R86: 4 | S86: 1 | T86: - | U86: 5 | V86: 7 | W86: 10 | X86: … | Y86: … | Z86: 16 | AA86: - | AB86: - | AC86: 1 | AD86: - | AE86: - | AF86: - | AG86: 1 | AH86: 1 | AI86: 1 | AJ86: - | AK86: 2 | AL86: 3 | AM86: 7 | AN86: … | AO86: … | AP86: 14 | AQ86: - | AR86: - | AS86: - | AT86: - | AU86: - | AV86: - | AW86: 1 | AX86: 3 | AY86: - | AZ86: - | BA86: 3 | BB86: 4 | BC86: 3 | BD86: … | BE86: …
A87: 2210102027 | B87: 22 | C87: 101 | D87: 02 | E87: 027 | F87: 静岡県 | G87: 葵区 | H87: 美和村 | I87: 松野第二 | J87: 31 | K87: - | L87: - | M87: - | N87: - | O87: 1 | P87: - | Q87: 1 | R87: 1 | S87: 1 | T87: 3 | U87: 9 | V87: 7 | W87: 8 | X87: … | Y87: … | Z87: 17 | AA87: - | AB87: - | AC87: - | AD87: - | AE87: 1 | AF87: - | AG87: - | AH87: - | AI87: 1 | AJ87: 1 | AK87: 4 | AL87: 5 | AM87: 5 | AN87: … | AO87: … | AP87: 14 | AQ87: - | AR87: - | AS87: - | AT87: - | AU87: - | AV87: - | AW87: 1 | AX87: 1 | AY87: - | AZ87: 2 | BA87: 5 | BB87: 2 | BC87: 3 | BD87: … | BE87: …
A88: 2210102028 | B88: 22 | C88: 101 | D88: 02 | E88: 028 | F88: 静岡県 | G88: 葵区 | H88: 美和村 | I88: 松野第三 | J88: 16 | K88: - | L88: - | M88: - | N88: - | O88: - | P88: 1 | Q88: - | R88: - | S88: 1 | T88: 1 | U88: 1 | V88: 6 | W88: 6 | X88: … | Y88: … | Z88: 9 | AA88: - | AB88: - | AC88: - | AD88: - | AE88: - | AF88: 1 | AG88: - | AH88: - | AI88: - | AJ88: 1 | AK88: 1 | AL88: 2 | AM88: 4 | AN88: … | AO88: … | AP88: 7 | AQ88: - | AR88: - | AS88: - | AT88: - | AU88: - | AV88: - | AW88: - | AX88: - | AY88: 1 | AZ88: - | BA88: - | BB88: 4 | BC88: 2 | BD88: … | BE88: …
A89: 2210102029 | B89: 22 | C89: 101 | D89: 02 | E89: 029 | F89: 静岡県 | G89: 葵区 | H89: 美和村 | I89: 津渡野 | J89: 7 | K89: - | L89: - | M89: - | N89: - | O89: - | P89: 1 | Q89: - | R89: - | S89: 1 | T89: 3 | U89: - | V89: - | W89: 2 | X89: … | Y89: … | Z89: 5 | AA89: - | AB89: - | AC89: - | AD89: - | AE89: - | AF89: 1 | AG89: - | AH89: - | AI89: 1 | AJ89: 2 | AK89: - | AL89: - | AM89: 1 | AN89: … | AO89: … | AP89: 2 | AQ89: - | AR89: - | AS89: - | AT89: - | AU89: - | AV89: - | AW89: - | AX89: - | AY89: - | AZ89: 1 | BA89: - | BB89: - | BC89: 1 | BD89: … | BE89: …
A90: 2210103000 | B90: 22 | C90: 101 | D90: 03 | E90: 000 | F90: 静岡県 | G90: 葵区 | H90: 服織村 | J90: 320 | K90: - | L90: 3 | M90: 1 | N90: 7 | O90: 8 | P90: 17 | Q90: 16 | R90: 37 | S90: 38 | T90: 35 | U90: 51 | V90: 43 | W90: 64 | X90: … | Y90: … | Z90: 168 | AA90: - | AB90: 3 | AC90: 1 | AD90: 6 | AE90: 4 | AF90: 10 | AG90: 7 | AH90: 16 | AI90: 21 | AJ90: 19 | AK90: 21 | AL90: 24 | AM90: 36 | AN90: … | AO90: … | AP90: 152 | AQ90: - | AR90: - | AS90: - | AT90: 1 | AU90: 4 | AV90: 7 | AW90: 9 | AX90: 21 | AY90: 17 | AZ90: 16 | BA90: 30 | BB90: 19 | BC90: 28 | BD90: … | BE90: …
A91: 2210103001 | B91: 22 | C91: 101 | D91: 03 | E91: 001 | F91: 静岡県 | G91: 葵区 | H91: 服織村 | I91: 山崎新田 | J91: x | K91: x | L91: x | M91: x | N91: x | O91: x | P91: x | Q91: x | R91: x | S91: x | T91: x | U91: x | V91: x | W91: x | X91: … | Y91: … | Z91: x | AA91: x | AB91: x | AC91: x | AD91: x | AE91: x | AF91: x | AG91: x | AH91: x | AI91: x | AJ91: x | AK91: x | AL91: x | AM91: x | AN91: … | AO91: … | AP91: x | AQ91: x | AR91: x | AS91: x | AT91: x | AU91: x | AV91: x | AW91: x | AX91: x | AY91: x | AZ91: x | BA91: x | BB91: x | BC91: x | BD91: … | BE91: …
A92: 2210103002 | B92: 22 | C92: 101 | D92: 03 | E92: 002 | F92: 静岡県 | G92: 葵区 | H92: 服織村 | I92: 千代 | J92: 14 | K92: - | L92: - | M92: - | N92: - | O92: 1 | P92: 2 | Q92: - | R92: 1 | S92: - | T92: - | U92: 3 | V92: 4 | W92: 3 | X92: … | Y92: … | Z92: 7 | AA92: - | AB92: - | AC92: - | AD92: - | AE92: - | AF92: 2 | AG92: - | AH92: - | AI92: - | AJ92: - | AK92: - | AL92: 3 | AM92: 2 | AN92: … | AO92: … | AP92: 7 | AQ92: - | AR92: - | AS92: - | AT92: - | AU92: 1 | AV92: - | AW92: - | AX92: 1 | AY92: - | AZ92: - | BA92: 3 | BB92: 1 | BC92: 1 | BD92: … | BE92: …
A93: 2210103003 | B93: 22 | C93: 101 | D93: 03 | E93: 003 | F93: 静岡県 | G93: 葵区 | H93: 服織村 | I93: 慈悲尾 | J93: 10 | K93: - | L93: - | M93: - | N93: - | O93: - | P93: 2 | Q93: 1 | R93: - | S93: - | T93: - | U93: 2 | V93: 2 | W93: 3 | X93: … | Y93: … | Z93: 5 | AA93: - | AB93: - | AC93: - | AD93: - | AE93: - | AF93: 1 | AG93: 1 | AH93: - | AI93: - | AJ93: - | AK93: 1 | AL93: 1 | AM93: 1 | AN93: … | AO93: … | AP93: 5 | AQ93: - | AR93: - | AS93: - | AT93: - | AU93: - | AV93: 1 | AW93: - | AX93: - | AY93: - | AZ93: - | BA93: 1 | BB93: 1 | BC93: 2 | BD93: … | BE93: …
A94: 2210103004 | B94: 22 | C94: 101 | D94: 03 | E94: 004 | F94: 静岡県 | G94: 葵区 | H94: 服織村 | I94: 建穂 | J94: 19 | K94: - | L94: - | M94: - | N94: - | O94: - | P94: - | Q94: - | R94: 2 | S94: 1 | T94: 5 | U94: 2 | V94: 2 | W94: 7 | X94: … | Y94: … | Z94: 10 | AA94: - | AB94: - | AC94: - | AD94: - | AE94: - | AF94: - | AG94: - | AH94: 1 | AI94: 1 | AJ94: 3 | AK94: - | AL94: 1 | AM94: 4 | AN94: … | AO94: … | AP94: 9 | AQ94: - | AR94: - | AS94: - | AT94: - | AU94: - | AV94: - | AW94: - | AX94: 1 | AY94: - | AZ94: 2 | BA94: 2 | BB94: 1 | BC94: 3 | BD94: … | BE94: …
A95: 2210103005 | B95: 22 | C95: 101 | D95: 03 | E95: 005 | F95: 静岡県 | G95: 葵区 | H95: 服織村 | I95: 羽鳥第一 | J95: x | K95: x | L95: x | M95: x | N95: x | O95: x | P95: x | Q95: x | R95: x | S95: x | T95: x | U95: x | V95: x | W95: x | X95: … | Y95: … | Z95: x | AA95: x | AB95: x | AC95: x | AD95: x | AE95: x | AF95: x | AG95: x | AH95: x | AI95: x | AJ95: x | AK95: x | AL95: x | AM95: x | AN95: … | AO95: … | AP95: x | AQ95: x | AR95: x | AS95: x | AT95: x | AU95: x | AV95: x | AW95: x | AX95: x | AY95: x | AZ95: x | BA95: x | BB95: x | BC95: x | BD95: … | BE95: …
A96: 2210103006 | B96: 22 | C96: 101 | D96: 03 | E96: 006 | F96: 静岡県 | G96: 葵区 | H96: 服織村 | I96: 羽鳥第二 | J96: x | K96: x | L96: x | M96: x | N96: x | O96: x | P96: x | Q96: x | R96: x | S96: x | T96: x | U96: x | V96: x | W96: x | X96: … | Y96: … | Z96: x | AA96: x | AB96: x | AC96: x | AD96: x | AE96: x | AF96: x | AG96: x | AH96: x | AI96: x | AJ96: x | AK96: x | AL96: x | AM96: x | AN96: … | AO96: … | AP96: x | AQ96: x | AR96: x | AS96: x | AT96: x | AU96: x | AV96: x | AW96: x | AX96: x | AY96: x | AZ96: x | BA96: x | BB96: x | BC96: x | BD96: … | BE96: …
A97: 2210103007 | B97: 22 | C97: 101 | D97: 03 | E97: 007 | F97: 静岡県 | G97: 葵区 | H97: 服織村 | I97: 羽鳥第三 | J97: 14 | K97: - | L97: - | M97: - | N97: - | O97: 2 | P97: 1 | Q97: 1 | R97: 3 | S97: 1 | T97: - | U97: 3 | V97: 1 | W97: 2 | X97: … | Y97: … | Z97: 9 | AA97: - | AB97: - | AC97: - | AD97: - | AE97: 1 | AF97: 1 | AG97: 1 | AH97: 2 | AI97: 1 | AJ97: - | AK97: 1 | AL97: 1 | AM97: 1 | AN97: … | AO97: … | AP97: 5 | AQ97: - | AR97: - | AS97: - | AT97: - | AU97: 1 | AV97: - | AW97: - | AX97: 1 | AY97: - | AZ97: - | BA97: 2 | BB97: - | BC97: 1 | BD97: … | BE97: …
A98: 2210103008 | B98: 22 | C98: 101 | D98: 03 | E98: 008 | F98: 静岡県 | G98: 葵区 | H98: 服織村 | I98: 羽鳥第四下 | J98: 7 | K98: - | L98: - | M98: - | N98: - | O98: - | P98: - | Q98: 1 | R98: 2 | S98: 1 | T98: - | U98: - | V98: 1 | W98: 2 | X98: … | Y98: … | Z98: 4 | AA98: - | AB98: - | AC98: - | AD98: - | AE98: - | AF98: - | AG98: - | AH98: 2 | AI98: 1 | AJ98: - | AK98: - | AL98: - | AM98: 1 | AN98: … | AO98: … | AP98: 3 | AQ98: - | AR98: - | AS98: - | AT98: - | AU98: - | AV98: - | AW98: 1 | AX98: - | AY98: - | AZ98: - | BA98: - | BB98: 1 | BC98: 1 | BD98: … | BE98: …
A99: 2210103009 | B99: 22 | C99: 101 | D99: 03 | E99: 009 | F99: 静岡県 | G99: 葵区 | H99: 服織村 | I99: 羽鳥第四上 | J99: 13 | K99: - | L99: - | M99: - | N99: 1 | O99: - | P99: - | Q99: 1 | R99: 1 | S99: 4 | T99: - | U99: 1 | V99: - | W99: 5 | X99: … | Y99: … | Z99: 5 | AA99: - | AB99: - | AC99: - | AD99: 1 | AE99: - | AF99: - | AG99: - | AH99: - | AI99: 2 | AJ99: - | AK99: - | AL99: - | AM99: 2 | AN99: … | AO99: … | AP99: 8 | AQ99: - | AR99: - | AS99: - | AT99: - | AU99: - | AV99: - | AW99: 1 | AX99: 1 | AY99: 2 | AZ99: - | BA99: 1 | BB99: - | BC99: 3 | BD99: … | BE99: …
A100: 2210103010 | B100: 22 | C100: 101 | D100: 03 | E100: 010 | F100: 静岡県 | G100: 葵区 | H100: 服織村 | I100: 羽鳥第五下 | J100: x | K100: x | L100: x | M100: x | N100: x | O100: x | P100: x | Q100: x | R100: x | S100: x | T100: x | U100: x | V100: x | W100: x | X100: … | Y100: … | Z100: x | AA100: x | AB100: x | AC100: x | AD100: x | AE100: x | AF100: x | AG100: x | AH100: x | AI100: x | AJ100: x | AK100: x | AL100: x | AM100: x | AN100: … | AO100: … | AP100: x | AQ100: x | AR100: x | AS100: x | AT100: x | AU100: x | AV100: x | AW100: x | AX100: x | AY100: x | AZ100: x | BA100: x | BB100: x | BC100: x | BD100: … | BE100: …
A101: 2210103011 | B101: 22 | C101: 101 | D101: 03 | E101: 011 | F101: 静岡県 | G101: 葵区 | H101: 服織村 | I101: 羽鳥第五上 | J101: 12 | K101: - | L101: - | M101: - | N101: - | O101: - | P101: - | Q101: - | R101: 1 | S101: - | T101: - | U101: 6 | V101: 3 | W101: 2 | X101: … | Y101: … | Z101: 5 | AA101: - | AB101: - | AC101: - | AD101: - | AE101: - | AF101: - | AG101: - | AH101: - | AI101: - | AJ101: - | AK101: 2 | AL101: 2 | AM101: 1 | AN101: … | AO101: … | AP101: 7 | AQ101: - | AR101: - | AS101: - | AT101: - | AU101: - | AV101: - | AW101: - | AX101: 1 | AY101: - | AZ101: - | BA101: 4 | BB101: 1 | BC101: 1 | BD101: … | BE101: …
A102: 2210103012 | B102: 22 | C102: 101 | D102: 03 | E102: 012 | F102: 静岡県 | G102: 葵区 | H102: 服織村 | I102: 羽鳥第六 | J102: 23 | K102: - | L102: - | M102: - | N102: - | O102: 2 | P102: - | Q102: 1 | R102: 4 | S102: 4 | T102: 1 | U102: 1 | V102: 1 | W102: 9 | X102: … | Y102: … | Z102: 14 | AA102: - | AB102: - | AC102: - | AD102: - | AE102: 1 | AF102: - | AG102: 1 | AH102: 1 | AI102: 4 | AJ102: - | AK102: 1 | AL102: 1 | AM102: 5 | AN102: … | AO102: … | AP102: 9 | AQ102: - | AR102: - | AS102: - | AT102: - | AU102: 1 | AV102: - | AW102: - | AX102: 3 | AY102: - | AZ102: 1 | BA102: - | BB102: - | BC102: 4 | BD102: … | BE102: …
A103: 2210103013 | B103: 22 | C103: 101 | D103: 03 | E103: 013 | F103: 静岡県 | G103: 葵区 | H103: 服織村 | I103: 羽鳥第七 | J103: 10 | K103: - | L103: - | M103: - | N103: - | O103: - | P103: - | Q103: - | R103: 1 | S103: - | T103: 3 | U103: 3 | V103: 2 | W103: 1 | X103: … | Y103: … | Z103: 4 | AA103: - | AB103: - | AC103: - | AD103: - | AE103: - | AF103: - | AG103: - | AH103: - | AI103: - | AJ103: 1 | AK103: 1 | AL103: 2 | AM103: - | AN103: … | AO103: … | AP103: 6 | AQ103: - | AR103: - | AS103: - | AT103: - | AU103: - | AV103: - | AW103: - | AX103: 1 | AY103: - | AZ103: 2 | BA103: 2 | BB103: - | BC103: 1 | BD103: … | BE103: …
A104: 2210103014 | B104: 22 | C104: 101 | D104: 03 | E104: 014 | F104: 静岡県 | G104: 葵区 | H104: 服織村 | I104: 新間１ | J104: 23 | K104: - | L104: 1 | M104: - | N104: - | O104: - | P104: - | Q104: 3 | R104: 2 | S104: 3 | T104: 2 | U104: 4 | V104: 3 | W104: 5 | X104: … | Y104: … | Z104: 10 | AA104: - | AB104: 1 | AC104: - | AD104: - | AE104: - | AF104: - | AG104: 1 | AH104: 1 | AI104: 2 | AJ104: - | AK104: 2 | AL104: 1 | AM104: 2 | AN104: … | AO104: … | AP104: 13 | AQ104: - | AR104: - | AS104: - | AT104: - | AU104: - | AV104: - | AW104: 2 | AX104: 1 | AY104: 1 | AZ104: 2 | BA104: 2 | BB104: 2 | BC104: 3 | BD104: … | BE104: …
A105: 2210103015 | B105: 22 | C105: 101 | D105: 03 | E105: 015 | F105: 静岡県 | G105: 葵区 | H105: 服織村 | I105: 新間２ | J105: 25 | K105: - | L105: 1 | M105: - | N105: 1 | O105: - | P105: 2 | Q105: 2 | R105: 2 | S105: 1 | T105: 1 | U105: 5 | V105: 4 | W105: 6 | X105: … | Y105: … | Z105: 16 | AA105: - | AB105: 1 | AC105: - | AD105: 1 | AE105: - | AF105: 1 | AG105: - | AH105: 2 | AI105: 1 | AJ105: - | AK105: 3 | AL105: 3 | AM105: 4 | AN105: … | AO105: … | AP105: 9 | AQ105: - | AR105: - | AS105: - | AT105: - | AU105: - | AV105: 1 | AW105: 2 | AX105: - | AY105: - | AZ105: 1 | BA105: 2 | BB105: 1 | BC105: 2 | BD105: … | BE105: …
A106: 2210103016 | B106: 22 | C106: 101 | D106: 03 | E106: 016 | F106: 静岡県 | G106: 葵区 | H106: 服織村 | I106: 新間３ | J106: 66 | K106: - | L106: 1 | M106: 1 | N106: 1 | O106: 1 | P106: 2 | Q106: 3 | R106: 8 | S106: 12 | T106: 9 | U106: 12 | V106: 9 | W106: 7 | X106: … | Y106: … | Z106: 39 | AA106: - | AB106: 1 | AC106: 1 | AD106: 1 | AE106: 1 | AF106: 2 | AG106: 2 | AH106: 5 | AI106: 4 | AJ106: 5 | AK106: 6 | AL106: 6 | AM106: 5 | AN106: … | AO106: … | AP106: 27 | AQ106: - | AR106: - | AS106: - | AT106: - | AU106: - | AV106: - | AW106: 1 | AX106: 3 | AY106: 8 | AZ106: 4 | BA106: 6 | BB106: 3 | BC106: 2 | BD106: … | BE106: …
A107: 2210103017 | B107: 22 | C107: 101 | D107: 03 | E107: 017 | F107: 静岡県 | G107: 葵区 | H107: 服織村 | I107: 新間４ | J107: 54 | K107: - | L107: - | M107: - | N107: 3 | O107: - | P107: 7 | Q107: 2 | R107: 6 | S107: 9 | T107: 10 | U107: 6 | V107: 7 | W107: 4 | X107: … | Y107: … | Z107: 23 | AA107: - | AB107: - | AC107: - | AD107: 2 | AE107: - | AF107: 3 | AG107: 1 | AH107: 1 | AI107: 4 | AJ107: 6 | AK107: 3 | AL107: 1 | AM107: 2 | AN107: … | AO107: … | AP107: 31 | AQ107: - | AR107: - | AS107: - | AT107: 1 | AU107: - | AV107: 4 | AW107: 1 | AX107: 5 | AY107: 5 | AZ107: 4 | BA107: 3 | BB107: 6 | BC107: 2 | BD107: … | BE107: …
A108: 2210103018 | B108: 22 | C108: 101 | D108: 03 | E108: 018 | F108: 静岡県 | G108: 葵区 | H108: 服織村 | I108: 谷津 | J108: 14 | K108: - | L108: - | M108: - | N108: - | O108: - | P108: 1 | Q108: 1 | R108: 4 | S108: 1 | T108: 2 | U108: - | V108: 1 | W108: 4 | X108: … | Y108: … | Z108: 8 | AA108: - | AB108: - | AC108: - | AD108: - | AE108: - | AF108: - | AG108: - | AH108: 1 | AI108: 1 | AJ108: 2 | AK108: - | AL108: - | AM108: 4 | AN108: … | AO108: … | AP108: 6 | AQ108: - | AR108: - | AS108: - | AT108: - | AU108: - | AV108: 1 | AW108: 1 | AX108: 3 | AY108: - | AZ108: - | BA108: - | BB108: 1 | BC108: - | BD108: … | BE108: …
A109: 2210104000 | B109: 22 | C109: 101 | D109: 04 | E109: 000 | F109: 静岡県 | G109: 葵区 | H109: 中藁科村 | J109: 371 | K109: 1 | L109: 1 | M109: 1 | N109: 1 | O109: 2 | P109: 11 | Q109: 26 | R109: 39 | S109: 45 | T109: 57 | U109: 51 | V109: 51 | W109: 85 | X109: … | Y109: … | Z109: 197 | AA109: 1 | AB109: 1 | AC109: 1 | AD109: 1 | AE109: 1 | AF109: 6 | AG109: 9 | AH109: 27 | AI109: 15 | AJ109: 33 | AK109: 30 | AL109: 26 | AM109: 46 | AN109: … | AO109: … | AP109: 174 | AQ109: - | AR109: - | AS109: - | AT109: - | AU109: 1 | AV109: 5 | AW109: 17 | AX109: 12 | AY109: 30 | AZ109: 24 | BA109: 21 | BB109: 25 | BC109: 39 | BD109: … | BE109: …
A110: 2210104001 | B110: 22 | C110: 101 | D110: 04 | E110: 001 | F110: 静岡県 | G110: 葵区 | H110: 中藁科村 | I110: 大原 | J110: 102 | K110: 1 | L110: - | M110: - | N110: - | O110: 2 | P110: 1 | Q110: 11 | R110: 15 | S110: 8 | T110: 15 | U110: 14 | V110: 10 | W110: 25 | X110: … | Y110: … | Z110: 54 | AA110: 1 | AB110: - | AC110: - | AD110: - | AE110: 1 | AF110: 1 | AG110: 5 | AH110: 9 | AI110: 4 | AJ110: 4 | AK110: 11 | AL110: 5 | AM110: 13 | AN110: … | AO110: … | AP110: 48 | AQ110: - | AR110: - | AS110: - | AT110: - | AU110: 1 | AV110: - | AW110: 6 | AX110: 6 | AY110: 4 | AZ110: 11 | BA110: 3 | BB110: 5 | BC110: 12 | BD110: … | BE110: …
A111: 2210104002 | B111: 22 | C111: 101 | D111: 04 | E111: 002 | F111: 静岡県 | G111: 葵区 | H111: 中藁科村 | I111: 水見色 | J111: 137 | K111: - | L111: - | M111: - | N111: 1 | O111: - | P111: 8 | Q111: 10 | R111: 17 | S111: 19 | T111: 20 | U111: 16 | V111: 20 | W111: 26 | X111: … | Y111: … | Z111: 73 | AA111: - | AB111: - | AC111: - | AD111: 1 | AE111: - | AF111: 4 | AG111: 3 | AH111: 14 | AI111: 5 | AJ111: 16 | AK111: 6 | AL111: 10 | AM111: 14 | AN111: … | AO111: … | AP111: 64 | AQ111: - | AR111: - | AS111: - | AT111: - | AU111: - | AV111: 4 | AW111: 7 | AX111: 3 | AY111: 14 | AZ111: 4 | BA111: 10 | BB111: 10 | BC111: 12 | BD111: … | BE111: …
A112: 2210104003 | B112: 22 | C112: 101 | D112: 04 | E112: 003 | F112: 静岡県 | G112: 葵区 | H112: 中藁科村 | I112: 富厚里 | J112: 48 | K112: - | L112: - | M112: - | N112: - | O112: - | P112: 1 | Q112: 3 | R112: 3 | S112: 7 | T112: 12 | U112: 7 | V112: 4 | W112: 11 | X112: … | Y112: … | Z112: 25 | AA112: - | AB112: - | AC112: - | AD112: - | AE112: - | AF112: 1 | AG112: 1 | AH112: 1 | AI112: 1 | AJ112: 9 | AK112: 5 | AL112: 2 | AM112: 5 | AN112: … | AO112: … | AP112: 23 | AQ112: - | AR112: - | AS112: - | AT112: - | AU112: - | AV112: - | AW112: 2 | AX112: 2 | AY112: 6 | AZ112: 3 | BA112: 2 | BB112: 2 | BC112: 6 | BD112: … | BE112: …
A113: 2210104004 | B113: 22 | C113: 101 | D113: 04 | E113: 004 | F113: 静岡県 | G113: 葵区 | H113: 中藁科村 | I113: 奈良間 | J113: 7 | K113: - | L113: - | M113: - | N113: - | O113: - | P113: - | Q113: - | R113: - | S113: 1 | T113: - | U113: 1 | V113: 1 | W113: 4 | X113: … | Y113: … | Z113: 4 | AA113: - | AB113: - | AC113: - | AD113: - | AE113: - | AF113: - | AG113: - | AH113: - | AI113: - | AJ113: - | AK113: 1 | AL113: 1 | AM113: 2 | AN113: … | AO113: … | AP113: 3 | AQ113: - | AR113: - | AS113: - | AT113: - | AU113: - | AV113: - | AW113: - | AX113: - | AY113: 1 | AZ113: - | BA113: - | BB113: - | BC113: 2 | BD113: … | BE113: …
A114: 2210104005 | B114: 22 | C114: 101 | D114: 04 | E114: 005 | F114: 静岡県 | G114: 葵区 | H114: 中藁科村 | I114: 富沢 | J114: 43 | K114: - | L114: - | M114: 1 | N114: - | O114: - | P114: - | Q114: 1 | R114: 2 | S114: 6 | T114: 4 | U114: 10 | V114: 7 | W114: 12 | X114: … | Y114: … | Z114: 23 | AA114: - | AB114: - | AC114: 1 | AD114: - | AE114: - | AF114: - | AG114: - | AH114: 1 | AI114: 2 | AJ114: 2 | AK114: 6 | AL114: 2 | AM114: 9 | AN114: … | AO114: … | AP114: 20 | AQ114: - | AR114: - | AS114: - | AT114: - | AU114: - | AV114: - | AW114: 1 | AX114: 1 | AY114: 4 | AZ114: 2 | BA114: 4 | BB114: 5 | BC114: 3 | BD114: … | BE114: …
A115: 2210104006 | B115: 22 | C115: 101 | D115: 04 | E115: 006 | F115: 静岡県 | G115: 葵区 | H115: 中藁科村 | I115: 小布杉 | J115: 34 | K115: - | L115: 1 | M115: - | N115: - | O115: - | P115: 1 | Q115: 1 | R115: 2 | S115: 4 | T115: 6 | U115: 3 | V115: 9 | W115: 7 | X115: … | Y115: … | Z115: 18 | AA115: - | AB115: 1 | AC115: - | AD115: - | AE115: - | AF115: - | AG115: - | AH115: 2 | AI115: 3 | AJ115: 2 | AK115: 1 | AL115: 6 | AM115: 3 | AN115: … | AO115: … | AP115: 16 | AQ115: - | AR115: - | AS115: - | AT115: - | AU115: - | AV115: 1 | AW115: 1 | AX115: - | AY115: 1 | AZ115: 4 | BA115: 2 | BB115: 3 | BC115: 4 | BD115: … | BE115: …
A116: 2210105000 | B116: 22 | C116: 101 | D116: 05 | E116: 000 | F116: 静岡県 | G116: 葵区 | H116: 南藁科村 | J116: 208 | K116: - | L116: - | M116: 1 | N116: - | O116: 4 | P116: 6 | Q116: 11 | R116: 25 | S116: 26 | T116: 25 | U116: 45 | V116: 37 | W116: 28 | X116: … | Y116: … | Z116: 111 | AA116: - | AB116: - | AC116: 1 | AD116: - | AE116: 3 | AF116: 4 | AG116: 4 | AH116: 13 | AI116: 13 | AJ116: 10 | AK116: 24 | AL116: 23 | AM116: 16 | AN116: … | AO116: … | AP116: 97 | AQ116: - | AR116: - | AS116: - | AT116: - | AU116: 1 | AV116: 2 | AW116: 7 | AX116: 12 | AY116: 13 | AZ116: 15 | BA116: 21 | BB116: 14 | BC116: 12 | BD116: … | BE116: …
A117: 2210105001 | B117: 22 | C117: 101 | D117: 05 | E117: 001 | F117: 静岡県 | G117: 葵区 | H117: 南藁科村 | I117: 牧ヶ谷 | J117: 50 | K117: - | L117: - | M117: - | N117: - | O117: 1 | P117: 1 | Q117: 2 | R117: 5 | S117: 7 | T117: 6 | U117: 14 | V117: 6 | W117: 8 | X117: … | Y117: … | Z117: 27 | AA117: - | AB117: - | AC117: - | AD117: - | AE117: 1 | AF117: 1 | AG117: 1 | AH117: 2 | AI117: 4 | AJ117: 1 | AK117: 9 | AL117: 4 | AM117: 4 | AN117: … | AO117: … | AP117: 23 | AQ117: - | AR117: - | AS117: - | AT117: - | AU117: - | AV117: - | AW117: 1 | AX117: 3 | AY117: 3 | AZ117: 5 | BA117: 5 | BB117: 2 | BC117: 4 | BD117: … | BE117: …
A118: 2210105002 | B118: 22 | C118: 101 | D118: 05 | E118: 002 | F118: 静岡県 | G118: 葵区 | H118: 南藁科村 | I118: 産女 | J118: 24 | K118: - | L118: - | M118: - | N118: - | O118: 1 | P118: - | Q118: 1 | R118: 1 | S118: 3 | T118: 5 | U118: 6 | V118: 5 | W118: 2 | X118: … | Y118: … | Z118: 13 | AA118: - | AB118: - | AC118: - | AD118: - | AE118: 1 | AF118: - | AG118: - | AH118: 1 | AI118: 1 | AJ118: 3 | AK118: 2 | AL118: 4 | AM118: 1 | AN118: … | AO118: … | AP118: 11 | AQ118: - | AR118: - | AS118: - | AT118: - | AU118: - | AV118: - | AW118: 1 | AX118: - | AY118: 2 | AZ118: 2 | BA118: 4 | BB118: 1 | BC118: 1 | BD118: … | BE118: …
A119: 2210105003 | B119: 22 | C119: 101 | D119: 05 | E119: 003 | F119: 静岡県 | G119: 葵区 | H119: 南藁科村 | I119: 吉津 | J119: 24 | K119: - | L119: - | M119: - | N119: - | O119: 2 | P119: 1 | Q119: - | R119: 2 | S119: 4 | T119: 2 | U119: 8 | V119: 2 | W119: 3 | X119: … | Y119: … | Z119: 14 | AA119: - | AB119: - | AC119: - | AD119: - | AE119: 1 | AF119: - | AG119: - | AH119: 2 | AI119: 2 | AJ119: 1 | AK119: 5 | AL119: 2 | AM119: 1 | AN119: … | AO119: … | AP119: 10 | AQ119: - | AR119: - | AS119: - | AT119: - | AU119: 1 | AV119: 1 | AW119: - | AX119: - | AY119: 2 | AZ119: 1 | BA119: 3 | BB119: - | BC119: 2 | BD119: … | BE119: …
A120: 2210105004 | B120: 22 | C120: 101 | D120: 05 | E120: 004 | F120: 静岡県 | G120: 葵区 | H120: 南藁科村 | I120: 飯間 | J120: 55 | K120: - | L120: - | M120: 1 | N120: - | O120: - | P120: 1 | Q120: 1 | R120: 10 | S120: 7 | T120: 8 | U120: 13 | V120: 9 | W120: 5 | X120: … | Y120: … | Z120: 29 | AA120: - | AB120: - | AC120: 1 | AD120: - | AE120: - | AF120: 1 | AG120: - | AH120: 4 | AI120: 4 | AJ120: 3 | AK120: 7 | AL120: 6 | AM120: 3 | AN120: … | AO120: … | AP120: 26 | AQ120: - | AR120: - | AS120: - | AT120: - | AU120: - | AV120: - | AW120: 1 | AX120: 6 | AY120: 3 | AZ120: 5 | BA120: 6 | BB120: 3 | BC120: 2 | BD120: … | BE120: …
A121: 2210105005 | B121: 22 | C121: 101 | D121: 05 | E121: 005 | F121: 静岡県 | G121: 葵区 | H121: 南藁科村 | I121: 小瀬戸 | J121: 42 | K121: - | L121: - | M121: - | N121: - | O121: - | P121: 3 | Q121: 4 | R121: 4 | S121: 5 | T121: 4 | U121: 4 | V121: 10 | W121: 8 | X121: … | Y121: … | Z121: 23 | AA121: - | AB121: - | AC121: - | AD121: - | AE121: - | AF121: 2 | AG121: 3 | AH121: 2 | AI121: 2 | AJ121: 2 | AK121: 1 | AL121: 5 | AM121: 6 | AN121: … | AO121: … | AP121: 19 | AQ121: - | AR121: - | AS121: - | AT121: - | AU121: - | AV121: 1 | AW121: 1 | AX121: 2 | AY121: 3 | AZ121: 2 | BA121: 3 | BB121: 5 | BC121: 2 | BD121: … | BE121: …
A122: 2210105006 | B122: 22 | C122: 101 | D122: 05 | E122: 006 | F122: 静岡県 | G122: 葵区 | H122: 南藁科村 | I122: 西又 | J122: 13 | K122: - | L122: - | M122: - | N122: - | O122: - | P122: - | Q122: 3 | R122: 3 | S122: - | T122: - | U122: - | V122: 5 | W122: 2 | X122: … | Y122: … | Z122: 5 | AA122: - | AB122: - | AC122: - | AD122: - | AE122: - | AF122: - | AG122: - | AH122: 2 | AI122: - | AJ122: - | AK122: - | AL122: 2 | AM122: 1 | AN122: … | AO122: … | AP122: 8 | AQ122: - | AR122: - | AS122: - | AT122: - | AU122: - | AV122: - | AW122: 3 | AX122: 1 | AY122: - | AZ122: - | BA122: - | BB122: 3 | BC122: 1 | BD122: … | BE122: …
A123: 2210106000 | B123: 22 | C123: 101 | D123: 06 | E123: 000 | F123: 静岡県 | G123: 葵区 | H123: 大河内村 | J123: 252 | K123: - | L123: 2 | M123: - | N123: 2 | O123: 1 | P123: 11 | Q123: 18 | R123: 23 | S123: 17 | T123: 27 | U123: 45 | V123: 39 | W123: 67 | X123: … | Y123: … | Z123: 132 | AA123: - | AB123: 2 | AC123: - | AD123: - | AE123: 1 | AF123: 6 | AG123: 8 | AH123: 12 | AI123: 12 | AJ123: 13 | AK123: 21 | AL123: 18 | AM123: 39 | AN123: … | AO123: … | AP123: 120 | AQ123: - | AR123: - | AS123: - | AT123: 2 | AU123: - | AV123: 5 | AW123: 10 | AX123: 11 | AY123: 5 | AZ123: 14 | BA123: 24 | BB123: 21 | BC123: 28 | BD123: … | BE123: …
A124: 2210106001 | B124: 22 | C124: 101 | D124: 06 | E124: 001 | F124: 静岡県 | G124: 葵区 | H124: 大河内村 | I124: 有東木 | J124: 98 | K124: - | L124: 1 | M124: - | N124: 1 | O124: - | P124: 8 | Q124: 12 | R124: 11 | S124: 5 | T124: 7 | U124: 14 | V124: 14 | W124: 25 | X124: … | Y124: … | Z124: 48 | AA124: - | AB124: 1 | AC124: - | AD124: - | AE124: - | AF124: 4 | AG124: 6 | AH124: 7 | AI124: 3 | AJ124: 4 | AK124: 5 | AL124: 8 | AM124: 10 | AN124: … | AO124: … | AP124: 50 | AQ124: - | AR124: - | AS124: - | AT124: 1 | AU124: - | AV124: 4 | AW124: 6 | AX124: 4 | AY124: 2 | AZ124: 3 | BA124: 9 | BB124: 6 | BC124: 15 | BD124: … | BE124: …
A125: 2210106002 | B125: 22 | C125: 101 | D125: 06 | E125: 002 | F125: 静岡県 | G125: 葵区 | H125: 大河内村 | I125: 渡 | J125: 44 | K125: - | L125: - | M125: - | N125: 1 | O125: - | P125: - | Q125: - | R125: 4 | S125: 3 | T125: 6 | U125: 9 | V125: 5 | W125: 16 | X125: … | Y125: … | Z125: 22 | AA125: - | AB125: - | AC125: - | AD125: - | AE125: - | AF125: - | AG125: - | AH125: 1 | AI125: 2 | AJ125: 3 | AK125: 4 | AL125: - | AM125: 12 | AN125: … | AO125: … | AP125: 22 | AQ125: - | AR125: - | AS125: - | AT125: 1 | AU125: - | AV125: - | AW125: - | AX125: 3 | AY125: 1 | AZ125: 3 | BA125: 5 | BB125: 5 | BC125: 4 | BD125: … | BE125: …
A126: 2210106003 | B126: 22 | C126: 101 | D126: 06 | E126: 003 | F126: 静岡県 | G126: 葵区 | H126: 大河内村 | I126: 中平 | J126: 19 | K126: - | L126: - | M126: - | N126: - | O126: - | P126: - | Q126: - | R126: 2 | S126: 2 | T126: 3 | U126: 4 | V126: 7 | W126: 1 | X126: … | Y126: … | Z126: 9 | AA126: - | AB126: - | AC126: - | AD126: - | AE126: - | AF126: - | AG126: - | AH126: - | AI126: 2 | AJ126: - | AK126: 3 | AL126: 3 | AM126: 1 | AN126: … | AO126: … | AP126: 10 | AQ126: - | AR126: - | AS126: - | AT126: - | AU126: - | AV126: - | AW126: - | AX126: 2 | AY126: - | AZ126: 3 | BA126: 1 | BB126: 4 | BC126: - | BD126: … | BE126: …
A127: 2210106004 | B127: 22 | C127: 101 | D127: 06 | E127: 004 | F127: 静岡県 | G127: 葵区 | H127: 大河内村 | I127: 平野 | J127: 52 | K127: - | L127: - | M127: - | N127: - | O127: 1 | P127: - | Q127: 5 | R127: 3 | S127: 5 | T127: 8 | U127: 8 | V127: 6 | W127: 16 | X127: … | Y127: … | Z127: 31 | AA127: - | AB127: - | AC127: - | AD127: - | AE127: 1 | AF127: - | AG127: 2 | AH127: 2 | AI127: 4 | AJ127: 5 | AK127: 4 | AL127: 3 | AM127: 10 | AN127: … | AO127: … | AP127: 21 | AQ127: - | AR127: - | AS127: - | AT127: - | AU127: - | AV127: - | AW127: 3 | AX127: 1 | AY127: 1 | AZ127: 3 | BA127: 4 | BB127: 3 | BC127: 6 | BD127: … | BE127: …
A128: 2210106005 | B128: 22 | C128: 101 | D128: 06 | E128: 005 | F128: 静岡県 | G128: 葵区 | H128: 大河内村 | I128: 横山 | J128: 21 | K128: - | L128: 1 | M128: - | N128: - | O128: - | P128: 2 | Q128: 1 | R128: 2 | S128: - | T128: 1 | U128: 5 | V128: 3 | W128: 6 | X128: … | Y128: … | Z128: 12 | AA128: - | AB128: 1 | AC128: - | AD128: - | AE128: - | AF128: 1 | AG128: - | AH128: 2 | AI128: - | AJ128: - | AK128: 2 | AL128: 2 | AM128: 4 | AN128: … | AO128: … | AP128: 9 | AQ128: - | AR128: - | AS128: - | AT128: - | AU128: - | AV128: 1 | AW128: 1 | AX128: - | AY128: - | AZ128: 1 | BA128: 3 | BB128: 1 | BC128: 2 | BD128: … | BE128: …
A129: 2210106006 | B129: 22 | C129: 101 | D129: 06 | E129: 006 | F129: 静岡県 | G129: 葵区 | H129: 大河内村 | I129: 蕨野 | J129: 8 | K129: - | L129: - | M129: - | N129: - | O129: - | P129: 1 | Q129: - | R129: - | S129: - | T129: - | U129: 4 | V129: 2 | W129: 1 | X129: … | Y129: … | Z129: 5 | AA129: - | AB129: - | AC129: - | AD129: - | AE129: - | AF129: 1 | AG129: - | AH129: - | AI129: - | AJ129: - | AK129: 2 | AL129: 1 | AM129: 1 | AN129: … | AO129: … | AP129: 3 | AQ129: - | AR129: - | AS129: - | AT129: - | AU129: - | AV129: - | AW129: - | AX129: - | AY129: - | AZ129: - | BA129: 2 | BB129: 1 | BC129: - | BD129: … | BE129: …
A130: 2210106007 | B130: 22 | C130: 101 | D130: 06 | E130: 007 | F130: 静岡県 | G130: 葵区 | H130: 大河内村 | I130: 相渕 | J130: 10 | K130: - | L130: - | M130: - | N130: - | O130: - | P130: - | Q130: - | R130: 1 | S130: 2 | T130: 2 | U130: 1 | V130: 2 | W130: 2 | X130: … | Y130: … | Z130: 5 | AA130: - | AB130: - | AC130: - | AD130: - | AE130: - | AF130: - | AG130: - | AH130: - | AI130: 1 | AJ130: 1 | AK130: 1 | AL130: 1 | AM130: 1 | AN130: … | AO130: … | AP130: 5 | AQ130: - | AR130: - | AS130: - | AT130: - | AU130: - | AV130: - | AW130: - | AX130: 1 | AY130: 1 | AZ130: 1 | BA130: - | BB130: 1 | BC130: 1 | BD130: … | BE130: …
A131: 2210107000 | B131: 22 | C131: 101 | D131: 07 | E131: 000 | F131: 静岡県 | G131: 葵区 | H131: 梅ヶ島村 | J131: 98 | K131: - | L131: - | M131: 1 | N131: - | O131: 1 | P131: 2 | Q131: 5 | R131: 13 | S131: 9 | T131: 5 | U131: 23 | V131: 14 | W131: 25 | X131: … | Y131: … | Z131: 46 | AA131: - | AB131: - | AC131: 1 | AD131: - | AE131: 1 | AF131: 2 | AG131: 1 | AH131: 6 | AI131: 6 | AJ131: 3 | AK131: 7 | AL131: 6 | AM131: 13 | AN131: … | AO131: … | AP131: 52 | AQ131: - | AR131: - | AS131: - | AT131: - | AU131: - | AV131: - | AW131: 4 | AX131: 7 | AY131: 3 | AZ131: 2 | BA131: 16 | BB131: 8 | BC131: 12 | BD131: … | BE131: …
A132: 2210107001 | B132: 22 | C132: 101 | D132: 07 | E132: 001 | F132: 静岡県 | G132: 葵区 | H132: 梅ヶ島村 | I132: 藤代 | J132: 5 | K132: - | L132: - | M132: - | N132: - | O132: - | P132: 1 | Q132: - | R132: - | S132: - | T132: 1 | U132: 2 | V132: - | W132: 1 | X132: … | Y132: … | Z132: 4 | AA132: - | AB132: - | AC132: - | AD132: - | AE132: - | AF132: 1 | AG132: - | AH132: - | AI132: - | AJ132: 1 | AK132: 1 | AL132: - | AM132: 1 | AN132: … | AO132: … | AP132: 1 | AQ132: - | AR132: - | AS132: - | AT132: - | AU132: - | AV132: - | AW132: - | AX132: - | AY132: - | AZ132: - | BA132: 1 | BB132: - | BC132: - | BD132: … | BE132: …
A133: 2210107002 | B133: 22 | C133: 101 | D133: 07 | E133: 002 | F133: 静岡県 | G133: 葵区 | H133: 梅ヶ島村 | I133: 入島 | J133: 23 | K133: - | L133: - | M133: - | N133: - | O133: - | P133: 1 | Q133: 1 | R133: 1 | S133: 3 | T133: 2 | U133: 5 | V133: 4 | W133: 6 | X133: … | Y133: … | Z133: 10 | AA133: - | AB133: - | AC133: - | AD133: - | AE133: - | AF133: 1 | AG133: - | AH133: - | AI133: 2 | AJ133: 1 | AK133: 1 | AL133: 2 | AM133: 3 | AN133: … | AO133: … | AP133: 13 | AQ133: - | AR133: - | AS133: - | AT133: - | AU133: - | AV133: - | AW133: 1 | AX133: 1 | AY133: 1 | AZ133: 1 | BA133: 4 | BB133: 2 | BC133: 3 | BD133: … | BE133: …
A134: 2210107003 | B134: 22 | C134: 101 | D134: 07 | E134: 003 | F134: 静岡県 | G134: 葵区 | H134: 梅ヶ島村 | I134: 関の沢 | J134: 7 | K134: - | L134: - | M134: - | N134: - | O134: - | P134: - | Q134: - | R134: - | S134: 2 | T134: 1 | U134: 1 | V134: 1 | W134: 2 | X134: … | Y134: … | Z134: 4 | AA134: - | AB134: - | AC134: - | AD134: - | AE134: - | AF134: - | AG134: - | AH134: - | AI134: 1 | AJ134: - | AK134: 1 | AL134: 1 | AM134: 1 | AN134: … | AO134: … | AP134: 3 | AQ134: - | AR134: - | AS134: - | AT134: - | AU134: - | AV134: - | AW134: - | AX134: - | AY134: 1 | AZ134: 1 | BA134: - | BB134: - | BC134: 1 | BD134: … | BE134: …
A135: 2210107004 | B135: 22 | C135: 101 | D135: 07 | E135: 004 | F135: 静岡県 | G135: 葵区 | H135: 梅ヶ島村 | I135: 本村 | J135: 4 | K135: - | L135: - | M135: - | N135: - | O135: - | P135: - | Q135: - | R135: 1 | S135: 1 | T135: - | U135: 1 | V135: - | W135: 1 | X135: … | Y135: … | Z135: 1 | AA135: - | AB135: - | AC135: - | AD135: - | AE135: - | AF135: - | AG135: - | AH135: - | AI135: 1 | AJ135: - | AK135: - | AL135: - | AM135: - | AN135: … | AO135: … | AP135: 3 | AQ135: - | AR135: - | AS135: - | AT135: - | AU135: - | AV135: - | AW135: - | AX135: 1 | AY135: - | AZ135: - | BA135: 1 | BB135: - | BC135: 1 | BD135: … | BE135: …
A136: 2210107005 | B136: 22 | C136: 101 | D136: 07 | E136: 005 | F136: 静岡県 | G136: 葵区 | H136: 梅ヶ島村 | I136: 戸持 | J136: 12 | K136: - | L136: - | M136: 1 | N136: - | O136: - | P136: - | Q136: 1 | R136: 3 | S136: 2 | T136: - | U136: 2 | V136: 1 | W136: 2 | X136: … | Y136: … | Z136: 7 | AA136: - | AB136: - | AC136: 1 | AD136: - | AE136: - | AF136: - | AG136: 1 | AH136: 1 | AI136: 2 | AJ136: - | AK136: 1 | AL136: - | AM136: 1 | AN136: … | AO136: … | AP136: 5 | AQ136: - | AR136: - | AS136: - | AT136: - | AU136: - | AV136: - | AW136: - | AX136: 2 | AY136: - | AZ136: - | BA136: 1 | BB136: 1 | BC136: 1 | BD136: … | BE136: …
A137: 2210107006 | B137: 22 | C137: 101 | D137: 07 | E137: 006 | F137: 静岡県 | G137: 葵区 | H137: 梅ヶ島村 | I137: 大代 | J137: 24 | K137: - | L137: - | M137: - | N137: - | O137: - | P137: - | Q137: 2 | R137: 7 | S137: - | T137: - | U137: 5 | V137: 3 | W137: 7 | X137: … | Y137: … | Z137: 10 | AA137: - | AB137: - | AC137: - | AD137: - | AE137: - | AF137: - | AG137: - | AH137: 4 | AI137: - | AJ137: - | AK137: 1 | AL137: 1 | AM137: 4 | AN137: … | AO137: … | AP137: 14 | AQ137: - | AR137: - | AS137: - | AT137: - | AU137: - | AV137: - | AW137: 2 | AX137: 3 | AY137: - | AZ137: - | BA137: 4 | BB137: 2 | BC137: 3 | BD137: … | BE137: …
A138: 2210107007 | B138: 22 | C138: 101 | D138: 07 | E138: 007 | F138: 静岡県 | G138: 葵区 | H138: 梅ヶ島村 | I138: 赤水・温泉・新田 | J138: 23 | K138: - | L138: - | M138: - | N138: - | O138: 1 | P138: - | Q138: 1 | R138: 1 | S138: 1 | T138: 1 | U138: 7 | V138: 5 | W138: 6 | X138: … | Y138: … | Z138: 10 | AA138: - | AB138: - | AC138: - | AD138: - | AE138: 1 | AF138: - | AG138: - | AH138: 1 | AI138: - | AJ138: 1 | AK138: 2 | AL138: 2 | AM138: 3 | AN138: … | AO138: … | AP138: 13 | AQ138: - | AR138: - | AS138: - | AT138: - | AU138: - | AV138: - | AW138: 1 | AX138: - | AY138: 1 | AZ138: - | BA138: 5 | BB138: 3 | BC138: 3 | BD138: … | BE138: …
A139: 2210108000 | B139: 22 | C139: 101 | D139: 08 | E139: 000 | F139: 静岡県 | G139: 葵区 | H139: 玉川村 | J139: 179 | K139: - | L139: - | M139: 1 | N139: 1 | O139: 1 | P139: 4 | Q139: 13 | R139: 21 | S139: 8 | T139: 24 | U139: 34 | V139: 35 | W139: 37 | X139: … | Y139: … | Z139: 93 | AA139: - | AB139: - | AC139: 1 | AD139: - | AE139: 1 | AF139: 2 | AG139: 4 | AH139: 15 | AI139: 3 | AJ139: 10 | AK139: 13 | AL139: 19 | AM139: 25 | AN139: … | AO139: … | AP139: 86 | AQ139: - | AR139: - | AS139: - | AT139: 1 | AU139: - | AV139: 2 | AW139: 9 | AX139: 6 | AY139: 5 | AZ139: 14 | BA139: 21 | BB139: 16 | BC139: 12 | BD139: … | BE139: …
A140: 2210108001 | B140: 22 | C140: 101 | D140: 08 | E140: 001 | F140: 静岡県 | G140: 葵区 | H140: 玉川村 | I140: 中沢 | J140: 21 | K140: - | L140: - | M140: - | N140: - | O140: - | P140: 1 | Q140: 2 | R140: 3 | S140: - | T140: 2 | U140: 5 | V140: 4 | W140: 4 | X140: … | Y140: … | Z140: 14 | AA140: - | AB140: - | AC140: - | AD140: - | AE140: - | AF140: 1 | AG140: 2 | AH140: 1 | AI140: - | AJ140: 2 | AK140: 2 | AL140: 3 | AM140: 3 | AN140: … | AO140: … | AP140: 7 | AQ140: - | AR140: - | AS140: - | AT140: - | AU140: - | AV140: - | AW140: - | AX140: 2 | AY140: - | AZ140: - | BA140: 3 | BB140: 1 | BC140: 1 | BD140: … | BE140: …
A141: 2210108002 | B141: 22 | C141: 101 | D141: 08 | E141: 002 | F141: 静岡県 | G141: 葵区 | H141: 玉川村 | I141: 桂山 | J141: 14 | K141: - | L141: - | M141: - | N141: - | O141: - | P141: - | Q141: - | R141: 1 | S141: 1 | T141: 2 | U141: 3 | V141: 2 | W141: 5 | X141: … | Y141: … | Z141: 7 | AA141: - | AB141: - | AC141: - | AD141: - | AE141: - | AF141: - | AG141: - | AH141: 1 | AI141: - | AJ141: - | AK141: 2 | AL141: 1 | AM141: 3 | AN141: … | AO141: … | AP141: 7 | AQ141: - | AR141: - | AS141: - | AT141: - | AU141: - | AV141: - | AW141: - | AX141: - | AY141: 1 | AZ141: 2 | BA141: 1 | BB141: 1 | BC141: 2 | BD141: … | BE141: …
A142: 2210108003 | B142: 22 | C142: 101 | D142: 08 | E142: 003 | F142: 静岡県 | G142: 葵区 | H142: 玉川村 | I142: 唯間 | J142: - | K142: - | L142: - | M142: - | N142: - | O142: - | P142: - | Q142: - | R142: - | S142: - | T142: - | U142: - | V142: - | W142: - | X142: … | Y142: … | Z142: - | AA142: - | AB142: - | AC142: - | AD142: - | AE142: - | AF142: - | AG142: - | AH142: - | AI142: - | AJ142: - | AK142: - | AL142: - | AM142: - | AN142: … | AO142: … | AP142: - | AQ142: - | AR142: - | AS142: - | AT142: - | AU142: - | AV142: - | AW142: - | AX142: - | AY142: - | AZ142: - | BA142: - | BB142: - | BC142: - | BD142: … | BE142: …
A143: 2210108004 | B143: 22 | C143: 101 | D143: 08 | E143: 004 | F143: 静岡県 | G143: 葵区 | H143: 玉川村 | I143: 上助 | J143: x | K143: x | L143: x | M143: x | N143: x | O143: x | P143: x | Q143: x | R143: x | S143: x | T143: x | U143: x | V143: x | W143: x | X143: … | Y143: … | Z143: x | AA143: x | AB143: x | AC143: x | AD143: x | AE143: x | AF143: x | AG143: x | AH143: x | AI143: x | AJ143: x | AK143: x | AL143: x | AM143: x | AN143: … | AO143: … | AP143: x | AQ143: x | AR143: x | AS143: x | AT143: x | AU143: x | AV143: x | AW143: x | AX143: x | AY143: x | AZ143: x | BA143: x | BB143: x | BC143: x | BD143: … | BE143: …
A144: 2210108005 | B144: 22 | C144: 101 | D144: 08 | E144: 005 | F144: 静岡県 | G144: 葵区 | H144: 玉川村 | I144: 奥の原 | J144: 7 | K144: - | L144: - | M144: - | N144: - | O144: - | P144: - | Q144: - | R144: - | S144: - | T144: 1 | U144: - | V144: 3 | W144: 3 | X144: … | Y144: … | Z144: 3 | AA144: - | AB144: - | AC144: - | AD144: - | AE144: - | AF144: - | AG144: - | AH144: - | AI144: - | AJ144: - | AK144: - | AL144: 1 | AM144: 2 | AN144: … | AO144: … | AP144: 4 | AQ144: - | AR144: - | AS144: - | AT144: - | AU144: - | AV144: - | AW144: - | AX144: - | AY144: - | AZ144: 1 | BA144: - | BB144: 2 | BC144: 1 | BD144: … | BE144: …
A145: 2210108006 | B145: 22 | C145: 101 | D145: 08 | E145: 006 | F145: 静岡県 | G145: 葵区 | H145: 玉川村 | I145: 森腰 | J145: 5 | K145: - | L145: - | M145: - | N145: - | O145: - | P145: - | Q145: - | R145: - | S145: - | T145: 1 | U145: 1 | V145: 1 | W145: 2 | X145: … | Y145: … | Z145: 2 | AA145: - | AB145: - | AC145: - | AD145: - | AE145: - | AF145: - | AG145: - | AH145: - | AI145: - | AJ145: - | AK145: - | AL145: 1 | AM145: 1 | AN145: … | AO145: … | AP145: 3 | AQ145: - | AR145: - | AS145: - | AT145: - | AU145: - | AV145: - | AW145: - | AX145: - | AY145: - | AZ145: 1 | BA145: 1 | BB145: - | BC145: 1 | BD145: … | BE145: …
A146: 2210108007 | B146: 22 | C146: 101 | D146: 08 | E146: 007 | F146: 静岡県 | G146: 葵区 | H146: 玉川村 | I146: 長熊 | J146: 12 | K146: - | L146: - | M146: - | N146: - | O146: 1 | P146: - | Q146: - | R146: - | S146: 1 | T146: 2 | U146: 3 | V146: 2 | W146: 3 | X146: … | Y146: … | Z146: 7 | AA146: - | AB146: - | AC146: - | AD146: - | AE146: 1 | AF146: - | AG146: - | AH146: - | AI146: - | AJ146: 1 | AK146: 2 | AL146: 1 | AM146: 2 | AN146: … | AO146: … | AP146: 5 | AQ146: - | AR146: - | AS146: - | AT146: - | AU146: - | AV146: - | AW146: - | AX146: - | AY146: 1 | AZ146: 1 | BA146: 1 | BB146: 1 | BC146: 1 | BD146: … | BE146: …
A147: 2210108008 | B147: 22 | C147: 101 | D147: 08 | E147: 008 | F147: 静岡県 | G147: 葵区 | H147: 玉川村 | I147: 柿島 | J147: 16 | K147: - | L147: - | M147: - | N147: - | O147: - | P147: - | Q147: - | R147: 2 | S147: 2 | T147: 1 | U147: 5 | V147: 3 | W147: 3 | X147: … | Y147: … | Z147: 9 | AA147: - | AB147: - | AC147: - | AD147: - | AE147: - | AF147: - | AG147: - | AH147: 1 | AI147: 2 | AJ147: 1 | AK147: 2 | AL147: 1 | AM147: 2 | AN147: … | AO147: … | AP147: 7 | AQ147: - | AR147: - | AS147: - | AT147: - | AU147: - | AV147: - | AW147: - | AX147: 1 | AY147: - | AZ147: - | BA147: 3 | BB147: 2 | BC147: 1 | BD147: … | BE147: …
A148: 2210108009 | B148: 22 | C148: 101 | D148: 08 | E148: 009 | F148: 静岡県 | G148: 葵区 | H148: 玉川村 | I148: 長妻田 | J148: 13 | K148: - | L148: - | M148: 1 | N148: - | O148: - | P148: - | Q148: 2 | R148: 4 | S148: 1 | T148: 1 | U148: 1 | V148: 1 | W148: 2 | X148: … | Y148: … | Z148: 8 | AA148: - | AB148: - | AC148: 1 | AD148: - | AE148: - | AF148: - | AG148: - | AH148: 3 | AI148: - | AJ148: 1 | AK148: - | AL148: 1 | AM148: 2 | AN148: … | AO148: … | AP148: 5 | AQ148: - | AR148: - | AS148: - | AT148: - | AU148: - | AV148: - | AW148: 2 | AX148: 1 | AY148: 1 | AZ148: - | BA148: 1 | BB148: - | BC148: - | BD148: … | BE148: …
A149: 2210108010 | B149: 22 | C149: 101 | D149: 08 | E149: 010 | F149: 静岡県 | G149: 葵区 | H149: 玉川村 | I149: 油野 | J149: - | K149: - | L149: - | M149: - | N149: - | O149: - | P149: - | Q149: - | R149: - | S149: - | T149: - | U149: - | V149: - | W149: - | X149: … | Y149: … | Z149: - | AA149: - | AB149: - | AC149: - | AD149: - | AE149: - | AF149: - | AG149: - | AH149: - | AI149: - | AJ149: - | AK149: - | AL149: - | AM149: - | AN149: … | AO149: … | AP149: - | AQ149: - | AR149: - | AS149: - | AT149: - | AU149: - | AV149: - | AW149: - | AX149: - | AY149: - | AZ149: - | BA149: - | BB149: - | BC149: - | BD149: … | BE149: …
A150: 2210108011 | B150: 22 | C150: 101 | D150: 08 | E150: 011 | F150: 静岡県 | G150: 葵区 | H150: 玉川村 | I150: 上落合 | J150: x | K150: x | L150: x | M150: x | N150: x | O150: x | P150: x | Q150: x | R150: x | S150: x | T150: x | U150: x | V150: x | W150: x | X150: … | Y150: … | Z150: x | AA150: x | AB150: x | AC150: x | AD150: x | AE150: x | AF150: x | AG150: x | AH150: x | AI150: x | AJ150: x | AK150: x | AL150: x | AM150: x | AN150: … | AO150: … | AP150: x | AQ150: x | AR150: x | AS150: x | AT150: x | AU150: x | AV150: x | AW150: x | AX150: x | AY150: x | AZ150: x | BA150: x | BB150: x | BC150: x | BD150: … | BE150: …
A151: 2210108012 | B151: 22 | C151: 101 | D151: 08 | E151: 012 | F151: 静岡県 | G151: 葵区 | H151: 玉川村 | I151: 口仙俣 | J151: x | K151: x | L151: x | M151: x | N151: x | O151: x | P151: x | Q151: x | R151: x | S151: x | T151: x | U151: x | V151: x | W151: x | X151: … | Y151: … | Z151: x | AA151: x | AB151: x | AC151: x | AD151: x | AE151: x | AF151: x | AG151: x | AH151: x | AI151: x | AJ151: x | AK151: x | AL151: x | AM151: x | AN151: … | AO151: … | AP151: x | AQ151: x | AR151: x | AS151: x | AT151: x | AU151: x | AV151: x | AW151: x | AX151: x | AY151: x | AZ151: x | BA151: x | BB151: x | BC151: x | BD151: … | BE151: …
A152: 2210108013 | B152: 22 | C152: 101 | D152: 08 | E152: 013 | F152: 静岡県 | G152: 葵区 | H152: 玉川村 | I152: 奥仙俣 | J152: 5 | K152: - | L152: - | M152: - | N152: - | O152: - | P152: - | Q152: - | R152: - | S152: - | T152: - | U152: 1 | V152: 3 | W152: 1 | X152: … | Y152: … | Z152: 2 | AA152: - | AB152: - | AC152: - | AD152: - | AE152: - | AF152: - | AG152: - | AH152: - | AI152: - | AJ152: - | AK152: - | AL152: 1 | AM152: 1 | AN152: … | AO152: … | AP152: 3 | AQ152: - | AR152: - | AS152: - | AT152: - | AU152: - | AV152: - | AW152: - | AX152: - | AY152: - | AZ152: - | BA152: 1 | BB152: 2 | BC152: - | BD152: … | BE152: …
A153: 2210108014 | B153: 22 | C153: 101 | D153: 08 | E153: 014 | F153: 静岡県 | G153: 葵区 | H153: 玉川村 | I153: 平瀬 | J153: 6 | K153: - | L153: - | M153: - | N153: - | O153: - | P153: - | Q153: - | R153: - | S153: 1 | T153: 1 | U153: 1 | V153: 3 | W153: - | X153: … | Y153: … | Z153: 3 | AA153: - | AB153: - | AC153: - | AD153: - | AE153: - | AF153: - | AG153: - | AH153: - | AI153: - | AJ153: 1 | AK153: - | AL153: 2 | AM153: - | AN153: … | AO153: … | AP153: 3 | AQ153: - | AR153: - | AS153: - | AT153: - | AU153: - | AV153: - | AW153: - | AX153: - | AY153: 1 | AZ153: - | BA153: 1 | BB153: 1 | BC153: - | BD153: … | BE153: …
A154: 2210108015 | B154: 22 | C154: 101 | D154: 08 | E154: 015 | F154: 静岡県 | G154: 葵区 | H154: 玉川村 | I154: 川島 | J154: 6 | K154: - | L154: - | M154: - | N154: - | O154: - | P154: - | Q154: 3 | R154: 2 | S154: - | T154: - | U154: - | V154: 1 | W154: - | X154: … | Y154: … | Z154: 3 | AA154: - | AB154: - | AC154: - | AD154: - | AE154: - | AF154: - | AG154: 1 | AH154: 2 | AI154: - | AJ154: - | AK154: - | AL154: - | AM154: - | AN154: … | AO154: … | AP154: 3 | AQ154: - | AR154: - | AS154: - | AT154: - | AU154: - | AV154: - | AW154: 2 | AX154: - | AY154: - | AZ154: - | BA154: - | BB154: 1 | BC154: - | BD154: … | BE154: …
A155: 2210108016 | B155: 22 | C155: 101 | D155: 08 | E155: 016 | F155: 静岡県 | G155: 葵区 | H155: 玉川村 | I155: 大和 | J155: 9 | K155: - | L155: - | M155: - | N155: - | O155: - | P155: - | Q155: 1 | R155: 2 | S155: - | T155: 3 | U155: 2 | V155: 1 | W155: - | X155: … | Y155: … | Z155: 4 | AA155: - | AB155: - | AC155: - | AD155: - | AE155: - | AF155: - | AG155: - | AH155: 1 | AI155: - | AJ155: 2 | AK155: 1 | AL155: - | AM155: - | AN155: … | AO155: … | AP155: 5 | AQ155: - | AR155: - | AS155: - | AT155: - | AU155: - | AV155: - | AW155: 1 | AX155: 1 | AY155: - | AZ155: 1 | BA155: 1 | BB155: 1 | BC155: - | BD155: … | BE155: …
A156: 2210108017 | B156: 22 | C156: 101 | D156: 08 | E156: 017 | F156: 静岡県 | G156: 葵区 | H156: 玉川村 | I156: 内匠 | J156: 7 | K156: - | L156: - | M156: - | N156: - | O156: - | P156: - | Q156: - | R156: - | S156: - | T156: 2 | U156: 3 | V156: 2 | W156: - | X156: … | Y156: … | Z156: 3 | AA156: - | AB156: - | AC156: - | AD156: - | AE156: - | AF156: - | AG156: - | AH156: - | AI156: - | AJ156: - | AK156: 1 | AL156: 2 | AM156: - | AN156: … | AO156: … | AP156: 4 | AQ156: - | AR156: - | AS156: - | AT156: - | AU156: - | AV156: - | AW156: - | AX156: - | AY156: - | AZ156: 2 | BA156: 2 | BB156: - | BC156: - | BD156: … | BE156: …
A157: 2210108018 | B157: 22 | C157: 101 | D157: 08 | E157: 018 | F157: 静岡県 | G157: 葵区 | H157: 玉川村 | I157: 腰越 | J157: 22 | K157: - | L157: - | M157: - | N157: 1 | O157: - | P157: 1 | Q157: 2 | R157: 1 | S157: - | T157: 8 | U157: 5 | V157: 3 | W157: 1 | X157: … | Y157: … | Z157: 9 | AA157: - | AB157: - | AC157: - | AD157: - | AE157: - | AF157: - | AG157: 1 | AH157: 1 | AI157: - | AJ157: 2 | AK157: 2 | AL157: 2 | AM157: 1 | AN157: … | AO157: … | AP157: 13 | AQ157: - | AR157: - | AS157: - | AT157: 1 | AU157: - | AV157: 1 | AW157: 1 | AX157: - | AY157: - | AZ157: 6 | BA157: 3 | BB157: 1 | BC157: - | BD157: … | BE157: …
A158: 2210108019 | B158: 22 | C158: 101 | D158: 08 | E158: 019 | F158: 静岡県 | G158: 葵区 | H158: 玉川村 | I158: 大沢 | J158: 21 | K158: - | L158: - | M158: - | N158: - | O158: - | P158: 2 | Q158: 2 | R158: 3 | S158: 1 | T158: - | U158: 2 | V158: 4 | W158: 7 | X158: … | Y158: … | Z158: 11 | AA158: - | AB158: - | AC158: - | AD158: - | AE158: - | AF158: 1 | AG158: - | AH158: 3 | AI158: - | AJ158: - | AK158: - | AL158: 3 | AM158: 4 | AN158: … | AO158: … | AP158: 10 | AQ158: - | AR158: - | AS158: - | AT158: - | AU158: - | AV158: 1 | AW158: 2 | AX158: - | AY158: 1 | AZ158: - | BA158: 2 | BB158: 1 | BC158: 3 | BD158: … | BE158: …
A159: 2210108020 | B159: 22 | C159: 101 | D159: 08 | E159: 020 | F159: 静岡県 | G159: 葵区 | H159: 玉川村 | I159: 横沢 | J159: 8 | K159: - | L159: - | M159: - | N159: - | O159: - | P159: - | Q159: - | R159: 2 | S159: - | T159: - | U159: - | V159: 2 | W159: 4 | X159: … | Y159: … | Z159: 4 | AA159: - | AB159: - | AC159: - | AD159: - | AE159: - | AF159: - | AG159: - | AH159: 1 | AI159: - | AJ159: - | AK159: - | AL159: - | AM159: 3 | AN159: … | AO159: … | AP159: 4 | AQ159: - | AR159: - | AS159: - | AT159: - | AU159: - | AV159: - | AW159: - | AX159: 1 | AY159: - | AZ159: - | BA159: - | BB159: 2 | BC159: 1 | BD159: … | BE159: …
A160: 2210109000 | B160: 22 | C160: 101 | D160: 09 | E160: 000 | F160: 静岡県 | G160: 葵区 | H160: 井川村 | J160: 40 | K160: - | L160: - | M160: 1 | N160: - | O160: - | P160: - | Q160: 2 | R160: - | S160: 2 | T160: 1 | U160: 12 | V160: 10 | W160: 12 | X160: … | Y160: … | Z160: 21 | AA160: - | AB160: - | AC160: 1 | AD160: - | AE160: - | AF160: - | AG160: 1 | AH160: - | AI160: 1 | AJ160: - | AK160: 6 | AL160: 5 | AM160: 7 | AN160: … | AO160: … | AP160: 19 | AQ160: - | AR160: - | AS160: - | AT160: - | AU160: - | AV160: - | AW160: 1 | AX160: - | AY160: 1 | AZ160: 1 | BA160: 6 | BB160: 5 | BC160: 5 | BD160: … | BE160: …
A161: 2210109001 | B161: 22 | C161: 101 | D161: 09 | E161: 001 | F161: 静岡県 | G161: 葵区 | H161: 井川村 | I161: 西 | J161: x | K161: x | L161: x | M161: x | N161: x | O161: x | P161: x | Q161: x | R161: x | S161: x | T161: x | U161: x | V161: x | W161: x | X161: … | Y161: … | Z161: x | AA161: x | AB161: x | AC161: x | AD161: x | AE161: x | AF161: x | AG161: x | AH161: x | AI161: x | AJ161: x | AK161: x | AL161: x | AM161: x | AN161: … | AO161: … | AP161: x | AQ161: x | AR161: x | AS161: x | AT161: x | AU161: x | AV161: x | AW161: x | AX161: x | AY161: x | AZ161: x | BA161: x | BB161: x | BC161: x | BD161: … | BE161: …
A162: 2210109002 | B162: 22 | C162: 101 | D162: 09 | E162: 002 | F162: 静岡県 | G162: 葵区 | H162: 井川村 | I162: 門間 | J162: - | K162: - | L162: - | M162: - | N162: - | O162: - | P162: - | Q162: - | R162: - | S162: - | T162: - | U162: - | V162: - | W162: - | X162: … | Y162: … | Z162: - | AA162: - | AB162: - | AC162: - | AD162: - | AE162: - | AF162: - | AG162: - | AH162: - | AI162: - | AJ162: - | AK162: - | AL162: - | AM162: - | AN162: … | AO162: … | AP162: - | AQ162: - | AR162: - | AS162: - | AT162: - | AU162: - | AV162: - | AW162: - | AX162: - | AY162: - | AZ162: - | BA162: - | BB162: - | BC162: - | BD162: … | BE162: …
A163: 2210109003 | B163: 22 | C163: 101 | D163: 09 | E163: 003 | F163: 静岡県 | G163: 葵区 | H163: 井川村 | I163: 薬沢上 | J163: x | K163: x | L163: x | M163: x | N163: x | O163: x | P163: x | Q163: x | R163: x | S163: x | T163: x | U163: x | V163: x | W163: x | X163: … | Y163: … | Z163: x | AA163: x | AB163: x | AC163: x | AD163: x | AE163: x | AF163: x | AG163: x | AH163: x | AI163: x | AJ163: x | AK163: x | AL163: x | AM163: x | AN163: … | AO163: … | AP163: x | AQ163: x | AR163: x | AS163: x | AT163: x | AU163: x | AV163: x | AW163: x | AX163: x | AY163: x | AZ163: x | BA163: x | BB163: x | BC163: x | BD163: … | BE163: …
A164: 2210109004 | B164: 22 | C164: 101 | D164: 09 | E164: 004 | F164: 静岡県 | G164: 葵区 | H164: 井川村 | I164: 薬沢下 | J164: - | K164: - | L164: - | M164: - | N164: - | O164: - | P164: - | Q164: - | R164: - | S164: - | T164: - | U164: - | V164: - | W164: - | X164: … | Y164: … | Z164: - | AA164: - | AB164: - | AC164: - | AD164: - | AE164: - | AF164: - | AG164: - | AH164: - | AI164: - | AJ164: - | AK164: - | AL164: - | AM164: - | AN164: … | AO164: … | AP164: - | AQ164: - | AR164: - | AS164: - | AT164: - | AU164: - | AV164: - | AW164: - | AX164: - | AY164: - | AZ164: - | BA164: - | BB164: - | BC164: - | BD164: … | BE164: …
A165: 2210109005 | B165: 22 | C165: 101 | D165: 09 | E165: 005 | F165: 静岡県 | G165: 葵区 | H165: 井川村 | I165: 中野上 | J165: x | K165: x | L165: x | M165: x | N165: x | O165: x | P165: x | Q165: x | R165: x | S165: x | T165: x | U165: x | V165: x | W165: x | X165: … | Y165: … | Z165: x | AA165: x | AB165: x | AC165: x | AD165: x | AE165: x | AF165: x | AG165: x | AH165: x | AI165: x | AJ165: x | AK165: x | AL165: x | AM165: x | AN165: … | AO165: … | AP165: x | AQ165: x | AR165: x | AS165: x | AT165: x | AU165: x | AV165: x | AW165: x | AX165: x | AY165: x | AZ165: x | BA165: x | BB165: x | BC165: x | BD165: … | BE165: …
A166: 2210109006 | B166: 22 | C166: 101 | D166: 09 | E166: 006 | F166: 静岡県 | G166: 葵区 | H166: 井川村 | I166: 中野下 | J166: x | K166: x | L166: x | M166: x | N166: x | O166: x | P166: x | Q166: x | R166: x | S166: x | T166: x | U166: x | V166: x | W166: x | X166: … | Y166: … | Z166: x | AA166: x | AB166: x | AC166: x | AD166: x | AE166: x | AF166: x | AG166: x | AH166: x | AI166: x | AJ166: x | AK166: x | AL166: x | AM166: x | AN166: … | AO166: … | AP166: x | AQ166: x | AR166: x | AS166: x | AT166: x | AU166: x | AV166: x | AW166: x | AX166: x | AY166: x | AZ166: x | BA166: x | BB166: x | BC166: x | BD166: … | BE166: …
A167: 2210109007 | B167: 22 | C167: 101 | D167: 09 | E167: 007 | F167: 静岡県 | G167: 葵区 | H167: 井川村 | I167: 閑蔵 | J167: - | K167: - | L167: - | M167: - | N167: - | O167: - | P167: - | Q167: - | R167: - | S167: - | T167: - | U167: - | V167: - | W167: - | X167: … | Y167: … | Z167: - | AA167: - | AB167: - | AC167: - | AD167: - | AE167: - | AF167: - | AG167: - | AH167: - | AI167: - | AJ167: - | AK167: - | AL167: - | AM167: - | AN167: … | AO167: … | AP167: - | AQ167: - | AR167: - | AS167: - | AT167: - | AU167: - | AV167: - | AW167: - | AX167: - | AY167: - | AZ167: - | BA167: - | BB167: - | BC167: - | BD167: … | BE167: …
A168: 2210109008 | B168: 22 | C168: 101 | D168: 09 | E168: 008 | F168: 静岡県 | G168: 葵区 | H168: 井川村 | I168: 田代 | J168: x | K168: x | L168: x | M168: x | N168: x | O168: x | P168: x | Q168: x | R168: x | S168: x | T168: x | U168: x | V168: x | W168: x | X168: … | Y168: … | Z168: x | AA168: x | AB168: x | AC168: x | AD168: x | AE168: x | AF168: x | AG168: x | AH168: x | AI168: x | AJ168: x | AK168: x | AL168: x | AM168: x | AN168: … | AO168: … | AP168: x | AQ168: x | AR168: x | AS168: x | AT168: x | AU168: x | AV168: x | AW168: x | AX168: x | AY168: x | AZ168: x | BA168: x | BB168: x | BC168: x | BD168: … | BE168: …
A169: 2210109009 | B169: 22 | C169: 101 | D169: 09 | E169: 009 | F169: 静岡県 | G169: 葵区 | H169: 井川村 | I169: 小河内 | J169: x | K169: x | L169: x | M169: x | N169: x | O169: x | P169: x | Q169: x | R169: x | S169: x | T169: x | U169: x | V169: x | W169: x | X169: … | Y169: … | Z169: x | AA169: x | AB169: x | AC169: x | AD169: x | AE169: x | AF169: x | AG169: x | AH169: x | AI169: x | AJ169: x | AK169: x | AL169: x | AM169: x | AN169: … | AO169: … | AP169: x | AQ169: x | AR169: x | AS169: x | AT169: x | AU169: x | AV169: x | AW169: x | AX169: x | AY169: x | AZ169: x | BA169: x | BB169: x | BC169: x | BD169: … | BE169: …
A170: 2210109010 | B170: 22 | C170: 101 | D170: 09 | E170: 010 | F170: 静岡県 | G170: 葵区 | H170: 井川村 | I170: 大島 | J170: 7 | K170: - | L170: - | M170: - | N170: - | O170: - | P170: - | Q170: 2 | R170: - | S170: - | T170: - | U170: 3 | V170: 1 | W170: 1 | X170: … | Y170: … | Z170: 3 | AA170: - | AB170: - | AC170: - | AD170: - | AE170: - | AF170: - | AG170: 1 | AH170: - | AI170: - | AJ170: - | AK170: 1 | AL170: 1 | AM170: - | AN170: … | AO170: … | AP170: 4 | AQ170: - | AR170: - | AS170: - | AT170: - | AU170: - | AV170: - | AW170: 1 | AX170: - | AY170: - | AZ170: - | BA170: 2 | BB170: - | BC170: 1 | BD170: … | BE170: …
A171: 2210109011 | B171: 22 | C171: 101 | D171: 09 | E171: 011 | F171: 静岡県 | G171: 葵区 | H171: 井川村 | I171: 中山 | J171: x | K171: x | L171: x | M171: x | N171: x | O171: x | P171: x | Q171: x | R171: x | S171: x | T171: x | U171: x | V171: x | W171: x | X171: … | Y171: … | Z171: x | AA171: x | AB171: x | AC171: x | AD171: x | AE171: x | AF171: x | AG171: x | AH171: x | AI171: x | AJ171: x | AK171: x | AL171: x | AM171: x | AN171: … | AO171: … | AP171: x | AQ171: x | AR171: x | AS171: x | AT171: x | AU171: x | AV171: x | AW171: x | AX171: x | AY171: x | AZ171: x | BA171: x | BB171: x | BC171: x | BD171: … | BE171: …
A172: 2210109012 | B172: 22 | C172: 101 | D172: 09 | E172: 012 | F172: 静岡県 | G172: 葵区 | H172: 井川村 | I172: 上岩 | J172: x | K172: x | L172: x | M172: x | N172: x | O172: x | P172: x | Q172: x | R172: x | S172: x | T172: x | U172: x | V172: x | W172: x | X172: … | Y172: … | Z172: x | AA172: x | AB172: x | AC172: x | AD172: x | AE172: x | AF172: x | AG172: x | AH172: x | AI172: x | AJ172: x | AK172: x | AL172: x | AM172: x | AN172: … | AO172: … | AP172: x | AQ172: x | AR172: x | AS172: x | AT172: x | AU172: x | AV172: x | AW172: x | AX172: x | AY172: x | AZ172: x | BA172: x | BB172: x | BC172: x | BD172: … | BE172: …
A173: 2210109013 | B173: 22 | C173: 101 | D173: 09 | E173: 013 | F173: 静岡県 | G173: 葵区 | H173: 井川村 | I173: 口坂本 | J173: x | K173: x | L173: x | M173: x | N173: x | O173: x | P173: x | Q173: x | R173: x | S173: x | T173: x | U173: x | V173: x | W173: x | X173: … | Y173: … | Z173: x | AA173: x | AB173: x | AC173: x | AD173: x | AE173: x | AF173: x | AG173: x | AH173: x | AI173: x | AJ173: x | AK173: x | AL173: x | AM173: x | AN173: … | AO173: … | AP173: x | AQ173: x | AR173: x | AS173: x | AT173: x | AU173: x | AV173: x | AW173: x | AX173: x | AY173: x | AZ173: x | BA173: x | BB173: x | BC173: x | BD173: … | BE173: …
A174: 2210109014 | B174: 22 | C174: 101 | D174: 09 | E174: 014 | F174: 静岡県 | G174: 葵区 | H174: 井川村 | I174: 開拓 | J174: x | K174: x | L174: x | M174: x | N174: x | O174: x | P174: x | Q174: x | R174: x | S174: x | T174: x | U174: x | V174: x | W174: x | X174: … | Y174: … | Z174: x | AA174: x | AB174: x | AC174: x | AD174: x | AE174: x | AF174: x | AG174: x | AH174: x | AI174: x | AJ174: x | AK174: x | AL174: x | AM174: x | AN174: … | AO174: … | AP174: x | AQ174: x | AR174: x | AS174: x | AT174: x | AU174: x | AV174: x | AW174: x | AX174: x | AY174: x | AZ174: x | BA174: x | BB174: x | BC174: x | BD174: … | BE174: …
A175: 2210109015 | B175: 22 | C175: 101 | D175: 09 | E175: 015 | F175: 静岡県 | G175: 葵区 | H175: 井川村 | I175: 曙 | J175: 4 | K175: - | L175: - | M175: - | N175: - | O175: - | P175: - | Q175: - | R175: - | S175: - | T175: - | U175: 2 | V175: - | W175: 2 | X175: … | Y175: … | Z175: 2 | AA175: - | AB175: - | AC175: - | AD175: - | AE175: - | AF175: - | AG175: - | AH175: - | AI175: - | AJ175: - | AK175: 1 | AL175: - | AM175: 1 | AN175: … | AO175: … | AP175: 2 | AQ175: - | AR175: - | AS175: - | AT175: - | AU175: - | AV175: - | AW175: - | AX175: - | AY175: - | AZ175: - | BA175: 1 | BB175: - | BC175: 1 | BD175: … | BE175: …
A176: 2210109016 | B176: 22 | C176: 101 | D176: 09 | E176: 016 | F176: 静岡県 | G176: 葵区 | H176: 井川村 | I176: 西山平 | J176: 14 | K176: - | L176: - | M176: - | N176: - | O176: - | P176: - | Q176: - | R176: - | S176: - | T176: - | U176: 1 | V176: 6 | W176: 7 | X176: … | Y176: … | Z176: 7 | AA176: - | AB176: - | AC176: - | AD176: - | AE176: - | AF176: - | AG176: - | AH176: - | AI176: - | AJ176: - | AK176: - | AL176: 2 | AM176: 5 | AN176: … | AO176: … | AP176: 7 | AQ176: - | AR176: - | AS176: - | AT176: - | AU176: - | AV176: - | AW176: - | AX176: - | AY176: - | AZ176: - | BA176: 1 | BB176: 4 | BC176: 2 | BD176: … | BE176: …
A177: 2210110000 | B177: 22 | C177: 101 | D177: 10 | E177: 000 | F177: 静岡県 | G177: 葵区 | H177: 清沢村 | J177: 218 | K177: - | L177: - | M177: 2 | N177: - | O177: 2 | P177: 6 | Q177: 7 | R177: 26 | S177: 22 | T177: 26 | U177: 34 | V177: 38 | W177: 55 | X177: … | Y177: … | Z177: 126 | AA177: - | AB177: - | AC177: 2 | AD177: - | AE177: 2 | AF177: 3 | AG177: 5 | AH177: 13 | AI177: 12 | AJ177: 15 | AK177: 16 | AL177: 20 | AM177: 38 | AN177: … | AO177: … | AP177: 92 | AQ177: - | AR177: - | AS177: - | AT177: - | AU177: - | AV177: 3 | AW177: 2 | AX177: 13 | AY177: 10 | AZ177: 11 | BA177: 18 | BB177: 18 | BC177: 17 | BD177: … | BE177: …
A178: 2210110001 | B178: 22 | C178: 101 | D178: 10 | E178: 001 | F178: 静岡県 | G178: 葵区 | H178: 清沢村 | I178: 小島 | J178: 6 | K178: - | L178: - | M178: - | N178: - | O178: - | P178: - | Q178: - | R178: - | S178: 1 | T178: - | U178: 1 | V178: 1 | W178: 3 | X178: … | Y178: … | Z178: 3 | AA178: - | AB178: - | AC178: - | AD178: - | AE178: - | AF178: - | AG178: - | AH178: - | AI178: - | AJ178: - | AK178: 1 | AL178: - | AM178: 2 | AN178: … | AO178: … | AP178: 3 | AQ178: - | AR178: - | AS178: - | AT178: - | AU178: - | AV178: - | AW178: - | AX178: - | AY178: 1 | AZ178: - | BA178: - | BB178: 1 | BC178: 1 | BD178: … | BE178: …
A179: 2210110002 | B179: 22 | C179: 101 | D179: 10 | E179: 002 | F179: 静岡県 | G179: 葵区 | H179: 清沢村 | I179: 鍵穴 | J179: 25 | K179: - | L179: - | M179: - | N179: - | O179: - | P179: 1 | Q179: - | R179: 2 | S179: 4 | T179: 5 | U179: 5 | V179: 3 | W179: 5 | X179: … | Y179: … | Z179: 14 | AA179: - | AB179: - | AC179: - | AD179: - | AE179: - | AF179: 1 | AG179: - | AH179: 1 | AI179: 1 | AJ179: 3 | AK179: 3 | AL179: 3 | AM179: 2 | AN179: … | AO179: … | AP179: 11 | AQ179: - | AR179: - | AS179: - | AT179: - | AU179: - | AV179: - | AW179: - | AX179: 1 | AY179: 3 | AZ179: 2 | BA179: 2 | BB179: - | BC179: 3 | BD179: … | BE179: …
A180: 2210110003 | B180: 22 | C180: 101 | D180: 10 | E180: 003 | F180: 静岡県 | G180: 葵区 | H180: 清沢村 | I180: 寺島 | J180: 26 | K180: - | L180: - | M180: - | N180: - | O180: - | P180: - | Q180: 2 | R180: 5 | S180: 1 | T180: 3 | U180: 3 | V180: 6 | W180: 6 | X180: … | Y180: … | Z180: 16 | AA180: - | AB180: - | AC180: - | AD180: - | AE180: - | AF180: - | AG180: 1 | AH180: 3 | AI180: 1 | AJ180: 1 | AK180: 2 | AL180: 3 | AM180: 5 | AN180: … | AO180: … | AP180: 10 | AQ180: - | AR180: - | AS180: - | AT180: - | AU180: - | AV180: - | AW180: 1 | AX180: 2 | AY180: - | AZ180: 2 | BA180: 1 | BB180: 3 | BC180: 1 | BD180: … | BE180: …
A181: 2210110004 | B181: 22 | C181: 101 | D181: 10 | E181: 004 | F181: 静岡県 | G181: 葵区 | H181: 清沢村 | I181: 坂本 | J181: 32 | K181: - | L181: - | M181: - | N181: - | O181: - | P181: 1 | Q181: - | R181: 3 | S181: 1 | T181: 4 | U181: 6 | V181: 7 | W181: 10 | X181: … | Y181: … | Z181: 16 | AA181: - | AB181: - | AC181: - | AD181: - | AE181: - | AF181: 1 | AG181: - | AH181: - | AI181: 1 | AJ181: 1 | AK181: 4 | AL181: 3 | AM181: 6 | AN181: … | AO181: … | AP181: 16 | AQ181: - | AR181: - | AS181: - | AT181: - | AU181: - | AV181: - | AW181: - | AX181: 3 | AY181: - | AZ181: 3 | BA181: 2 | BB181: 4 | BC181: 4 | BD181: … | BE181: …
A182: 2210110005 | B182: 22 | C182: 101 | D182: 10 | E182: 005 | F182: 静岡県 | G182: 葵区 | H182: 清沢村 | I182: 赤沢 | J182: x | K182: x | L182: x | M182: x | N182: x | O182: x | P182: x | Q182: x | R182: x | S182: x | T182: x | U182: x | V182: x | W182: x | X182: … | Y182: … | Z182: x | AA182: x | AB182: x | AC182: x | AD182: x | AE182: x | AF182: x | AG182: x | AH182: x | AI182: x | AJ182: x | AK182: x | AL182: x | AM182: x | AN182: … | AO182: … | AP182: x | AQ182: x | AR182: x | AS182: x | AT182: x | AU182: x | AV182: x | AW182: x | AX182: x | AY182: x | AZ182: x | BA182: x | BB182: x | BC182: x | BD182: … | BE182: …
A183: 2210110006 | B183: 22 | C183: 101 | D183: 10 | E183: 006 | F183: 静岡県 | G183: 葵区 | H183: 清沢村 | I183: 昼居渡 | J183: 4 | K183: - | L183: - | M183: - | N183: - | O183: - | P183: - | Q183: - | R183: - | S183: - | T183: - | U183: - | V183: - | W183: 4 | X183: … | Y183: … | Z183: 2 | AA183: - | AB183: - | AC183: - | AD183: - | AE183: - | AF183: - | AG183: - | AH183: - | AI183: - | AJ183: - | AK183: - | AL183: - | AM183: 2 | AN183: … | AO183: … | AP183: 2 | AQ183: - | AR183: - | AS183: - | AT183: - | AU183: - | AV183: - | AW183: - | AX183: - | AY183: - | AZ183: - | BA183: - | BB183: - | BC183: 2 | BD183: … | BE183: …
A184: 2210110007 | B184: 22 | C184: 101 | D184: 10 | E184: 007 | F184: 静岡県 | G184: 葵区 | H184: 清沢村 | I184: 下相俣 | J184: 15 | K184: - | L184: - | M184: - | N184: - | O184: - | P184: - | Q184: - | R184: - | S184: 3 | T184: 3 | U184: 2 | V184: 1 | W184: 6 | X184: … | Y184: … | Z184: 9 | AA184: - | AB184: - | AC184: - | AD184: - | AE184: - | AF184: - | AG184: - | AH184: - | AI184: 1 | AJ184: 2 | AK184: 1 | AL184: - | AM184: 5 | AN184: … | AO184: … | AP184: 6 | AQ184: - | AR184: - | AS184: - | AT184: - | AU184: - | AV184: - | AW184: - | AX184: - | AY184: 2 | AZ184: 1 | BA184: 1 | BB184: 1 | BC184: 1 | BD184: … | BE184: …
A185: 2210110008 | B185: 22 | C185: 101 | D185: 10 | E185: 008 | F185: 静岡県 | G185: 葵区 | H185: 清沢村 | I185: 上相俣 | J185: 23 | K185: - | L185: - | M185: - | N185: - | O185: - | P185: 3 | Q185: 3 | R185: 1 | S185: 3 | T185: 2 | U185: 3 | V185: 4 | W185: 4 | X185: … | Y185: … | Z185: 13 | AA185: - | AB185: - | AC185: - | AD185: - | AE185: - | AF185: 1 | AG185: 2 | AH185: 1 | AI185: 2 | AJ185: 1 | AK185: - | AL185: 2 | AM185: 4 | AN185: … | AO185: … | AP185: 10 | AQ185: - | AR185: - | AS185: - | AT185: - | AU185: - | AV185: 2 | AW185: 1 | AX185: - | AY185: 1 | AZ185: 1 | BA185: 3 | BB185: 2 | BC185: - | BD185: … | BE185: …
A186: 2210110009 | B186: 22 | C186: 101 | D186: 10 | E186: 009 | F186: 静岡県 | G186: 葵区 | H186: 清沢村 | I186: 久能尾 | J186: 31 | K186: - | L186: - | M186: 1 | N186: - | O186: 1 | P186: - | Q186: 1 | R186: 4 | S186: 4 | T186: 7 | U186: 2 | V186: 5 | W186: 6 | X186: … | Y186: … | Z186: 21 | AA186: - | AB186: - | AC186: 1 | AD186: - | AE186: 1 | AF186: - | AG186: 1 | AH186: 2 | AI186: 2 | AJ186: 6 | AK186: 1 | AL186: 2 | AM186: 5 | AN186: … | AO186: … | AP186: 10 | AQ186: - | AR186: - | AS186: - | AT186: - | AU186: - | AV186: - | AW186: - | AX186: 2 | AY186: 2 | AZ186: 1 | BA186: 1 | BB186: 3 | BC186: 1 | BD186: … | BE186: …
A187: 2210110010 | B187: 22 | C187: 101 | D187: 10 | E187: 010 | F187: 静岡県 | G187: 葵区 | H187: 清沢村 | I187: 黒俣（中村） | J187: 16 | K187: - | L187: - | M187: - | N187: - | O187: - | P187: - | Q187: - | R187: 2 | S187: 3 | T187: - | U187: 4 | V187: 3 | W187: 4 | X187: … | Y187: … | Z187: 9 | AA187: - | AB187: - | AC187: - | AD187: - | AE187: - | AF187: - | AG187: - | AH187: - | AI187: 3 | AJ187: - | AK187: 2 | AL187: 2 | AM187: 2 | AN187: … | AO187: … | AP187: 7 | AQ187: - | AR187: - | AS187: - | AT187: - | AU187: - | AV187: - | AW187: - | AX187: 2 | AY187: - | AZ187: - | BA187: 2 | BB187: 1 | BC187: 2 | BD187: … | BE187: …
A188: 2210110011 | B188: 22 | C188: 101 | D188: 10 | E188: 011 | F188: 静岡県 | G188: 葵区 | H188: 清沢村 | I188: 三ッ野 | J188: x | K188: x | L188: x | M188: x | N188: x | O188: x | P188: x | Q188: x | R188: x | S188: x | T188: x | U188: x | V188: x | W188: x | X188: … | Y188: … | Z188: x | AA188: x | AB188: x | AC188: x | AD188: x | AE188: x | AF188: x | AG188: x | AH188: x | AI188: x | AJ188: x | AK188: x | AL188: x | AM188: x | AN188: … | AO188: … | AP188: x | AQ188: x | AR188: x | AS188: x | AT188: x | AU188: x | AV188: x | AW188: x | AX188: x | AY188: x | AZ188: x | BA188: x | BB188: x | BC188: x | BD188: … | BE188: …
A189: 2210110012 | B189: 22 | C189: 101 | D189: 10 | E189: 012 | F189: 静岡県 | G189: 葵区 | H189: 清沢村 | I189: 峰山 | J189: 4 | K189: - | L189: - | M189: - | N189: - | O189: - | P189: - | Q189: - | R189: 1 | S189: 1 | T189: - | U189: - | V189: - | W189: 2 | X189: … | Y189: … | Z189: 3 | AA189: - | AB189: - | AC189: - | AD189: - | AE189: - | AF189: - | AG189: - | AH189: 1 | AI189: - | AJ189: - | AK189: - | AL189: - | AM189: 2 | AN189: … | AO189: … | AP189: 1 | AQ189: - | AR189: - | AS189: - | AT189: - | AU189: - | AV189: - | AW189: - | AX189: - | AY189: 1 | AZ189: - | BA189: - | BB189: - | BC189: - | BD189: … | BE189: …
A190: 2210110013 | B190: 22 | C190: 101 | D190: 10 | E190: 013 | F190: 静岡県 | G190: 葵区 | H190: 清沢村 | I190: 中塚 | J190: 4 | K190: - | L190: - | M190: - | N190: - | O190: - | P190: - | Q190: - | R190: - | S190: - | T190: - | U190: 1 | V190: 1 | W190: 2 | X190: … | Y190: … | Z190: 1 | AA190: - | AB190: - | AC190: - | AD190: - | AE190: - | AF190: - | AG190: - | AH190: - | AI190: - | AJ190: - | AK190: - | AL190: - | AM190: 1 | AN190: … | AO190: … | AP190: 3 | AQ190: - | AR190: - | AS190: - | AT190: - | AU190: - | AV190: - | AW190: - | AX190: - | AY190: - | AZ190: - | BA190: 1 | BB190: 1 | BC190: 1 | BD190: … | BE190: …
A191: 2210110014 | B191: 22 | C191: 101 | D191: 10 | E191: 014 | F191: 静岡県 | G191: 葵区 | H191: 清沢村 | I191: 蛇塚 | J191: 13 | K191: - | L191: - | M191: - | N191: - | O191: 1 | P191: 1 | Q191: - | R191: 4 | S191: 1 | T191: 1 | U191: 1 | V191: 2 | W191: 2 | X191: … | Y191: … | Z191: 7 | AA191: - | AB191: - | AC191: - | AD191: - | AE191: 1 | AF191: - | AG191: - | AH191: 2 | AI191: 1 | AJ191: 1 | AK191: - | AL191: 1 | AM191: 1 | AN191: … | AO191: … | AP191: 6 | AQ191: - | AR191: - | AS191: - | AT191: - | AU191: - | AV191: 1 | AW191: - | AX191: 2 | AY191: - | AZ191: - | BA191: 1 | BB191: 1 | BC191: 1 | BD191: … | BE191: …
A192: 2210110015 | B192: 22 | C192: 101 | D192: 10 | E192: 015 | F192: 静岡県 | G192: 葵区 | H192: 清沢村 | I192: 杉尾 | J192: 13 | K192: - | L192: - | M192: 1 | N192: - | O192: - | P192: - | Q192: - | R192: 4 | S192: - | T192: 1 | U192: 4 | V192: 2 | W192: 1 | X192: … | Y192: … | Z192: 8 | AA192: - | AB192: - | AC192: 1 | AD192: - | AE192: - | AF192: - | AG192: - | AH192: 3 | AI192: - | AJ192: - | AK192: 2 | AL192: 1 | AM192: 1 | AN192: … | AO192: … | AP192: 5 | AQ192: - | AR192: - | AS192: - | AT192: - | AU192: - | AV192: - | AW192: - | AX192: 1 | AY192: - | AZ192: 1 | BA192: 2 | BB192: 1 | BC192: - | BD192: … | BE192: …
A193: 2210111000 | B193: 22 | C193: 101 | D193: 11 | E193: 000 | F193: 静岡県 | G193: 葵区 | H193: 大川村 | J193: 181 | K193: - | L193: - | M193: 1 | N193: 2 | O193: 1 | P193: 7 | Q193: 8 | R193: 15 | S193: 21 | T193: 26 | U193: 28 | V193: 37 | W193: 35 | X193: … | Y193: … | Z193: 101 | AA193: - | AB193: - | AC193: 1 | AD193: 2 | AE193: - | AF193: 4 | AG193: 3 | AH193: 9 | AI193: 11 | AJ193: 13 | AK193: 15 | AL193: 23 | AM193: 20 | AN193: … | AO193: … | AP193: 80 | AQ193: - | AR193: - | AS193: - | AT193: - | AU193: 1 | AV193: 3 | AW193: 5 | AX193: 6 | AY193: 10 | AZ193: 13 | BA193: 13 | BB193: 14 | BC193: 15 | BD193: … | BE193: …
A194: 2210111001 | B194: 22 | C194: 101 | D194: 11 | E194: 001 | F194: 静岡県 | G194: 葵区 | H194: 大川村 | I194: 坂ノ上 | J194: 31 | K194: - | L194: - | M194: - | N194: 1 | O194: - | P194: 1 | Q194: 3 | R194: 3 | S194: 1 | T194: 3 | U194: 6 | V194: 9 | W194: 4 | X194: … | Y194: … | Z194: 20 | AA194: - | AB194: - | AC194: - | AD194: 1 | AE194: - | AF194: 1 | AG194: 1 | AH194: 2 | AI194: 1 | AJ194: 1 | AK194: 5 | AL194: 6 | AM194: 2 | AN194: … | AO194: … | AP194: 11 | AQ194: - | AR194: - | AS194: - | AT194: - | AU194: - | AV194: - | AW194: 2 | AX194: 1 | AY194: - | AZ194: 2 | BA194: 1 | BB194: 3 | BC194: 2 | BD194: … | BE194: …
A195: 2210111002 | B195: 22 | C195: 101 | D195: 11 | E195: 002 | F195: 静岡県 | G195: 葵区 | H195: 大川村 | I195: 栃沢 | J195: 29 | K195: - | L195: - | M195: - | N195: - | O195: - | P195: 1 | Q195: 1 | R195: 2 | S195: 4 | T195: 5 | U195: 5 | V195: 4 | W195: 7 | X195: … | Y195: … | Z195: 17 | AA195: - | AB195: - | AC195: - | AD195: - | AE195: - | AF195: - | AG195: 1 | AH195: 1 | AI195: 2 | AJ195: 2 | AK195: 3 | AL195: 4 | AM195: 4 | AN195: … | AO195: … | AP195: 12 | AQ195: - | AR195: - | AS195: - | AT195: - | AU195: - | AV195: 1 | AW195: - | AX195: 1 | AY195: 2 | AZ195: 3 | BA195: 2 | BB195: - | BC195: 3 | BD195: … | BE195: …
A196: 2210111003 | B196: 22 | C196: 101 | D196: 11 | E196: 003 | F196: 静岡県 | G196: 葵区 | H196: 大川村 | I196: 日向 | J196: 30 | K196: - | L196: - | M196: 1 | N196: 1 | O196: - | P196: 1 | Q196: - | R196: 3 | S196: 4 | T196: 5 | U196: 3 | V196: 5 | W196: 7 | X196: … | Y196: … | Z196: 17 | AA196: - | AB196: - | AC196: 1 | AD196: 1 | AE196: - | AF196: - | AG196: - | AH196: 1 | AI196: 2 | AJ196: 4 | AK196: 1 | AL196: 2 | AM196: 5 | AN196: … | AO196: … | AP196: 13 | AQ196: - | AR196: - | AS196: - | AT196: - | AU196: - | AV196: 1 | AW196: - | AX196: 2 | AY196: 2 | AZ196: 1 | BA196: 2 | BB196: 3 | BC196: 2 | BD196: … | BE196: …
A197: 2210111004 | B197: 22 | C197: 101 | D197: 11 | E197: 004 | F197: 静岡県 | G197: 葵区 | H197: 大川村 | I197: 開拓 | J197: 10 | K197: - | L197: - | M197: - | N197: - | O197: - | P197: - | Q197: - | R197: 2 | S197: 1 | T197: 1 | U197: 2 | V197: 1 | W197: 3 | X197: … | Y197: … | Z197: 6 | AA197: - | AB197: - | AC197: - | AD197: - | AE197: - | AF197: - | AG197: - | AH197: 1 | AI197: 1 | AJ197: 1 | AK197: 1 | AL197: - | AM197: 2 | AN197: … | AO197: … | AP197: 4 | AQ197: - | AR197: - | AS197: - | AT197: - | AU197: - | AV197: - | AW197: - | AX197: 1 | AY197: - | AZ197: - | BA197: 1 | BB197: 1 | BC197: 1 | BD197: … | BE197: …
A198: 2210111005 | B198: 22 | C198: 101 | D198: 11 | E198: 005 | F198: 静岡県 | G198: 葵区 | H198: 大川村 | I198: 諸子沢 | J198: 28 | K198: - | L198: - | M198: - | N198: - | O198: 1 | P198: 2 | Q198: - | R198: 2 | S198: 6 | T198: 5 | U198: - | V198: 5 | W198: 7 | X198: … | Y198: … | Z198: 12 | AA198: - | AB198: - | AC198: - | AD198: - | AE198: - | AF198: 1 | AG198: - | AH198: 1 | AI198: 3 | AJ198: 2 | AK198: - | AL198: 2 | AM198: 3 | AN198: … | AO198: … | AP198: 16 | AQ198: - | AR198: - | AS198: - | AT198: - | AU198: 1 | AV198: 1 | AW198: - | AX198: 1 | AY198: 3 | AZ198: 3 | BA198: - | BB198: 3 | BC198: 4 | BD198: … | BE198: …
A199: 2210111006 | B199: 22 | C199: 101 | D199: 11 | E199: 006 | F199: 静岡県 | G199: 葵区 | H199: 大川村 | I199: 湯ノ島 | J199: 19 | K199: - | L199: - | M199: - | N199: - | O199: - | P199: 1 | Q199: 1 | R199: - | S199: 3 | T199: 3 | U199: 3 | V199: 6 | W199: 2 | X199: … | Y199: … | Z199: 11 | AA199: - | AB199: - | AC199: - | AD199: - | AE199: - | AF199: 1 | AG199: 1 | AH199: - | AI199: 1 | AJ199: 2 | AK199: 1 | AL199: 3 | AM199: 2 | AN199: … | AO199: … | AP199: 8 | AQ199: - | AR199: - | AS199: - | AT199: - | AU199: - | AV199: - | AW199: - | AX199: - | AY199: 2 | AZ199: 1 | BA199: 2 | BB199: 3 | BC199: - | BD199: … | BE199: …
A200: 2210111007 | B200: 22 | C200: 101 | D200: 11 | E200: 007 | F200: 静岡県 | G200: 葵区 | H200: 大川村 | I200: 崩野 | J200: 9 | K200: - | L200: - | M200: - | N200: - | O200: - | P200: - | Q200: - | R200: - | S200: - | T200: 1 | U200: 3 | V200: 4 | W200: 1 | X200: … | Y200: … | Z200: 5 | AA200: - | AB200: - | AC200: - | AD200: - | AE200: - | AF200: - | AG200: - | AH200: - | AI200: - | AJ200: - | AK200: 1 | AL200: 3 | AM200: 1 | AN200: … | AO200: … | AP200: 4 | AQ200: - | AR200: - | AS200: - | AT200: - | AU200: - | AV200: - | AW200: - | AX200: - | AY200: - | AZ200: 1 | BA200: 2 | BB200: 1 | BC200: - | BD200: … | BE200: …
... 925 more rows

Sheet 2010
A1: key | B1: pref | C1: city | D1: kcity | E1: rcom | F1: pref_name | G1: city_name | H1: kcity_name | I1: rcom_name | J1: 男女_計 | K1: 男女_15～19歳 | L1: 男女_20～24 | M1: 男女_25～29 | N1: 男女_30～34 | O1: 男女_35～39 | P1: 男女_40～44 | Q1: 男女_45～49 | R1: 男女_50～54 | S1: 男女_55～59 | T1: 男女_60～64 | U1: 男女_65～69 | V1: 男女_70～74 | W1: 男女_75～79 | X1: 男女_80～84 | Y1: 男女_85歳以上 | Z1: 男_計 | AA1: 男_15～19歳 | AB1: 男_20～24 | AC1: 男_25～29 | AD1: 男_30～34 | AE1: 男_35～39 | AF1: 男_40～44 | AG1: 男_45～49 | AH1: 男_50～54 | AI1: 男_55～59 | AJ1: 男_60～64 | AK1: 男_65～69 | AL1: 男_70～74 | AM1: 男_75～79 | AN1: 男_80～84 | AO1: 男_85歳以上 | AP1: 女_計 | AQ1: 女_15～19歳 | AR1: 女_20～24 | AS1: 女_25～29 | AT1: 女_30～34 | AU1: 女_35～39 | AV1: 女_40～44 | AW1: 女_45～49 | AX1: 女_50～54 | AY1: 女_55～59 | AZ1: 女_60～64 | BA1: 女_65～69 | BB1: 女_70～74 | BC1: 女_75～79 | BD1: 女_80～84 | BE1: 女_85歳以上
A2: 2200000000 | B2: 22 | C2: 000 | D2: 00 | E2: 000 | F2: 静岡県 | J2: 63958 | K2: 12 | L2: 183 | M2: 505 | N2: 709 | O2: 997 | P2: 1222 | Q2: 2236 | R2: 3830 | S2: 5889 | T2: 7845 | U2: 8900 | V2: 10599 | W2: 10522 | X2: 7577 | Y2: 2932 | Z2: 33822 | AA2: 7 | AB2: 160 | AC2: 412 | AD2: 566 | AE2: 669 | AF2: 733 | AG2: 1149 | AH2: 1873 | AI2: 2918 | AJ2: 4102 | AK2: 4372 | AL2: 5355 | AM2: 5699 | AN2: 4169 | AO2: 1638 | AP2: 30136 | AQ2: 5 | AR2: 23 | AS2: 93 | AT2: 143 | AU2: 328 | AV2: 489 | AW2: 1087 | AX2: 1957 | AY2: 2971 | AZ2: 3743 | BA2: 4528 | BB2: 5244 | BC2: 4823 | BD2: 3408 | BE2: 1294
A3: 2210100000 | B3: 22 | C3: 101 | D3: 00 | E3: 000 | F3: 静岡県 | G3: 葵区 | J3: 3109 | K3: - | L3: 7 | M3: 17 | N3: 26 | O3: 34 | P3: 40 | Q3: 102 | R3: 216 | S3: 372 | T3: 393 | U3: 420 | V3: 548 | W3: 469 | X3: 342 | Y3: 123 | Z3: 1671 | AA3: - | AB3: 6 | AC3: 15 | AD3: 22 | AE3: 21 | AF3: 26 | AG3: 57 | AH3: 115 | AI3: 194 | AJ3: 209 | AK3: 200 | AL3: 285 | AM3: 262 | AN3: 182 | AO3: 77 | AP3: 1438 | AQ3: - | AR3: 1 | AS3: 2 | AT3: 4 | AU3: 13 | AV3: 14 | AW3: 45 | AX3: 101 | AY3: 178 | AZ3: 184 | BA3: 220 | BB3: 263 | BC3: 207 | BD3: 160 | BE3: 46
A4: 2210101000 | B4: 22 | C4: 101 | D4: 01 | E4: 000 | F4: 静岡県 | G4: 葵区 | H4: 静岡市２－１ | J4: 1134 | K4: - | L4: 3 | M4: 6 | N4: 12 | O4: 10 | P4: 18 | Q4: 37 | R4: 95 | S4: 120 | T4: 138 | U4: 153 | V4: 198 | W4: 170 | X4: 135 | Y4: 39 | Z4: 601 | AA4: - | AB4: 2 | AC4: 6 | AD4: 8 | AE4: 6 | AF4: 9 | AG4: 21 | AH4: 58 | AI4: 65 | AJ4: 75 | AK4: 63 | AL4: 98 | AM4: 89 | AN4: 74 | AO4: 27 | AP4: 533 | AQ4: - | AR4: 1 | AS4: - | AT4: 4 | AU4: 4 | AV4: 9 | AW4: 16 | AX4: 37 | AY4: 55 | AZ4: 63 | BA4: 90 | BB4: 100 | BC4: 81 | BD4: 61 | BE4: 12
A5: 2210101001 | B5: 22 | C5: 101 | D5: 01 | E5: 001 | F5: 静岡県 | G5: 葵区 | H5: 静岡市２－１ | I5: 田中 | J5: 6 | K5: - | L5: - | M5: - | N5: - | O5: - | P5: - | Q5: - | R5: - | S5: - | T5: - | U5: - | V5: 1 | W5: 5 | X5: - | Y5: - | Z5: 3 | AA5: - | AB5: - | AC5: - | AD5: - | AE5: - | AF5: - | AG5: - | AH5: - | AI5: - | AJ5: - | AK5: - | AL5: - | AM5: 3 | AN5: - | AO5: - | AP5: 3 | AQ5: - | AR5: - | AS5: - | AT5: - | AU5: - | AV5: - | AW5: - | AX5: - | AY5: - | AZ5: - | BA5: - | BB5: 1 | BC5: 2 | BD5: - | BE5: -
A6: 2210101002 | B6: 22 | C6: 101 | D6: 01 | E6: 002 | F6: 静岡県 | G6: 葵区 | H6: 静岡市２－１ | I6: 柳新田 | J6: 23 | K6: - | L6: - | M6: - | N6: 1 | O6: - | P6: - | Q6: - | R6: 1 | S6: 2 | T6: 3 | U6: 4 | V6: 4 | W6: 5 | X6: - | Y6: 3 | Z6: 13 | AA6: - | AB6: - | AC6: - | AD6: 1 | AE6: - | AF6: - | AG6: - | AH6: - | AI6: 1 | AJ6: 2 | AK6: 2 | AL6: 3 | AM6: 2 | AN6: - | AO6: 2 | AP6: 10 | AQ6: - | AR6: - | AS6: - | AT6: - | AU6: - | AV6: - | AW6: - | AX6: 1 | AY6: 1 | AZ6: 1 | BA6: 2 | BB6: 1 | BC6: 3 | BD6: - | BE6: 1
A7: 2210101003 | B7: 22 | C7: 101 | D7: 01 | E7: 003 | F7: 静岡県 | G7: 葵区 | H7: 静岡市２－１ | I7: 大岩下 | J7: - | K7: - | L7: - | M7: - | N7: - | O7: - | P7: - | Q7: - | R7: - | S7: - | T7: - | U7: - | V7: - | W7: - | X7: - | Y7: - | Z7: - | AA7: - | AB7: - | AC7: - | AD7: - | AE7: - | AF7: - | AG7: - | AH7: - | AI7: - | AJ7: - | AK7: - | AL7: - | AM7: - | AN7: - | AO7: - | AP7: - | AQ7: - | AR7: - | AS7: - | AT7: - | AU7: - | AV7: - | AW7: - | AX7: - | AY7: - | AZ7: - | BA7: - | BB7: - | BC7: - | BD7: - | BE7: -
A8: 2210101004 | B8: 22 | C8: 101 | D8: 01 | E8: 004 | F8: 静岡県 | G8: 葵区 | H8: 静岡市２－１ | I8: 本通・田町・安西・柳町 | J8: x | K8: x | L8: x | M8: x | N8: x | O8: x | P8: x | Q8: x | R8: x | S8: x | T8: x | U8: x | V8: x | W8: x | X8: x | Y8: x | Z8: x | AA8: x | AB8: x | AC8: x | AD8: x | AE8: x | AF8: x | AG8: x | AH8: x | AI8: x | AJ8: x | AK8: x | AL8: x | AM8: x | AN8: x | AO8: x | AP8: x | AQ8: x | AR8: x | AS8: x | AT8: x | AU8: x | AV8: x | AW8: x | AX8: x | AY8: x | AZ8: x | BA8: x | BB8: x | BC8: x | BD8: x | BE8: x
A9: 2210101005 | B9: 22 | C9: 101 | D9: 01 | E9: 005 | F9: 静岡県 | G9: 葵区 | H9: 静岡市２－１ | I9: 水道・井宮 | J9: x | K9: x | L9: x | M9: x | N9: x | O9: x | P9: x | Q9: x | R9: x | S9: x | T9: x | U9: x | V9: x | W9: x | X9: x | Y9: x | Z9: x | AA9: x | AB9: x | AC9: x | AD9: x | AE9: x | AF9: x | AG9: x | AH9: x | AI9: x | AJ9: x | AK9: x | AL9: x | AM9: x | AN9: x | AO9: x | AP9: x | AQ9: x | AR9: x | AS9: x | AT9: x | AU9: x | AV9: x | AW9: x | AX9: x | AY9: x | AZ9: x | BA9: x | BB9: x | BC9: x | BD9: x | BE9: x
A10: 2210101006 | B10: 22 | C10: 101 | D10: 01 | E10: 006 | F10: 静岡県 | G10: 葵区 | H10: 静岡市２－１ | I10: 安東の東 | J10: x | K10: x | L10: x | M10: x | N10: x | O10: x | P10: x | Q10: x | R10: x | S10: x | T10: x | U10: x | V10: x | W10: x | X10: x | Y10: x | Z10: x | AA10: x | AB10: x | AC10: x | AD10: x | AE10: x | AF10: x | AG10: x | AH10: x | AI10: x | AJ10: x | AK10: x | AL10: x | AM10: x | AN10: x | AO10: x | AP10: x | AQ10: x | AR10: x | AS10: x | AT10: x | AU10: x | AV10: x | AW10: x | AX10: x | AY10: x | AZ10: x | BA10: x | BB10: x | BC10: x | BD10: x | BE10: x
A11: 2210101007 | B11: 22 | C11: 101 | D11: 01 | E11: 007 | F11: 静岡県 | G11: 葵区 | H11: 静岡市２－１ | I11: 安東の西 | J11: x | K11: x | L11: x | M11: x | N11: x | O11: x | P11: x | Q11: x | R11: x | S11: x | T11: x | U11: x | V11: x | W11: x | X11: x | Y11: x | Z11: x | AA11: x | AB11: x | AC11: x | AD11: x | AE11: x | AF11: x | AG11: x | AH11: x | AI11: x | AJ11: x | AK11: x | AL11: x | AM11: x | AN11: x | AO11: x | AP11: x | AQ11: x | AR11: x | AS11: x | AT11: x | AU11: x | AV11: x | AW11: x | AX11: x | AY11: x | AZ11: x | BA11: x | BB11: x | BC11: x | BD11: x | BE11: x
A12: 2210101008 | B12: 22 | C12: 101 | D12: 01 | E12: 008 | F12: 静岡県 | G12: 葵区 | H12: 静岡市２－１ | I12: 大岩上 | J12: 10 | K12: - | L12: - | M12: - | N12: - | O12: - | P12: - | Q12: 1 | R12: 2 | S12: 1 | T12: 2 | U12: 1 | V12: 1 | W12: 1 | X12: 1 | Y12: - | Z12: 5 | AA12: - | AB12: - | AC12: - | AD12: - | AE12: - | AF12: - | AG12: - | AH12: 2 | AI12: - | AJ12: 1 | AK12: 1 | AL12: - | AM12: 1 | AN12: - | AO12: - | AP12: 5 | AQ12: - | AR12: - | AS12: - | AT12: - | AU12: - | AV12: - | AW12: 1 | AX12: - | AY12: 1 | AZ12: 1 | BA12: - | BB12: 1 | BC12: - | BD12: 1 | BE12: -
A13: 2210101009 | B13: 22 | C13: 101 | D13: 01 | E13: 009 | F13: 静岡県 | G13: 葵区 | H13: 静岡市２－１ | I13: 長沼南 | J13: 4 | K13: - | L13: - | M13: - | N13: - | O13: - | P13: - | Q13: - | R13: - | S13: 1 | T13: - | U13: - | V13: 1 | W13: 2 | X13: - | Y13: - | Z13: 2 | AA13: - | AB13: - | AC13: - | AD13: - | AE13: - | AF13: - | AG13: - | AH13: - | AI13: 1 | AJ13: - | AK13: - | AL13: 1 | AM13: - | AN13: - | AO13: - | AP13: 2 | AQ13: - | AR13: - | AS13: - | AT13: - | AU13: - | AV13: - | AW13: - | AX13: - | AY13: - | AZ13: - | BA13: - | BB13: - | BC13: 2 | BD13: - | BE13: -
A14: 2210101010 | B14: 22 | C14: 101 | D14: 01 | E14: 010 | F14: 静岡県 | G14: 葵区 | H14: 静岡市２－１ | I14: 長沼北 | J14: x | K14: x | L14: x | M14: x | N14: x | O14: x | P14: x | Q14: x | R14: x | S14: x | T14: x | U14: x | V14: x | W14: x | X14: x | Y14: x | Z14: x | AA14: x | AB14: x | AC14: x | AD14: x | AE14: x | AF14: x | AG14: x | AH14: x | AI14: x | AJ14: x | AK14: x | AL14: x | AM14: x | AN14: x | AO14: x | AP14: x | AQ14: x | AR14: x | AS14: x | AT14: x | AU14: x | AV14: x | AW14: x | AX14: x | AY14: x | AZ14: x | BA14: x | BB14: x | BC14: x | BD14: x | BE14: x
A15: 2210101011 | B15: 22 | C15: 101 | D15: 01 | E15: 011 | F15: 静岡県 | G15: 葵区 | H15: 静岡市２－１ | I15: 古庄 | J15: 7 | K15: - | L15: - | M15: - | N15: - | O15: - | P15: - | Q15: - | R15: - | S15: - | T15: 1 | U15: 1 | V15: 3 | W15: - | X15: 1 | Y15: 1 | Z15: 4 | AA15: - | AB15: - | AC15: - | AD15: - | AE15: - | AF15: - | AG15: - | AH15: - | AI15: - | AJ15: 1 | AK15: - | AL15: 2 | AM15: - | AN15: - | AO15: 1 | AP15: 3 | AQ15: - | AR15: - | AS15: - | AT15: - | AU15: - | AV15: - | AW15: - | AX15: - | AY15: - | AZ15: - | BA15: 1 | BB15: 1 | BC15: - | BD15: 1 | BE15: -
A16: 2210101012 | B16: 22 | C16: 101 | D16: 01 | E16: 012 | F16: 静岡県 | G16: 葵区 | H16: 静岡市２－１ | I16: 柚木 | J16: - | K16: - | L16: - | M16: - | N16: - | O16: - | P16: - | Q16: - | R16: - | S16: - | T16: - | U16: - | V16: - | W16: - | X16: - | Y16: - | Z16: - | AA16: - | AB16: - | AC16: - | AD16: - | AE16: - | AF16: - | AG16: - | AH16: - | AI16: - | AJ16: - | AK16: - | AL16: - | AM16: - | AN16: - | AO16: - | AP16: - | AQ16: - | AR16: - | AS16: - | AT16: - | AU16: - | AV16: - | AW16: - | AX16: - | AY16: - | AZ16: - | BA16: - | BB16: - | BC16: - | BD16: - | BE16: -
A17: 2210101013 | B17: 22 | C17: 101 | D17: 01 | E17: 013 | F17: 静岡県 | G17: 葵区 | H17: 静岡市２－１ | I17: 瓦場 | J17: - | K17: - | L17: - | M17: - | N17: - | O17: - | P17: - | Q17: - | R17: - | S17: - | T17: - | U17: - | V17: - | W17: - | X17: - | Y17: - | Z17: - | AA17: - | AB17: - | AC17: - | AD17: - | AE17: - | AF17: - | AG17: - | AH17: - | AI17: - | AJ17: - | AK17: - | AL17: - | AM17: - | AN17: - | AO17: - | AP17: - | AQ17: - | AR17: - | AS17: - | AT17: - | AU17: - | AV17: - | AW17: - | AX17: - | AY17: - | AZ17: - | BA17: - | BB17: - | BC17: - | BD17: - | BE17: -
A18: 2210101014 | B18: 22 | C18: 101 | D18: 01 | E18: 014 | F18: 静岡県 | G18: 葵区 | H18: 静岡市２－１ | I18: 川辺２－１ | J18: - | K18: - | L18: - | M18: - | N18: - | O18: - | P18: - | Q18: - | R18: - | S18: - | T18: - | U18: - | V18: - | W18: - | X18: - | Y18: - | Z18: - | AA18: - | AB18: - | AC18: - | AD18: - | AE18: - | AF18: - | AG18: - | AH18: - | AI18: - | AJ18: - | AK18: - | AL18: - | AM18: - | AN18: - | AO18: - | AP18: - | AQ18: - | AR18: - | AS18: - | AT18: - | AU18: - | AV18: - | AW18: - | AX18: - | AY18: - | AZ18: - | BA18: - | BB18: - | BC18: - | BD18: - | BE18: -
A19: 2210101015 | B19: 22 | C19: 101 | D19: 01 | E19: 015 | F19: 静岡県 | G19: 葵区 | H19: 静岡市２－１ | I19: 南安倍２－１ | J19: - | K19: - | L19: - | M19: - | N19: - | O19: - | P19: - | Q19: - | R19: - | S19: - | T19: - | U19: - | V19: - | W19: - | X19: - | Y19: - | Z19: - | AA19: - | AB19: - | AC19: - | AD19: - | AE19: - | AF19: - | AG19: - | AH19: - | AI19: - | AJ19: - | AK19: - | AL19: - | AM19: - | AN19: - | AO19: - | AP19: - | AQ19: - | AR19: - | AS19: - | AT19: - | AU19: - | AV19: - | AW19: - | AX19: - | AY19: - | AZ19: - | BA19: - | BB19: - | BC19: - | BD19: - | BE19: -
A20: 2210101016 | B20: 22 | C20: 101 | D20: 01 | E20: 016 | F20: 静岡県 | G20: 葵区 | H20: 静岡市２－１ | I20: 籠上 | J20: 8 | K20: - | L20: - | M20: - | N20: 1 | O20: - | P20: 1 | Q20: - | R20: 1 | S20: - | T20: - | U20: 2 | V20: 1 | W20: 1 | X20: 1 | Y20: - | Z20: 5 | AA20: - | AB20: - | AC20: - | AD20: - | AE20: - | AF20: 1 | AG20: - | AH20: 1 | AI20: - | AJ20: - | AK20: - | AL20: 1 | AM20: 1 | AN20: 1 | AO20: - | AP20: 3 | AQ20: - | AR20: - | AS20: - | AT20: 1 | AU20: - | AV20: - | AW20: - | AX20: - | AY20: - | AZ20: - | BA20: 2 | BB20: - | BC20: - | BD20: - | BE20: -
A21: 2210101017 | B21: 22 | C21: 101 | D21: 01 | E21: 017 | F21: 静岡県 | G21: 葵区 | H21: 静岡市２－１ | I21: 松富下 | J21: 37 | K21: - | L21: - | M21: - | N21: - | O21: - | P21: - | Q21: 1 | R21: - | S21: 5 | T21: 7 | U21: 4 | V21: 10 | W21: 6 | X21: 1 | Y21: 3 | Z21: 21 | AA21: - | AB21: - | AC21: - | AD21: - | AE21: - | AF21: - | AG21: 1 | AH21: - | AI21: 2 | AJ21: 3 | AK21: 2 | AL21: 6 | AM21: 4 | AN21: - | AO21: 3 | AP21: 16 | AQ21: - | AR21: - | AS21: - | AT21: - | AU21: - | AV21: - | AW21: - | AX21: - | AY21: 3 | AZ21: 4 | BA21: 2 | BB21: 4 | BC21: 2 | BD21: 1 | BE21: -
A22: 2210101018 | B22: 22 | C22: 101 | D22: 01 | E22: 018 | F22: 静岡県 | G22: 葵区 | H22: 静岡市２－１ | I22: 松富上１区 | J22: x | K22: x | L22: x | M22: x | N22: x | O22: x | P22: x | Q22: x | R22: x | S22: x | T22: x | U22: x | V22: x | W22: x | X22: x | Y22: x | Z22: x | AA22: x | AB22: x | AC22: x | AD22: x | AE22: x | AF22: x | AG22: x | AH22: x | AI22: x | AJ22: x | AK22: x | AL22: x | AM22: x | AN22: x | AO22: x | AP22: x | AQ22: x | AR22: x | AS22: x | AT22: x | AU22: x | AV22: x | AW22: x | AX22: x | AY22: x | AZ22: x | BA22: x | BB22: x | BC22: x | BD22: x | BE22: x
A23: 2210101019 | B23: 22 | C23: 101 | D23: 01 | E23: 019 | F23: 静岡県 | G23: 葵区 | H23: 静岡市２－１ | I23: 松富上 | J23: x | K23: x | L23: x | M23: x | N23: x | O23: x | P23: x | Q23: x | R23: x | S23: x | T23: x | U23: x | V23: x | W23: x | X23: x | Y23: x | Z23: x | AA23: x | AB23: x | AC23: x | AD23: x | AE23: x | AF23: x | AG23: x | AH23: x | AI23: x | AJ23: x | AK23: x | AL23: x | AM23: x | AN23: x | AO23: x | AP23: x | AQ23: x | AR23: x | AS23: x | AT23: x | AU23: x | AV23: x | AW23: x | AX23: x | AY23: x | AZ23: x | BA23: x | BB23: x | BC23: x | BD23: x | BE23: x
A24: 2210101020 | B24: 22 | C24: 101 | D24: 01 | E24: 020 | F24: 静岡県 | G24: 葵区 | H24: 静岡市２－１ | I24: 下伝馬町新田 | J24: 13 | K24: - | L24: - | M24: - | N24: - | O24: - | P24: - | Q24: - | R24: 1 | S24: 1 | T24: 3 | U24: 1 | V24: 1 | W24: - | X24: 5 | Y24: 1 | Z24: 8 | AA24: - | AB24: - | AC24: - | AD24: - | AE24: - | AF24: - | AG24: - | AH24: 1 | AI24: 1 | AJ24: 1 | AK24: 1 | AL24: - | AM24: - | AN24: 3 | AO24: 1 | AP24: 5 | AQ24: - | AR24: - | AS24: - | AT24: - | AU24: - | AV24: - | AW24: - | AX24: - | AY24: - | AZ24: 2 | BA24: - | BB24: 1 | BC24: - | BD24: 2 | BE24: -
A25: 2210101021 | B25: 22 | C25: 101 | D25: 01 | E25: 021 | F25: 静岡県 | G25: 葵区 | H25: 静岡市２－１ | I25: 上伝馬町新田 | J25: 9 | K25: - | L25: - | M25: - | N25: - | O25: - | P25: - | Q25: - | R25: - | S25: 3 | T25: - | U25: 1 | V25: 3 | W25: - | X25: 1 | Y25: 1 | Z25: 5 | AA25: - | AB25: - | AC25: - | AD25: - | AE25: - | AF25: - | AG25: - | AH25: - | AI25: 2 | AJ25: - | AK25: - | AL25: 2 | AM25: - | AN25: - | AO25: 1 | AP25: 4 | AQ25: - | AR25: - | AS25: - | AT25: - | AU25: - | AV25: - | AW25: - | AX25: - | AY25: 1 | AZ25: - | BA25: 1 | BB25: 1 | BC25: - | BD25: 1 | BE25: -
A26: 2210101022 | B26: 22 | C26: 101 | D26: 01 | E26: 022 | F26: 静岡県 | G26: 葵区 | H26: 静岡市２－１ | I26: 与一右衛門新田 | J26: 26 | K26: - | L26: - | M26: - | N26: - | O26: 1 | P26: 2 | Q26: - | R26: - | S26: 4 | T26: 3 | U26: 2 | V26: 3 | W26: 4 | X26: 3 | Y26: 4 | Z26: 14 | AA26: - | AB26: - | AC26: - | AD26: - | AE26: 1 | AF26: 1 | AG26: - | AH26: - | AI26: 2 | AJ26: 2 | AK26: - | AL26: 2 | AM26: 2 | AN26: 1 | AO26: 3 | AP26: 12 | AQ26: - | AR26: - | AS26: - | AT26: - | AU26: - | AV26: 1 | AW26: - | AX26: - | AY26: 2 | AZ26: 1 | BA26: 2 | BB26: 1 | BC26: 2 | BD26: 2 | BE26: 1
A27: 2210101023 | B27: 22 | C27: 101 | D27: 01 | E27: 023 | F27: 静岡県 | G27: 葵区 | H27: 静岡市２－１ | I27: 福田ヶ谷 | J27: 48 | K27: - | L27: - | M27: 1 | N27: 1 | O27: - | P27: - | Q27: 2 | R27: 5 | S27: 5 | T27: 8 | U27: 8 | V27: 9 | W27: 4 | X27: 3 | Y27: 2 | Z27: 23 | AA27: - | AB27: - | AC27: 1 | AD27: - | AE27: - | AF27: - | AG27: 1 | AH27: 2 | AI27: 2 | AJ27: 4 | AK27: 3 | AL27: 5 | AM27: 3 | AN27: 1 | AO27: 1 | AP27: 25 | AQ27: - | AR27: - | AS27: - | AT27: 1 | AU27: - | AV27: - | AW27: 1 | AX27: 3 | AY27: 3 | AZ27: 4 | BA27: 5 | BB27: 4 | BC27: 1 | BD27: 2 | BE27: 1
A28: 2210101024 | B28: 22 | C28: 101 | D28: 01 | E28: 024 | F28: 静岡県 | G28: 葵区 | H28: 静岡市２－１ | I28: 下 | J28: 87 | K28: - | L28: 1 | M28: 1 | N28: 2 | O28: 1 | P28: - | Q28: 5 | R28: 10 | S28: 8 | T28: 8 | U28: 10 | V28: 20 | W28: 11 | X28: 7 | Y28: 3 | Z28: 44 | AA28: - | AB28: 1 | AC28: 1 | AD28: 1 | AE28: 1 | AF28: - | AG28: 2 | AH28: 5 | AI28: 3 | AJ28: 5 | AK28: 2 | AL28: 10 | AM28: 7 | AN28: 3 | AO28: 3 | AP28: 43 | AQ28: - | AR28: - | AS28: - | AT28: 1 | AU28: - | AV28: - | AW28: 3 | AX28: 5 | AY28: 5 | AZ28: 3 | BA28: 8 | BB28: 10 | BC28: 4 | BD28: 4 | BE28: -
A29: 2210101025 | B29: 22 | C29: 101 | D29: 01 | E29: 025 | F29: 静岡県 | G29: 葵区 | H29: 静岡市２－１ | I29: 門屋 | J29: 29 | K29: - | L29: - | M29: - | N29: - | O29: - | P29: 1 | Q29: - | R29: 3 | S29: - | T29: 6 | U29: 2 | V29: 7 | W29: 6 | X29: 4 | Y29: - | Z29: 14 | AA29: - | AB29: - | AC29: - | AD29: - | AE29: - | AF29: - | AG29: - | AH29: 2 | AI29: - | AJ29: 2 | AK29: - | AL29: 3 | AM29: 4 | AN29: 3 | AO29: - | AP29: 15 | AQ29: - | AR29: - | AS29: - | AT29: - | AU29: - | AV29: 1 | AW29: - | AX29: 1 | AY29: - | AZ29: 4 | BA29: 2 | BB29: 4 | BC29: 2 | BD29: 1 | BE29: -
A30: 2210101026 | B30: 22 | C30: 101 | D30: 01 | E30: 026 | F30: 静岡県 | G30: 葵区 | H30: 静岡市２－１ | I30: 牛妻 | J30: 56 | K30: - | L30: - | M30: - | N30: - | O30: 1 | P30: 1 | Q30: - | R30: 6 | S30: 2 | T30: 5 | U30: 11 | V30: 10 | W30: 10 | X30: 7 | Y30: 3 | Z30: 29 | AA30: - | AB30: - | AC30: - | AD30: - | AE30: 1 | AF30: - | AG30: - | AH30: 4 | AI30: 2 | AJ30: 2 | AK30: 4 | AL30: 7 | AM30: 5 | AN30: 2 | AO30: 2 | AP30: 27 | AQ30: - | AR30: - | AS30: - | AT30: - | AU30: - | AV30: 1 | AW30: - | AX30: 2 | AY30: - | AZ30: 3 | BA30: 7 | BB30: 3 | BC30: 5 | BD30: 5 | BE30: 1
A31: 2210101027 | B31: 22 | C31: 101 | D31: 01 | E31: 027 | F31: 静岡県 | G31: 葵区 | H31: 静岡市２－１ | I31: 郷島 | J31: 27 | K31: - | L31: - | M31: - | N31: - | O31: - | P31: 1 | Q31: 2 | R31: 3 | S31: 3 | T31: 6 | U31: 3 | V31: 4 | W31: 4 | X31: 1 | Y31: - | Z31: 14 | AA31: - | AB31: - | AC31: - | AD31: - | AE31: - | AF31: - | AG31: 1 | AH31: 2 | AI31: 1 | AJ31: 3 | AK31: 1 | AL31: 2 | AM31: 3 | AN31: 1 | AO31: - | AP31: 13 | AQ31: - | AR31: - | AS31: - | AT31: - | AU31: - | AV31: 1 | AW31: 1 | AX31: 1 | AY31: 2 | AZ31: 3 | BA31: 2 | BB31: 2 | BC31: 1 | BD31: - | BE31: -
A32: 2210101028 | B32: 22 | C32: 101 | D32: 01 | E32: 028 | F32: 静岡県 | G32: 葵区 | H32: 静岡市２－１ | I32: 野田平 | J32: 22 | K32: - | L32: - | M32: - | N32: - | O32: - | P32: 1 | Q32: - | R32: 3 | S32: 4 | T32: 4 | U32: 3 | V32: 1 | W32: 1 | X32: 4 | Y32: 1 | Z32: 10 | AA32: - | AB32: - | AC32: - | AD32: - | AE32: - | AF32: - | AG32: - | AH32: 1 | AI32: 2 | AJ32: 2 | AK32: 1 | AL32: 1 | AM32: - | AN32: 2 | AO32: 1 | AP32: 12 | AQ32: - | AR32: - | AS32: - | AT32: - | AU32: - | AV32: 1 | AW32: - | AX32: 2 | AY32: 2 | AZ32: 2 | BA32: 2 | BB32: - | BC32: 1 | BD32: 2 | BE32: -
A33: 2210101029 | B33: 22 | C33: 101 | D33: 01 | E33: 029 | F33: 静岡県 | G33: 葵区 | H33: 静岡市２－１ | I33: 俵沢 | J33: 11 | K33: - | L33: - | M33: - | N33: - | O33: - | P33: - | Q33: - | R33: 2 | S33: 1 | T33: 2 | U33: 1 | V33: 1 | W33: 2 | X33: 2 | Y33: - | Z33: 5 | AA33: - | AB33: - | AC33: - | AD33: - | AE33: - | AF33: - | AG33: - | AH33: 1 | AI33: 1 | AJ33: - | AK33: - | AL33: 1 | AM33: - | AN33: 2 | AO33: - | AP33: 6 | AQ33: - | AR33: - | AS33: - | AT33: - | AU33: - | AV33: - | AW33: - | AX33: 1 | AY33: - | AZ33: 2 | BA33: 1 | BB33: - | BC33: 2 | BD33: - | BE33: -
A34: 2210101030 | B34: 22 | C34: 101 | D34: 01 | E34: 030 | F34: 静岡県 | G34: 葵区 | H34: 静岡市２－１ | I34: 俵峰 | J34: 66 | K34: - | L34: - | M34: - | N34: 1 | O34: 1 | P34: 2 | Q34: 4 | R34: 3 | S34: 10 | T34: 14 | U34: 6 | V34: 4 | W34: 5 | X34: 7 | Y34: 9 | Z34: 30 | AA34: - | AB34: - | AC34: - | AD34: - | AE34: - | AF34: 1 | AG34: 2 | AH34: 2 | AI34: 4 | AJ34: 7 | AK34: 4 | AL34: - | AM34: 3 | AN34: 4 | AO34: 3 | AP34: 36 | AQ34: - | AR34: - | AS34: - | AT34: 1 | AU34: 1 | AV34: 1 | AW34: 2 | AX34: 1 | AY34: 6 | AZ34: 7 | BA34: 2 | BB34: 4 | BC34: 2 | BD34: 3 | BE34: 6
A35: 2210101031 | B35: 22 | C35: 101 | D35: 01 | E35: 031 | F35: 静岡県 | G35: 葵区 | H35: 静岡市２－１ | I35: 油島 | J35: x | K35: x | L35: x | M35: x | N35: x | O35: x | P35: x | Q35: x | R35: x | S35: x | T35: x | U35: x | V35: x | W35: x | X35: x | Y35: x | Z35: x | AA35: x | AB35: x | AC35: x | AD35: x | AE35: x | AF35: x | AG35: x | AH35: x | AI35: x | AJ35: x | AK35: x | AL35: x | AM35: x | AN35: x | AO35: x | AP35: x | AQ35: x | AR35: x | AS35: x | AT35: x | AU35: x | AV35: x | AW35: x | AX35: x | AY35: x | AZ35: x | BA35: x | BB35: x | BC35: x | BD35: x | BE35: x
A36: 2210101032 | B36: 22 | C36: 101 | D36: 01 | E36: 032 | F36: 静岡県 | G36: 葵区 | H36: 静岡市２－１ | I36: 上足洗 | J36: 38 | K36: - | L36: - | M36: - | N36: - | O36: 1 | P36: 1 | Q36: 3 | R36: 4 | S36: 2 | T36: 3 | U36: 4 | V36: 7 | W36: 5 | X36: 8 | Y36: - | Z36: 21 | AA36: - | AB36: - | AC36: - | AD36: - | AE36: 1 | AF36: - | AG36: 2 | AH36: 4 | AI36: - | AJ36: 2 | AK36: 2 | AL36: 3 | AM36: 2 | AN36: 5 | AO36: - | AP36: 17 | AQ36: - | AR36: - | AS36: - | AT36: - | AU36: - | AV36: 1 | AW36: 1 | AX36: - | AY36: 2 | AZ36: 1 | BA36: 2 | BB36: 4 | BC36: 3 | BD36: 3 | BE36: -
A37: 2210101033 | B37: 22 | C37: 101 | D37: 01 | E37: 033 | F37: 静岡県 | G37: 葵区 | H37: 静岡市２－１ | I37: 沓谷 | J37: 15 | K37: - | L37: - | M37: - | N37: - | O37: - | P37: - | Q37: - | R37: 1 | S37: - | T37: 3 | U37: 1 | V37: 3 | W37: 6 | X37: - | Y37: 1 | Z37: 5 | AA37: - | AB37: - | AC37: - | AD37: - | AE37: - | AF37: - | AG37: - | AH37: 1 | AI37: - | AJ37: 1 | AK37: 1 | AL37: - | AM37: 2 | AN37: - | AO37: - | AP37: 10 | AQ37: - | AR37: - | AS37: - | AT37: - | AU37: - | AV37: - | AW37: - | AX37: - | AY37: - | AZ37: 2 | BA37: - | BB37: 3 | BC37: 4 | BD37: - | BE37: 1
A38: 2210101034 | B38: 22 | C38: 101 | D38: 01 | E38: 034 | F38: 静岡県 | G38: 葵区 | H38: 静岡市２－１ | I38: 千代田 | J38: 31 | K38: - | L38: - | M38: - | N38: - | O38: - | P38: - | Q38: 3 | R38: 1 | S38: - | T38: 3 | U38: 6 | V38: 5 | W38: 8 | X38: 4 | Y38: 1 | Z38: 15 | AA38: - | AB38: - | AC38: - | AD38: - | AE38: - | AF38: - | AG38: 1 | AH38: 1 | AI38: - | AJ38: 2 | AK38: 1 | AL38: 4 | AM38: 2 | AN38: 3 | AO38: 1 | AP38: 16 | AQ38: - | AR38: - | AS38: - | AT38: - | AU38: - | AV38: - | AW38: 2 | AX38: - | AY38: - | AZ38: 1 | BA38: 5 | BB38: 1 | BC38: 6 | BD38: 1 | BE38: -
A39: 2210101035 | B39: 22 | C39: 101 | D39: 01 | E39: 035 | F39: 静岡県 | G39: 葵区 | H39: 静岡市２－１ | I39: 上土 | J39: 28 | K39: - | L39: - | M39: - | N39: - | O39: - | P39: - | Q39: - | R39: - | S39: 1 | T39: 3 | U39: 8 | V39: 7 | W39: 6 | X39: 3 | Y39: - | Z39: 15 | AA39: - | AB39: - | AC39: - | AD39: - | AE39: - | AF39: - | AG39: - | AH39: - | AI39: 1 | AJ39: 2 | AK39: 3 | AL39: 5 | AM39: 2 | AN39: 2 | AO39: - | AP39: 13 | AQ39: - | AR39: - | AS39: - | AT39: - | AU39: - | AV39: - | AW39: - | AX39: - | AY39: - | AZ39: 1 | BA39: 5 | BB39: 2 | BC39: 4 | BD39: 1 | BE39: -
A40: 2210101036 | B40: 22 | C40: 101 | D40: 01 | E40: 036 | F40: 静岡県 | G40: 葵区 | H40: 静岡市２－１ | I40: 川合本田 | J40: 11 | K40: - | L40: - | M40: 1 | N40: 1 | O40: - | P40: - | Q40: - | R40: 1 | S40: 2 | T40: - | U40: 1 | V40: 1 | W40: 2 | X40: 2 | Y40: - | Z40: 6 | AA40: - | AB40: - | AC40: 1 | AD40: 1 | AE40: - | AF40: - | AG40: - | AH40: 1 | AI40: 1 | AJ40: - | AK40: - | AL40: - | AM40: 1 | AN40: 1 | AO40: - | AP40: 5 | AQ40: - | AR40: - | AS40: - | AT40: - | AU40: - | AV40: - | AW40: - | AX40: - | AY40: 1 | AZ40: - | BA40: 1 | BB40: 1 | BC40: 1 | BD40: 1 | BE40: -
A41: 2210101037 | B41: 22 | C41: 101 | D41: 01 | E41: 037 | F41: 静岡県 | G41: 葵区 | H41: 静岡市２－１ | I41: 川合本村 | J41: 12 | K41: - | L41: - | M41: - | N41: - | O41: - | P41: 1 | Q41: 1 | R41: - | S41: 1 | T41: 2 | U41: 2 | V41: 1 | W41: 1 | X41: 2 | Y41: 1 | Z41: 5 | AA41: - | AB41: - | AC41: - | AD41: - | AE41: - | AF41: - | AG41: 1 | AH41: - | AI41: - | AJ41: 1 | AK41: 1 | AL41: 1 | AM41: - | AN41: 1 | AO41: - | AP41: 7 | AQ41: - | AR41: - | AS41: - | AT41: - | AU41: - | AV41: 1 | AW41: - | AX41: - | AY41: 1 | AZ41: 1 | BA41: 1 | BB41: - | BC41: 1 | BD41: 1 | BE41: 1
A42: 2210101038 | B42: 22 | C42: 101 | D42: 01 | E42: 038 | F42: 静岡県 | G42: 葵区 | H42: 静岡市２－１ | I42: 南沼上 | J42: 23 | K42: - | L42: - | M42: - | N42: - | O42: - | P42: - | Q42: - | R42: 1 | S42: 2 | T42: 3 | U42: 1 | V42: 7 | W42: 3 | X42: 5 | Y42: 1 | Z42: 14 | AA42: - | AB42: - | AC42: - | AD42: - | AE42: - | AF42: - | AG42: - | AH42: 1 | AI42: 2 | AJ42: 2 | AK42: - | AL42: 2 | AM42: 2 | AN42: 4 | AO42: 1 | AP42: 9 | AQ42: - | AR42: - | AS42: - | AT42: - | AU42: - | AV42: - | AW42: - | AX42: - | AY42: - | AZ42: 1 | BA42: 1 | BB42: 5 | BC42: 1 | BD42: 1 | BE42: -
A43: 2210101039 | B43: 22 | C43: 101 | D43: 01 | E43: 039 | F43: 静岡県 | G43: 葵区 | H43: 静岡市２－１ | I43: 北沼上 | J43: 40 | K43: - | L43: - | M43: - | N43: 2 | O43: - | P43: 1 | Q43: - | R43: 2 | S43: 2 | T43: - | U43: 12 | V43: 8 | W43: 7 | X43: 6 | Y43: - | Z43: 23 | AA43: - | AB43: - | AC43: - | AD43: 2 | AE43: - | AF43: 1 | AG43: - | AH43: 1 | AI43: 2 | AJ43: - | AK43: 7 | AL43: 4 | AM43: 2 | AN43: 4 | AO43: - | AP43: 17 | AQ43: - | AR43: - | AS43: - | AT43: - | AU43: - | AV43: - | AW43: - | AX43: 1 | AY43: - | AZ43: - | BA43: 5 | BB43: 4 | BC43: 5 | BD43: 2 | BE43: -
A44: 2210101040 | B44: 22 | C44: 101 | D44: 01 | E44: 040 | F44: 静岡県 | G44: 葵区 | H44: 静岡市２－１ | I44: 則沢 | J44: 21 | K44: - | L44: - | M44: - | N44: - | O44: - | P44: - | Q44: - | R44: 3 | S44: 2 | T44: 5 | U44: 2 | V44: 5 | W44: 1 | X44: 3 | Y44: - | Z44: 10 | AA44: - | AB44: - | AC44: - | AD44: - | AE44: - | AF44: - | AG44: - | AH44: 2 | AI44: - | AJ44: 3 | AK44: - | AL44: 3 | AM44: 1 | AN44: 1 | AO44: - | AP44: 11 | AQ44: - | AR44: - | AS44: - | AT44: - | AU44: - | AV44: - | AW44: - | AX44: 1 | AY44: 2 | AZ44: 2 | BA44: 2 | BB44: 2 | BC44: - | BD44: 2 | BE44: -
A45: 2210101041 | B45: 22 | C45: 101 | D45: 01 | E45: 041 | F45: 静岡県 | G45: 葵区 | H45: 静岡市２－１ | I45: 銭座 | J45: - | K45: - | L45: - | M45: - | N45: - | O45: - | P45: - | Q45: - | R45: - | S45: - | T45: - | U45: - | V45: - | W45: - | X45: - | Y45: - | Z45: - | AA45: - | AB45: - | AC45: - | AD45: - | AE45: - | AF45: - | AG45: - | AH45: - | AI45: - | AJ45: - | AK45: - | AL45: - | AM45: - | AN45: - | AO45: - | AP45: - | AQ45: - | AR45: - | AS45: - | AT45: - | AU45: - | AV45: - | AW45: - | AX45: - | AY45: - | AZ45: - | BA45: - | BB45: - | BC45: - | BD45: - | BE45: -
A46: 2210101042 | B46: 22 | C46: 101 | D46: 01 | E46: 042 | F46: 静岡県 | G46: 葵区 | H46: 静岡市２－１ | I46: 池ヶ谷 | J46: 24 | K46: - | L46: - | M46: 2 | N46: - | O46: - | P46: - | Q46: - | R46: 1 | S46: 4 | T46: 5 | U46: 3 | V46: 2 | W46: 6 | X46: 1 | Y46: - | Z46: 11 | AA46: - | AB46: - | AC46: 2 | AD46: - | AE46: - | AF46: - | AG46: - | AH46: - | AI46: 1 | AJ46: 4 | AK46: 1 | AL46: 1 | AM46: 1 | AN46: 1 | AO46: - | AP46: 13 | AQ46: - | AR46: - | AS46: - | AT46: - | AU46: - | AV46: - | AW46: - | AX46: 1 | AY46: 3 | AZ46: 1 | BA46: 2 | BB46: 1 | BC46: 5 | BD46: - | BE46: -
A47: 2210101043 | B47: 22 | C47: 101 | D47: 01 | E47: 043 | F47: 静岡県 | G47: 葵区 | H47: 静岡市２－１ | I47: 南口 | J47: 27 | K47: - | L47: - | M47: - | N47: 1 | O47: - | P47: - | Q47: 1 | R47: 2 | S47: 1 | T47: 4 | U47: - | V47: 8 | W47: 6 | X47: 4 | Y47: - | Z47: 13 | AA47: - | AB47: - | AC47: - | AD47: 1 | AE47: - | AF47: - | AG47: 1 | AH47: - | AI47: - | AJ47: 3 | AK47: - | AL47: 2 | AM47: 5 | AN47: 1 | AO47: - | AP47: 14 | AQ47: - | AR47: - | AS47: - | AT47: - | AU47: - | AV47: - | AW47: - | AX47: 2 | AY47: 1 | AZ47: 1 | BA47: - | BB47: 6 | BC47: 1 | BD47: 3 | BE47: -
A48: 2210101044 | B48: 22 | C48: 101 | D48: 01 | E48: 044 | F48: 静岡県 | G48: 葵区 | H48: 静岡市２－１ | I48: 南中 | J48: 35 | K48: - | L48: 1 | M48: - | N48: - | O48: - | P48: 2 | Q48: - | R48: 3 | S48: 3 | T48: 3 | U48: 9 | V48: 6 | W48: 4 | X48: 3 | Y48: 1 | Z48: 20 | AA48: - | AB48: 1 | AC48: - | AD48: - | AE48: - | AF48: 2 | AG48: - | AH48: 2 | AI48: 1 | AJ48: 3 | AK48: 4 | AL48: 3 | AM48: 2 | AN48: 1 | AO48: 1 | AP48: 15 | AQ48: - | AR48: - | AS48: - | AT48: - | AU48: - | AV48: - | AW48: - | AX48: 1 | AY48: 2 | AZ48: - | BA48: 5 | BB48: 3 | BC48: 2 | BD48: 2 | BE48: -
A49: 2210101045 | B49: 22 | C49: 101 | D49: 01 | E49: 045 | F49: 静岡県 | G49: 葵区 | H49: 静岡市２－１ | I49: 南奥 | J49: 18 | K49: - | L49: - | M49: - | N49: - | O49: - | P49: - | Q49: - | R49: 3 | S49: 3 | T49: 1 | U49: 1 | V49: 6 | W49: 2 | X49: 2 | Y49: - | Z49: 11 | AA49: - | AB49: - | AC49: - | AD49: - | AE49: - | AF49: - | AG49: - | AH49: 2 | AI49: 2 | AJ49: 1 | AK49: 1 | AL49: 3 | AM49: - | AN49: 2 | AO49: - | AP49: 7 | AQ49: - | AR49: - | AS49: - | AT49: - | AU49: - | AV49: - | AW49: - | AX49: 1 | AY49: 1 | AZ49: - | BA49: - | BB49: 3 | BC49: 2 | BD49: - | BE49: -
A50: 2210101046 | B50: 22 | C50: 101 | D50: 01 | E50: 046 | F50: 静岡県 | G50: 葵区 | H50: 静岡市２－１ | I50: 有永 | J50: 41 | K50: - | L50: 1 | M50: 1 | N50: - | O50: 1 | P50: - | Q50: 1 | R50: 3 | S50: 7 | T50: 3 | U50: 6 | V50: 5 | W50: 6 | X50: 7 | Y50: - | Z50: 19 | AA50: - | AB50: - | AC50: 1 | AD50: - | AE50: - | AF50: - | AG50: - | AH50: 3 | AI50: 4 | AJ50: - | AK50: 4 | AL50: 1 | AM50: 3 | AN50: 3 | AO50: - | AP50: 22 | AQ50: - | AR50: 1 | AS50: - | AT50: - | AU50: 1 | AV50: - | AW50: 1 | AX50: - | AY50: 3 | AZ50: 3 | BA50: 2 | BB50: 4 | BC50: 3 | BD50: 4 | BE50: -
A51: 2210101047 | B51: 22 | C51: 101 | D51: 01 | E51: 047 | F51: 静岡県 | G51: 葵区 | H51: 静岡市２－１ | I51: 羽高 | J51: 14 | K51: - | L51: - | M51: - | N51: - | O51: - | P51: - | Q51: - | R51: 5 | S51: 2 | T51: 1 | U51: 1 | V51: 1 | W51: 3 | X51: 1 | Y51: - | Z51: 9 | AA51: - | AB51: - | AC51: - | AD51: - | AE51: - | AF51: - | AG51: - | AH51: 3 | AI51: 2 | AJ51: 1 | AK51: - | AL51: 1 | AM51: 1 | AN51: 1 | AO51: - | AP51: 5 | AQ51: - | AR51: - | AS51: - | AT51: - | AU51: - | AV51: - | AW51: - | AX51: 2 | AY51: - | AZ51: - | BA51: 1 | BB51: - | BC51: 2 | BD51: - | BE51: -
A52: 2210101048 | B52: 22 | C52: 101 | D52: 01 | E52: 048 | F52: 静岡県 | G52: 葵区 | H52: 静岡市２－１ | I52: 北一 | J52: 26 | K52: - | L52: - | M52: - | N52: 1 | O52: 1 | P52: - | Q52: 1 | R52: 2 | S52: 5 | T52: 4 | U52: - | V52: 3 | W52: 3 | X52: 5 | Y52: 1 | Z52: 15 | AA52: - | AB52: - | AC52: - | AD52: 1 | AE52: 1 | AF52: - | AG52: 1 | AH52: 1 | AI52: 3 | AJ52: 2 | AK52: - | AL52: 1 | AM52: 2 | AN52: 2 | AO52: 1 | AP52: 11 | AQ52: - | AR52: - | AS52: - | AT52: - | AU52: - | AV52: - | AW52: - | AX52: 1 | AY52: 2 | AZ52: 2 | BA52: - | BB52: 2 | BC52: 1 | BD52: 3 | BE52: -
A53: 2210101049 | B53: 22 | C53: 101 | D53: 01 | E53: 049 | F53: 静岡県 | G53: 葵区 | H53: 静岡市２－１ | I53: 北二 | J53: 24 | K53: - | L53: - | M53: - | N53: - | O53: - | P53: - | Q53: - | R53: 2 | S53: 3 | T53: 4 | U53: 2 | V53: 5 | W53: 7 | X53: 1 | Y53: - | Z53: 15 | AA53: - | AB53: - | AC53: - | AD53: - | AE53: - | AF53: - | AG53: - | AH53: 1 | AI53: 2 | AJ53: 3 | AK53: 1 | AL53: 1 | AM53: 6 | AN53: 1 | AO53: - | AP53: 9 | AQ53: - | AR53: - | AS53: - | AT53: - | AU53: - | AV53: - | AW53: - | AX53: 1 | AY53: 1 | AZ53: 1 | BA53: 1 | BB53: 4 | BC53: 1 | BD53: - | BE53: -
A54: 2210101050 | B54: 22 | C54: 101 | D54: 01 | E54: 050 | F54: 静岡県 | G54: 葵区 | H54: 静岡市２－１ | I54: 東 | J54: 31 | K54: - | L54: - | M54: - | N54: 1 | O54: - | P54: 1 | Q54: 2 | R54: 4 | S54: 2 | T54: 2 | U54: 2 | V54: 8 | W54: 5 | X54: 4 | Y54: - | Z54: 19 | AA54: - | AB54: - | AC54: - | AD54: 1 | AE54: - | AF54: - | AG54: 2 | AH54: 3 | AI54: - | AJ54: 2 | AK54: - | AL54: 3 | AM54: 5 | AN54: 3 | AO54: - | AP54: 12 | AQ54: - | AR54: - | AS54: - | AT54: - | AU54: - | AV54: 1 | AW54: - | AX54: 1 | AY54: 2 | AZ54: - | BA54: 2 | BB54: 5 | BC54: - | BD54: 1 | BE54: -
A55: 2210101051 | B55: 22 | C55: 101 | D55: 01 | E55: 051 | F55: 静岡県 | G55: 葵区 | H55: 静岡市２－１ | I55: 瀬名川 | J55: 22 | K55: - | L55: - | M55: - | N55: - | O55: - | P55: 1 | Q55: 2 | R55: 4 | S55: 3 | T55: 2 | U55: 1 | V55: 2 | W55: 2 | X55: 4 | Y55: 1 | Z55: 12 | AA55: - | AB55: - | AC55: - | AD55: - | AE55: - | AF55: 1 | AG55: 1 | AH55: 1 | AI55: 3 | AJ55: 1 | AK55: 1 | AL55: 1 | AM55: 1 | AN55: 1 | AO55: 1 | AP55: 10 | AQ55: - | AR55: - | AS55: - | AT55: - | AU55: - | AV55: - | AW55: 1 | AX55: 3 | AY55: - | AZ55: 1 | BA55: - | BB55: 1 | BC55: 1 | BD55: 3 | BE55: -
A56: 2210101052 | B56: 22 | C56: 101 | D56: 01 | E56: 052 | F56: 静岡県 | G56: 葵区 | H56: 静岡市２－１ | I56: 瀬名 | J56: 75 | K56: - | L56: - | M56: - | N56: - | O56: 1 | P56: - | Q56: 5 | R56: 8 | S56: 9 | T56: 6 | U56: 18 | V56: 11 | W56: 9 | X56: 8 | Y56: - | Z56: 43 | AA56: - | AB56: - | AC56: - | AD56: - | AE56: - | AF56: - | AG56: 3 | AH56: 5 | AI56: 7 | AJ56: 3 | AK56: 8 | AL56: 7 | AM56: 5 | AN56: 5 | AO56: - | AP56: 32 | AQ56: - | AR56: - | AS56: - | AT56: - | AU56: 1 | AV56: - | AW56: 2 | AX56: 3 | AY56: 2 | AZ56: 3 | BA56: 10 | BB56: 4 | BC56: 4 | BD56: 3 | BE56: -
A57: 2210101053 | B57: 22 | C57: 101 | D57: 01 | E57: 053 | F57: 静岡県 | G57: 葵区 | H57: 静岡市２－１ | I57: 長尾 | J57: 6 | K57: - | L57: - | M57: - | N57: - | O57: - | P57: - | Q57: 1 | R57: 1 | S57: - | T57: 1 | U57: 1 | V57: - | W57: 1 | X57: 1 | Y57: - | Z57: 4 | AA57: - | AB57: - | AC57: - | AD57: - | AE57: - | AF57: - | AG57: - | AH57: 1 | AI57: - | AJ57: 1 | AK57: 1 | AL57: - | AM57: - | AN57: 1 | AO57: - | AP57: 2 | AQ57: - | AR57: - | AS57: - | AT57: - | AU57: - | AV57: - | AW57: 1 | AX57: - | AY57: - | AZ57: - | BA57: - | BB57: - | BC57: 1 | BD57: - | BE57: -
A58: 2210101054 | B58: 22 | C58: 101 | D58: 01 | E58: 054 | F58: 静岡県 | G58: 葵区 | H58: 静岡市２－１ | I58: 平山 | J58: 67 | K58: - | L58: - | M58: - | N58: - | O58: 2 | P58: 2 | Q58: - | R58: 4 | S58: 14 | T58: 8 | U58: 12 | V58: 10 | W58: 6 | X58: 8 | Y58: 1 | Z58: 36 | AA58: - | AB58: - | AC58: - | AD58: - | AE58: 1 | AF58: 2 | AG58: - | AH58: 2 | AI58: 9 | AJ58: 3 | AK58: 6 | AL58: 4 | AM58: 4 | AN58: 4 | AO58: 1 | AP58: 31 | AQ58: - | AR58: - | AS58: - | AT58: - | AU58: 1 | AV58: - | AW58: - | AX58: 2 | AY58: 5 | AZ58: 5 | BA58: 6 | BB58: 6 | BC58: 2 | BD58: 4 | BE58: -
A59: 2210101055 | B59: 22 | C59: 101 | D59: 01 | E59: 055 | F59: 静岡県 | G59: 葵区 | H59: 静岡市２－１ | I59: 安倍川河川敷２－１ | J59: @ | K59: @ | L59: @ | M59: @ | N59: @ | O59: @ | P59: @ | Q59: @ | R59: @ | S59: @ | T59: @ | U59: @ | V59: @ | W59: @ | X59: @ | Y59: @ | Z59: @ | AA59: @ | AB59: @ | AC59: @ | AD59: @ | AE59: @ | AF59: @ | AG59: @ | AH59: @ | AI59: @ | AJ59: @ | AK59: @ | AL59: @ | AM59: @ | AN59: @ | AO59: @ | AP59: @ | AQ59: @ | AR59: @ | AS59: @ | AT59: @ | AU59: @ | AV59: @ | AW59: @ | AX59: @ | AY59: @ | AZ59: @ | BA59: @ | BB59: @ | BC59: @ | BD59: @ | BE59: @
A60: 2210102000 | B60: 22 | C60: 101 | D60: 02 | E60: 000 | F60: 静岡県 | G60: 葵区 | H60: 美和村 | J60: 560 | K60: - | L60: - | M60: 1 | N60: 5 | O60: 7 | P60: 10 | Q60: 20 | R60: 31 | S60: 71 | T60: 72 | U60: 80 | V60: 97 | W60: 85 | X60: 58 | Y60: 23 | Z60: 284 | AA60: - | AB60: - | AC60: 1 | AD60: 5 | AE60: 4 | AF60: 8 | AG60: 10 | AH60: 15 | AI60: 30 | AJ60: 33 | AK60: 39 | AL60: 53 | AM60: 45 | AN60: 28 | AO60: 13 | AP60: 276 | AQ60: - | AR60: - | AS60: - | AT60: - | AU60: 3 | AV60: 2 | AW60: 10 | AX60: 16 | AY60: 41 | AZ60: 39 | BA60: 41 | BB60: 44 | BC60: 40 | BD60: 30 | BE60: 10
A61: 2210102001 | B61: 22 | C61: 101 | D61: 02 | E61: 001 | F61: 静岡県 | G61: 葵区 | H61: 美和村 | I61: 西ヶ谷 | J61: 30 | K61: - | L61: - | M61: - | N61: 2 | O61: - | P61: - | Q61: - | R61: 1 | S61: 6 | T61: 3 | U61: 3 | V61: 7 | W61: 6 | X61: 2 | Y61: - | Z61: 16 | AA61: - | AB61: - | AC61: - | AD61: 2 | AE61: - | AF61: - | AG61: - | AH61: - | AI61: 3 | AJ61: 2 | AK61: 1 | AL61: 4 | AM61: 2 | AN61: 2 | AO61: - | AP61: 14 | AQ61: - | AR61: - | AS61: - | AT61: - | AU61: - | AV61: - | AW61: - | AX61: 1 | AY61: 3 | AZ61: 1 | BA61: 2 | BB61: 3 | BC61: 4 | BD61: - | BE61: -
A62: 2210102002 | B62: 22 | C62: 101 | D62: 02 | E62: 002 | F62: 静岡県 | G62: 葵区 | H62: 美和村 | I62: 内牧下 | J62: 20 | K62: - | L62: - | M62: - | N62: - | O62: - | P62: - | Q62: - | R62: 1 | S62: 1 | T62: 5 | U62: 3 | V62: 5 | W62: 1 | X62: 4 | Y62: - | Z62: 10 | AA62: - | AB62: - | AC62: - | AD62: - | AE62: - | AF62: - | AG62: - | AH62: - | AI62: - | AJ62: 2 | AK62: 1 | AL62: 4 | AM62: 1 | AN62: 2 | AO62: - | AP62: 10 | AQ62: - | AR62: - | AS62: - | AT62: - | AU62: - | AV62: - | AW62: - | AX62: 1 | AY62: 1 | AZ62: 3 | BA62: 2 | BB62: 1 | BC62: - | BD62: 2 | BE62: -
A63: 2210102003 | B63: 22 | C63: 101 | D63: 02 | E63: 003 | F63: 静岡県 | G63: 葵区 | H63: 美和村 | I63: 内牧東 | J63: x | K63: x | L63: x | M63: x | N63: x | O63: x | P63: x | Q63: x | R63: x | S63: x | T63: x | U63: x | V63: x | W63: x | X63: x | Y63: x | Z63: x | AA63: x | AB63: x | AC63: x | AD63: x | AE63: x | AF63: x | AG63: x | AH63: x | AI63: x | AJ63: x | AK63: x | AL63: x | AM63: x | AN63: x | AO63: x | AP63: x | AQ63: x | AR63: x | AS63: x | AT63: x | AU63: x | AV63: x | AW63: x | AX63: x | AY63: x | AZ63: x | BA63: x | BB63: x | BC63: x | BD63: x | BE63: x
A64: 2210102004 | B64: 22 | C64: 101 | D64: 02 | E64: 004 | F64: 静岡県 | G64: 葵区 | H64: 美和村 | I64: 内牧清地 | J64: 38 | K64: - | L64: - | M64: - | N64: - | O64: - | P64: 1 | Q64: 4 | R64: 4 | S64: 3 | T64: 4 | U64: 7 | V64: 10 | W64: 4 | X64: 1 | Y64: - | Z64: 20 | AA64: - | AB64: - | AC64: - | AD64: - | AE64: - | AF64: 1 | AG64: 1 | AH64: 3 | AI64: 3 | AJ64: 1 | AK64: 2 | AL64: 8 | AM64: 1 | AN64: - | AO64: - | AP64: 18 | AQ64: - | AR64: - | AS64: - | AT64: - | AU64: - | AV64: - | AW64: 3 | AX64: 1 | AY64: - | AZ64: 3 | BA64: 5 | BB64: 2 | BC64: 3 | BD64: 1 | BE64: -
A65: 2210102005 | B65: 22 | C65: 101 | D65: 02 | E65: 005 | F65: 静岡県 | G65: 葵区 | H65: 美和村 | I65: 内牧中 | J65: 41 | K65: - | L65: - | M65: - | N65: - | O65: - | P65: 1 | Q65: 4 | R65: 3 | S65: 6 | T65: 2 | U65: 5 | V65: 3 | W65: 12 | X65: 4 | Y65: 1 | Z65: 20 | AA65: - | AB65: - | AC65: - | AD65: - | AE65: - | AF65: 1 | AG65: 2 | AH65: 1 | AI65: 3 | AJ65: 1 | AK65: 3 | AL65: - | AM65: 6 | AN65: 2 | AO65: 1 | AP65: 21 | AQ65: - | AR65: - | AS65: - | AT65: - | AU65: - | AV65: - | AW65: 2 | AX65: 2 | AY65: 3 | AZ65: 1 | BA65: 2 | BB65: 3 | BC65: 6 | BD65: 2 | BE65: -
A66: 2210102006 | B66: 22 | C66: 101 | D66: 02 | E66: 006 | F66: 静岡県 | G66: 葵区 | H66: 美和村 | I66: 内牧上 | J66: 36 | K66: - | L66: - | M66: - | N66: - | O66: - | P66: 1 | Q66: 1 | R66: 1 | S66: 4 | T66: 2 | U66: 11 | V66: 6 | W66: 7 | X66: 1 | Y66: 2 | Z66: 17 | AA66: - | AB66: - | AC66: - | AD66: - | AE66: - | AF66: 1 | AG66: 1 | AH66: 1 | AI66: 2 | AJ66: 1 | AK66: 3 | AL66: 4 | AM66: 3 | AN66: - | AO66: 1 | AP66: 19 | AQ66: - | AR66: - | AS66: - | AT66: - | AU66: - | AV66: - | AW66: - | AX66: - | AY66: 2 | AZ66: 1 | BA66: 8 | BB66: 2 | BC66: 4 | BD66: 1 | BE66: 1
A67: 2210102007 | B67: 22 | C67: 101 | D67: 02 | E67: 007 | F67: 静岡県 | G67: 葵区 | H67: 美和村 | I67: 下与左衛門新田 | J67: @ | K67: @ | L67: @ | M67: @ | N67: @ | O67: @ | P67: @ | Q67: @ | R67: @ | S67: @ | T67: @ | U67: @ | V67: @ | W67: @ | X67: @ | Y67: @ | Z67: @ | AA67: @ | AB67: @ | AC67: @ | AD67: @ | AE67: @ | AF67: @ | AG67: @ | AH67: @ | AI67: @ | AJ67: @ | AK67: @ | AL67: @ | AM67: @ | AN67: @ | AO67: @ | AP67: @ | AQ67: @ | AR67: @ | AS67: @ | AT67: @ | AU67: @ | AV67: @ | AW67: @ | AX67: @ | AY67: @ | AZ67: @ | BA67: @ | BB67: @ | BC67: @ | BD67: @ | BE67: @
A68: 2210102008 | B68: 22 | C68: 101 | D68: 02 | E68: 008 | F68: 静岡県 | G68: 葵区 | H68: 美和村 | I68: 安倍口新田 | J68: @ | K68: @ | L68: @ | M68: @ | N68: @ | O68: @ | P68: @ | Q68: @ | R68: @ | S68: @ | T68: @ | U68: @ | V68: @ | W68: @ | X68: @ | Y68: @ | Z68: @ | AA68: @ | AB68: @ | AC68: @ | AD68: @ | AE68: @ | AF68: @ | AG68: @ | AH68: @ | AI68: @ | AJ68: @ | AK68: @ | AL68: @ | AM68: @ | AN68: @ | AO68: @ | AP68: @ | AQ68: @ | AR68: @ | AS68: @ | AT68: @ | AU68: @ | AV68: @ | AW68: @ | AX68: @ | AY68: @ | AZ68: @ | BA68: @ | BB68: @ | BC68: @ | BD68: @ | BE68: @
A69: 2210102009 | B69: 22 | C69: 101 | D69: 02 | E69: 009 | F69: 静岡県 | G69: 葵区 | H69: 美和村 | I69: 中ノ郷 | J69: 30 | K69: - | L69: - | M69: - | N69: - | O69: - | P69: - | Q69: - | R69: 1 | S69: 6 | T69: 4 | U69: 7 | V69: 3 | W69: 1 | X69: 6 | Y69: 2 | Z69: 16 | AA69: - | AB69: - | AC69: - | AD69: - | AE69: - | AF69: - | AG69: - | AH69: 1 | AI69: 2 | AJ69: 2 | AK69: 5 | AL69: 1 | AM69: 1 | AN69: 2 | AO69: 2 | AP69: 14 | AQ69: - | AR69: - | AS69: - | AT69: - | AU69: - | AV69: - | AW69: - | AX69: - | AY69: 4 | AZ69: 2 | BA69: 2 | BB69: 2 | BC69: - | BD69: 4 | BE69: -
A70: 2210102010 | B70: 22 | C70: 101 | D70: 02 | E70: 010 | F70: 静岡県 | G70: 葵区 | H70: 美和村 | I70: 上与左衛門新田 | J70: @ | K70: @ | L70: @ | M70: @ | N70: @ | O70: @ | P70: @ | Q70: @ | R70: @ | S70: @ | T70: @ | U70: @ | V70: @ | W70: @ | X70: @ | Y70: @ | Z70: @ | AA70: @ | AB70: @ | AC70: @ | AD70: @ | AE70: @ | AF70: @ | AG70: @ | AH70: @ | AI70: @ | AJ70: @ | AK70: @ | AL70: @ | AM70: @ | AN70: @ | AO70: @ | AP70: @ | AQ70: @ | AR70: @ | AS70: @ | AT70: @ | AU70: @ | AV70: @ | AW70: @ | AX70: @ | AY70: @ | AZ70: @ | BA70: @ | BB70: @ | BC70: @ | BD70: @ | BE70: @
A71: 2210102011 | B71: 22 | C71: 101 | D71: 02 | E71: 011 | F71: 静岡県 | G71: 葵区 | H71: 美和村 | I71: 小塚ヶ谷 | J71: 23 | K71: - | L71: - | M71: - | N71: - | O71: 1 | P71: - | Q71: - | R71: 1 | S71: 3 | T71: 4 | U71: 3 | V71: 4 | W71: 5 | X71: - | Y71: 2 | Z71: 13 | AA71: - | AB71: - | AC71: - | AD71: - | AE71: 1 | AF71: - | AG71: - | AH71: 1 | AI71: 1 | AJ71: 2 | AK71: 2 | AL71: 2 | AM71: 2 | AN71: - | AO71: 2 | AP71: 10 | AQ71: - | AR71: - | AS71: - | AT71: - | AU71: - | AV71: - | AW71: - | AX71: - | AY71: 2 | AZ71: 2 | BA71: 1 | BB71: 2 | BC71: 3 | BD71: - | BE71: -
A72: 2210102012 | B72: 22 | C72: 101 | D72: 02 | E72: 012 | F72: 静岡県 | G72: 葵区 | H72: 美和村 | I72: 遠藤新田 | J72: @ | K72: @ | L72: @ | M72: @ | N72: @ | O72: @ | P72: @ | Q72: @ | R72: @ | S72: @ | T72: @ | U72: @ | V72: @ | W72: @ | X72: @ | Y72: @ | Z72: @ | AA72: @ | AB72: @ | AC72: @ | AD72: @ | AE72: @ | AF72: @ | AG72: @ | AH72: @ | AI72: @ | AJ72: @ | AK72: @ | AL72: @ | AM72: @ | AN72: @ | AO72: @ | AP72: @ | AQ72: @ | AR72: @ | AS72: @ | AT72: @ | AU72: @ | AV72: @ | AW72: @ | AX72: @ | AY72: @ | AZ72: @ | BA72: @ | BB72: @ | BC72: @ | BD72: @ | BE72: @
A73: 2210102013 | B73: 22 | C73: 101 | D73: 02 | E73: 013 | F73: 静岡県 | G73: 葵区 | H73: 美和村 | I73: 原田・諸川 | J73: 28 | K73: - | L73: - | M73: - | N73: - | O73: - | P73: 2 | Q73: 1 | R73: 2 | S73: 3 | T73: 4 | U73: 8 | V73: 2 | W73: 4 | X73: 2 | Y73: - | Z73: 15 | AA73: - | AB73: - | AC73: - | AD73: - | AE73: - | AF73: - | AG73: 1 | AH73: 1 | AI73: 1 | AJ73: 2 | AK73: 5 | AL73: 1 | AM73: 2 | AN73: 2 | AO73: - | AP73: 13 | AQ73: - | AR73: - | AS73: - | AT73: - | AU73: - | AV73: 2 | AW73: - | AX73: 1 | AY73: 2 | AZ73: 2 | BA73: 3 | BB73: 1 | BC73: 2 | BD73: - | BE73: -
A74: 2210102014 | B74: 22 | C74: 101 | D74: 02 | E74: 014 | F74: 静岡県 | G74: 葵区 | H74: 美和村 | I74: 八十岡 | J74: 16 | K74: - | L74: - | M74: - | N74: - | O74: - | P74: - | Q74: 1 | R74: - | S74: 2 | T74: 2 | U74: 2 | V74: 7 | W74: 1 | X74: 1 | Y74: - | Z74: 9 | AA74: - | AB74: - | AC74: - | AD74: - | AE74: - | AF74: - | AG74: 1 | AH74: - | AI74: - | AJ74: 1 | AK74: 2 | AL74: 3 | AM74: 1 | AN74: 1 | AO74: - | AP74: 7 | AQ74: - | AR74: - | AS74: - | AT74: - | AU74: - | AV74: - | AW74: - | AX74: - | AY74: 2 | AZ74: 1 | BA74: - | BB74: 4 | BC74: - | BD74: - | BE74: -
A75: 2210102015 | B75: 22 | C75: 101 | D75: 02 | E75: 015 | F75: 静岡県 | G75: 葵区 | H75: 美和村 | I75: 神明原 | J75: 19 | K75: - | L75: - | M75: - | N75: 1 | O75: - | P75: - | Q75: - | R75: 1 | S75: 3 | T75: 5 | U75: 2 | V75: 1 | W75: 2 | X75: 2 | Y75: 2 | Z75: 9 | AA75: - | AB75: - | AC75: - | AD75: 1 | AE75: - | AF75: - | AG75: - | AH75: 1 | AI75: 1 | AJ75: 2 | AK75: 1 | AL75: 1 | AM75: 1 | AN75: 1 | AO75: - | AP75: 10 | AQ75: - | AR75: - | AS75: - | AT75: - | AU75: - | AV75: - | AW75: - | AX75: - | AY75: 2 | AZ75: 3 | BA75: 1 | BB75: - | BC75: 1 | BD75: 1 | BE75: 2
A76: 2210102016 | B76: 22 | C76: 101 | D76: 02 | E76: 016 | F76: 静岡県 | G76: 葵区 | H76: 美和村 | I76: 舟沢 | J76: 12 | K76: - | L76: - | M76: - | N76: 1 | O76: - | P76: - | Q76: - | R76: 1 | S76: - | T76: - | U76: 1 | V76: 3 | W76: 3 | X76: 2 | Y76: 1 | Z76: 7 | AA76: - | AB76: - | AC76: - | AD76: 1 | AE76: - | AF76: - | AG76: - | AH76: - | AI76: - | AJ76: - | AK76: - | AL76: 2 | AM76: 2 | AN76: 1 | AO76: 1 | AP76: 5 | AQ76: - | AR76: - | AS76: - | AT76: - | AU76: - | AV76: - | AW76: - | AX76: 1 | AY76: - | AZ76: - | BA76: 1 | BB76: 1 | BC76: 1 | BD76: 1 | BE76: -
A77: 2210102017 | B77: 22 | C77: 101 | D77: 02 | E77: 017 | F77: 静岡県 | G77: 葵区 | H77: 美和村 | I77: 敷地 | J77: 6 | K77: - | L77: - | M77: - | N77: - | O77: - | P77: - | Q77: 2 | R77: - | S77: - | T77: - | U77: - | V77: 2 | W77: 2 | X77: - | Y77: - | Z77: 4 | AA77: - | AB77: - | AC77: - | AD77: - | AE77: - | AF77: - | AG77: 1 | AH77: - | AI77: - | AJ77: - | AK77: - | AL77: 2 | AM77: 1 | AN77: - | AO77: - | AP77: 2 | AQ77: - | AR77: - | AS77: - | AT77: - | AU77: - | AV77: - | AW77: 1 | AX77: - | AY77: - | AZ77: - | BA77: - | BB77: - | BC77: 1 | BD77: - | BE77: -
A78: 2210102018 | B78: 22 | C78: 101 | D78: 02 | E78: 018 | F78: 静岡県 | G78: 葵区 | H78: 美和村 | I78: 栗島 | J78: 6 | K78: - | L78: - | M78: - | N78: - | O78: - | P78: - | Q78: 1 | R78: 1 | S78: - | T78: 1 | U78: - | V78: 1 | W78: 1 | X78: 1 | Y78: - | Z78: 3 | AA78: - | AB78: - | AC78: - | AD78: - | AE78: - | AF78: - | AG78: - | AH78: 1 | AI78: - | AJ78: - | AK78: - | AL78: 1 | AM78: - | AN78: 1 | AO78: - | AP78: 3 | AQ78: - | AR78: - | AS78: - | AT78: - | AU78: - | AV78: - | AW78: 1 | AX78: - | AY78: - | AZ78: 1 | BA78: - | BB78: - | BC78: 1 | BD78: - | BE78: -
A79: 2210102019 | B79: 22 | C79: 101 | D79: 02 | E79: 019 | F79: 静岡県 | G79: 葵区 | H79: 美和村 | I79: 相沢 | J79: 15 | K79: - | L79: - | M79: - | N79: - | O79: 1 | P79: - | Q79: - | R79: - | S79: 5 | T79: 2 | U79: 2 | V79: - | W79: - | X79: 3 | Y79: 2 | Z79: 6 | AA79: - | AB79: - | AC79: - | AD79: - | AE79: - | AF79: - | AG79: - | AH79: - | AI79: 3 | AJ79: - | AK79: 2 | AL79: - | AM79: - | AN79: 1 | AO79: - | AP79: 9 | AQ79: - | AR79: - | AS79: - | AT79: - | AU79: 1 | AV79: - | AW79: - | AX79: - | AY79: 2 | AZ79: 2 | BA79: - | BB79: - | BC79: - | BD79: 2 | BE79: 2
A80: 2210102020 | B80: 22 | C80: 101 | D80: 02 | E80: 020 | F80: 静岡県 | G80: 葵区 | H80: 美和村 | I80: 谷沢 | J80: 19 | K80: - | L80: - | M80: - | N80: - | O80: 1 | P80: 1 | Q80: 2 | R80: - | S80: 3 | T80: 3 | U80: 1 | V80: 2 | W80: 5 | X80: 1 | Y80: - | Z80: 11 | AA80: - | AB80: - | AC80: - | AD80: - | AE80: 1 | AF80: 1 | AG80: 1 | AH80: - | AI80: 2 | AJ80: 2 | AK80: - | AL80: 1 | AM80: 2 | AN80: 1 | AO80: - | AP80: 8 | AQ80: - | AR80: - | AS80: - | AT80: - | AU80: - | AV80: - | AW80: 1 | AX80: - | AY80: 1 | AZ80: 1 | BA80: 1 | BB80: 1 | BC80: 3 | BD80: - | BE80: -
A81: 2210102021 | B81: 22 | C81: 101 | D81: 02 | E81: 021 | F81: 静岡県 | G81: 葵区 | H81: 美和村 | I81: 口長島 | J81: 23 | K81: - | L81: - | M81: - | N81: - | O81: 1 | P81: 2 | Q81: 1 | R81: 4 | S81: 1 | T81: 4 | U81: 4 | V81: 3 | W81: 2 | X81: 1 | Y81: - | Z81: 11 | AA81: - | AB81: - | AC81: - | AD81: - | AE81: - | AF81: 2 | AG81: - | AH81: 1 | AI81: 1 | AJ81: - | AK81: 3 | AL81: 1 | AM81: 2 | AN81: 1 | AO81: - | AP81: 12 | AQ81: - | AR81: - | AS81: - | AT81: - | AU81: 1 | AV81: - | AW81: 1 | AX81: 3 | AY81: - | AZ81: 4 | BA81: 1 | BB81: 2 | BC81: - | BD81: - | BE81: -
A82: 2210102022 | B82: 22 | C82: 101 | D82: 02 | E82: 022 | F82: 静岡県 | G82: 葵区 | H82: 美和村 | I82: 奥長島 | J82: 15 | K82: - | L82: - | M82: - | N82: - | O82: 1 | P82: - | Q82: - | R82: - | S82: 1 | T82: 3 | U82: 1 | V82: 3 | W82: 3 | X82: 2 | Y82: 1 | Z82: 6 | AA82: - | AB82: - | AC82: - | AD82: - | AE82: - | AF82: - | AG82: - | AH82: - | AI82: - | AJ82: 1 | AK82: 1 | AL82: 1 | AM82: 2 | AN82: 1 | AO82: - | AP82: 9 | AQ82: - | AR82: - | AS82: - | AT82: - | AU82: 1 | AV82: - | AW82: - | AX82: - | AY82: 1 | AZ82: 2 | BA82: - | BB82: 2 | BC82: 1 | BD82: 1 | BE82: 1
A83: 2210102023 | B83: 22 | C83: 101 | D83: 02 | E83: 023 | F83: 静岡県 | G83: 葵区 | H83: 美和村 | I83: 油山下 | J83: 27 | K83: - | L83: - | M83: - | N83: - | O83: 1 | P83: - | Q83: 1 | R83: 4 | S83: - | T83: 4 | U83: 3 | V83: 8 | W83: 1 | X83: 5 | Y83: - | Z83: 13 | AA83: - | AB83: - | AC83: - | AD83: - | AE83: 1 | AF83: - | AG83: 1 | AH83: 2 | AI83: - | AJ83: 2 | AK83: - | AL83: 4 | AM83: 1 | AN83: 2 | AO83: - | AP83: 14 | AQ83: - | AR83: - | AS83: - | AT83: - | AU83: - | AV83: - | AW83: - | AX83: 2 | AY83: - | AZ83: 2 | BA83: 3 | BB83: 4 | BC83: - | BD83: 3 | BE83: -
A84: 2210102024 | B84: 22 | C84: 101 | D84: 02 | E84: 024 | F84: 静岡県 | G84: 葵区 | H84: 美和村 | I84: 油山橋本 | J84: @ | K84: @ | L84: @ | M84: @ | N84: @ | O84: @ | P84: @ | Q84: @ | R84: @ | S84: @ | T84: @ | U84: @ | V84: @ | W84: @ | X84: @ | Y84: @ | Z84: @ | AA84: @ | AB84: @ | AC84: @ | AD84: @ | AE84: @ | AF84: @ | AG84: @ | AH84: @ | AI84: @ | AJ84: @ | AK84: @ | AL84: @ | AM84: @ | AN84: @ | AO84: @ | AP84: @ | AQ84: @ | AR84: @ | AS84: @ | AT84: @ | AU84: @ | AV84: @ | AW84: @ | AX84: @ | AY84: @ | AZ84: @ | BA84: @ | BB84: @ | BC84: @ | BD84: @ | BE84: @
A85: 2210102025 | B85: 22 | C85: 101 | D85: 02 | E85: 025 | F85: 静岡県 | G85: 葵区 | H85: 美和村 | I85: 油山上 | J85: 27 | K85: - | L85: - | M85: - | N85: - | O85: - | P85: - | Q85: - | R85: - | S85: 7 | T85: 2 | U85: 2 | V85: 5 | W85: 5 | X85: 4 | Y85: 2 | Z85: 14 | AA85: - | AB85: - | AC85: - | AD85: - | AE85: - | AF85: - | AG85: - | AH85: - | AI85: 2 | AJ85: 2 | AK85: - | AL85: 3 | AM85: 3 | AN85: 2 | AO85: 2 | AP85: 13 | AQ85: - | AR85: - | AS85: - | AT85: - | AU85: - | AV85: - | AW85: - | AX85: - | AY85: 5 | AZ85: - | BA85: 2 | BB85: 2 | BC85: 2 | BD85: 2 | BE85: -
A86: 2210102026 | B86: 22 | C86: 101 | D86: 02 | E86: 026 | F86: 静岡県 | G86: 葵区 | H86: 美和村 | I86: 松野第一 | J86: 20 | K86: - | L86: - | M86: - | N86: 1 | O86: - | P86: - | Q86: - | R86: 1 | S86: 5 | T86: 1 | U86: 1 | V86: 5 | W86: 2 | X86: 3 | Y86: 1 | Z86: 9 | AA86: - | AB86: - | AC86: - | AD86: 1 | AE86: - | AF86: - | AG86: - | AH86: - | AI86: 1 | AJ86: 1 | AK86: 1 | AL86: 2 | AM86: 1 | AN86: 1 | AO86: 1 | AP86: 11 | AQ86: - | AR86: - | AS86: - | AT86: - | AU86: - | AV86: - | AW86: - | AX86: 1 | AY86: 4 | AZ86: - | BA86: - | BB86: 3 | BC86: 1 | BD86: 2 | BE86: -
A87: 2210102027 | B87: 22 | C87: 101 | D87: 02 | E87: 027 | F87: 静岡県 | G87: 葵区 | H87: 美和村 | I87: 松野第二 | J87: 32 | K87: - | L87: - | M87: - | N87: - | O87: - | P87: 1 | Q87: 1 | R87: 3 | S87: 1 | T87: 3 | U87: 5 | V87: 9 | W87: 4 | X87: 5 | Y87: - | Z87: 16 | AA87: - | AB87: - | AC87: - | AD87: - | AE87: - | AF87: 1 | AG87: - | AH87: 1 | AI87: 1 | AJ87: 1 | AK87: 2 | AL87: 4 | AM87: 4 | AN87: 2 | AO87: - | AP87: 16 | AQ87: - | AR87: - | AS87: - | AT87: - | AU87: - | AV87: - | AW87: 1 | AX87: 2 | AY87: - | AZ87: 2 | BA87: 3 | BB87: 5 | BC87: - | BD87: 3 | BE87: -
A88: 2210102028 | B88: 22 | C88: 101 | D88: 02 | E88: 028 | F88: 静岡県 | G88: 葵区 | H88: 美和村 | I88: 松野第三 | J88: 7 | K88: - | L88: - | M88: - | N88: - | O88: - | P88: - | Q88: - | R88: - | S88: 1 | T88: - | U88: 1 | V88: - | W88: 2 | X88: 2 | Y88: 1 | Z88: 4 | AA88: - | AB88: - | AC88: - | AD88: - | AE88: - | AF88: - | AG88: - | AH88: - | AI88: - | AJ88: - | AK88: 1 | AL88: - | AM88: 1 | AN88: 2 | AO88: - | AP88: 3 | AQ88: - | AR88: - | AS88: - | AT88: - | AU88: - | AV88: - | AW88: - | AX88: - | AY88: 1 | AZ88: - | BA88: - | BB88: - | BC88: 1 | BD88: - | BE88: 1
A89: 2210102029 | B89: 22 | C89: 101 | D89: 02 | E89: 029 | F89: 静岡県 | G89: 葵区 | H89: 美和村 | I89: 津渡野 | J89: 7 | K89: - | L89: - | M89: - | N89: - | O89: - | P89: - | Q89: - | R89: - | S89: 3 | T89: 1 | U89: 1 | V89: - | W89: - | X89: 2 | Y89: - | Z89: 4 | AA89: - | AB89: - | AC89: - | AD89: - | AE89: - | AF89: - | AG89: - | AH89: - | AI89: 2 | AJ89: 1 | AK89: - | AL89: - | AM89: - | AN89: 1 | AO89: - | AP89: 3 | AQ89: - | AR89: - | AS89: - | AT89: - | AU89: - | AV89: - | AW89: - | AX89: - | AY89: 1 | AZ89: - | BA89: 1 | BB89: - | BC89: - | BD89: 1 | BE89: -
A90: 2210103000 | B90: 22 | C90: 101 | D90: 03 | E90: 000 | F90: 静岡県 | G90: 葵区 | H90: 服織村 | J90: 248 | K90: - | L90: 1 | M90: 3 | N90: 1 | O90: 9 | P90: 2 | Q90: 13 | R90: 16 | S90: 41 | T90: 37 | U90: 31 | V90: 35 | W90: 31 | X90: 12 | Y90: 16 | Z90: 140 | AA90: - | AB90: 1 | AC90: 3 | AD90: 1 | AE90: 8 | AF90: 2 | AG90: 8 | AH90: 9 | AI90: 18 | AJ90: 22 | AK90: 15 | AL90: 20 | AM90: 16 | AN90: 6 | AO90: 11 | AP90: 108 | AQ90: - | AR90: - | AS90: - | AT90: - | AU90: 1 | AV90: - | AW90: 5 | AX90: 7 | AY90: 23 | AZ90: 15 | BA90: 16 | BB90: 15 | BC90: 15 | BD90: 6 | BE90: 5
A91: 2210103001 | B91: 22 | C91: 101 | D91: 03 | E91: 001 | F91: 静岡県 | G91: 葵区 | H91: 服織村 | I91: 山崎新田 | J91: x | K91: x | L91: x | M91: x | N91: x | O91: x | P91: x | Q91: x | R91: x | S91: x | T91: x | U91: x | V91: x | W91: x | X91: x | Y91: x | Z91: x | AA91: x | AB91: x | AC91: x | AD91: x | AE91: x | AF91: x | AG91: x | AH91: x | AI91: x | AJ91: x | AK91: x | AL91: x | AM91: x | AN91: x | AO91: x | AP91: x | AQ91: x | AR91: x | AS91: x | AT91: x | AU91: x | AV91: x | AW91: x | AX91: x | AY91: x | AZ91: x | BA91: x | BB91: x | BC91: x | BD91: x | BE91: x
A92: 2210103002 | B92: 22 | C92: 101 | D92: 03 | E92: 002 | F92: 静岡県 | G92: 葵区 | H92: 服織村 | I92: 千代 | J92: 10 | K92: - | L92: - | M92: - | N92: - | O92: - | P92: - | Q92: 1 | R92: - | S92: - | T92: - | U92: - | V92: 2 | W92: 5 | X92: 2 | Y92: - | Z92: 5 | AA92: - | AB92: - | AC92: - | AD92: - | AE92: - | AF92: - | AG92: 1 | AH92: - | AI92: - | AJ92: - | AK92: - | AL92: - | AM92: 3 | AN92: 1 | AO92: - | AP92: 5 | AQ92: - | AR92: - | AS92: - | AT92: - | AU92: - | AV92: - | AW92: - | AX92: - | AY92: - | AZ92: - | BA92: - | BB92: 2 | BC92: 2 | BD92: 1 | BE92: -
A93: 2210103003 | B93: 22 | C93: 101 | D93: 03 | E93: 003 | F93: 静岡県 | G93: 葵区 | H93: 服織村 | I93: 慈悲尾 | J93: 12 | K93: - | L93: - | M93: - | N93: - | O93: - | P93: - | Q93: 3 | R93: 2 | S93: 1 | T93: - | U93: - | V93: 3 | W93: 1 | X93: 1 | Y93: 1 | Z93: 7 | AA93: - | AB93: - | AC93: - | AD93: - | AE93: - | AF93: - | AG93: 1 | AH93: 2 | AI93: 1 | AJ93: - | AK93: - | AL93: 1 | AM93: 1 | AN93: - | AO93: 1 | AP93: 5 | AQ93: - | AR93: - | AS93: - | AT93: - | AU93: - | AV93: - | AW93: 2 | AX93: - | AY93: - | AZ93: - | BA93: - | BB93: 2 | BC93: - | BD93: 1 | BE93: -
A94: 2210103004 | B94: 22 | C94: 101 | D94: 03 | E94: 004 | F94: 静岡県 | G94: 葵区 | H94: 服織村 | I94: 建穂 | J94: 11 | K94: - | L94: - | M94: - | N94: - | O94: - | P94: - | Q94: - | R94: 1 | S94: 1 | T94: 2 | U94: 3 | V94: - | W94: 2 | X94: - | Y94: 2 | Z94: 6 | AA94: - | AB94: - | AC94: - | AD94: - | AE94: - | AF94: - | AG94: - | AH94: - | AI94: 1 | AJ94: 2 | AK94: 1 | AL94: - | AM94: 1 | AN94: - | AO94: 1 | AP94: 5 | AQ94: - | AR94: - | AS94: - | AT94: - | AU94: - | AV94: - | AW94: - | AX94: 1 | AY94: - | AZ94: - | BA94: 2 | BB94: - | BC94: 1 | BD94: - | BE94: 1
A95: 2210103005 | B95: 22 | C95: 101 | D95: 03 | E95: 005 | F95: 静岡県 | G95: 葵区 | H95: 服織村 | I95: 羽鳥第一 | J95: x | K95: x | L95: x | M95: x | N95: x | O95: x | P95: x | Q95: x | R95: x | S95: x | T95: x | U95: x | V95: x | W95: x | X95: x | Y95: x | Z95: x | AA95: x | AB95: x | AC95: x | AD95: x | AE95: x | AF95: x | AG95: x | AH95: x | AI95: x | AJ95: x | AK95: x | AL95: x | AM95: x | AN95: x | AO95: x | AP95: x | AQ95: x | AR95: x | AS95: x | AT95: x | AU95: x | AV95: x | AW95: x | AX95: x | AY95: x | AZ95: x | BA95: x | BB95: x | BC95: x | BD95: x | BE95: x
A96: 2210103006 | B96: 22 | C96: 101 | D96: 03 | E96: 006 | F96: 静岡県 | G96: 葵区 | H96: 服織村 | I96: 羽鳥第二 | J96: x | K96: x | L96: x | M96: x | N96: x | O96: x | P96: x | Q96: x | R96: x | S96: x | T96: x | U96: x | V96: x | W96: x | X96: x | Y96: x | Z96: x | AA96: x | AB96: x | AC96: x | AD96: x | AE96: x | AF96: x | AG96: x | AH96: x | AI96: x | AJ96: x | AK96: x | AL96: x | AM96: x | AN96: x | AO96: x | AP96: x | AQ96: x | AR96: x | AS96: x | AT96: x | AU96: x | AV96: x | AW96: x | AX96: x | AY96: x | AZ96: x | BA96: x | BB96: x | BC96: x | BD96: x | BE96: x
A97: 2210103007 | B97: 22 | C97: 101 | D97: 03 | E97: 007 | F97: 静岡県 | G97: 葵区 | H97: 服織村 | I97: 羽鳥第三 | J97: 11 | K97: - | L97: - | M97: - | N97: - | O97: - | P97: 1 | Q97: 1 | R97: 1 | S97: 3 | T97: 1 | U97: - | V97: 3 | W97: 1 | X97: - | Y97: - | Z97: 8 | AA97: - | AB97: - | AC97: - | AD97: - | AE97: - | AF97: 1 | AG97: 1 | AH97: 1 | AI97: 2 | AJ97: 1 | AK97: - | AL97: 1 | AM97: 1 | AN97: - | AO97: - | AP97: 3 | AQ97: - | AR97: - | AS97: - | AT97: - | AU97: - | AV97: - | AW97: - | AX97: - | AY97: 1 | AZ97: - | BA97: - | BB97: 2 | BC97: - | BD97: - | BE97: -
A98: 2210103008 | B98: 22 | C98: 101 | D98: 03 | E98: 008 | F98: 静岡県 | G98: 葵区 | H98: 服織村 | I98: 羽鳥第四下 | J98: 3 | K98: - | L98: - | M98: - | N98: - | O98: - | P98: - | Q98: - | R98: - | S98: 1 | T98: 1 | U98: - | V98: - | W98: 1 | X98: - | Y98: - | Z98: 2 | AA98: - | AB98: - | AC98: - | AD98: - | AE98: - | AF98: - | AG98: - | AH98: - | AI98: 1 | AJ98: 1 | AK98: - | AL98: - | AM98: - | AN98: - | AO98: - | AP98: 1 | AQ98: - | AR98: - | AS98: - | AT98: - | AU98: - | AV98: - | AW98: - | AX98: - | AY98: - | AZ98: - | BA98: - | BB98: - | BC98: 1 | BD98: - | BE98: -
A99: 2210103009 | B99: 22 | C99: 101 | D99: 03 | E99: 009 | F99: 静岡県 | G99: 葵区 | H99: 服織村 | I99: 羽鳥第四上 | J99: 9 | K99: - | L99: - | M99: - | N99: - | O99: 1 | P99: - | Q99: - | R99: 1 | S99: 1 | T99: 4 | U99: - | V99: - | W99: - | X99: 1 | Y99: 1 | Z99: 4 | AA99: - | AB99: - | AC99: - | AD99: - | AE99: 1 | AF99: - | AG99: - | AH99: - | AI99: - | AJ99: 2 | AK99: - | AL99: - | AM99: - | AN99: - | AO99: 1 | AP99: 5 | AQ99: - | AR99: - | AS99: - | AT99: - | AU99: - | AV99: - | AW99: - | AX99: 1 | AY99: 1 | AZ99: 2 | BA99: - | BB99: - | BC99: - | BD99: 1 | BE99: -
A100: 2210103010 | B100: 22 | C100: 101 | D100: 03 | E100: 010 | F100: 静岡県 | G100: 葵区 | H100: 服織村 | I100: 羽鳥第五下 | J100: - | K100: - | L100: - | M100: - | N100: - | O100: - | P100: - | Q100: - | R100: - | S100: - | T100: - | U100: - | V100: - | W100: - | X100: - | Y100: - | Z100: - | AA100: - | AB100: - | AC100: - | AD100: - | AE100: - | AF100: - | AG100: - | AH100: - | AI100: - | AJ100: - | AK100: - | AL100: - | AM100: - | AN100: - | AO100: - | AP100: - | AQ100: - | AR100: - | AS100: - | AT100: - | AU100: - | AV100: - | AW100: - | AX100: - | AY100: - | AZ100: - | BA100: - | BB100: - | BC100: - | BD100: - | BE100: -
A101: 2210103011 | B101: 22 | C101: 101 | D101: 03 | E101: 011 | F101: 静岡県 | G101: 葵区 | H101: 服織村 | I101: 羽鳥第五上 | J101: 6 | K101: - | L101: - | M101: - | N101: - | O101: - | P101: - | Q101: - | R101: - | S101: 1 | T101: - | U101: - | V101: 3 | W101: 2 | X101: - | Y101: - | Z101: 2 | AA101: - | AB101: - | AC101: - | AD101: - | AE101: - | AF101: - | AG101: - | AH101: - | AI101: - | AJ101: - | AK101: - | AL101: 1 | AM101: 1 | AN101: - | AO101: - | AP101: 4 | AQ101: - | AR101: - | AS101: - | AT101: - | AU101: - | AV101: - | AW101: - | AX101: - | AY101: 1 | AZ101: - | BA101: - | BB101: 2 | BC101: 1 | BD101: - | BE101: -
A102: 2210103012 | B102: 22 | C102: 101 | D102: 03 | E102: 012 | F102: 静岡県 | G102: 葵区 | H102: 服織村 | I102: 羽鳥第六 | J102: 17 | K102: - | L102: - | M102: - | N102: - | O102: - | P102: - | Q102: - | R102: 1 | S102: 5 | T102: 4 | U102: - | V102: - | W102: - | X102: 3 | Y102: 4 | Z102: 10 | AA102: - | AB102: - | AC102: - | AD102: - | AE102: - | AF102: - | AG102: - | AH102: 1 | AI102: 1 | AJ102: 4 | AK102: - | AL102: - | AM102: - | AN102: 2 | AO102: 2 | AP102: 7 | AQ102: - | AR102: - | AS102: - | AT102: - | AU102: - | AV102: - | AW102: - | AX102: - | AY102: 4 | AZ102: - | BA102: - | BB102: - | BC102: - | BD102: 1 | BE102: 2
A103: 2210103013 | B103: 22 | C103: 101 | D103: 03 | E103: 013 | F103: 静岡県 | G103: 葵区 | H103: 服織村 | I103: 羽鳥第七 | J103: 7 | K103: - | L103: - | M103: - | N103: - | O103: - | P103: - | Q103: - | R103: - | S103: 1 | T103: 1 | U103: 2 | V103: 1 | W103: 2 | X103: - | Y103: - | Z103: 5 | AA103: - | AB103: - | AC103: - | AD103: - | AE103: - | AF103: - | AG103: - | AH103: - | AI103: - | AJ103: 1 | AK103: 1 | AL103: 1 | AM103: 2 | AN103: - | AO103: - | AP103: 2 | AQ103: - | AR103: - | AS103: - | AT103: - | AU103: - | AV103: - | AW103: - | AX103: - | AY103: 1 | AZ103: - | BA103: 1 | BB103: - | BC103: - | BD103: - | BE103: -
A104: 2210103014 | B104: 22 | C104: 101 | D104: 03 | E104: 014 | F104: 静岡県 | G104: 葵区 | H104: 服織村 | I104: 新間１ | J104: 18 | K104: - | L104: - | M104: 1 | N104: - | O104: 1 | P104: - | Q104: - | R104: 3 | S104: 2 | T104: 1 | U104: 2 | V104: 4 | W104: 2 | X104: 1 | Y104: 1 | Z104: 9 | AA104: - | AB104: - | AC104: 1 | AD104: - | AE104: 1 | AF104: - | AG104: - | AH104: 1 | AI104: 1 | AJ104: 1 | AK104: - | AL104: 3 | AM104: 1 | AN104: - | AO104: - | AP104: 9 | AQ104: - | AR104: - | AS104: - | AT104: - | AU104: - | AV104: - | AW104: - | AX104: 2 | AY104: 1 | AZ104: - | BA104: 2 | BB104: 1 | BC104: 1 | BD104: 1 | BE104: 1
A105: 2210103015 | B105: 22 | C105: 101 | D105: 03 | E105: 015 | F105: 静岡県 | G105: 葵区 | H105: 服織村 | I105: 新間２ | J105: 17 | K105: - | L105: - | M105: - | N105: - | O105: 1 | P105: - | Q105: 1 | R105: 2 | S105: 3 | T105: - | U105: 3 | V105: 3 | W105: 4 | X105: - | Y105: - | Z105: 10 | AA105: - | AB105: - | AC105: - | AD105: - | AE105: 1 | AF105: - | AG105: 1 | AH105: - | AI105: 2 | AJ105: - | AK105: 1 | AL105: 2 | AM105: 3 | AN105: - | AO105: - | AP105: 7 | AQ105: - | AR105: - | AS105: - | AT105: - | AU105: - | AV105: - | AW105: - | AX105: 2 | AY105: 1 | AZ105: - | BA105: 2 | BB105: 1 | BC105: 1 | BD105: - | BE105: -
A106: 2210103016 | B106: 22 | C106: 101 | D106: 03 | E106: 016 | F106: 静岡県 | G106: 葵区 | H106: 服織村 | I106: 新間３ | J106: 56 | K106: - | L106: 1 | M106: 1 | N106: 1 | O106: 2 | P106: 1 | Q106: 2 | R106: 2 | S106: 9 | T106: 11 | U106: 9 | V106: 11 | W106: 2 | X106: 1 | Y106: 3 | Z106: 34 | AA106: - | AB106: 1 | AC106: 1 | AD106: 1 | AE106: 2 | AF106: 1 | AG106: 2 | AH106: 2 | AI106: 4 | AJ106: 4 | AK106: 5 | AL106: 7 | AM106: 1 | AN106: - | AO106: 3 | AP106: 22 | AQ106: - | AR106: - | AS106: - | AT106: - | AU106: - | AV106: - | AW106: - | AX106: - | AY106: 5 | AZ106: 7 | BA106: 4 | BB106: 4 | BC106: 1 | BD106: 1 | BE106: -
A107: 2210103017 | B107: 22 | C107: 101 | D107: 03 | E107: 017 | F107: 静岡県 | G107: 葵区 | H107: 服織村 | I107: 新間４ | J107: 50 | K107: - | L107: - | M107: - | N107: - | O107: 3 | P107: - | Q107: 4 | R107: 3 | S107: 6 | T107: 10 | U107: 10 | V107: 5 | W107: 7 | X107: 1 | Y107: 1 | Z107: 26 | AA107: - | AB107: - | AC107: - | AD107: - | AE107: 2 | AF107: - | AG107: 2 | AH107: 2 | AI107: 2 | AJ107: 5 | AK107: 5 | AL107: 4 | AM107: 2 | AN107: 1 | AO107: 1 | AP107: 24 | AQ107: - | AR107: - | AS107: - | AT107: - | AU107: 1 | AV107: - | AW107: 2 | AX107: 1 | AY107: 4 | AZ107: 5 | BA107: 5 | BB107: 1 | BC107: 5 | BD107: - | BE107: -
A108: 2210103018 | B108: 22 | C108: 101 | D108: 03 | E108: 018 | F108: 静岡県 | G108: 葵区 | H108: 服織村 | I108: 谷津 | J108: 13 | K108: - | L108: - | M108: - | N108: - | O108: - | P108: - | Q108: 1 | R108: - | S108: 5 | T108: 1 | U108: 1 | V108: - | W108: 1 | X108: 1 | Y108: 3 | Z108: 7 | AA108: - | AB108: - | AC108: - | AD108: - | AE108: - | AF108: - | AG108: - | AH108: - | AI108: 2 | AJ108: 1 | AK108: 1 | AL108: - | AM108: - | AN108: 1 | AO108: 2 | AP108: 6 | AQ108: - | AR108: - | AS108: - | AT108: - | AU108: - | AV108: - | AW108: 1 | AX108: - | AY108: 3 | AZ108: - | BA108: - | BB108: - | BC108: 1 | BD108: - | BE108: 1
A109: 2210104000 | B109: 22 | C109: 101 | D109: 04 | E109: 000 | F109: 静岡県 | G109: 葵区 | H109: 中藁科村 | J109: 260 | K109: - | L109: 2 | M109: 1 | N109: - | O109: 2 | P109: - | Q109: 7 | R109: 21 | S109: 35 | T109: 36 | U109: 41 | V109: 41 | W109: 37 | X109: 29 | Y109: 8 | Z109: 144 | AA109: - | AB109: 2 | AC109: 1 | AD109: - | AE109: 1 | AF109: - | AG109: 4 | AH109: 9 | AI109: 24 | AJ109: 15 | AK109: 26 | AL109: 23 | AM109: 19 | AN109: 14 | AO109: 6 | AP109: 116 | AQ109: - | AR109: - | AS109: - | AT109: - | AU109: 1 | AV109: - | AW109: 3 | AX109: 12 | AY109: 11 | AZ109: 21 | BA109: 15 | BB109: 18 | BC109: 18 | BD109: 15 | BE109: 2
A110: 2210104001 | B110: 22 | C110: 101 | D110: 04 | E110: 001 | F110: 静岡県 | G110: 葵区 | H110: 中藁科村 | I110: 大原 | J110: 60 | K110: - | L110: - | M110: - | N110: - | O110: - | P110: - | Q110: - | R110: 8 | S110: 13 | T110: 7 | U110: 8 | V110: 9 | W110: 6 | X110: 7 | Y110: 2 | Z110: 34 | AA110: - | AB110: - | AC110: - | AD110: - | AE110: - | AF110: - | AG110: - | AH110: 3 | AI110: 8 | AJ110: 4 | AK110: 4 | AL110: 7 | AM110: 3 | AN110: 4 | AO110: 1 | AP110: 26 | AQ110: - | AR110: - | AS110: - | AT110: - | AU110: - | AV110: - | AW110: - | AX110: 5 | AY110: 5 | AZ110: 3 | BA110: 4 | BB110: 2 | BC110: 3 | BD110: 3 | BE110: 1
A111: 2210104002 | B111: 22 | C111: 101 | D111: 04 | E111: 002 | F111: 静岡県 | G111: 葵区 | H111: 中藁科村 | I111: 水見色 | J111: 101 | K111: - | L111: 1 | M111: - | N111: - | O111: 2 | P111: - | Q111: 6 | R111: 8 | S111: 17 | T111: 14 | U111: 14 | V111: 10 | W111: 17 | X111: 9 | Y111: 3 | Z111: 56 | AA111: - | AB111: 1 | AC111: - | AD111: - | AE111: 1 | AF111: - | AG111: 3 | AH111: 4 | AI111: 13 | AJ111: 5 | AK111: 11 | AL111: 4 | AM111: 8 | AN111: 4 | AO111: 2 | AP111: 45 | AQ111: - | AR111: - | AS111: - | AT111: - | AU111: 1 | AV111: - | AW111: 3 | AX111: 4 | AY111: 4 | AZ111: 9 | BA111: 3 | BB111: 6 | BC111: 9 | BD111: 5 | BE111: 1
A112: 2210104003 | B112: 22 | C112: 101 | D112: 04 | E112: 003 | F112: 静岡県 | G112: 葵区 | H112: 中藁科村 | I112: 富厚里 | J112: 39 | K112: - | L112: - | M112: - | N112: - | O112: - | P112: - | Q112: 1 | R112: 4 | S112: 1 | T112: 7 | U112: 10 | V112: 8 | W112: 4 | X112: 3 | Y112: 1 | Z112: 21 | AA112: - | AB112: - | AC112: - | AD112: - | AE112: - | AF112: - | AG112: 1 | AH112: 1 | AI112: 1 | AJ112: 2 | AK112: 7 | AL112: 5 | AM112: 3 | AN112: - | AO112: 1 | AP112: 18 | AQ112: - | AR112: - | AS112: - | AT112: - | AU112: - | AV112: - | AW112: - | AX112: 3 | AY112: - | AZ112: 5 | BA112: 3 | BB112: 3 | BC112: 1 | BD112: 3 | BE112: -
A113: 2210104004 | B113: 22 | C113: 101 | D113: 04 | E113: 004 | F113: 静岡県 | G113: 葵区 | H113: 中藁科村 | I113: 奈良間 | J113: 5 | K113: - | L113: - | M113: - | N113: - | O113: - | P113: - | Q113: - | R113: - | S113: - | T113: 1 | U113: - | V113: 2 | W113: 1 | X113: 1 | Y113: - | Z113: 2 | AA113: - | AB113: - | AC113: - | AD113: - | AE113: - | AF113: - | AG113: - | AH113: - | AI113: - | AJ113: - | AK113: - | AL113: 1 | AM113: 1 | AN113: - | AO113: - | AP113: 3 | AQ113: - | AR113: - | AS113: - | AT113: - | AU113: - | AV113: - | AW113: - | AX113: - | AY113: - | AZ113: 1 | BA113: - | BB113: 1 | BC113: - | BD113: 1 | BE113: -
A114: 2210104005 | B114: 22 | C114: 101 | D114: 04 | E114: 005 | F114: 静岡県 | G114: 葵区 | H114: 中藁科村 | I114: 富沢 | J114: 32 | K114: - | L114: - | M114: - | N114: - | O114: - | P114: - | Q114: - | R114: - | S114: 2 | T114: 4 | U114: 5 | V114: 10 | W114: 5 | X114: 5 | Y114: 1 | Z114: 17 | AA114: - | AB114: - | AC114: - | AD114: - | AE114: - | AF114: - | AG114: - | AH114: - | AI114: 1 | AJ114: 2 | AK114: 2 | AL114: 5 | AM114: 3 | AN114: 3 | AO114: 1 | AP114: 15 | AQ114: - | AR114: - | AS114: - | AT114: - | AU114: - | AV114: - | AW114: - | AX114: - | AY114: 1 | AZ114: 2 | BA114: 3 | BB114: 5 | BC114: 2 | BD114: 2 | BE114: -
A115: 2210104006 | B115: 22 | C115: 101 | D115: 04 | E115: 006 | F115: 静岡県 | G115: 葵区 | H115: 中藁科村 | I115: 小布杉 | J115: 23 | K115: - | L115: 1 | M115: 1 | N115: - | O115: - | P115: - | Q115: - | R115: 1 | S115: 2 | T115: 3 | U115: 4 | V115: 2 | W115: 4 | X115: 4 | Y115: 1 | Z115: 14 | AA115: - | AB115: 1 | AC115: 1 | AD115: - | AE115: - | AF115: - | AG115: - | AH115: 1 | AI115: 1 | AJ115: 2 | AK115: 2 | AL115: 1 | AM115: 1 | AN115: 3 | AO115: 1 | AP115: 9 | AQ115: - | AR115: - | AS115: - | AT115: - | AU115: - | AV115: - | AW115: - | AX115: - | AY115: 1 | AZ115: 1 | BA115: 2 | BB115: 1 | BC115: 3 | BD115: 1 | BE115: -
A116: 2210105000 | B116: 22 | C116: 101 | D116: 05 | E116: 000 | F116: 静岡県 | G116: 葵区 | H116: 南藁科村 | J116: 174 | K116: - | L116: - | M116: 1 | N116: - | O116: - | P116: 4 | Q116: 3 | R116: 11 | S116: 25 | T116: 26 | U116: 23 | V116: 33 | W116: 31 | X116: 13 | Y116: 4 | Z116: 98 | AA116: - | AB116: - | AC116: 1 | AD116: - | AE116: - | AF116: 3 | AG116: 2 | AH116: 6 | AI116: 13 | AJ116: 16 | AK116: 10 | AL116: 18 | AM116: 20 | AN116: 8 | AO116: 1 | AP116: 76 | AQ116: - | AR116: - | AS116: - | AT116: - | AU116: - | AV116: 1 | AW116: 1 | AX116: 5 | AY116: 12 | AZ116: 10 | BA116: 13 | BB116: 15 | BC116: 11 | BD116: 5 | BE116: 3
A117: 2210105001 | B117: 22 | C117: 101 | D117: 05 | E117: 001 | F117: 静岡県 | G117: 葵区 | H117: 南藁科村 | I117: 牧ヶ谷 | J117: 42 | K117: - | L117: - | M117: - | N117: - | O117: - | P117: - | Q117: 1 | R117: 2 | S117: 7 | T117: 6 | U117: 7 | V117: 10 | W117: 6 | X117: 2 | Y117: 1 | Z117: 20 | AA117: - | AB117: - | AC117: - | AD117: - | AE117: - | AF117: - | AG117: - | AH117: 1 | AI117: 3 | AJ117: 4 | AK117: 2 | AL117: 6 | AM117: 4 | AN117: - | AO117: - | AP117: 22 | AQ117: - | AR117: - | AS117: - | AT117: - | AU117: - | AV117: - | AW117: 1 | AX117: 1 | AY117: 4 | AZ117: 2 | BA117: 5 | BB117: 4 | BC117: 2 | BD117: 2 | BE117: 1
A118: 2210105002 | B118: 22 | C118: 101 | D118: 05 | E118: 002 | F118: 静岡県 | G118: 葵区 | H118: 南藁科村 | I118: 産女 | J118: 18 | K118: - | L118: - | M118: - | N118: - | O118: - | P118: 1 | Q118: - | R118: - | S118: 1 | T118: 2 | U118: 5 | V118: 2 | W118: 6 | X118: 1 | Y118: - | Z118: 12 | AA118: - | AB118: - | AC118: - | AD118: - | AE118: - | AF118: 1 | AG118: - | AH118: - | AI118: 1 | AJ118: 1 | AK118: 3 | AL118: 1 | AM118: 4 | AN118: 1 | AO118: - | AP118: 6 | AQ118: - | AR118: - | AS118: - | AT118: - | AU118: - | AV118: - | AW118: - | AX118: - | AY118: - | AZ118: 1 | BA118: 2 | BB118: 1 | BC118: 2 | BD118: - | BE118: -
A119: 2210105003 | B119: 22 | C119: 101 | D119: 05 | E119: 003 | F119: 静岡県 | G119: 葵区 | H119: 南藁科村 | I119: 吉津 | J119: 15 | K119: - | L119: - | M119: - | N119: - | O119: - | P119: 2 | Q119: - | R119: 1 | S119: 1 | T119: 5 | U119: 2 | V119: 2 | W119: 1 | X119: 1 | Y119: - | Z119: 9 | AA119: - | AB119: - | AC119: - | AD119: - | AE119: - | AF119: 1 | AG119: - | AH119: 1 | AI119: 1 | AJ119: 3 | AK119: 1 | AL119: 2 | AM119: - | AN119: - | AO119: - | AP119: 6 | AQ119: - | AR119: - | AS119: - | AT119: - | AU119: - | AV119: 1 | AW119: - | AX119: - | AY119: - | AZ119: 2 | BA119: 1 | BB119: - | BC119: 1 | BD119: 1 | BE119: -
A120: 2210105004 | B120: 22 | C120: 101 | D120: 05 | E120: 004 | F120: 静岡県 | G120: 葵区 | H120: 南藁科村 | I120: 飯間 | J120: 57 | K120: - | L120: - | M120: - | N120: - | O120: - | P120: 1 | Q120: - | R120: 3 | S120: 11 | T120: 7 | U120: 9 | V120: 15 | W120: 8 | X120: 2 | Y120: 1 | Z120: 31 | AA120: - | AB120: - | AC120: - | AD120: - | AE120: - | AF120: 1 | AG120: - | AH120: 2 | AI120: 5 | AJ120: 4 | AK120: 4 | AL120: 8 | AM120: 5 | AN120: 2 | AO120: - | AP120: 26 | AQ120: - | AR120: - | AS120: - | AT120: - | AU120: - | AV120: - | AW120: - | AX120: 1 | AY120: 6 | AZ120: 3 | BA120: 5 | BB120: 7 | BC120: 3 | BD120: - | BE120: 1
A121: 2210105005 | B121: 22 | C121: 101 | D121: 05 | E121: 005 | F121: 静岡県 | G121: 葵区 | H121: 南藁科村 | I121: 小瀬戸 | J121: 36 | K121: - | L121: - | M121: 1 | N121: - | O121: - | P121: - | Q121: 2 | R121: 4 | S121: 4 | T121: 5 | U121: - | V121: 4 | W121: 9 | X121: 5 | Y121: 2 | Z121: 23 | AA121: - | AB121: - | AC121: 1 | AD121: - | AE121: - | AF121: - | AG121: 2 | AH121: 2 | AI121: 2 | AJ121: 4 | AK121: - | AL121: 1 | AM121: 6 | AN121: 4 | AO121: 1 | AP121: 13 | AQ121: - | AR121: - | AS121: - | AT121: - | AU121: - | AV121: - | AW121: - | AX121: 2 | AY121: 2 | AZ121: 1 | BA121: - | BB121: 3 | BC121: 3 | BD121: 1 | BE121: 1
A122: 2210105006 | B122: 22 | C122: 101 | D122: 05 | E122: 006 | F122: 静岡県 | G122: 葵区 | H122: 南藁科村 | I122: 西又 | J122: 6 | K122: - | L122: - | M122: - | N122: - | O122: - | P122: - | Q122: - | R122: 1 | S122: 1 | T122: 1 | U122: - | V122: - | W122: 1 | X122: 2 | Y122: - | Z122: 3 | AA122: - | AB122: - | AC122: - | AD122: - | AE122: - | AF122: - | AG122: - | AH122: - | AI122: 1 | AJ122: - | AK122: - | AL122: - | AM122: 1 | AN122: 1 | AO122: - | AP122: 3 | AQ122: - | AR122: - | AS122: - | AT122: - | AU122: - | AV122: - | AW122: - | AX122: 1 | AY122: - | AZ122: 1 | BA122: - | BB122: - | BC122: - | BD122: 1 | BE122: -
A123: 2210106000 | B123: 22 | C123: 101 | D123: 06 | E123: 000 | F123: 静岡県 | G123: 葵区 | H123: 大河内村 | J123: 174 | K123: - | L123: - | M123: 3 | N123: - | O123: 1 | P123: 1 | Q123: 5 | R123: 12 | S123: 19 | T123: 20 | U123: 17 | V123: 36 | W123: 25 | X123: 23 | Y123: 12 | Z123: 98 | AA123: - | AB123: - | AC123: 2 | AD123: - | AE123: - | AF123: - | AG123: 4 | AH123: 7 | AI123: 10 | AJ123: 17 | AK123: 8 | AL123: 20 | AM123: 12 | AN123: 12 | AO123: 6 | AP123: 76 | AQ123: - | AR123: - | AS123: 1 | AT123: - | AU123: 1 | AV123: 1 | AW123: 1 | AX123: 5 | AY123: 9 | AZ123: 3 | BA123: 9 | BB123: 16 | BC123: 13 | BD123: 11 | BE123: 6
A124: 2210106001 | B124: 22 | C124: 101 | D124: 06 | E124: 001 | F124: 静岡県 | G124: 葵区 | H124: 大河内村 | I124: 有東木 | J124: 65 | K124: - | L124: - | M124: 2 | N124: - | O124: - | P124: 1 | Q124: 4 | R124: 9 | S124: 7 | T124: 5 | U124: 3 | V124: 8 | W124: 11 | X124: 10 | Y124: 5 | Z124: 42 | AA124: - | AB124: - | AC124: 2 | AD124: - | AE124: - | AF124: - | AG124: 3 | AH124: 6 | AI124: 4 | AJ124: 5 | AK124: 2 | AL124: 6 | AM124: 7 | AN124: 5 | AO124: 2 | AP124: 23 | AQ124: - | AR124: - | AS124: - | AT124: - | AU124: - | AV124: 1 | AW124: 1 | AX124: 3 | AY124: 3 | AZ124: - | BA124: 1 | BB124: 2 | BC124: 4 | BD124: 5 | BE124: 3
A125: 2210106002 | B125: 22 | C125: 101 | D125: 06 | E125: 002 | F125: 静岡県 | G125: 葵区 | H125: 大河内村 | I125: 渡 | J125: 32 | K125: - | L125: - | M125: - | N125: - | O125: 1 | P125: - | Q125: - | R125: - | S125: 3 | T125: 6 | U125: 4 | V125: 7 | W125: 3 | X125: 5 | Y125: 3 | Z125: 15 | AA125: - | AB125: - | AC125: - | AD125: - | AE125: - | AF125: - | AG125: - | AH125: - | AI125: - | AJ125: 5 | AK125: 1 | AL125: 3 | AM125: - | AN125: 3 | AO125: 3 | AP125: 17 | AQ125: - | AR125: - | AS125: - | AT125: - | AU125: 1 | AV125: - | AW125: - | AX125: - | AY125: 3 | AZ125: 1 | BA125: 3 | BB125: 4 | BC125: 3 | BD125: 2 | BE125: -
A126: 2210106003 | B126: 22 | C126: 101 | D126: 06 | E126: 003 | F126: 静岡県 | G126: 葵区 | H126: 大河内村 | I126: 中平 | J126: 18 | K126: - | L126: - | M126: - | N126: - | O126: - | P126: - | Q126: - | R126: - | S126: 2 | T126: 3 | U126: 3 | V126: 5 | W126: 5 | X126: - | Y126: - | Z126: 9 | AA126: - | AB126: - | AC126: - | AD126: - | AE126: - | AF126: - | AG126: - | AH126: - | AI126: - | AJ126: 3 | AK126: 1 | AL126: 3 | AM126: 2 | AN126: - | AO126: - | AP126: 9 | AQ126: - | AR126: - | AS126: - | AT126: - | AU126: - | AV126: - | AW126: - | AX126: - | AY126: 2 | AZ126: - | BA126: 2 | BB126: 2 | BC126: 3 | BD126: - | BE126: -
A127: 2210106004 | B127: 22 | C127: 101 | D127: 06 | E127: 004 | F127: 静岡県 | G127: 葵区 | H127: 大河内村 | I127: 平野 | J127: 22 | K127: - | L127: - | M127: - | N127: - | O127: - | P127: - | Q127: - | R127: 2 | S127: 3 | T127: 3 | U127: 4 | V127: 6 | W127: 1 | X127: 2 | Y127: 1 | Z127: 13 | AA127: - | AB127: - | AC127: - | AD127: - | AE127: - | AF127: - | AG127: - | AH127: 1 | AI127: 3 | AJ127: 2 | AK127: 3 | AL127: 3 | AM127: - | AN127: 1 | AO127: - | AP127: 9 | AQ127: - | AR127: - | AS127: - | AT127: - | AU127: - | AV127: - | AW127: - | AX127: 1 | AY127: - | AZ127: 1 | BA127: 1 | BB127: 3 | BC127: 1 | BD127: 1 | BE127: 1
A128: 2210106005 | B128: 22 | C128: 101 | D128: 06 | E128: 005 | F128: 静岡県 | G128: 葵区 | H128: 大河内村 | I128: 横山 | J128: 20 | K128: - | L128: - | M128: 1 | N128: - | O128: - | P128: - | Q128: 1 | R128: 1 | S128: 2 | T128: 1 | U128: 1 | V128: 5 | W128: 2 | X128: 3 | Y128: 3 | Z128: 10 | AA128: - | AB128: - | AC128: - | AD128: - | AE128: - | AF128: - | AG128: 1 | AH128: - | AI128: 2 | AJ128: 1 | AK128: - | AL128: 2 | AM128: 2 | AN128: 1 | AO128: 1 | AP128: 10 | AQ128: - | AR128: - | AS128: 1 | AT128: - | AU128: - | AV128: - | AW128: - | AX128: 1 | AY128: - | AZ128: - | BA128: 1 | BB128: 3 | BC128: - | BD128: 2 | BE128: 2
A129: 2210106006 | B129: 22 | C129: 101 | D129: 06 | E129: 006 | F129: 静岡県 | G129: 葵区 | H129: 大河内村 | I129: 蕨野 | J129: 8 | K129: - | L129: - | M129: - | N129: - | O129: - | P129: - | Q129: - | R129: - | S129: 1 | T129: - | U129: - | V129: 4 | W129: 2 | X129: 1 | Y129: - | Z129: 5 | AA129: - | AB129: - | AC129: - | AD129: - | AE129: - | AF129: - | AG129: - | AH129: - | AI129: 1 | AJ129: - | AK129: - | AL129: 2 | AM129: 1 | AN129: 1 | AO129: - | AP129: 3 | AQ129: - | AR129: - | AS129: - | AT129: - | AU129: - | AV129: - | AW129: - | AX129: - | AY129: - | AZ129: - | BA129: - | BB129: 2 | BC129: 1 | BD129: - | BE129: -
A130: 2210106007 | B130: 22 | C130: 101 | D130: 06 | E130: 007 | F130: 静岡県 | G130: 葵区 | H130: 大河内村 | I130: 相渕 | J130: 9 | K130: - | L130: - | M130: - | N130: - | O130: - | P130: - | Q130: - | R130: - | S130: 1 | T130: 2 | U130: 2 | V130: 1 | W130: 1 | X130: 2 | Y130: - | Z130: 4 | AA130: - | AB130: - | AC130: - | AD130: - | AE130: - | AF130: - | AG130: - | AH130: - | AI130: - | AJ130: 1 | AK130: 1 | AL130: 1 | AM130: - | AN130: 1 | AO130: - | AP130: 5 | AQ130: - | AR130: - | AS130: - | AT130: - | AU130: - | AV130: - | AW130: - | AX130: - | AY130: 1 | AZ130: 1 | BA130: 1 | BB130: - | BC130: 1 | BD130: 1 | BE130: -
A131: 2210107000 | B131: 22 | C131: 101 | D131: 07 | E131: 000 | F131: 静岡県 | G131: 葵区 | H131: 梅ヶ島村 | J131: 78 | K131: - | L131: 1 | M131: 1 | N131: 2 | O131: - | P131: 2 | Q131: 4 | R131: 3 | S131: 13 | T131: 7 | U131: 7 | V131: 15 | W131: 10 | X131: 12 | Y131: 1 | Z131: 37 | AA131: - | AB131: 1 | AC131: 1 | AD131: 2 | AE131: - | AF131: 2 | AG131: 2 | AH131: 1 | AI131: 6 | AJ131: 3 | AK131: 3 | AL131: 4 | AM131: 5 | AN131: 7 | AO131: - | AP131: 41 | AQ131: - | AR131: - | AS131: - | AT131: - | AU131: - | AV131: - | AW131: 2 | AX131: 2 | AY131: 7 | AZ131: 4 | BA131: 4 | BB131: 11 | BC131: 5 | BD131: 5 | BE131: 1
A132: 2210107001 | B132: 22 | C132: 101 | D132: 07 | E132: 001 | F132: 静岡県 | G132: 葵区 | H132: 梅ヶ島村 | I132: 藤代 | J132: x | K132: x | L132: x | M132: x | N132: x | O132: x | P132: x | Q132: x | R132: x | S132: x | T132: x | U132: x | V132: x | W132: x | X132: x | Y132: x | Z132: x | AA132: x | AB132: x | AC132: x | AD132: x | AE132: x | AF132: x | AG132: x | AH132: x | AI132: x | AJ132: x | AK132: x | AL132: x | AM132: x | AN132: x | AO132: x | AP132: x | AQ132: x | AR132: x | AS132: x | AT132: x | AU132: x | AV132: x | AW132: x | AX132: x | AY132: x | AZ132: x | BA132: x | BB132: x | BC132: x | BD132: x | BE132: x
A133: 2210107002 | B133: 22 | C133: 101 | D133: 07 | E133: 002 | F133: 静岡県 | G133: 葵区 | H133: 梅ヶ島村 | I133: 入島 | J133: 13 | K133: - | L133: - | M133: - | N133: 1 | O133: - | P133: - | Q133: 1 | R133: - | S133: 1 | T133: 1 | U133: 2 | V133: 2 | W133: 3 | X133: 2 | Y133: - | Z133: 6 | AA133: - | AB133: - | AC133: - | AD133: 1 | AE133: - | AF133: - | AG133: 1 | AH133: - | AI133: - | AJ133: - | AK133: 1 | AL133: - | AM133: 2 | AN133: 1 | AO133: - | AP133: 7 | AQ133: - | AR133: - | AS133: - | AT133: - | AU133: - | AV133: - | AW133: - | AX133: - | AY133: 1 | AZ133: 1 | BA133: 1 | BB133: 2 | BC133: 1 | BD133: 1 | BE133: -
A134: 2210107003 | B134: 22 | C134: 101 | D134: 07 | E134: 003 | F134: 静岡県 | G134: 葵区 | H134: 梅ヶ島村 | I134: 関の沢 | J134: 8 | K134: - | L134: - | M134: - | N134: - | O134: - | P134: 1 | Q134: - | R134: - | S134: - | T134: 1 | U134: 2 | V134: 2 | W134: - | X134: 1 | Y134: 1 | Z134: 3 | AA134: - | AB134: - | AC134: - | AD134: - | AE134: - | AF134: 1 | AG134: - | AH134: - | AI134: - | AJ134: - | AK134: - | AL134: 1 | AM134: - | AN134: 1 | AO134: - | AP134: 5 | AQ134: - | AR134: - | AS134: - | AT134: - | AU134: - | AV134: - | AW134: - | AX134: - | AY134: - | AZ134: 1 | BA134: 2 | BB134: 1 | BC134: - | BD134: - | BE134: 1
A135: 2210107004 | B135: 22 | C135: 101 | D135: 07 | E135: 004 | F135: 静岡県 | G135: 葵区 | H135: 梅ヶ島村 | I135: 本村 | J135: x | K135: x | L135: x | M135: x | N135: x | O135: x | P135: x | Q135: x | R135: x | S135: x | T135: x | U135: x | V135: x | W135: x | X135: x | Y135: x | Z135: x | AA135: x | AB135: x | AC135: x | AD135: x | AE135: x | AF135: x | AG135: x | AH135: x | AI135: x | AJ135: x | AK135: x | AL135: x | AM135: x | AN135: x | AO135: x | AP135: x | AQ135: x | AR135: x | AS135: x | AT135: x | AU135: x | AV135: x | AW135: x | AX135: x | AY135: x | AZ135: x | BA135: x | BB135: x | BC135: x | BD135: x | BE135: x
A136: 2210107005 | B136: 22 | C136: 101 | D136: 07 | E136: 005 | F136: 静岡県 | G136: 葵区 | H136: 梅ヶ島村 | I136: 戸持 | J136: 12 | K136: - | L136: - | M136: - | N136: 1 | O136: - | P136: - | Q136: 1 | R136: 1 | S136: 4 | T136: 3 | U136: - | V136: 2 | W136: - | X136: - | Y136: - | Z136: 6 | AA136: - | AB136: - | AC136: - | AD136: 1 | AE136: - | AF136: - | AG136: - | AH136: 1 | AI136: 1 | AJ136: 2 | AK136: - | AL136: 1 | AM136: - | AN136: - | AO136: - | AP136: 6 | AQ136: - | AR136: - | AS136: - | AT136: - | AU136: - | AV136: - | AW136: 1 | AX136: - | AY136: 3 | AZ136: 1 | BA136: - | BB136: 1 | BC136: - | BD136: - | BE136: -
A137: 2210107006 | B137: 22 | C137: 101 | D137: 07 | E137: 006 | F137: 静岡県 | G137: 葵区 | H137: 梅ヶ島村 | I137: 大代 | J137: 21 | K137: - | L137: - | M137: 1 | N137: - | O137: - | P137: - | Q137: - | R137: 2 | S137: 6 | T137: - | U137: 2 | V137: 3 | W137: 3 | X137: 4 | Y137: - | Z137: 9 | AA137: - | AB137: - | AC137: 1 | AD137: - | AE137: - | AF137: - | AG137: - | AH137: - | AI137: 4 | AJ137: - | AK137: 1 | AL137: - | AM137: 1 | AN137: 2 | AO137: - | AP137: 12 | AQ137: - | AR137: - | AS137: - | AT137: - | AU137: - | AV137: - | AW137: - | AX137: 2 | AY137: 2 | AZ137: - | BA137: 1 | BB137: 3 | BC137: 2 | BD137: 2 | BE137: -
A138: 2210107007 | B138: 22 | C138: 101 | D138: 07 | E138: 007 | F138: 静岡県 | G138: 葵区 | H138: 梅ヶ島村 | I138: 赤水・温泉・新田 | J138: 17 | K138: - | L138: 1 | M138: - | N138: - | O138: - | P138: 1 | Q138: 1 | R138: - | S138: 2 | T138: 1 | U138: 1 | V138: 3 | W138: 4 | X138: 3 | Y138: - | Z138: 9 | AA138: - | AB138: 1 | AC138: - | AD138: - | AE138: - | AF138: 1 | AG138: - | AH138: - | AI138: 1 | AJ138: - | AK138: 1 | AL138: 1 | AM138: 2 | AN138: 2 | AO138: - | AP138: 8 | AQ138: - | AR138: - | AS138: - | AT138: - | AU138: - | AV138: - | AW138: 1 | AX138: - | AY138: 1 | AZ138: 1 | BA138: - | BB138: 2 | BC138: 2 | BD138: 1 | BE138: -
A139: 2210108000 | B139: 22 | C139: 101 | D139: 08 | E139: 000 | F139: 静岡県 | G139: 葵区 | H139: 玉川村 | J139: 130 | K139: - | L139: - | M139: - | N139: 1 | O139: - | P139: 1 | Q139: 5 | R139: 8 | S139: 17 | T139: 10 | U139: 16 | V139: 25 | W139: 22 | X139: 18 | Y139: 7 | Z139: 68 | AA139: - | AB139: - | AC139: - | AD139: 1 | AE139: - | AF139: 1 | AG139: 2 | AH139: 1 | AI139: 12 | AJ139: 3 | AK139: 7 | AL139: 12 | AM139: 15 | AN139: 8 | AO139: 6 | AP139: 62 | AQ139: - | AR139: - | AS139: - | AT139: - | AU139: - | AV139: - | AW139: 3 | AX139: 7 | AY139: 5 | AZ139: 7 | BA139: 9 | BB139: 13 | BC139: 7 | BD139: 10 | BE139: 1
A140: 2210108001 | B140: 22 | C140: 101 | D140: 08 | E140: 001 | F140: 静岡県 | G140: 葵区 | H140: 玉川村 | I140: 中沢 | J140: 16 | K140: - | L140: - | M140: - | N140: - | O140: - | P140: - | Q140: 1 | R140: 3 | S140: 2 | T140: - | U140: 1 | V140: 3 | W140: 2 | X140: 4 | Y140: - | Z140: 9 | AA140: - | AB140: - | AC140: - | AD140: - | AE140: - | AF140: - | AG140: 1 | AH140: 1 | AI140: 1 | AJ140: - | AK140: 1 | AL140: 1 | AM140: 2 | AN140: 2 | AO140: - | AP140: 7 | AQ140: - | AR140: - | AS140: - | AT140: - | AU140: - | AV140: - | AW140: - | AX140: 2 | AY140: 1 | AZ140: - | BA140: - | BB140: 2 | BC140: - | BD140: 2 | BE140: -
A141: 2210108002 | B141: 22 | C141: 101 | D141: 08 | E141: 002 | F141: 静岡県 | G141: 葵区 | H141: 玉川村 | I141: 桂山 | J141: 14 | K141: - | L141: - | M141: - | N141: - | O141: - | P141: - | Q141: 1 | R141: - | S141: 1 | T141: 1 | U141: 3 | V141: 2 | W141: 3 | X141: 2 | Y141: 1 | Z141: 8 | AA141: - | AB141: - | AC141: - | AD141: - | AE141: - | AF141: - | AG141: - | AH141: - | AI141: 1 | AJ141: - | AK141: 1 | AL141: 2 | AM141: 2 | AN141: 1 | AO141: 1 | AP141: 6 | AQ141: - | AR141: - | AS141: - | AT141: - | AU141: - | AV141: - | AW141: 1 | AX141: - | AY141: - | AZ141: 1 | BA141: 2 | BB141: - | BC141: 1 | BD141: 1 | BE141: -
A142: 2210108003 | B142: 22 | C142: 101 | D142: 08 | E142: 003 | F142: 静岡県 | G142: 葵区 | H142: 玉川村 | I142: 唯間 | J142: - | K142: - | L142: - | M142: - | N142: - | O142: - | P142: - | Q142: - | R142: - | S142: - | T142: - | U142: - | V142: - | W142: - | X142: - | Y142: - | Z142: - | AA142: - | AB142: - | AC142: - | AD142: - | AE142: - | AF142: - | AG142: - | AH142: - | AI142: - | AJ142: - | AK142: - | AL142: - | AM142: - | AN142: - | AO142: - | AP142: - | AQ142: - | AR142: - | AS142: - | AT142: - | AU142: - | AV142: - | AW142: - | AX142: - | AY142: - | AZ142: - | BA142: - | BB142: - | BC142: - | BD142: - | BE142: -
A143: 2210108004 | B143: 22 | C143: 101 | D143: 08 | E143: 004 | F143: 静岡県 | G143: 葵区 | H143: 玉川村 | I143: 上助 | J143: x | K143: x | L143: x | M143: x | N143: x | O143: x | P143: x | Q143: x | R143: x | S143: x | T143: x | U143: x | V143: x | W143: x | X143: x | Y143: x | Z143: x | AA143: x | AB143: x | AC143: x | AD143: x | AE143: x | AF143: x | AG143: x | AH143: x | AI143: x | AJ143: x | AK143: x | AL143: x | AM143: x | AN143: x | AO143: x | AP143: x | AQ143: x | AR143: x | AS143: x | AT143: x | AU143: x | AV143: x | AW143: x | AX143: x | AY143: x | AZ143: x | BA143: x | BB143: x | BC143: x | BD143: x | BE143: x
A144: 2210108005 | B144: 22 | C144: 101 | D144: 08 | E144: 005 | F144: 静岡県 | G144: 葵区 | H144: 玉川村 | I144: 奥の原 | J144: 5 | K144: - | L144: - | M144: - | N144: - | O144: - | P144: - | Q144: - | R144: - | S144: - | T144: - | U144: - | V144: 1 | W144: 3 | X144: 1 | Y144: - | Z144: 2 | AA144: - | AB144: - | AC144: - | AD144: - | AE144: - | AF144: - | AG144: - | AH144: - | AI144: - | AJ144: - | AK144: - | AL144: - | AM144: 1 | AN144: 1 | AO144: - | AP144: 3 | AQ144: - | AR144: - | AS144: - | AT144: - | AU144: - | AV144: - | AW144: - | AX144: - | AY144: - | AZ144: - | BA144: - | BB144: 1 | BC144: 2 | BD144: - | BE144: -
A145: 2210108006 | B145: 22 | C145: 101 | D145: 08 | E145: 006 | F145: 静岡県 | G145: 葵区 | H145: 玉川村 | I145: 森腰 | J145: 7 | K145: - | L145: - | M145: - | N145: - | O145: - | P145: - | Q145: - | R145: - | S145: - | T145: 2 | U145: - | V145: 2 | W145: 1 | X145: 1 | Y145: 1 | Z145: 4 | AA145: - | AB145: - | AC145: - | AD145: - | AE145: - | AF145: - | AG145: - | AH145: - | AI145: - | AJ145: 1 | AK145: - | AL145: 1 | AM145: 1 | AN145: - | AO145: 1 | AP145: 3 | AQ145: - | AR145: - | AS145: - | AT145: - | AU145: - | AV145: - | AW145: - | AX145: - | AY145: - | AZ145: 1 | BA145: - | BB145: 1 | BC145: - | BD145: 1 | BE145: -
A146: 2210108007 | B146: 22 | C146: 101 | D146: 08 | E146: 007 | F146: 静岡県 | G146: 葵区 | H146: 玉川村 | I146: 長熊 | J146: 5 | K146: - | L146: - | M146: - | N146: - | O146: - | P146: - | Q146: - | R146: - | S146: - | T146: 1 | U146: 1 | V146: 1 | W146: 1 | X146: 1 | Y146: - | Z146: 2 | AA146: - | AB146: - | AC146: - | AD146: - | AE146: - | AF146: - | AG146: - | AH146: - | AI146: - | AJ146: - | AK146: - | AL146: 1 | AM146: - | AN146: 1 | AO146: - | AP146: 3 | AQ146: - | AR146: - | AS146: - | AT146: - | AU146: - | AV146: - | AW146: - | AX146: - | AY146: - | AZ146: 1 | BA146: 1 | BB146: - | BC146: 1 | BD146: - | BE146: -
A147: 2210108008 | B147: 22 | C147: 101 | D147: 08 | E147: 008 | F147: 静岡県 | G147: 葵区 | H147: 玉川村 | I147: 柿島 | J147: 13 | K147: - | L147: - | M147: - | N147: - | O147: - | P147: - | Q147: - | R147: - | S147: 2 | T147: 2 | U147: 1 | V147: 4 | W147: - | X147: 2 | Y147: 2 | Z147: 7 | AA147: - | AB147: - | AC147: - | AD147: - | AE147: - | AF147: - | AG147: - | AH147: - | AI147: - | AJ147: 2 | AK147: 1 | AL147: 2 | AM147: - | AN147: - | AO147: 2 | AP147: 6 | AQ147: - | AR147: - | AS147: - | AT147: - | AU147: - | AV147: - | AW147: - | AX147: - | AY147: 2 | AZ147: - | BA147: - | BB147: 2 | BC147: - | BD147: 2 | BE147: -
A148: 2210108009 | B148: 22 | C148: 101 | D148: 08 | E148: 009 | F148: 静岡県 | G148: 葵区 | H148: 玉川村 | I148: 長妻田 | J148: 5 | K148: - | L148: - | M148: - | N148: 1 | O148: - | P148: - | Q148: - | R148: - | S148: 4 | T148: - | U148: - | V148: - | W148: - | X148: - | Y148: - | Z148: 4 | AA148: - | AB148: - | AC148: - | AD148: 1 | AE148: - | AF148: - | AG148: - | AH148: - | AI148: 3 | AJ148: - | AK148: - | AL148: - | AM148: - | AN148: - | AO148: - | AP148: 1 | AQ148: - | AR148: - | AS148: - | AT148: - | AU148: - | AV148: - | AW148: - | AX148: - | AY148: 1 | AZ148: - | BA148: - | BB148: - | BC148: - | BD148: - | BE148: -
A149: 2210108010 | B149: 22 | C149: 101 | D149: 08 | E149: 010 | F149: 静岡県 | G149: 葵区 | H149: 玉川村 | I149: 油野 | J149: - | K149: - | L149: - | M149: - | N149: - | O149: - | P149: - | Q149: - | R149: - | S149: - | T149: - | U149: - | V149: - | W149: - | X149: - | Y149: - | Z149: - | AA149: - | AB149: - | AC149: - | AD149: - | AE149: - | AF149: - | AG149: - | AH149: - | AI149: - | AJ149: - | AK149: - | AL149: - | AM149: - | AN149: - | AO149: - | AP149: - | AQ149: - | AR149: - | AS149: - | AT149: - | AU149: - | AV149: - | AW149: - | AX149: - | AY149: - | AZ149: - | BA149: - | BB149: - | BC149: - | BD149: - | BE149: -
A150: 2210108011 | B150: 22 | C150: 101 | D150: 08 | E150: 011 | F150: 静岡県 | G150: 葵区 | H150: 玉川村 | I150: 上落合 | J150: - | K150: - | L150: - | M150: - | N150: - | O150: - | P150: - | Q150: - | R150: - | S150: - | T150: - | U150: - | V150: - | W150: - | X150: - | Y150: - | Z150: - | AA150: - | AB150: - | AC150: - | AD150: - | AE150: - | AF150: - | AG150: - | AH150: - | AI150: - | AJ150: - | AK150: - | AL150: - | AM150: - | AN150: - | AO150: - | AP150: - | AQ150: - | AR150: - | AS150: - | AT150: - | AU150: - | AV150: - | AW150: - | AX150: - | AY150: - | AZ150: - | BA150: - | BB150: - | BC150: - | BD150: - | BE150: -
A151: 2210108012 | B151: 22 | C151: 101 | D151: 08 | E151: 012 | F151: 静岡県 | G151: 葵区 | H151: 玉川村 | I151: 口仙俣 | J151: x | K151: x | L151: x | M151: x | N151: x | O151: x | P151: x | Q151: x | R151: x | S151: x | T151: x | U151: x | V151: x | W151: x | X151: x | Y151: x | Z151: x | AA151: x | AB151: x | AC151: x | AD151: x | AE151: x | AF151: x | AG151: x | AH151: x | AI151: x | AJ151: x | AK151: x | AL151: x | AM151: x | AN151: x | AO151: x | AP151: x | AQ151: x | AR151: x | AS151: x | AT151: x | AU151: x | AV151: x | AW151: x | AX151: x | AY151: x | AZ151: x | BA151: x | BB151: x | BC151: x | BD151: x | BE151: x
A152: 2210108013 | B152: 22 | C152: 101 | D152: 08 | E152: 013 | F152: 静岡県 | G152: 葵区 | H152: 玉川村 | I152: 奥仙俣 | J152: x | K152: x | L152: x | M152: x | N152: x | O152: x | P152: x | Q152: x | R152: x | S152: x | T152: x | U152: x | V152: x | W152: x | X152: x | Y152: x | Z152: x | AA152: x | AB152: x | AC152: x | AD152: x | AE152: x | AF152: x | AG152: x | AH152: x | AI152: x | AJ152: x | AK152: x | AL152: x | AM152: x | AN152: x | AO152: x | AP152: x | AQ152: x | AR152: x | AS152: x | AT152: x | AU152: x | AV152: x | AW152: x | AX152: x | AY152: x | AZ152: x | BA152: x | BB152: x | BC152: x | BD152: x | BE152: x
A153: 2210108014 | B153: 22 | C153: 101 | D153: 08 | E153: 014 | F153: 静岡県 | G153: 葵区 | H153: 玉川村 | I153: 平瀬 | J153: 5 | K153: - | L153: - | M153: - | N153: - | O153: - | P153: - | Q153: 1 | R153: - | S153: - | T153: 1 | U153: 1 | V153: - | W153: 1 | X153: - | Y153: 1 | Z153: 2 | AA153: - | AB153: - | AC153: - | AD153: - | AE153: - | AF153: - | AG153: - | AH153: - | AI153: - | AJ153: - | AK153: 1 | AL153: - | AM153: 1 | AN153: - | AO153: - | AP153: 3 | AQ153: - | AR153: - | AS153: - | AT153: - | AU153: - | AV153: - | AW153: 1 | AX153: - | AY153: - | AZ153: 1 | BA153: - | BB153: - | BC153: - | BD153: - | BE153: 1
A154: 2210108015 | B154: 22 | C154: 101 | D154: 08 | E154: 015 | F154: 静岡県 | G154: 葵区 | H154: 玉川村 | I154: 川島 | J154: 5 | K154: - | L154: - | M154: - | N154: - | O154: - | P154: - | Q154: - | R154: 1 | S154: 2 | T154: - | U154: 1 | V154: - | W154: 1 | X154: - | Y154: - | Z154: 3 | AA154: - | AB154: - | AC154: - | AD154: - | AE154: - | AF154: - | AG154: - | AH154: - | AI154: 2 | AJ154: - | AK154: 1 | AL154: - | AM154: - | AN154: - | AO154: - | AP154: 2 | AQ154: - | AR154: - | AS154: - | AT154: - | AU154: - | AV154: - | AW154: - | AX154: 1 | AY154: - | AZ154: - | BA154: - | BB154: - | BC154: 1 | BD154: - | BE154: -
A155: 2210108016 | B155: 22 | C155: 101 | D155: 08 | E155: 016 | F155: 静岡県 | G155: 葵区 | H155: 玉川村 | I155: 大和 | J155: 11 | K155: - | L155: - | M155: - | N155: - | O155: - | P155: 1 | Q155: - | R155: 1 | S155: 2 | T155: 1 | U155: 3 | V155: 2 | W155: 1 | X155: - | Y155: - | Z155: 6 | AA155: - | AB155: - | AC155: - | AD155: - | AE155: - | AF155: 1 | AG155: - | AH155: - | AI155: 1 | AJ155: - | AK155: 2 | AL155: 1 | AM155: 1 | AN155: - | AO155: - | AP155: 5 | AQ155: - | AR155: - | AS155: - | AT155: - | AU155: - | AV155: - | AW155: - | AX155: 1 | AY155: 1 | AZ155: 1 | BA155: 1 | BB155: 1 | BC155: - | BD155: - | BE155: -
A156: 2210108017 | B156: 22 | C156: 101 | D156: 08 | E156: 017 | F156: 静岡県 | G156: 葵区 | H156: 玉川村 | I156: 内匠 | J156: 6 | K156: - | L156: - | M156: - | N156: - | O156: - | P156: - | Q156: - | R156: - | S156: - | T156: - | U156: 2 | V156: 2 | W156: 2 | X156: - | Y156: - | Z156: 3 | AA156: - | AB156: - | AC156: - | AD156: - | AE156: - | AF156: - | AG156: - | AH156: - | AI156: - | AJ156: - | AK156: - | AL156: 1 | AM156: 2 | AN156: - | AO156: - | AP156: 3 | AQ156: - | AR156: - | AS156: - | AT156: - | AU156: - | AV156: - | AW156: - | AX156: - | AY156: - | AZ156: - | BA156: 2 | BB156: 1 | BC156: - | BD156: - | BE156: -
A157: 2210108018 | B157: 22 | C157: 101 | D157: 08 | E157: 018 | F157: 静岡県 | G157: 葵区 | H157: 玉川村 | I157: 腰越 | J157: 11 | K157: - | L157: - | M157: - | N157: - | O157: - | P157: - | Q157: - | R157: 1 | S157: 1 | T157: - | U157: 3 | V157: 4 | W157: 1 | X157: 1 | Y157: - | Z157: 5 | AA157: - | AB157: - | AC157: - | AD157: - | AE157: - | AF157: - | AG157: - | AH157: - | AI157: 1 | AJ157: - | AK157: - | AL157: 2 | AM157: 1 | AN157: 1 | AO157: - | AP157: 6 | AQ157: - | AR157: - | AS157: - | AT157: - | AU157: - | AV157: - | AW157: - | AX157: 1 | AY157: - | AZ157: - | BA157: 3 | BB157: 2 | BC157: - | BD157: - | BE157: -
A158: 2210108019 | B158: 22 | C158: 101 | D158: 08 | E158: 019 | F158: 静岡県 | G158: 葵区 | H158: 玉川村 | I158: 大沢 | J158: 21 | K158: - | L158: - | M158: - | N158: - | O158: - | P158: - | Q158: 2 | R158: 2 | S158: 2 | T158: 2 | U158: - | V158: 3 | W158: 5 | X158: 5 | Y158: - | Z158: 9 | AA158: - | AB158: - | AC158: - | AD158: - | AE158: - | AF158: - | AG158: 1 | AH158: - | AI158: 2 | AJ158: - | AK158: - | AL158: 1 | AM158: 3 | AN158: 2 | AO158: - | AP158: 12 | AQ158: - | AR158: - | AS158: - | AT158: - | AU158: - | AV158: - | AW158: 1 | AX158: 2 | AY158: - | AZ158: 2 | BA158: - | BB158: 2 | BC158: 2 | BD158: 3 | BE158: -
A159: 2210108020 | B159: 22 | C159: 101 | D159: 08 | E159: 020 | F159: 静岡県 | G159: 葵区 | H159: 玉川村 | I159: 横沢 | J159: - | K159: - | L159: - | M159: - | N159: - | O159: - | P159: - | Q159: - | R159: - | S159: - | T159: - | U159: - | V159: - | W159: - | X159: - | Y159: - | Z159: - | AA159: - | AB159: - | AC159: - | AD159: - | AE159: - | AF159: - | AG159: - | AH159: - | AI159: - | AJ159: - | AK159: - | AL159: - | AM159: - | AN159: - | AO159: - | AP159: - | AQ159: - | AR159: - | AS159: - | AT159: - | AU159: - | AV159: - | AW159: - | AX159: - | AY159: - | AZ159: - | BA159: - | BB159: - | BC159: - | BD159: - | BE159: -
A160: 2210109000 | B160: 22 | C160: 101 | D160: 09 | E160: 000 | F160: 静岡県 | G160: 葵区 | H160: 井川村 | J160: 34 | K160: - | L160: - | M160: - | N160: 1 | O160: - | P160: - | Q160: 1 | R160: 1 | S160: - | T160: 3 | U160: 2 | V160: 10 | W160: 8 | X160: 8 | Y160: - | Z160: 22 | AA160: - | AB160: - | AC160: - | AD160: 1 | AE160: - | AF160: - | AG160: 1 | AH160: 1 | AI160: - | AJ160: 2 | AK160: 1 | AL160: 4 | AM160: 6 | AN160: 6 | AO160: - | AP160: 12 | AQ160: - | AR160: - | AS160: - | AT160: - | AU160: - | AV160: - | AW160: - | AX160: - | AY160: - | AZ160: 1 | BA160: 1 | BB160: 6 | BC160: 2 | BD160: 2 | BE160: -
A161: 2210109001 | B161: 22 | C161: 101 | D161: 09 | E161: 001 | F161: 静岡県 | G161: 葵区 | H161: 井川村 | I161: 西 | J161: x | K161: x | L161: x | M161: x | N161: x | O161: x | P161: x | Q161: x | R161: x | S161: x | T161: x | U161: x | V161: x | W161: x | X161: x | Y161: x | Z161: x | AA161: x | AB161: x | AC161: x | AD161: x | AE161: x | AF161: x | AG161: x | AH161: x | AI161: x | AJ161: x | AK161: x | AL161: x | AM161: x | AN161: x | AO161: x | AP161: x | AQ161: x | AR161: x | AS161: x | AT161: x | AU161: x | AV161: x | AW161: x | AX161: x | AY161: x | AZ161: x | BA161: x | BB161: x | BC161: x | BD161: x | BE161: x
A162: 2210109002 | B162: 22 | C162: 101 | D162: 09 | E162: 002 | F162: 静岡県 | G162: 葵区 | H162: 井川村 | I162: 門間 | J162: - | K162: - | L162: - | M162: - | N162: - | O162: - | P162: - | Q162: - | R162: - | S162: - | T162: - | U162: - | V162: - | W162: - | X162: - | Y162: - | Z162: - | AA162: - | AB162: - | AC162: - | AD162: - | AE162: - | AF162: - | AG162: - | AH162: - | AI162: - | AJ162: - | AK162: - | AL162: - | AM162: - | AN162: - | AO162: - | AP162: - | AQ162: - | AR162: - | AS162: - | AT162: - | AU162: - | AV162: - | AW162: - | AX162: - | AY162: - | AZ162: - | BA162: - | BB162: - | BC162: - | BD162: - | BE162: -
A163: 2210109003 | B163: 22 | C163: 101 | D163: 09 | E163: 003 | F163: 静岡県 | G163: 葵区 | H163: 井川村 | I163: 薬沢上 | J163: - | K163: - | L163: - | M163: - | N163: - | O163: - | P163: - | Q163: - | R163: - | S163: - | T163: - | U163: - | V163: - | W163: - | X163: - | Y163: - | Z163: - | AA163: - | AB163: - | AC163: - | AD163: - | AE163: - | AF163: - | AG163: - | AH163: - | AI163: - | AJ163: - | AK163: - | AL163: - | AM163: - | AN163: - | AO163: - | AP163: - | AQ163: - | AR163: - | AS163: - | AT163: - | AU163: - | AV163: - | AW163: - | AX163: - | AY163: - | AZ163: - | BA163: - | BB163: - | BC163: - | BD163: - | BE163: -
A164: 2210109004 | B164: 22 | C164: 101 | D164: 09 | E164: 004 | F164: 静岡県 | G164: 葵区 | H164: 井川村 | I164: 薬沢下 | J164: - | K164: - | L164: - | M164: - | N164: - | O164: - | P164: - | Q164: - | R164: - | S164: - | T164: - | U164: - | V164: - | W164: - | X164: - | Y164: - | Z164: - | AA164: - | AB164: - | AC164: - | AD164: - | AE164: - | AF164: - | AG164: - | AH164: - | AI164: - | AJ164: - | AK164: - | AL164: - | AM164: - | AN164: - | AO164: - | AP164: - | AQ164: - | AR164: - | AS164: - | AT164: - | AU164: - | AV164: - | AW164: - | AX164: - | AY164: - | AZ164: - | BA164: - | BB164: - | BC164: - | BD164: - | BE164: -
A165: 2210109005 | B165: 22 | C165: 101 | D165: 09 | E165: 005 | F165: 静岡県 | G165: 葵区 | H165: 井川村 | I165: 中野上 | J165: x | K165: x | L165: x | M165: x | N165: x | O165: x | P165: x | Q165: x | R165: x | S165: x | T165: x | U165: x | V165: x | W165: x | X165: x | Y165: x | Z165: x | AA165: x | AB165: x | AC165: x | AD165: x | AE165: x | AF165: x | AG165: x | AH165: x | AI165: x | AJ165: x | AK165: x | AL165: x | AM165: x | AN165: x | AO165: x | AP165: x | AQ165: x | AR165: x | AS165: x | AT165: x | AU165: x | AV165: x | AW165: x | AX165: x | AY165: x | AZ165: x | BA165: x | BB165: x | BC165: x | BD165: x | BE165: x
A166: 2210109006 | B166: 22 | C166: 101 | D166: 09 | E166: 006 | F166: 静岡県 | G166: 葵区 | H166: 井川村 | I166: 中野下 | J166: - | K166: - | L166: - | M166: - | N166: - | O166: - | P166: - | Q166: - | R166: - | S166: - | T166: - | U166: - | V166: - | W166: - | X166: - | Y166: - | Z166: - | AA166: - | AB166: - | AC166: - | AD166: - | AE166: - | AF166: - | AG166: - | AH166: - | AI166: - | AJ166: - | AK166: - | AL166: - | AM166: - | AN166: - | AO166: - | AP166: - | AQ166: - | AR166: - | AS166: - | AT166: - | AU166: - | AV166: - | AW166: - | AX166: - | AY166: - | AZ166: - | BA166: - | BB166: - | BC166: - | BD166: - | BE166: -
A167: 2210109007 | B167: 22 | C167: 101 | D167: 09 | E167: 007 | F167: 静岡県 | G167: 葵区 | H167: 井川村 | I167: 閑蔵 | J167: - | K167: - | L167: - | M167: - | N167: - | O167: - | P167: - | Q167: - | R167: - | S167: - | T167: - | U167: - | V167: - | W167: - | X167: - | Y167: - | Z167: - | AA167: - | AB167: - | AC167: - | AD167: - | AE167: - | AF167: - | AG167: - | AH167: - | AI167: - | AJ167: - | AK167: - | AL167: - | AM167: - | AN167: - | AO167: - | AP167: - | AQ167: - | AR167: - | AS167: - | AT167: - | AU167: - | AV167: - | AW167: - | AX167: - | AY167: - | AZ167: - | BA167: - | BB167: - | BC167: - | BD167: - | BE167: -
A168: 2210109008 | B168: 22 | C168: 101 | D168: 09 | E168: 008 | F168: 静岡県 | G168: 葵区 | H168: 井川村 | I168: 田代 | J168: x | K168: x | L168: x | M168: x | N168: x | O168: x | P168: x | Q168: x | R168: x | S168: x | T168: x | U168: x | V168: x | W168: x | X168: x | Y168: x | Z168: x | AA168: x | AB168: x | AC168: x | AD168: x | AE168: x | AF168: x | AG168: x | AH168: x | AI168: x | AJ168: x | AK168: x | AL168: x | AM168: x | AN168: x | AO168: x | AP168: x | AQ168: x | AR168: x | AS168: x | AT168: x | AU168: x | AV168: x | AW168: x | AX168: x | AY168: x | AZ168: x | BA168: x | BB168: x | BC168: x | BD168: x | BE168: x
A169: 2210109009 | B169: 22 | C169: 101 | D169: 09 | E169: 009 | F169: 静岡県 | G169: 葵区 | H169: 井川村 | I169: 小河内 | J169: x | K169: x | L169: x | M169: x | N169: x | O169: x | P169: x | Q169: x | R169: x | S169: x | T169: x | U169: x | V169: x | W169: x | X169: x | Y169: x | Z169: x | AA169: x | AB169: x | AC169: x | AD169: x | AE169: x | AF169: x | AG169: x | AH169: x | AI169: x | AJ169: x | AK169: x | AL169: x | AM169: x | AN169: x | AO169: x | AP169: x | AQ169: x | AR169: x | AS169: x | AT169: x | AU169: x | AV169: x | AW169: x | AX169: x | AY169: x | AZ169: x | BA169: x | BB169: x | BC169: x | BD169: x | BE169: x
A170: 2210109010 | B170: 22 | C170: 101 | D170: 09 | E170: 010 | F170: 静岡県 | G170: 葵区 | H170: 井川村 | I170: 大島 | J170: 6 | K170: - | L170: - | M170: - | N170: - | O170: - | P170: - | Q170: - | R170: 1 | S170: - | T170: 1 | U170: - | V170: 3 | W170: 1 | X170: - | Y170: - | Z170: 4 | AA170: - | AB170: - | AC170: - | AD170: - | AE170: - | AF170: - | AG170: - | AH170: 1 | AI170: - | AJ170: 1 | AK170: - | AL170: 1 | AM170: 1 | AN170: - | AO170: - | AP170: 2 | AQ170: - | AR170: - | AS170: - | AT170: - | AU170: - | AV170: - | AW170: - | AX170: - | AY170: - | AZ170: - | BA170: - | BB170: 2 | BC170: - | BD170: - | BE170: -
A171: 2210109011 | B171: 22 | C171: 101 | D171: 09 | E171: 011 | F171: 静岡県 | G171: 葵区 | H171: 井川村 | I171: 中山 | J171: x | K171: x | L171: x | M171: x | N171: x | O171: x | P171: x | Q171: x | R171: x | S171: x | T171: x | U171: x | V171: x | W171: x | X171: x | Y171: x | Z171: x | AA171: x | AB171: x | AC171: x | AD171: x | AE171: x | AF171: x | AG171: x | AH171: x | AI171: x | AJ171: x | AK171: x | AL171: x | AM171: x | AN171: x | AO171: x | AP171: x | AQ171: x | AR171: x | AS171: x | AT171: x | AU171: x | AV171: x | AW171: x | AX171: x | AY171: x | AZ171: x | BA171: x | BB171: x | BC171: x | BD171: x | BE171: x
A172: 2210109012 | B172: 22 | C172: 101 | D172: 09 | E172: 012 | F172: 静岡県 | G172: 葵区 | H172: 井川村 | I172: 上岩 | J172: x | K172: x | L172: x | M172: x | N172: x | O172: x | P172: x | Q172: x | R172: x | S172: x | T172: x | U172: x | V172: x | W172: x | X172: x | Y172: x | Z172: x | AA172: x | AB172: x | AC172: x | AD172: x | AE172: x | AF172: x | AG172: x | AH172: x | AI172: x | AJ172: x | AK172: x | AL172: x | AM172: x | AN172: x | AO172: x | AP172: x | AQ172: x | AR172: x | AS172: x | AT172: x | AU172: x | AV172: x | AW172: x | AX172: x | AY172: x | AZ172: x | BA172: x | BB172: x | BC172: x | BD172: x | BE172: x
A173: 2210109013 | B173: 22 | C173: 101 | D173: 09 | E173: 013 | F173: 静岡県 | G173: 葵区 | H173: 井川村 | I173: 口坂本 | J173: x | K173: x | L173: x | M173: x | N173: x | O173: x | P173: x | Q173: x | R173: x | S173: x | T173: x | U173: x | V173: x | W173: x | X173: x | Y173: x | Z173: x | AA173: x | AB173: x | AC173: x | AD173: x | AE173: x | AF173: x | AG173: x | AH173: x | AI173: x | AJ173: x | AK173: x | AL173: x | AM173: x | AN173: x | AO173: x | AP173: x | AQ173: x | AR173: x | AS173: x | AT173: x | AU173: x | AV173: x | AW173: x | AX173: x | AY173: x | AZ173: x | BA173: x | BB173: x | BC173: x | BD173: x | BE173: x
A174: 2210109014 | B174: 22 | C174: 101 | D174: 09 | E174: 014 | F174: 静岡県 | G174: 葵区 | H174: 井川村 | I174: 開拓 | J174: - | K174: - | L174: - | M174: - | N174: - | O174: - | P174: - | Q174: - | R174: - | S174: - | T174: - | U174: - | V174: - | W174: - | X174: - | Y174: - | Z174: - | AA174: - | AB174: - | AC174: - | AD174: - | AE174: - | AF174: - | AG174: - | AH174: - | AI174: - | AJ174: - | AK174: - | AL174: - | AM174: - | AN174: - | AO174: - | AP174: - | AQ174: - | AR174: - | AS174: - | AT174: - | AU174: - | AV174: - | AW174: - | AX174: - | AY174: - | AZ174: - | BA174: - | BB174: - | BC174: - | BD174: - | BE174: -
A175: 2210109015 | B175: 22 | C175: 101 | D175: 09 | E175: 015 | F175: 静岡県 | G175: 葵区 | H175: 井川村 | I175: 曙 | J175: x | K175: x | L175: x | M175: x | N175: x | O175: x | P175: x | Q175: x | R175: x | S175: x | T175: x | U175: x | V175: x | W175: x | X175: x | Y175: x | Z175: x | AA175: x | AB175: x | AC175: x | AD175: x | AE175: x | AF175: x | AG175: x | AH175: x | AI175: x | AJ175: x | AK175: x | AL175: x | AM175: x | AN175: x | AO175: x | AP175: x | AQ175: x | AR175: x | AS175: x | AT175: x | AU175: x | AV175: x | AW175: x | AX175: x | AY175: x | AZ175: x | BA175: x | BB175: x | BC175: x | BD175: x | BE175: x
A176: 2210109016 | B176: 22 | C176: 101 | D176: 09 | E176: 016 | F176: 静岡県 | G176: 葵区 | H176: 井川村 | I176: 西山平 | J176: 13 | K176: - | L176: - | M176: - | N176: - | O176: - | P176: - | Q176: 1 | R176: - | S176: - | T176: - | U176: 1 | V176: 3 | W176: 4 | X176: 4 | Y176: - | Z176: 8 | AA176: - | AB176: - | AC176: - | AD176: - | AE176: - | AF176: - | AG176: 1 | AH176: - | AI176: - | AJ176: - | AK176: 1 | AL176: - | AM176: 3 | AN176: 3 | AO176: - | AP176: 5 | AQ176: - | AR176: - | AS176: - | AT176: - | AU176: - | AV176: - | AW176: - | AX176: - | AY176: - | AZ176: - | BA176: - | BB176: 3 | BC176: 1 | BD176: 1 | BE176: -
A177: 2210110000 | B177: 22 | C177: 101 | D177: 10 | E177: 000 | F177: 静岡県 | G177: 葵区 | H177: 清沢村 | J177: 162 | K177: - | L177: - | M177: - | N177: 2 | O177: 2 | P177: 1 | Q177: 3 | R177: 9 | S177: 19 | T177: 18 | U177: 26 | V177: 29 | W177: 29 | X177: 19 | Y177: 5 | Z177: 96 | AA177: - | AB177: - | AC177: - | AD177: 2 | AE177: - | AF177: 1 | AG177: 2 | AH177: 4 | AI177: 10 | AJ177: 10 | AK177: 13 | AL177: 18 | AM177: 20 | AN177: 12 | AO177: 4 | AP177: 66 | AQ177: - | AR177: - | AS177: - | AT177: - | AU177: 2 | AV177: - | AW177: 1 | AX177: 5 | AY177: 9 | AZ177: 8 | BA177: 13 | BB177: 11 | BC177: 9 | BD177: 7 | BE177: 1
A178: 2210110001 | B178: 22 | C178: 101 | D178: 10 | E178: 001 | F178: 静岡県 | G178: 葵区 | H178: 清沢村 | I178: 小島 | J178: 3 | K178: - | L178: - | M178: - | N178: - | O178: - | P178: - | Q178: - | R178: - | S178: - | T178: - | U178: 1 | V178: 1 | W178: - | X178: 1 | Y178: - | Z178: 3 | AA178: - | AB178: - | AC178: - | AD178: - | AE178: - | AF178: - | AG178: - | AH178: - | AI178: - | AJ178: - | AK178: 1 | AL178: 1 | AM178: - | AN178: 1 | AO178: - | AP178: - | AQ178: - | AR178: - | AS178: - | AT178: - | AU178: - | AV178: - | AW178: - | AX178: - | AY178: - | AZ178: - | BA178: - | BB178: - | BC178: - | BD178: - | BE178: -
A179: 2210110002 | B179: 22 | C179: 101 | D179: 10 | E179: 002 | F179: 静岡県 | G179: 葵区 | H179: 清沢村 | I179: 鍵穴 | J179: 16 | K179: - | L179: - | M179: - | N179: - | O179: - | P179: - | Q179: - | R179: 1 | S179: 2 | T179: 3 | U179: 4 | V179: 3 | W179: 3 | X179: - | Y179: - | Z179: 12 | AA179: - | AB179: - | AC179: - | AD179: - | AE179: - | AF179: - | AG179: - | AH179: 1 | AI179: 1 | AJ179: 1 | AK179: 3 | AL179: 3 | AM179: 3 | AN179: - | AO179: - | AP179: 4 | AQ179: - | AR179: - | AS179: - | AT179: - | AU179: - | AV179: - | AW179: - | AX179: - | AY179: 1 | AZ179: 2 | BA179: 1 | BB179: - | BC179: - | BD179: - | BE179: -
A180: 2210110003 | B180: 22 | C180: 101 | D180: 10 | E180: 003 | F180: 静岡県 | G180: 葵区 | H180: 清沢村 | I180: 寺島 | J180: 24 | K180: - | L180: - | M180: - | N180: - | O180: - | P180: - | Q180: 1 | R180: 1 | S180: 5 | T180: 1 | U180: 5 | V180: 3 | W180: 5 | X180: 2 | Y180: 1 | Z180: 14 | AA180: - | AB180: - | AC180: - | AD180: - | AE180: - | AF180: - | AG180: - | AH180: 1 | AI180: 3 | AJ180: 1 | AK180: 2 | AL180: 2 | AM180: 2 | AN180: 2 | AO180: 1 | AP180: 10 | AQ180: - | AR180: - | AS180: - | AT180: - | AU180: - | AV180: - | AW180: 1 | AX180: - | AY180: 2 | AZ180: - | BA180: 3 | BB180: 1 | BC180: 3 | BD180: - | BE180: -
A181: 2210110004 | B181: 22 | C181: 101 | D181: 10 | E181: 004 | F181: 静岡県 | G181: 葵区 | H181: 清沢村 | I181: 坂本 | J181: 22 | K181: - | L181: - | M181: - | N181: - | O181: 1 | P181: - | Q181: 1 | R181: - | S181: 1 | T181: - | U181: 2 | V181: 4 | W181: 6 | X181: 7 | Y181: - | Z181: 13 | AA181: - | AB181: - | AC181: - | AD181: - | AE181: - | AF181: - | AG181: 1 | AH181: - | AI181: - | AJ181: - | AK181: 1 | AL181: 3 | AM181: 3 | AN181: 5 | AO181: - | AP181: 9 | AQ181: - | AR181: - | AS181: - | AT181: - | AU181: 1 | AV181: - | AW181: - | AX181: - | AY181: 1 | AZ181: - | BA181: 1 | BB181: 1 | BC181: 3 | BD181: 2 | BE181: -
A182: 2210110005 | B182: 22 | C182: 101 | D182: 10 | E182: 005 | F182: 静岡県 | G182: 葵区 | H182: 清沢村 | I182: 赤沢 | J182: - | K182: - | L182: - | M182: - | N182: - | O182: - | P182: - | Q182: - | R182: - | S182: - | T182: - | U182: - | V182: - | W182: - | X182: - | Y182: - | Z182: - | AA182: - | AB182: - | AC182: - | AD182: - | AE182: - | AF182: - | AG182: - | AH182: - | AI182: - | AJ182: - | AK182: - | AL182: - | AM182: - | AN182: - | AO182: - | AP182: - | AQ182: - | AR182: - | AS182: - | AT182: - | AU182: - | AV182: - | AW182: - | AX182: - | AY182: - | AZ182: - | BA182: - | BB182: - | BC182: - | BD182: - | BE182: -
A183: 2210110006 | B183: 22 | C183: 101 | D183: 10 | E183: 006 | F183: 静岡県 | G183: 葵区 | H183: 清沢村 | I183: 昼居渡 | J183: 2 | K183: - | L183: - | M183: - | N183: - | O183: - | P183: - | Q183: - | R183: - | S183: - | T183: 1 | U183: - | V183: 1 | W183: - | X183: - | Y183: - | Z183: 1 | AA183: - | AB183: - | AC183: - | AD183: - | AE183: - | AF183: - | AG183: - | AH183: - | AI183: - | AJ183: - | AK183: - | AL183: 1 | AM183: - | AN183: - | AO183: - | AP183: 1 | AQ183: - | AR183: - | AS183: - | AT183: - | AU183: - | AV183: - | AW183: - | AX183: - | AY183: - | AZ183: 1 | BA183: - | BB183: - | BC183: - | BD183: - | BE183: -
A184: 2210110007 | B184: 22 | C184: 101 | D184: 10 | E184: 007 | F184: 静岡県 | G184: 葵区 | H184: 清沢村 | I184: 下相俣 | J184: 10 | K184: - | L184: - | M184: - | N184: - | O184: - | P184: - | Q184: - | R184: 2 | S184: 1 | T184: 2 | U184: 1 | V184: 1 | W184: 1 | X184: 2 | Y184: - | Z184: 5 | AA184: - | AB184: - | AC184: - | AD184: - | AE184: - | AF184: - | AG184: - | AH184: - | AI184: 1 | AJ184: 1 | AK184: - | AL184: 1 | AM184: 1 | AN184: 1 | AO184: - | AP184: 5 | AQ184: - | AR184: - | AS184: - | AT184: - | AU184: - | AV184: - | AW184: - | AX184: 2 | AY184: - | AZ184: 1 | BA184: 1 | BB184: - | BC184: - | BD184: 1 | BE184: -
A185: 2210110008 | B185: 22 | C185: 101 | D185: 10 | E185: 008 | F185: 静岡県 | G185: 葵区 | H185: 清沢村 | I185: 上相俣 | J185: 12 | K185: - | L185: - | M185: - | N185: - | O185: - | P185: - | Q185: - | R185: 2 | S185: 1 | T185: 3 | U185: 1 | V185: 3 | W185: 2 | X185: - | Y185: - | Z185: 7 | AA185: - | AB185: - | AC185: - | AD185: - | AE185: - | AF185: - | AG185: - | AH185: 1 | AI185: - | AJ185: 2 | AK185: - | AL185: 2 | AM185: 2 | AN185: - | AO185: - | AP185: 5 | AQ185: - | AR185: - | AS185: - | AT185: - | AU185: - | AV185: - | AW185: - | AX185: 1 | AY185: 1 | AZ185: 1 | BA185: 1 | BB185: 1 | BC185: - | BD185: - | BE185: -
A186: 2210110009 | B186: 22 | C186: 101 | D186: 10 | E186: 009 | F186: 静岡県 | G186: 葵区 | H186: 清沢村 | I186: 久能尾 | J186: 27 | K186: - | L186: - | M186: - | N186: 1 | O186: 1 | P186: - | Q186: - | R186: 1 | S186: 3 | T186: 3 | U186: 9 | V186: 4 | W186: 3 | X186: 1 | Y186: 1 | Z186: 16 | AA186: - | AB186: - | AC186: - | AD186: 1 | AE186: - | AF186: - | AG186: - | AH186: - | AI186: 2 | AJ186: 1 | AK186: 6 | AL186: 3 | AM186: 1 | AN186: 1 | AO186: 1 | AP186: 11 | AQ186: - | AR186: - | AS186: - | AT186: - | AU186: 1 | AV186: - | AW186: - | AX186: 1 | AY186: 1 | AZ186: 2 | BA186: 3 | BB186: 1 | BC186: 2 | BD186: - | BE186: -
A187: 2210110010 | B187: 22 | C187: 101 | D187: 10 | E187: 010 | F187: 静岡県 | G187: 葵区 | H187: 清沢村 | I187: 黒俣（中村） | J187: 12 | K187: - | L187: - | M187: - | N187: - | O187: - | P187: - | Q187: - | R187: - | S187: 1 | T187: 3 | U187: 1 | V187: 1 | W187: 3 | X187: 3 | Y187: - | Z187: 7 | AA187: - | AB187: - | AC187: - | AD187: - | AE187: - | AF187: - | AG187: - | AH187: - | AI187: - | AJ187: 3 | AK187: - | AL187: - | AM187: 2 | AN187: 2 | AO187: - | AP187: 5 | AQ187: - | AR187: - | AS187: - | AT187: - | AU187: - | AV187: - | AW187: - | AX187: - | AY187: 1 | AZ187: - | BA187: 1 | BB187: 1 | BC187: 1 | BD187: 1 | BE187: -
A188: 2210110011 | B188: 22 | C188: 101 | D188: 10 | E188: 011 | F188: 静岡県 | G188: 葵区 | H188: 清沢村 | I188: 三ッ野 | J188: 5 | K188: - | L188: - | M188: - | N188: - | O188: - | P188: - | Q188: - | R188: 1 | S188: - | T188: - | U188: - | V188: 1 | W188: 3 | X188: - | Y188: - | Z188: 4 | AA188: - | AB188: - | AC188: - | AD188: - | AE188: - | AF188: - | AG188: - | AH188: 1 | AI188: - | AJ188: - | AK188: - | AL188: - | AM188: 3 | AN188: - | AO188: - | AP188: 1 | AQ188: - | AR188: - | AS188: - | AT188: - | AU188: - | AV188: - | AW188: - | AX188: - | AY188: - | AZ188: - | BA188: - | BB188: 1 | BC188: - | BD188: - | BE188: -
A189: 2210110012 | B189: 22 | C189: 101 | D189: 10 | E189: 012 | F189: 静岡県 | G189: 葵区 | H189: 清沢村 | I189: 峰山 | J189: 4 | K189: - | L189: - | M189: - | N189: - | O189: - | P189: - | Q189: 1 | R189: - | S189: - | T189: 1 | U189: - | V189: - | W189: - | X189: 1 | Y189: 1 | Z189: 2 | AA189: - | AB189: - | AC189: - | AD189: - | AE189: - | AF189: - | AG189: 1 | AH189: - | AI189: - | AJ189: - | AK189: - | AL189: - | AM189: - | AN189: - | AO189: 1 | AP189: 2 | AQ189: - | AR189: - | AS189: - | AT189: - | AU189: - | AV189: - | AW189: - | AX189: - | AY189: - | AZ189: 1 | BA189: - | BB189: - | BC189: - | BD189: 1 | BE189: -
A190: 2210110013 | B190: 22 | C190: 101 | D190: 10 | E190: 013 | F190: 静岡県 | G190: 葵区 | H190: 清沢村 | I190: 中塚 | J190: 5 | K190: - | L190: - | M190: - | N190: - | O190: - | P190: - | Q190: - | R190: - | S190: - | T190: - | U190: - | V190: 2 | W190: 1 | X190: - | Y190: 2 | Z190: 2 | AA190: - | AB190: - | AC190: - | AD190: - | AE190: - | AF190: - | AG190: - | AH190: - | AI190: - | AJ190: - | AK190: - | AL190: - | AM190: 1 | AN190: - | AO190: 1 | AP190: 3 | AQ190: - | AR190: - | AS190: - | AT190: - | AU190: - | AV190: - | AW190: - | AX190: - | AY190: - | AZ190: - | BA190: - | BB190: 2 | BC190: - | BD190: - | BE190: 1
A191: 2210110014 | B191: 22 | C191: 101 | D191: 10 | E191: 014 | F191: 静岡県 | G191: 葵区 | H191: 清沢村 | I191: 蛇塚 | J191: 8 | K191: - | L191: - | M191: - | N191: - | O191: - | P191: 1 | Q191: - | R191: 1 | S191: 2 | T191: 1 | U191: - | V191: 1 | W191: 1 | X191: 1 | Y191: - | Z191: 4 | AA191: - | AB191: - | AC191: - | AD191: - | AE191: - | AF191: 1 | AG191: - | AH191: - | AI191: 1 | AJ191: 1 | AK191: - | AL191: - | AM191: 1 | AN191: - | AO191: - | AP191: 4 | AQ191: - | AR191: - | AS191: - | AT191: - | AU191: - | AV191: - | AW191: - | AX191: 1 | AY191: 1 | AZ191: - | BA191: - | BB191: 1 | BC191: - | BD191: 1 | BE191: -
A192: 2210110015 | B192: 22 | C192: 101 | D192: 10 | E192: 015 | F192: 静岡県 | G192: 葵区 | H192: 清沢村 | I192: 杉尾 | J192: 12 | K192: - | L192: - | M192: - | N192: 1 | O192: - | P192: - | Q192: - | R192: - | S192: 3 | T192: - | U192: 2 | V192: 4 | W192: 1 | X192: 1 | Y192: - | Z192: 6 | AA192: - | AB192: - | AC192: - | AD192: 1 | AE192: - | AF192: - | AG192: - | AH192: - | AI192: 2 | AJ192: - | AK192: - | AL192: 2 | AM192: 1 | AN192: - | AO192: - | AP192: 6 | AQ192: - | AR192: - | AS192: - | AT192: - | AU192: - | AV192: - | AW192: - | AX192: - | AY192: 1 | AZ192: - | BA192: 2 | BB192: 2 | BC192: - | BD192: 1 | BE192: -
A193: 2210111000 | B193: 22 | C193: 101 | D193: 11 | E193: 000 | F193: 静岡県 | G193: 葵区 | H193: 大川村 | J193: 155 | K193: - | L193: - | M193: 1 | N193: 2 | O193: 3 | P193: 1 | Q193: 4 | R193: 9 | S193: 12 | T193: 26 | U193: 24 | V193: 29 | W193: 21 | X193: 15 | Y193: 8 | Z193: 83 | AA193: - | AB193: - | AC193: - | AD193: 2 | AE193: 2 | AF193: - | AG193: 1 | AH193: 4 | AI193: 6 | AJ193: 13 | AK193: 15 | AL193: 15 | AM193: 15 | AN193: 7 | AO193: 3 | AP193: 72 | AQ193: - | AR193: - | AS193: 1 | AT193: - | AU193: 1 | AV193: 1 | AW193: 3 | AX193: 5 | AY193: 6 | AZ193: 13 | BA193: 9 | BB193: 14 | BC193: 6 | BD193: 8 | BE193: 5
A194: 2210111001 | B194: 22 | C194: 101 | D194: 11 | E194: 001 | F194: 静岡県 | G194: 葵区 | H194: 大川村 | I194: 坂ノ上 | J194: 33 | K194: - | L194: - | M194: - | N194: - | O194: 2 | P194: - | Q194: - | R194: 4 | S194: 1 | T194: 1 | U194: 5 | V194: 5 | W194: 8 | X194: 4 | Y194: 3 | Z194: 18 | AA194: - | AB194: - | AC194: - | AD194: - | AE194: 1 | AF194: - | AG194: - | AH194: 2 | AI194: 1 | AJ194: - | AK194: 2 | AL194: 4 | AM194: 5 | AN194: 1 | AO194: 2 | AP194: 15 | AQ194: - | AR194: - | AS194: - | AT194: - | AU194: 1 | AV194: - | AW194: - | AX194: 2 | AY194: - | AZ194: 1 | BA194: 3 | BB194: 1 | BC194: 3 | BD194: 3 | BE194: 1
A195: 2210111002 | B195: 22 | C195: 101 | D195: 11 | E195: 002 | F195: 静岡県 | G195: 葵区 | H195: 大川村 | I195: 栃沢 | J195: 27 | K195: - | L195: - | M195: 1 | N195: 1 | O195: - | P195: - | Q195: 1 | R195: 1 | S195: 2 | T195: 6 | U195: 4 | V195: 7 | W195: 2 | X195: 2 | Y195: - | Z195: 17 | AA195: - | AB195: - | AC195: - | AD195: 1 | AE195: - | AF195: - | AG195: - | AH195: 1 | AI195: 1 | AJ195: 4 | AK195: 2 | AL195: 4 | AM195: 2 | AN195: 2 | AO195: - | AP195: 10 | AQ195: - | AR195: - | AS195: 1 | AT195: - | AU195: - | AV195: - | AW195: 1 | AX195: - | AY195: 1 | AZ195: 2 | BA195: 2 | BB195: 3 | BC195: - | BD195: - | BE195: -
A196: 2210111003 | B196: 22 | C196: 101 | D196: 11 | E196: 003 | F196: 静岡県 | G196: 葵区 | H196: 大川村 | I196: 日向 | J196: 27 | K196: - | L196: - | M196: - | N196: 1 | O196: - | P196: - | Q196: 1 | R196: 1 | S196: 3 | T196: 7 | U196: 4 | V196: 2 | W196: 4 | X196: 4 | Y196: - | Z196: 14 | AA196: - | AB196: - | AC196: - | AD196: 1 | AE196: - | AF196: - | AG196: - | AH196: - | AI196: 1 | AJ196: 3 | AK196: 4 | AL196: - | AM196: 2 | AN196: 3 | AO196: - | AP196: 13 | AQ196: - | AR196: - | AS196: - | AT196: - | AU196: - | AV196: - | AW196: 1 | AX196: 1 | AY196: 2 | AZ196: 4 | BA196: - | BB196: 2 | BC196: 2 | BD196: 1 | BE196: -
A197: 2210111004 | B197: 22 | C197: 101 | D197: 11 | E197: 004 | F197: 静岡県 | G197: 葵区 | H197: 大川村 | I197: 開拓 | J197: 9 | K197: - | L197: - | M197: - | N197: - | O197: - | P197: - | Q197: - | R197: - | S197: 2 | T197: 2 | U197: 1 | V197: 2 | W197: - | X197: 2 | Y197: - | Z197: 5 | AA197: - | AB197: - | AC197: - | AD197: - | AE197: - | AF197: - | AG197: - | AH197: - | AI197: 1 | AJ197: 1 | AK197: 1 | AL197: 1 | AM197: - | AN197: 1 | AO197: - | AP197: 4 | AQ197: - | AR197: - | AS197: - | AT197: - | AU197: - | AV197: - | AW197: - | AX197: - | AY197: 1 | AZ197: 1 | BA197: - | BB197: 1 | BC197: - | BD197: 1 | BE197: -
